{"text_format":"3","workbook":"xlsx","n_sheets":15,"sheets":["Initial info","FSC","FE","Production","Storage, etc","Loss waste","Trade","Supply chains","Composition","Labelling","Promotion","Provision","Retail","Prices","Environments"],"not_rendered":{"charts":151},"read":"whole","date_system":"1900"}

{"sheet":"Initial info","index":0,"n_rows":3,"n_cols":2,"rows_kept":3}
[null,"Respondents"]
["FSC",9]
["FE",18]

{"sheet":"FSC","index":1,"n_rows":10,"n_cols":306,"rows_kept":10}
["Response ID","Date submitted","Field of expertise","[Sustainable food production systems]   [For undernutrition:]"," [Sustainable food production systems]  [For overnutrition:]"," [Sustainable food production systems]  [For environmental sustainability:]"," [Sustainable food production systems] [For socio-economic inequalities:]"," [Sustainable food production systems] [For women's empowerment:]","How effective would it be if implemented by national governments? [For undernutrition:]","How effective would it be if implemented by national governments? [For overnutrition:]","How effective would it be if implemented by national governments? [For environmental sustainability:]","How effective would it be if implemented by national governments? [For socio-economic inequalities:]","How effective would it be if implemented by national governments? [For women's empowerment:]"," [Sustainable food production systems] Suggestions or modifications","[Sustainable and regenerative agriculture] [For undernutrition:]"," [Sustainable and regenerative agriculture] [For overnutrition:]"," [Sustainable and regenerative agriculture] [For environmental sustainability:]","[Sustainable and regenerative agriculture] [For socio-economic inequalities:]","[Sustainable and regenerative agriculture] [For women's empowerment:]","How effective would it be if implemented by national governments?  [For undernutrition:]","How effective would it be if implemented by national governments?  [For overnutrition:]","How effective would it be if implemented by national governments?  [For environmental sustainability:]","How effective would it be if implemented by national governments?  [For socio-economic inequalities:]","How effective would it be if implemented by national governments?  [For women's empowerment:]","[Sustainable and regenerative agriculture] Suggestions or modifications","[Crops/farms diversification and related agricultural investment] [For undernutrition:]","[Crops/farms diversification and related agricultural investment] [For overnutrition:]","[Crops/farms diversification and related agricultural investment]  [For environmental sustainability:]","[Crops/farms diversification and related agricultural investment]  [For socio-economic inequalities:]","[Crops/farms diversification and related agricultural investment]  [For women's empowerment:]","How effective would it be if implemented by national governments?  [For undernutrition:]2","How effective would it be if implemented by national governments?  [For overnutrition:]3","How effective would it be if implemented by national governments?  [For environmental sustainability:]4","How effective would it be if implemented by national governments?  [For socio-economic inequalities:]5","How effective would it be if implemented by national governments?  [For women's empowerment:]6","[Crops/farms diversification and related agricultural investment] Suggestions or modifications","[Land use management]  [For undernutrition:]","[Land use management]  [For overnutrition:]","[Land use management]  [For environmental sustainability:]","[Land use management]  [For socio-economic inequalities:]","[Land use management]   [For women's empowerment:]","How effective would it be if implemented by national governments?  [For undernutrition:]7","How effective would it be if implemented by national governments?  [For overnutrition:]8","How effective would it be if implemented by national governments?  [For environmental sustainability:]9","How effective would it be if implemented by national governments?  [For socio-economic inequalities:]10","How effective would it be if implemented by national governments?  [For women's empowerment:]11","[Land use management] Suggestions or modifications","[Biodiversity/ecosystem restoration and conservation] [For undernutrition:]","[Biodiversity/ecosystem restoration and conservation] [For overnutrition:]","[Biodiversity/ecosystem restoration and conservation]   [For environmental sustainability:]","[Biodiversity/ecosystem restoration and conservation]  [For socio-economic inequalities:]","[Biodiversity/ecosystem restoration and conservation] [For women's empowerment:]","How effective would it be if implemented by national governments?  [For undernutrition:]12","How effective would it be if implemented by national governments?  [For overnutrition:]13","How effective would it be if implemented by national governments?  [For environmental sustainability:]14","How effective would it be if implemented by national governments?  [For socio-economic inequalities:]15","How effective would it be if implemented by national governments?  [For women's empowerment:]16","[Biodiversity/ecosystem restoration and conservation] Suggestions or modifications","[Tariffs and subsidies for sustainable healthy foods]  [For undernutrition:]","[Tariffs and subsidies for sustainable healthy foods] [For overnutrition:]","[Tariffs and subsidies for sustainable healthy foods]   [For environmental sustainability:]","[Tariffs and subsidies for sustainable healthy foods]   [For socio-economic inequalities:]","[Tariffs and subsidies for sustainable healthy foods]  [For women's empowerment:]","How effective would it be if implemented by national governments?  [For undernutrition:]17","How effective would it be if implemented by national governments?  [For overnutrition:]18","How effective would it be if implemented by national governments?  [For environmental sustainability:]19","How effective would it be if implemented by national governments?  [For socio-economic inequalities:]20","How effective would it be if implemented by national governments?  [For women's empowerment:]21","[Tariffs and subsidies for sustainable healthy foods] Suggestions or modifications","[Optimisation of water resources]    [For undernutrition:]"," [Optimisation of water resources]  [For overnutrition:]","[Optimisation of water resources] [For environmental sustainability:]","[Optimisation of water resources]  [For socio-economic inequalities:]","[Optimisation of water resources]  [For women's empowerment:]","How effective would it be if implemented by national governments?  [For undernutrition:]22","How effective would it be if implemented by national governments?  [For overnutrition:]23","How effective would it be if implemented by national governments?  [For environmental sustainability:]24","How effective would it be if implemented by national governments?  [For socio-economic inequalities:]25","How effective would it be if implemented by national governments?  [For women's empowerment:]26","[Optimisation of water resources] Suggestions or modifications","[Management of use of fertilisers] [For undernutrition:]","[Management of use of fertilisers]  [For overnutrition:]","[Management of use of fertilisers]  [For environmental sustainability:]","[Management of use of fertilisers]  [For socio-economic inequalities:]","[Management of use of fertilisers]  [For women's empowerment:]","How effective would it be if implemented by national governments?   [For undernutrition:]","How effective would it be if implemented by national governments?   [For overnutrition:]","How effective would it be if implemented by national governments?   [For environmental sustainability:]","How effective would it be if implemented by national governments?   [For socio-economic inequalities:]","How effective would it be if implemented by national governments?   [For women's empowerment:]","[Management of use of fertilisers] Suggestions or modifications","[Farmers access to seeds, innovation and technology]  [For undernutrition:]","[Farmers access to seeds, innovation and technology]  [For overnutrition:]","[Farmers access to seeds, innovation and technology] [For environmental sustainability:]","[Farmers access to seeds, innovation and technology]  [For socio-economic inequalities:]","[Farmers access to seeds, innovation and technology] [For women's empowerment:]","How effective would it be if implemented by national governments?   [For undernutrition:]27","How effective would it be if implemented by national governments?   [For overnutrition:]28","How effective would it be if implemented by national governments?   [For environmental sustainability:]29","How effective would it be if implemented by national governments?   [For socio-economic inequalities:]30","How effective would it be if implemented by national governments?   [For women's empowerment:]31","[Farmers access to seeds, innovation and technology] Suggestions or modifications","[Bio-fortification]  [For undernutrition:]","[Bio-fortification]  [For overnutrition:]","[Bio-fortification]  [For environmental sustainability:]","[Bio-fortification] [For socio-economic inequalities:]","[Bio-fortification] [For women's empowerment:]","How effective would it be if implemented by national governments?   [For undernutrition:]32","How effective would it be if implemented by national governments?   [For overnutrition:]33","How effective would it be if implemented by national governments?   [For environmental sustainability:]34","How effective would it be if implemented by national governments?   [For socio-economic inequalities:]35","How effective would it be if implemented by national governments?   [For women's empowerment:]36","[Bio-fortification] Suggestions or modifications:","[Farmers support and protection] [For undernutrition:]","[Farmers support and protection] [For overnutrition:]","[Farmers support and protection]  [For environmental sustainability:]","[Farmers support and protection]  [For socio-economic inequalities:]","[Farmers support and protection] [For women's empowerment:]","How effective would it be if implemented by national governments?   [For undernutrition:]37","How effective would it be if implemented by national governments?   [For overnutrition:]38","How effective would it be if implemented by national governments?   [For environmental sustainability:]39","How effective would it be if implemented by national governments?   [For socio-economic inequalities:]40","How effective would it be if implemented by national governments?   [For women's empowerment:]41","[Farmers support and protection] Suggestions or modifications","[Women’s empowerment in agriculture]  [For undernutrition:]","[Women’s empowerment in agriculture] [For overnutrition:]","[Women’s empowerment in agriculture]  [For environmental sustainability:]","[Women’s empowerment in agriculture] [For socio-economic inequalities:]","[Women’s empowerment in agriculture]  [For women's empowerment:]","How effective would it be if implemented by national governments?   [For undernutrition:]42","How effective would it be if implemented by national governments?   [For overnutrition:]43","How effective would it be if implemented by national governments?   [For environmental sustainability:]44","How effective would it be if implemented by national governments?   [For socio-economic inequalities:]45","How effective would it be if implemented by national governments?   [For women's empowerment:]46","[Women’s empowerment in agriculture] Suggestions or modifications","[Tailored support to rural and urban areas] [For undernutrition:]","[Tailored support to rural and urban areas]  [For overnutrition:]","[Tailored support to rural and urban areas]  [For environmental sustainability:]","[Tailored support to rural and urban areas]   [For socio-economic inequalities:]","[Tailored support to rural and urban areas]  [For women's empowerment:]","How effective would it be if implemented by national governments?   [For undernutrition:]47","How effective would it be if implemented by national governments?   [For overnutrition:]48","How effective would it be if implemented by national governments?   [For environmental sustainability:]49","How effective would it be if implemented by national governments?   [For socio-economic inequalities:]50","How effective would it be if implemented by national governments?   [For women's empowerment:]51","[Tailored support to rural and urban areas]  Suggestions or modifications","[Climate change impact preparedness]  [For undernutrition:]","[Climate change impact preparedness] [For overnutrition:]","[Climate change impact preparedness] [For environmental sustainability:]","[Climate change impact preparedness] [For socio-economic inequalities:]","[Climate change impact preparedness]  [For women's empowerment:]","How effective would it be if implemented by national governments?   [For undernutrition:]52","How effective would it be if implemented by national governments?   [For overnutrition:]53","How effective would it be if implemented by national governments?   [For environmental sustainability:]54","How effective would it be if implemented by national governments?   [For socio-economic inequalities:]55","How effective would it be if implemented by national governments?   [For women's empowerment:]56","[Climate change impact preparedness] Suggestions or modifications","[Land, fisheries and forest rights protection]  [For undernutrition:]","[Land, fisheries and forest rights protection] [For overnutrition:]","[Land, fisheries and forest rights protection]   [For environmental sustainability:]","[Land, fisheries and forest rights protection]   [For socio-economic inequalities:]","[Land, fisheries and forest rights protection]   [For women's empowerment:]","How effective would it be if implemented by national governments?   [For undernutrition:]57","How effective would it be if implemented by national governments?   [For overnutrition:]58","How effective would it be if implemented by national governments?   [For environmental sustainability:]59","How effective would it be if implemented by national governments?   [For socio-economic inequalities:]60","How effective would it be if implemented by national governments?   [For women's empowerment:]61","[Land, fisheries and forest rights protection] Suggestions or modifications","Additional relevant indicators for food production","[Transport and infrastructure investment] [For undernutrition:]","[Transport and infrastructure investment]  [For overnutrition:]","[Transport and infrastructure investment]  [For environmental sustainability:]","[Transport and infrastructure investment]  [For socio-economic inequalities:]","[Transport and infrastructure investment] [For women's empowerment:]","How effective would it be if implemented by national governments?   [For undernutrition:]62","How effective would it be if implemented by national governments?   [For overnutrition:]63","How effective would it be if implemented by national governments?   [For environmental sustainability:]64","How effective would it be if implemented by national governments?   [For socio-economic inequalities:]65","How effective would it be if implemented by national governments?   [For women's empowerment:]66","[Transport and infrastructure investment] Suggestions or modifications","[SMEs and start-ups support]  [For undernutrition:]","[SMEs and start-ups support]   [For overnutrition:]","[SMEs and start-ups support] [For environmental sustainability:]","[SMEs and start-ups support] [For socio-economic inequalities:]","[SMEs and start-ups support] [For women's empowerment]","How effective would it be if implemented by national governments?   [For undernutrition:]67","How effective would it be if implemented by national governments?   [For overnutrition:]68","How effective would it be if implemented by national governments?   [For environmental sustainability:]69","How effective would it be if implemented by national governments?   [For socio-economic inequalities:]70","How effective would it be if implemented by national governments?   [For women's empowerment:]71","[SMEs and start-ups support] Suggestions or modifications","[Fortification programmes]  [For undernutrition:]","[Fortification programmes]  [For overnutrition:]","[Fortification programmes]  [For environmental sustainability:]","[Fortification programmes]  [For socio-economic inequalities:]","[Fortification programmes]  [For women's empowerment:]","How effective would it be if implemented by national governments?   [For undernutrition:]72","How effective would it be if implemented by national governments?   [For overnutrition:]73","How effective would it be if implemented by national governments?   [For environmental sustainability:]74","How effective would it be if implemented by national governments?   [For socio-economic inequalities:]75","How effective would it be if implemented by national governments?   [For women's empowerment:]76","[Fortification programmes] Suggestions or modifications","[Social protection mechanism]  [For undernutrition:]","[Social protection mechanism]  [For overnutrition:]","[Social protection mechanism]   [For environmental sustainability:]","[Social protection mechanism]   [For socio-economic inequalities:]","[Social protection mechanism]  [For women's empowerment]","How effective would it be if implemented by national governments?   [For undernutrition:]77","How effective would it be if implemented by national governments?   [For overnutrition:]78","How effective would it be if implemented by national governments?   [For environmental sustainability:]79","How effective would it be if implemented by national governments?   [For socio-economic inequalities:]80","How effective would it be if implemented by national governments?   [For women's empowerment:]81","[Social protection mechanism] Suggestions or modifications","[Employment generation in rural economies] [For undernutrition:]","[Employment generation in rural economies] [For overnutrition:]","[Employment generation in rural economies] [For environmental sustainability:]","[Employment generation in rural economies] [For socio-economic inequalities:]","[Employment generation in rural economies]  [For women's empowerment:]","How effective would it be if implemented by national governments?   [For undernutrition:]82","How effective would it be if implemented by national governments?   [For overnutrition:]83","How effective would it be if implemented by national governments?   [For environmental sustainability:]84","How effective would it be if implemented by national governments?   [For socio-economic inequalities:]85","How effective would it be if implemented by national governments?   [For women's empowerment:]86","[Employment generation in rural economies] Suggestions or modifications ","[Packaging innovation]  [For undernutrition:]","[Packaging innovation] [For overnutrition:]","[Packaging innovation] [For environmental sustainability:]","[Packaging innovation] [For socio-economic inequalities:]","[Packaging innovation] [For women's empowerment:]","How effective would it be if implemented by national governments?   [For undernutrition:]87","How effective would it be if implemented by national governments?   [For overnutrition:]88","How effective would it be if implemented by national governments?   [For environmental sustainability:]89","How effective would it be if implemented by national governments?   [For socio-economic inequalities:]90","How effective would it be if implemented by national governments?   [For women's empowerment:]91","[Packaging innovation] Suggestions or modifications","Additional relevant indicators for food storage, processing, etc","[Prevention through infrastructure and coordination] [For undernutrition:]","[Prevention through infrastructure and coordination] [For overnutrition:]","[Prevention through infrastructure and coordination] [For environmental sustainability:]","[Prevention through infrastructure and coordination]  [For socio-economic inequalities:]","[Prevention through infrastructure and coordination]  [For women's empowerment:]","How effective would it be if implemented by national governments?   [For undernutrition:]92","How effective would it be if implemented by national governments?   [For overnutrition:]93","How effective would it be if implemented by national governments?   [For environmental sustainability:]94","How effective would it be if implemented by national governments?   [For socio-economic inequalities:]95","How effective would it be if implemented by national governments?   [For women's empowerment:]96","[Prevention through infrastructure and coordination] Suggestions or  modifications","[Exchange of best practices]  [For undernutrition:]","[Exchange of best practices] [For overnutrition:]","[Exchange of best practices]  [For environmental sustainability:]","[Exchange of best practices]  [For socio-economic inequalities:]","[Exchange of best practices]  [For women's empowerment:]","How effective would it be if implemented by national governments?   [For undernutrition:]97","How effective would it be if implemented by national governments?   [For overnutrition:]98","How effective would it be if implemented by national governments?   [For environmental sustainability:]99","How effective would it be if implemented by national governments?   [For socio-economic inequalities:]100","How effective would it be if implemented by national governments?   [For women's empowerment:]101","[Exchange of best practices] Suggestions or modifications","[Regulation framework at retail level] [For undernutrition:]","[Regulation framework at retail level] [For overnutrition:]","[Regulation framework at retail level]  [For environmental sustainability:]","[Regulation framework at retail level]  [For socio-economic inequalities:]","[Regulation framework at retail level]  [For women's empowerment:]","How effective would it be if implemented by national governments?   [For undernutrition:]102","How effective would it be if implemented by national governments?   [For overnutrition:]103","How effective would it be if implemented by national governments?   [For environmental sustainability:]104","How effective would it be if implemented by national governments?   [For socio-economic inequalities:]105","How effective would it be if implemented by national governments?   [For women's empowerment:]106","[Regulation framework at retail level] Suggestions or modifications","Additional relevant indicators for food loss and waste","[TIA risk impact assessment]  [For undernutrition:]","[TIA risk impact assessment]  [For overnutrition:]","[TIA risk impact assessment]  [For environmental sustainability:]","[TIA risk impact assessment] [For socio-economic inequalities:]","[TIA risk impact assessment]  [For women's empowerment:]","How effective would it be if implemented by national governments?   [For undernutrition:]107","How effective would it be if implemented by national governments?   [For overnutrition:]108","How effective would it be if implemented by national governments?   [For environmental sustainability:]109","How effective would it be if implemented by national governments?   [For socio-economic inequalities:]110","How effective would it be if implemented by national governments?   [For women's empowerment:]111","[TIA risk impact assessment] Suggestions or modifications ","[Use of resources]   [For undernutrition:]","[Use of resources]  [For overnutrition:]","[Use of resources]  [For environmental sustainability:]","[Use of resources]   [For socio-economic inequalities:]","[Use of resources]   [For women's empowerment:]","How effective would it be if implemented by national governments?   [For undernutrition:]112","How effective would it be if implemented by national governments?   [For overnutrition:]113","How effective would it be if implemented by national governments?   [For environmental sustainability:]114","How effective would it be if implemented by national governments?   [For socio-economic inequalities:]115","How effective would it be if implemented by national governments?   [For women's empowerment:]116","[Use of resources] Suggestions or modifications","[Regulatory capacity protection] [For undernutrition:]","[Regulatory capacity protection]  [For overnutrition:]","[Regulatory capacity protection]  [For environmental sustainability:]","[Regulatory capacity protection]  [For socio-economic inequalities:]","[Regulatory capacity protection]  [For women's empowerment:]","How effective would it be if implemented by national governments?   [For undernutrition:]117","How effective would it be if implemented by national governments?   [For overnutrition:]118","How effective would it be if implemented by national governments?   [For environmental sustainability:]119","How effective would it be if implemented by national governments?   [For socio-economic inequalities:]120","How effective would it be if implemented by national governments?   [For women's empowerment:]121","[Regulatory capacity protection] Suggestions or modifications","Additional relevant indicators for food trade and investment","Remaining comments","Total time"]
[5,"2021-11-05 15:57:21","Public health nutrition","Positive","Neutral","Positive","Positive","Not applicable","Somewhat effective",null,"Effective","Somewhat effective",null,null,"Positive","Positive","Positive","Positive","Neutral","Somewhat effective","Somewhat effective","Effective","Somewhat effective",null,null,"Positive","Positive","Positive","Positive","Not applicable","Somewhat effective","Effective","Effective","Somewhat effective",null,null,"Positive","Neutral","Positive","Positive","Positive","Effective",null,"Effective","Somewhat effective","Somewhat effective",null,"Neutral","Not applicable","Positive","Not applicable","Not applicable",null,null,"Effective",{"$nulls":3},"Positive","Positive","Positive","Positive","Not applicable","Somewhat effective","Effective","Effective","Somewhat effective",null,null,"Not applicable","Not applicable","Positive","Positive","Not applicable",null,null,"Effective","Somewhat effective",null,null,"Negative","Not applicable","Positive","Not applicable","Not applicable",null,null,"Effective",{"$nulls":3},"Positive","Neutral","Positive","Positive","Not applicable","Effective",null,"Effective","Somewhat effective",null,null,"Positive","Neutral","Not applicable","Positive","Not applicable","Effective",null,null,"Effective",null,null,"Neutral","Neutral","Positive","Positive","Not applicable",null,null,"Effective","Somewhat effective",null,null,"Positive","Positive","Neutral","Positive","Positive","Somewhat effective","Somewhat effective",null,"Effective","Very effective",null,"Positive","Positive","Positive","Positive","Not applicable","Effective","Somewhat effective","Effective","Effective",null,null,"Positive","Neutral","Positive","Positive","Not applicable","Effective",null,"Effective","Somewhat effective",null,null,"Positive","Positive","Positive","Positive","Not applicable","Effective","Effective","Effective","Somewhat effective",{"$nulls":3},"Positive","Neutral","Positive","Positive","Not applicable","Somewhat effective",null,"Effective","Effective",null,null,"Positive","Positive","Positive","Positive","Not applicable","Somewhat effective","Somewhat effective","Somewhat effective","Effective",null,null,"Positive","Positive","Not applicable","Positive","Not applicable","Somewhat effective","Somewhat effective",null,"Somewhat effective",null,null,"Positive","Not applicable","Positive","Positive","Not applicable","Effective",null,"Somewhat effective","Somewhat effective",null,null,"Positive","Positive","Positive","Positive","Positive","Effective","Somewhat effective","Somewhat effective","Somewhat effective","Effective",null,"Negative","Neutral","Positive","Neutral","Not applicable",null,null,"Very effective",{"$nulls":4},"Positive","Neutral","Positive","Positive","Positive","Effective",null,"Very effective","Somewhat effective","Effective",null,"Positive","Neutral","Positive","Positive","Not applicable","Somewhat effective",null,"Effective","Somewhat effective",null,null,"Positive","Neutral","Positive","Positive","Not applicable","Effective",null,"Very effective","Somewhat effective",{"$nulls":3},"Positive","Positive","Positive","Positive","Positive","Effective","Effective","Effective","Effective","Somewhat effective",null,"Positive","Positive","Positive","Neutral","Neutral","Effective","Effective","Effective",{"$nulls":3},"Neutral","Positive","Positive","Positive","Positive",null,"Effective","Somewhat effective","Effective","Effective",{"$nulls":3},731.45]
[7,"2021-11-09 12:34:13","public health nutrition, obesity and NCD prevention, food environments","Positive","Neutral","Positive","Positive","Neutral","Very effective",null,"Very effective","Effective",null,null,"Positive","Neutral","Positive","Positive","Neutral","Effective",null,"Very effective","Somewhat effective",null,null,"Neutral","Positive","Positive","Neutral","Neutral",null,"Effective","Very effective",null,null,"\"diverse foods\" instead of \"diverse food\"\nMaybe this indicator would also be more understandable if it was broken up by bullet points","Positive","Neutral","Positive","Positive","Positive","Very effective",null,"Very effective","Somewhat effective","Somewhat effective",null,"I don't know","I don't know","I don't know","I don't know","I don't know",{"$nulls":5},"I wonder to what extent this indicator fits into the new index as it is about biodiversity of landscapes and not biodiversity of foods?","Neutral","Positive","Positive","Neutral","Neutral",null,"Very effective","Very effective",{"$nulls":3},"Positive","Neutral","Positive","Neutral","Neutral","Somewhat effective",null,"Very effective",{"$nulls":3},"Positive","Neutral","Positive","Neutral","Neutral","Somewhat effective",null,"Very effective",{"$nulls":3},"Positive","Neutral","Positive","Positive","Neutral","Somewhat effective",null,"Very effective","Somewhat effective",null,null,"Positive","Neutral","Neutral","Positive","Positive","Effective",null,null,"Somewhat effective","Somewhat effective",null,"Positive","Neutral","Positive","Positive","Neutral","Effective",null,"Very effective","Very effective",null,"This indicator might also be more clear if bullet points are introduced","Positive","Neutral","Positive","Positive","Positive","Somewhat effective",null,"Somewhat effective","Effective","Very effective",null,"Positive","Neutral","Positive","Positive","Neutral","Very effective",null,"Effective","Very effective",null,null,"Positive","Neutral","Positive","Positive","Neutral","Very effective",null,"Very effective","Effective",null,null,"Positive","Neutral","Positive","Positive","Neutral","Somewhat effective",null,"Somewhat effective","Effective",{"$nulls":3},"Positive","Neutral","Positive","Positive","Neutral","Effective",null,"Very effective","Effective",null,null,"Positive","Positive","Positive","Positive","Neutral","Somewhat effective","Somewhat effective","Effective","Effective",null,null,"Positive","Neutral","Neutral","Positive","Positive","Very effective",null,null,"Very effective","Effective","Wonder if in the first sentence \"food\" should also refer to \"healthy (staple) foods","Positive","Neutral","Positive","Positive","Neutral","Very effective",null,"Somewhat effective","Very effective",null,"I wonder if in addition to \"locally produced\" it should also specifically refer to \"sustainable\" foods","Positive","Neutral","Positive","Positive","Positive","Effective",null,"Effective","Effective","Somewhat effective",null,"Positive","Neutral","Positive","Neutral","Neutral","Effective",null,"Effective",{"$nulls":4},"Positive","Neutral","Positive","Neutral","I don't know","Very effective",null,"Very effective",null,null,"ensuring that such initiatives are also available for women ==> I don't know why this has been added here and not to various other indicators also, it seems quite random? Maybe better to remove?","Positive","Neutral","Positive","Neutral","Neutral","Somewhat effective",null,"Somewhat effective",{"$nulls":3},"Positive","Neutral","Positive","Positive","Neutral","Very effective",null,"Very effective","Effective",null,"These are quite different policies (the examples) and thus effectiveness might differ across these, so wondered if multiple indicators should be created potentially.",null,"Positive","Positive","Positive","Positive","Neutral","Effective","Effective","Effective","Effective",null,null,"Positive","Positive","Positive","Positive","Neutral","Effective","Very effective","Very effective","Effective",null,null,"Positive","Positive","I don't know","Positive","Neutral","Effective","Very effective",null,"Very effective",null,"Is sustainability sufficiently captured here, the focus seems to be more on healthy foods only?",null,null,6383.88]
[8,"2021-11-12 17:52:41","Environmental Sciences","Neutral","Neutral","Positive","Positive","Positive",null,null,"Very effective","Somewhat effective","Somewhat effective","The effectiveness in socioeconomic inequalities and women's empowerment depends on how is done the collaboration with food producers and their organization, as well as who of these food producers are included. To have a very effective effect on these two issues, these should be include when selecting the collaborations with the food producers. \nThe effectiveness in undernutrition and overnutrition would have","Positive","Positive","Positive","Positive","Positive","Effective","Effective","Very effective","Effective","Effective","The effectiveness on undernutrition and overnutrition could be related with 2 strategies: supporting small farmers and systems with plant-based diets, and the benefits will be on the families of those farmers. By supporting those farmers, the nutrition of those families will be improved since agroforestry and plant based diets result in a better nutrition and diverse diet.  \n\nThe effectiveness on socioeconomic inequalities and women's empowerment will be related with supporting small farmers, but women's empowerment should be specified in the strategy otherwise it could be ineffective by only supporting male farmers. \n\nPlant-based production systems could have a strong possitive effect on the environmental sustainability.","Positive","Positive","Positive","Positive","Positive","Very effective","Very effective","Very effective","Very effective","Effective","This will have a strong effect on undernutrition and overnutrition of farmers. For having a possitive effects on the rest of the population, economic and physical access to these diverse food for the rest of the population should also be considered.","Positive","Positive","Positive","Positive","Positive","Somewhat effective","Somewhat effective","Effective","Very effective","Very effective",null,"Positive","Positive","Positive","Positive","Positive","Somewhat effective","Somewhat effective","Very effective","Very effective","Somewhat effective","The strategy will be efective for women's empowerment only if this is specified in the indicatror. Also, undernutrition and overnutrition would be improved for the families of the \"famers\" involved in the strategy, not very effective in the rest of the population.","Positive","Positive","Positive","Positive","Positive","Very effective","Very effective","Somewhat effective","Effective","Somewhat effective","The support of production of nutritious foods could result in imporoving nutrition (health) and therefore this can have a possitive effect of socio-economic inequalities. It is important to include that all people have economic access to these nutritious foods.","Neutral","Neutral","Positive","Positive","Positive",null,null,"Very effective","Somewhat effective","Somewhat effective","Socioeconomic inequalities and women's empowerment can be benefited by considering inclusive community participatory approaches. The effectiveness of these two issues will be related in how this inclusion is defined and done in practice.","Neutral","Neutral","Positive","Neutral","Neutral",null,null,"Very effective",{"$nulls":3},"Positive","Positive","Neutral","Positive","Positive","Somewhat effective","Somewhat effective",null,"Very effective","Very effective","The effectiveness in undernutrition, overnutrition will be related with which crops are supported (so, this shouold be in convination with the indicator above of \"nutrition foods\").","I don't know","I don't know","I don't know","I don't know","I don't know",{"$nulls":6},"Positive","Positive","Positive","Positive","Positive","Very effective","Very effective","Effective","Very effective","Somewhat effective","Undernutrition and overnutrition will be improved for the family's famers addressed in the policy.","Positive","Positive","Neutral","Positive","Positive","Effective","Effective",null,"Effective","Very effective","By empowering women, socioeconomic inequalities are improved, as well as nutrition for their families.","Positive","Positive","Positive","Positive","Positive","Very effective","Very effective","Somewhat effective","Very effective","Somewhat effective","The effecto on Environmental sustainability will depend on how are the production systems supported in the periurban areas, and what magnitud they have in relation to that urban population. This should be considered because it is possible to have negative effects on environmental sustainability if those production systems are affecting the local area, and maybe not providing relatively reletant food for that specific urban area.","Neutral","Neutral","Positive","Positive","Positive",null,null,"Effective","Somewhat effective","Somewhat effective","Socioeconomic inequalities and women's empowerment will be effective if vulnerable and small farmers, and well as women, are considered in the implementation.","Positive","Positive","Neutral","Positive","Positive","Somewhat effective","Somewhat effective",null,"Very effective","Very effective","undernutrition and overnutrition will be addressed in the families of the farmers involved.","The trade-off between mechanization and labour might be also considered in one of these indicators (At the moment I am not sure at what extend or how).  Maybe in the \"access to techonology and innovation\". Considere that with machinery labour hours are reduced. This have an effect on the use of energy, and on the labour requirements (social and economic implications).","Positive","Positive","Neutral","Positive","Positive","Effective","Effective",null,"Very effective","Very effective","The undernutrition and overnutrition of the urban population will be effective as \"economic access\" is also considered in \"access\"","Positive","Positive","Positive","Positive","Positive","Very effective","Very effective","Somewhat effective","Very effective","Very effective","Women should be specified in the \"startups\"","I don't know","I don't know","I don't know","I don't know","I don't know",{"$nulls":6},"I don't know","I don't know","I don't know","I don't know","I don't know",{"$nulls":6},"I don't know","I don't know","I don't know","I don't know","I don't know",{"$nulls":6},"Neutral","Neutral","Positive","Negative","Negative",null,null,"Somewhat effective",null,null,"Packaging are not the main environmental problem of food products, so in a food chain perspective, this support will have low effectiveness on the total environmental implications, and this support could have a negative effect on socioeconomic inqualities and women's impowerment by supporting large scale private food actors which affect negatively small-scale food actors and empowerment of women.",null,"Neutral","Neutral","Positive","Positive","Positive",null,null,"Very effective","Very effective","Very effective","Reducing food wastes along the food chain can have a stroooooong environmental effect by increasing available food, and possible reduction on the use of natural resources by not compromising food supply.","I don't know","I don't know","I don't know","I don't know","I don't know",{"$nulls":6},"I don't know","I don't know","Positive","I don't know","I don't know",null,null,"Very effective",{"$nulls":4},"I don't know","I don't know","I don't know","I don't know","I don't know",{"$nulls":6},"I don't know","I don't know","Positive","Negative","Negative",null,null,"Very effective",{"$nulls":3},"I don't know","Positive","I don't know","Positive","I don't know",null,"Very effective",null,"Effective",{"$nulls":4},3630.06]
[9,"2021-11-15 08:52:37","Nutrition and food systems","I don't know","I don't know","Positive","Neutral","Positive",null,null,"Effective",null,"Effective","I suggested \"I don't know\" because I don't think there is enough evidence to suggest a change in either direction or a neutral effect. That is the same for the rest of times that I use \"I don't know\"","I don't know","I don't know","Positive","I don't know","Positive",null,null,"Effective",null,"Effective",null,"Positive","I don't know","Positive","Neutral","Positive","Effective",null,"Effective",null,"Effective",null,"Positive","I don't know","Positive","I don't know","Positive","Effective",null,"Effective",null,"Effective",null,"Positive","I don't know","Positive","I don't know","Positive","Somewhat effective",null,"Effective",null,"Effective",null,"I don't know","I don't know","I don't know","I don't know","I don't know",{"$nulls":5},"I don't think there is enough evidence of this type of subsidy to make any conclusions on impacts on outcomes.","I don't know","I don't know","Positive","I don't know","Positive",null,null,"Effective",null,"Very effective",null,"I don't know","I don't know","Positive","I don't know","I don't know",null,null,"Effective",{"$nulls":3},"Positive","I don't know","I don't know","I don't know","Positive","Effective",{"$nulls":3},"Effective",null,"Positive","I don't know","I don't know","I don't know","I don't know","Effective",{"$nulls":5},"Positive","I don't know","Neutral","Positive","Positive","Effective",null,null,"Effective","Effective",null,"Positive","I don't know","I don't know","Positive","Positive","Effective",null,null,"Effective","Very effective",null,"Positive","I don't know","I don't know","Positive","Positive","Effective",null,null,"Effective","Effective",null,"I don't know","I don't know","Positive","I don't know","I don't know",null,null,"Effective",{"$nulls":3},"I don't know","I don't know","Positive","Positive","I don't know",null,null,"Somewhat effective","Effective",{"$nulls":3},"Positive","I don't know","I don't know","Positive","I don't know","Effective",null,null,"Effective",null,null,"I don't know","I don't know","I don't know","Positive","Positive",{"$nulls":3},"Somewhat effective","Effective",null,"Positive","I don't know","I don't know","I don't know","I don't know","Effective",{"$nulls":5},"Positive","Neutral","I don't know","Positive","I don't know","Effective",null,null,"Effective",null,null,"Positive","I don't know","I don't know","Positive","I don't know","Effective",null,null,"Effective",null,null,"Neutral","Neutral","Positive","I don't know","I don't know",null,null,"Effective",{"$nulls":4},"I don't know","I don't know","Positive","Positive","Positive",null,null,"Effective","Effective","Effective",null,"I don't know","I don't know","Positive","I don't know","I don't know",null,null,"Somewhat effective",{"$nulls":3},"I don't know","I don't know","Positive","I don't know","I don't know",null,null,"Effective",{"$nulls":4},"Positive","Positive","I don't know","I don't know","I don't know","Somewhat effective","Somewhat effective",{"$nulls":4},"I don't know","I don't know","Positive","I don't know","I don't know",null,null,"Somewhat effective",{"$nulls":3},"Positive","Positive","I don't know","I don't know","I don't know","Somewhat effective","Somewhat effective",{"$nulls":6},1089.55]
[11,"2021-11-17 15:20:19","agricultural and environmental economics + nutrition","Positive","Not applicable","Positive","Positive","Not applicable","Somewhat effective",null,"Very effective","Somewhat effective",null,null,"Negative","Not applicable","Positive","Positive","Not applicable",null,null,"Very effective","Somewhat effective",null,null,"Positive","Positive","Positive","Not applicable","Not applicable","Effective","Somewhat effective","Somewhat effective",null,null,"Seems a bit 'double barrelled', to combine sustainable practices alongside diversification. Suggest focusing this just on diversification.","Neutral","Not applicable","Positive","Positive","Positive",null,null,"Somewhat effective","Somewhat effective","Somewhat effective","A bit problematic to state outright that it will empower women then ask whether or not it will empower women...","Not applicable","Not applicable","Positive","Neutral","Not applicable",null,null,"Effective",{"$nulls":3},"Negative","Neutral","Positive","Negative","Not applicable",null,null,"Effective",null,null,"Problematic phrasing in that it lists grains, beef and dairy as necessarily unhealthy when in fact these are very healthy (in moderation and as part of a balanced diet) -- and beef and dairy are very expensive and not subsidized in many LMICs (where they are also under-consumed relative to recommendations).","Not applicable","Not applicable","Positive","Not applicable","Not applicable",null,null,"Effective",{"$nulls":3},"Not applicable","Not applicable","Positive","Not applicable","Not applicable",null,null,"Somewhat effective",{"$nulls":3},"Positive","Not applicable","Positive","Positive","Not applicable","Somewhat effective",null,"Somewhat effective","Somewhat effective",null,null,"Positive","Not applicable","Not applicable","Positive","Not applicable","Very effective",null,null,"Somewhat effective",null,null,"Positive","Not applicable","Not applicable","Positive","Not applicable","Somewhat effective",null,null,"Effective",null,null,"Neutral","Neutral","Not applicable","Positive","Positive",{"$nulls":3},"Somewhat effective","Effective",null,"Not applicable","Not applicable","Not applicable","Positive","Not applicable",{"$nulls":3},"Somewhat effective",null,null,"Not applicable","Not applicable","Positive","Positive","Not applicable",null,null,"Somewhat effective","Somewhat effective",null,null,"Not applicable","Not applicable","Positive","Positive","Not applicable",null,null,"Somewhat effective","Somewhat effective",{"$nulls":3},"Positive","Positive","Positive","Positive","Not applicable","Somewhat effective","Somewhat effective","Somewhat effective","Effective",null,null,"Positive","Positive","Not applicable","Positive","Neutral","Effective","Somewhat effective",null,"Somewhat effective",null,null,"Positive","Not applicable","Not applicable","Positive","Not applicable","Very effective",null,null,"Somewhat effective",null,null,"Positive","Neutral","Neutral","Positive","Neutral","Effective",null,null,"Effective",null,null,"Positive","Not applicable","Not applicable","Positive","Not applicable","Somewhat effective",null,null,"Somewhat effective",null,null,"Not applicable","Not applicable","Positive","Negative","Not applicable",null,null,"Effective",{"$nulls":4},"Positive","Not applicable","Positive","Not applicable","Neutral","Somewhat effective",null,"Somewhat effective",{"$nulls":3},"Not applicable","Not applicable","Neutral","Not applicable","Not applicable",{"$nulls":6},"Neutral","Neutral","Positive","Negative","Not applicable",null,null,"Somewhat effective",{"$nulls":4},"Neutral","Neutral","Neutral","Neutral","Not applicable",{"$nulls":6},"Neutral","Neutral","Neutral","Positive","Not applicable",{"$nulls":3},"Somewhat effective",null,null,"Neutral","Positive","Not applicable","Not applicable","Not applicable",null,"Somewhat effective",{"$nulls":5},"Treatment of sustainability throughout seems a bit too vague -- sustainability it large and complex and multidimensional, so I think more detailed descriptions are needed when it comes to describing sustainability policies. Also, very difficult to judge any of these regarding women's empowerment and equity, as that is usually more about how something is actually implemented on the ground than what it is or how it is intended.",2558.1]
[13,"2021-11-19 16:39:35","political economy & corporate role in food systems","Positive","Neutral","Positive","Positive","Positive","Somewhat effective",null,"Effective","Somewhat effective","Somewhat effective","My sense is that engaging with producers and their organizations on this measure would help to improve agency of food producers, and if the consultation with producers includes women, this will also be positive for their agency, which has positive connections with food security and nutrition, as well as addressing inequalities. Though it really depends on how the efforts are designed and the extent to which they take on suggestions of producers. It also depends on what country, as these measures would likely have more impact on undernutrition, inequity, and women's empowerment in the poorest countries, with probably less of a profound impact in industrialized countries. It also wasn't clear to me what \"sustainable productivity growth\" means - sustainable growth (is the emphasis on sustaining growth, or on ensuring productivity growth is environmentally sustainable) - so that could be made clearer.","Neutral","Neutral","Positive","Positive","Neutral",null,null,"Somewhat effective","Somewhat effective",null,"I was a bit puzzled by the lumping together of agroecology with things like sustainable intensification - many would say these are not compatible and they have different modalities - hence my mainly neutral impacts, and only somewhat effective for environmental sustainability and addressing inequalities. The reason for these responses is that while agroecology has been shown to have positive environmental impacts and addresses inequalities, sustainable intensification can simply mean minor tweaks to industrial systems that can have a kind of 'jevon's paradox' effect of entrenching further problems of inequality and unsustainability because it encourages high tech lock-ins that perpetuate these problems when scaled up. Thus I would suggest considering rewording, especially because of civil society concerns that 'regenerative' has been captured by corporate players (they are even trying to co-opt some aspects of agroecology).","Neutral","Neutral","Positive","Positive","Neutral",null,null,"Effective","Somewhat effective",null,"These measures seem to be more directed to positive outcomes, though I'm not sure how well they would work re: overnutrition. A more diverse food base could improve diets and address micronutrient deficiencies, but it's not clear how diversification would affect prices, which could have a negative impact on undernutrition - so it's hard to say. Such measures would help with environmental sustainability, and support for diversification among producers could also address some equity concerns, mainly for producers (again, hard to say about impact on food prices, so if they were to rise this could negatively affect food access). Such measures should probably be coupled with some sort of subsidy to make the more diverse food landscape accessible to the poorest members of society, at least as the system transitions - a period where some may win and some may lose out due to the shifts in supply and effects on prices. If the aim is sustainability this is a good policy approach, but hard to say when bundled with other goals. According to the literature, goals are best met when there is a different policy instrument for each goal.","Positive","Neutral","Positive","Positive","Positive","Somewhat effective",null,"Effective","Effective","Effective","The effectiveness for addressing undernutrition depends on which populations in the country are most affected; such policies will help poor producers especially in devleoping countries but may be less effective in industrialized countries where undernutrition is felt most by urban populations. Such policies are likely to improve environmental sustainability and likely will reduce inequities for producers and improve empowerment.","Neutral","Neutral","Positive","Neutral","Neutral",null,null,"Very effective",null,null,"this indicator seems focused mainly on sustainability and I think it would be effective in meeting that goal, though I doubt it would have a huge impact on the other goals.","I don't know","I don't know","Positive","I don't know","I don't know",null,null,"Effective",null,null,"This one is hard to assess because there would likely be short run effects, which may differ from the long-run effects. In the short run, such measures may increase inequalities if these policies result in food price increases, which could be negative for both under and over nutrition (prices of staples may increase). Overall I found this indicator hard to evaluate.","Not applicable","Not applicable","Positive","Neutral","Neutral",null,null,"Very effective",null,null,"This is mainly an environmental measure and it could work well. Hard to say what the equity implications are and the empowerment implications - depends on how it is rolled out. Hard to say how this would affect under/over nutrition - probably neutral.","Not applicable","Not applicable","Positive","Not applicable","Not applicable",null,null,"Effective",null,null,"there is a lot going on in this indicator; but generally fertilizers are among the worst in terms of environmental and climate impacts and there are other ways to enrich soil (though the latter aren't really included here, so maybe alternative production processes that ensure soil enrichment should be included). If it's just these measures, I suppose it could result in lower production which could have negative impacts on nutrition but it's hard to say.","Not applicable","Not applicable","Neutral","Negative","Negative",{"$nulls":5},"This indicator is focused on high tech solutions. These *could* lead to marginal environmental improvements, but also continues reliance on fossil fuel driven machinery and digital storage. At best I think it's neutral. But also negative on inequalities because data likely to be controlled by large corporations; same for women's empowerment as a lot of this data driven agri tech is male dominated.","I don't know","Neutral","I don't know","I don't know","I don't know",{"$nulls":5},"I found this to be an odd indicator - I dno't actually know about micronutrient fortified fertilizers, but my gut response is to be skeptical of it since we should be reducing synthetic fertilizer use. What I have read about biofortification is that it can be problematic, but I don't know enough about it to say for sure. The best policy would be to ensure a diverse diet rather than technofixes.","Positive","Neutral","Positive","Positive","Positive","Somewhat effective",null,"Somewhat effective","Very effective","Effective","Interesting collection of measures likely to have most impact on inequities","I don't know","I don't know","Neutral","Positive","Positive",{"$nulls":3},"Effective","Very effective","Hard to say what the nutritional impacts would be - they could be positive depending on how the nutrition education component is rolled out. but generally good for agency and empowerment for women - and with women as decisionmakers on diets in many contexts, this could have a positive impact.","Positive","I don't know","Neutral","Positive","Positive","Very effective",null,null,"Very effective","Somewhat effective","again the effects depends on how exactly the policies are rolled out, but on the surface seem positive for addressing under-nutrition and for reducing inequities; these could have positive effects for women especially because women are typically among the most vulnerable populations","Not applicable","Not applicable","Neutral","Neutral","I don't know",{"$nulls":5},"Some of these measures like no-till farming have potentially negative impacts on environment because they rely on herbicides; crop insurance can be negative for farmers if it requires them to engage in commodity speculation/futures. I found this to be a set of interventions that likely won't have huge impact and could enhance corporate power depending on how these measures are rolled out. Perhaps more detail could be included in the wording","Positive","I don't know","Positive","Positive","Positive","Effective",null,"Effective","Effective","Effective","These seem like sensible policies that will likely have positive impacts depending on how rolled out but generally I think positive is likely","There was little here on use of GMOs/gene edited crops - this is one 'techno fix' being promoted for sustainability, but it has some issues and could entrench corporate power. I think agroecology could be separated out into its own indicator and not bundled with the less clear 'sustainable intensification'. Mainly the key aspects to include are production methods need to be sustainable, and productive resources (land, supports) need to be equitable distributed, including to women and vulnerable populations.","Positive","I don't know","Positive","Positive","Positive","Somewhat effective",null,"Effective","Very effective","Effective","The key here is to ensure that the markets are not ones controlled by TNCs, but rather are territorial markets (regional, local) - this could be specified more clearly in the indicator wording.","Positive","Neutral","Positive","Positive","Positive","Somewhat effective",null,"Somewhat effective","Effective","Somewhat effective","Could be clearer on what kinds of start ups; if high tech cultured meat, then no; but if startups for healthy foods and sustainably produced local foods, then yes","Positive","Not applicable","Not applicable","Neutral","Neutral","Somewhat effective",{"$nulls":4},"This is a strange indicator because it combines both targeted intervention with a non targeted intervention. As I noted above, there are debates about the utility of fortification and I'm not as expert on this aspect as others. My understanding is that such measures can bolster the market power of large TNCs contracted to do the fortification, so it's hard to say what the impact is overall on inequities. The first best policy is a diverse diet, not fortification, in my understanding. But for those who are severely affected by micro-nutrient deficiencies, a targeted approach may make a difference on the margin.","Positive","Not applicable","Not applicable","Positive","Neutral","Very effective",null,null,"Effective",null,"could add local and sustainably produced to the list","Positive","Not applicable","Neutral","Positive","Neutral","Somewhat effective",null,null,"Somewhat effective",null,"effect on nutrition depends on whether producers supported in these efforts are the ones experiencing undernutrition - may be more the case in developing countries\nhard to say on envt - some plant based diets are not sustainable so care needs to be taken in the wording.","Not applicable","Not applicable","Neutral","Not applicable","Not applicable",{"$nulls":5},"could have mixed results; why is nanotech and waxing in the same bundle with plant-based wrapping and biodegradable plastics? these should be separated out.","Infrastructure support for territorial markets could be more featured in these indicators - ie. local and regional markets that create opportunities for livelihoods rather than being dominated by TNCs. also infrastructure support for markets/retail that is low packaging (relying on reusable packaging rather than techno-fixes).","I don't know","I don't know","Positive","Neutral","Positive",null,null,"Effective",null,"Somewhat effective","Cold storage is a huge energy suck in global food systems; so minimizing need for it should be paramount in any strategy around food loss and waste\ngood that it is targeted to women","Not applicable","Not applicable","Positive","Neutral","Neutral",null,null,"Somewhat effective",null,null,"information based initiatives are usually somewhat effective but not the be all and end all","Positive","Not applicable","Positive","Positive","I don't know","Somewhat effective",null,"Somewhat effective","Somewhat effective",null,"this bundle of measures are market based, and may have some impact but likely not that strong","encourage more home preparation that results in less need for cold storage; encourage more territorial markets with frequent purchases rather than large shopping outings that result in more waste.","Positive","Positive","Positive","Positive","Positive","Effective","Effective","Effective","Effective","Effective",null,"Positive","Positive","Positive","Positive","Positive","Somewhat effective","Somewhat effective","Somewhat effective","Somewhat effective","Somewhat effective","Whether this works depends on the details in any agreement; they could yield positive results, but also could have mixed results. the risk assessment is key. these two above kind of go together.","Positive","Positive","Neutral","Positive","Neutral","Effective","Effective",null,"Effective",null,null,"measures to ensure imports are from sustainably produced sources, to ensure e.g. imports of key crops are not causing deforestation, displacement of vulnerable people from traditional lands, that sort of thing, could be included in the above measures more explicitly.","The main comment is that many of the indicators are trying to address multiple goals at once, and that may not always be possible. The policy literature indicates that one measure per goal works best, though of course some may address more than one problem. Also, it is important to rein in corporate power over food supply chains and that did not appear explicitly here - this applies to production, distribution, and retail.",5254.68]
[15,"2021-12-03 20:43:57","Food systems","Positive","Positive","Positive","Positive","Positive","Very effective","Somewhat effective","Very effective","Effective","Somewhat effective","The \"sustainable productivity growth\" is a bit awkward wording.","Positive","Positive","Positive","Positive","Positive","Effective","Somewhat effective","Effective","Effective","Somewhat effective",null,"Positive","Positive","Positive","Positive","Positive","Very effective","Very effective","Effective","Very effective","Effective",null,"Positive","Positive","Positive","Positive","Positive","Effective","Somewhat effective","Effective","Very effective","Very effective",null,"I don't know","I don't know","Positive","I don't know","I don't know",null,null,"Very effective",null,null,"One of the challenges with this one is that there could be some short term losses in terms of productivity. From an environmental perspective it's clear that there would be benefits but what would be the time lag in terms of benefits on malnutrition? I'm not sure what the answer to that is!","I don't know","Positive","I don't know","I don't know","I don't know",null,"Effective",{"$nulls":3},"For the world's poor who are heavily dependent on staple crops for the majority of their diet, this may lead to price increases which could have the potential to increase food insecurity. That might not happen but there are potential unintended consequences.","I don't know","I don't know","Positive","I don't know","I don't know",null,null,"Effective",null,null,"I'm not entirely sure what this would look like in practice. It made it difficult to rate this.","I don't know","I don't know","Positive","I don't know","I don't know",null,null,"Effective",null,null,"Again, unclear what the knock on effects would be on the food supply and whether this would increase the cost of staple foods with the potential to negatively impact the diets of the poorest populations globally.","Positive","Positive","Positive","Positive","Positive","Effective","Effective","Effective","Effective","Effective",null,"Positive","Neutral","Neutral","Positive","I don't know","Effective",null,null,"Somewhat effective",null,null,"Positive","Positive","I don't know","Positive","Positive","Very effective","Very effective",null,"Very effective","Very effective",null,"I don't know","I don't know","I don't know","Positive","Positive",{"$nulls":3},"Effective","Effective","It's unclear what the government's role would be in women's decision making power as it relates to agriculture. I would imagine that the decision-making is happening more at a household level.","Positive","Neutral","Neutral","Positive","I don't know","Effective",null,null,"Effective",null,null,"Positive","Positive","Positive","Positive","I don't know","Effective","Somewhat effective","Very effective","Effective",null,null,"Positive","I don't know","Positive","Positive","I don't know","Effective",null,"Effective","Effective",{"$nulls":3},"Positive","I don't know","Neutral","Positive","I don't know","Effective",null,null,"Effective",null,null,"Positive","Positive","Positive","Positive","Positive","Somewhat effective","Somewhat effective","Somewhat effective","Somewhat effective","Somewhat effective",null,"Positive","I don't know","Neutral","Positive","Positive","Effective",null,null,"Effective","Effective",null,"Positive","Positive","Neutral","Positive","I don't know","Very effective","Somewhat effective",null,"Effective",null,null,"I don't know","I don't know","Neutral","Positive","I don't know",{"$nulls":3},"Effective",null,null,"Neutral","Neutral","Positive","Neutral","Neutral",null,null,"Somewhat effective",{"$nulls":4},"Positive","Neutral","Positive","Positive","I don't know","Effective",null,"Effective","Somewhat effective",null,null,"Neutral","Neutral","Positive","Neutral","Neutral",null,null,"Somewhat effective",{"$nulls":3},"Neutral","Neutral","Positive","Neutral","Neutral",null,null,"Somewhat effective",{"$nulls":4},"Positive","Positive","Positive","Positive","I don't know","Somewhat effective","Effective","Somewhat effective","Somewhat effective",null,null,"Positive","Positive","Positive","Positive","I don't know","Somewhat effective","Somewhat effective","Somewhat effective","Somewhat effective",null,null,"Positive","Positive","Neutral","Positive","I don't know","Somewhat effective","Somewhat effective",null,"Somewhat effective",null,"This is not entirely clear to me.",null,null,14357.1]
[16,"2021-11-25 13:15:09","Sustainability of food system (indicators, measure, dynamics)","Neutral","Neutral","Positive","Neutral","Neutral",null,null,"Effective",{"$nulls":3},"Neutral","Neutral","Positive","Positive","Neutral",null,null,"Effective","Somewhat effective",null,"Interesting (and surprising to see \"agroecology, sustainable intensification\" put in the same package as they are usually perceived as based on radically different approaches","Positive","Neutral","Neutral","Neutral","Neutral","Effective",{"$nulls":4},"It would have been great (and logical) to see women mentioned in this package - surprising they are not","Positive","Neutral","Positive","Positive","Positive","Effective",null,"Effective","Effective","Effective","one of the most effective package so far","Neutral","Neutral","Positive","Neutral","Neutral",null,null,"Very effective",null,null,"In this specific case but also throughout the whole survey the fact that only one answer is possible means that we can not capture the very important issue of trade-off. For instance in the present case such package is likely to come with a lot of trade-off for other dimensions (e.g. social equities or even nutrition). But those can't be reflected in the structure of the coded responses. since those trade-off are the crux of the challenge, this is a bit problematic...","Positive","Positive","Neutral","Neutral","Neutral","Effective","Very effective",{"$nulls":3},"one of the few packages that would allow to tackle overnutrition in an effective manner","Neutral","Neutral","Positive","Negative","Negative",null,null,"Effective",null,null,"Important types of policies but unless some specific interventions aiming at protecting smallholders and women are included in this type of package it is likely to hit harder these groups","Neutral","Neutral","Positive","Negative","Neutral",null,null,"Effective",null,null,"Same comment as for the previous policies: unless specific interventions to protect smallholders are included, this type of policies is likely to hit this group harder than larger-scale entrepreneurs","Neutral","Neutral","Positive","Negative","Negative",null,null,"Effective",null,null,"Same as last two packages above","Positive","Neutral","Neutral","Neutral","Neutral","Effective",{"$nulls":5},"Positive","Neutral","Neutral","Positive","Neutral","Very effective",null,null,"Effective",null,"it would have been great to have women/gender interventions mentioned in this package","Positive","Positive","Neutral","Positive","Positive","Effective","Effective",null,"Effective","Very effective","A good package!","Positive","Neutral","Neutral","Positive","Neutral","Very effective",null,null,"Effective",null,"it would have been good to add some specific interventions women","Neutral","Neutral","Neutral","Neutral","Neutral",{"$nulls":5},"without being targeted at smallholders this type of package will have little impact of any type","Neutral","Neutral","Neutral","Positive","Neutral",{"$nulls":3},"Very effective",null,"Very effective for social inequities, but \nwomen, women, women where are they????",null,"Positive","Neutral","Neutral","Positive","Neutral","Somewhat effective",null,null,"Effective",null,null,"Positive","Neutral","Neutral","Positive","Neutral","Somewhat effective",null,null,"Effective",null,"Again part of the package could have been targeted at women - especially when it comes to mid-stream activities where they are majoritarily involved","Positive","Positive","Neutral","Neutral","Neutral","Effective","Somewhat effective",{"$nulls":4},"Positive","Neutral","Neutral","Neutral","Neutral","Effective",{"$nulls":5},"Positive","Positive","Neutral","Positive","Neutral","Somewhat effective","Somewhat effective",null,"Effective",null,"not clear to me how the creation of employment leads to \"availability of nutrient-rich  and the plant-based foods in rural areas and/or distant locations\"","Neutral","Neutral","Positive","Negative","Negative",null,null,"Effective",null,null,"unless specifically targeted at smallholders/women this type of interventions is likely to work against them",null,"Positive","Neutral","Positive","Neutral","Positive","Somewhat effective",null,"Effective",null,"Somewhat effective",null,"Neutral","Neutral","Positive","Neutral","Neutral",null,null,"Somewhat effective",null,null,"cheap but not really effective in any ways....","Neutral","Neutral","Positive","Neutral","Neutral",null,null,"Effective",null,null,"has proven to be effective in countries where it was established",null,"Neutral","Neutral","Positive","Positive","Neutral",null,null,"Effective","Somewhat effective",null,null,"Neutral","Neutral","Positive","Neutral","Neutral",null,null,"Somewhat effective",{"$nulls":3},"Positive","Positive","Neutral","Neutral","Neutral","Effective","Very effective",{"$nulls":3},"the most effective way to tackle overnutrition - and one of the only one listed in this survey",null,"No I made a lot of comments in the survey itself",4075.31]
[18,"2021-12-01 15:16:22","sustainability, evaluation, ecological economics, governance","Not applicable","Not applicable","Positive","Neutral","Not applicable",null,null,"Very effective",{"$nulls":3},"Not applicable","Not applicable","Positive","Neutral","Not applicable",null,null,"Very effective",{"$nulls":3},"Not applicable","Not applicable","Positive","Positive","Not applicable",null,null,"Very effective","Very effective",null,null,"Not applicable","Not applicable","Positive","Positive","Positive",null,null,"Very effective","Very effective","Very effective",null,"Not applicable","Not applicable","Positive","Neutral","Neutral",null,null,"Very effective",{"$nulls":3},"Not applicable","Not applicable","Positive","Positive","Not applicable",null,null,"Effective","Effective",null,null,"Not applicable","Not applicable","Positive","Positive","Not applicable",null,null,"Very effective","Effective",null,null,"Not applicable","Not applicable","Positive","Neutral","Not applicable",null,null,"Very effective",{"$nulls":3},"Not applicable","Not applicable","Positive","Neutral","Not applicable",null,null,"Effective",{"$nulls":3},"I don't know","I don't know","Not applicable","Not applicable","Not applicable",{"$nulls":6},"Positive","Positive","Neutral","Positive","Positive","Very effective","Very effective",null,"Effective","Effective",null,"Not applicable","Not applicable","Not applicable","Positive","Positive",{"$nulls":3},"Effective","Very effective",null,"Not applicable","Not applicable","Positive","Positive","Not applicable",null,null,"Effective","Effective",null,null,"Not applicable","Not applicable","Positive","Positive","Not applicable",null,null,"Very effective","Very effective",null,null,"Not applicable","Not applicable","Positive","Not applicable","Not applicable",null,null,"Somewhat effective",{"$nulls":4},"Not applicable","Not applicable","Positive","Positive","Positive",null,null,"Somewhat effective","Effective","Somewhat effective",null,"Not applicable","Not applicable","Not applicable","Positive","Not applicable",{"$nulls":3},"Effective",null,null,"Positive","Positive","Not applicable","Not applicable","Not applicable","Somewhat effective","Somewhat effective",{"$nulls":4},"Positive","Positive","Not applicable","Not applicable","Not applicable","Very effective","Somewhat effective",{"$nulls":4},"Not applicable","Not applicable","Neutral","Positive","Not applicable",{"$nulls":3},"Very effective",null,null,"Not applicable","Not applicable","Positive","Not applicable","Not applicable",null,null,"Effective",{"$nulls":4},"Not applicable","Not applicable","Positive","Neutral","Positive",null,null,"Effective",null,"Effective",null,"Not applicable","Not applicable","Positive","Positive","Not applicable",null,null,"Effective","Effective",null,null,"Not applicable","Not applicable","Positive","Not applicable","Not applicable",null,null,"Very effective",{"$nulls":4},"Not applicable","Not applicable","Positive","Positive","Positive",null,null,"Effective","Effective","Somewhat effective",null,"Not applicable","Not applicable","Positive","Positive","Not applicable",null,null,"Somewhat effective","Somewhat effective",null,null,"Positive","Positive","Positive","Positive","Positive","Somewhat effective","Somewhat effective","Somewhat effective","Somewhat effective","Somewhat effective",{"$nulls":3},1382.38]

{"sheet":"FE","index":2,"n_rows":19,"n_cols":219,"rows_kept":19}
["Response ID","Date submitted","Field of expertise","[Reformulation of processed foods]  [For undernutrition:]","[Reformulation of processed foods] [For overnutrition:]","[Reformulation of processed foods] [For environmental sustainability:]","[Reformulation of processed foods] [For socio-economic inequalities:]","[Reformulation of processed foods] [For women's empowerment:]","How effective would it be if implemented by national governments?  [For undernutrition:]","How effective would it be if implemented by national governments?  [For overnutrition:]","How effective would it be if implemented by national governments?  [For environmental sustainability:]","How effective would it be if implemented by national governments?  [For socio-economic inequalities:]","How effective would it be if implemented by national governments?  [For women's empowerment:]","[Reformulation of processed foods] Suggestions or  modifications","[Reformulation of out-of-home meals] [For undernutrition:]","[Reformulation of out-of-home meals] [For overnutrition:]","[Reformulation of out-of-home meals] [For environmental sustainability:]","[Reformulation of out-of-home meals] [For socio-economic inequalities:]","[Reformulation of out-of-home meals]  [For women's empowerment:]","How effective would it be if implemented by national governments?  [For undernutrition:]2","How effective would it be if implemented by national governments?  [For overnutrition:]3","How effective would it be if implemented by national governments?  [For environmental sustainability:]4","How effective would it be if implemented by national governments?  [For socio-economic inequalities:]5","How effective would it be if implemented by national governments?  [For women's empowerment:]6","[Reformulation of out-of-home meals] Suggestions or modifications","Additional relevant indicators for food composition","[Codex standards] [For undernutrition:]","[Codex standards] [For overnutrition:]","[Codex standards]  [For environmental sustainability:]","[Codex standards]  [For socio-economic inequalities:]","[Codex standards]  [For women's empowerment:]","How effective would it be if implemented by national governments?  [For undernutrition:]7","How effective would it be if implemented by national governments?  [For overnutrition:]8","How effective would it be if implemented by national governments?  [For environmental sustainability:]9","How effective would it be if implemented by national governments?  [For socio-economic inequalities:]10","How effective would it be if implemented by national governments?  [For women's empowerment:]11","[Codex standards] Suggestions or modifications ","[Evidence-based claim regulations] [For undernutrition:]","[Evidence-based claim regulations]  [For overnutrition:]","[Evidence-based claim regulations]  [For environmental sustainability:]","[Evidence-based claim regulations]  [For socio-economic inequalities:]","[Evidence-based claim regulations]  [For women's empowerment:]","How effective would it be if implemented by national governments?  [For undernutrition:]12","How effective would it be if implemented by national governments?  [For overnutrition:]13","How effective would it be if implemented by national governments?  [For environmental sustainability:]14","How effective would it be if implemented by national governments?  [For socio-economic inequalities:]15","How effective would it be if implemented by national governments?  [For women's empowerment:]16","[Evidence-based claim regulations] Suggestions or modifications","[Front-of pack labeling] [For undernutrition:]","[Front-of pack labeling] [For overnutrition:]","[Front-of pack labeling]  [For environmental sustainability:]","[Front-of pack labeling] [For socio-economic inequalities:]","[Front-of pack labeling] [For women's empowerment:]","How effective would it be if implemented by national governments?  [For undernutrition:]17","How effective would it be if implemented by national governments?  [For overnutrition:]18","How effective would it be if implemented by national governments?  [For environmental sustainability:]19","How effective would it be if implemented by national governments?  [For socio-economic inequalities:]20","How effective would it be if implemented by national governments?  [For women's empowerment:]21","[Front-of pack labeling] Suggestions or modifications","[Quick-service outlets menu labeling]  [For undernutrition:]","[Quick-service outlets menu labeling] [For overnutrition:]","[Quick-service outlets menu labeling]  [For environmental sustainability:]","[Quick-service outlets menu labeling] [For socio-economic inequalities:]","[Quick-service outlets menu labeling] [For women's empowerment:]","How effective would it be if implemented by national governments?  [For undernutrition:]22","How effective would it be if implemented by national governments?  [For overnutrition:]23","How effective would it be if implemented by national governments?  [For environmental sustainability:]24","How effective would it be if implemented by national governments?  [For socio-economic inequalities:]25","How effective would it be if implemented by national governments?  [For women's empowerment:]26","[Quick-service outlets menu labeling] Suggestions or modifications","Additional relevant indicators for food labelling","[Marketing restrictions to children through all media]  [For undernutrition:]","[Marketing restrictions to children through all media]  [For overnutrition:]","[Marketing restrictions to children through all media] [For environmental sustainability]","[Marketing restrictions to children through all media]  [For socio-economic inequalities:]","[Marketing restrictions to children through all media] [For women's empowerment:]","How effective would it be if implemented by national governments?  [For undernutrition:]27","How effective would it be if implemented by national governments?  [For overnutrition:]28","How effective would it be if implemented by national governments?  [For environmental sustainability:]29","How effective would it be if implemented by national governments?  [For socio-economic inequalities:]30","How effective would it be if implemented by national governments?  [For women's empowerment:]31","[Marketing restrictions to children through all media] Suggestions or modifications","[Marketing restrictions on  breastmilk substitutes]  [For undernutrition:]","[Marketing restrictions on  breastmilk substitutes]  [For overnutrition:]","[Marketing restrictions on  breastmilk substitutes]  [For environmental sustainability:]","[Marketing restrictions on  breastmilk substitutes]  [For socio-economic inequalities:]","[Marketing restrictions on  breastmilk substitutes]  [For women's empowerment:]","How effective would it be if implemented by national governments?  [For undernutrition:]32","How effective would it be if implemented by national governments?  [For overnutrition:]33","How effective would it be if implemented by national governments?  [For environmental sustainability:]34","How effective would it be if implemented by national governments?  [For socio-economic inequalities:]35","How effective would it be if implemented by national governments?  [For women's empowerment:]36","[Marketing restrictions on  breastmilk substitutes] Suggestions or modifications","Additional relevant indicators for food promotion","[School programmes] [For undernutrition:]","[School programmes]  [For overnutrition:]","[School programmes]  [For environmental sustainability:]","[School programmes]  [For socio-economic inequalities:]","[School programmes]  [For women's empowerment:]","How effective would it be if implemented by national governments?  [For undernutrition:]37","How effective would it be if implemented by national governments?  [For overnutrition:]38","How effective would it be if implemented by national governments?  [For environmental sustainability:]39","How effective would it be if implemented by national governments?  [For socio-economic inequalities:]40","How effective would it be if implemented by national governments?  [For women's empowerment:]41","[School programmes] Suggestions or modifications","[Provision of nutritious, sustainable food]  [For undernutrition:]","[Provision of nutritious, sustainable food] [For overnutrition:]","[Provision of nutritious, sustainable food] [For environmental sustainability:]","[Provision of nutritious, sustainable food]  [For socio-economic inequalities:]","[Provision of nutritious, sustainable food]  [For women's empowerment:]","How effective would it be if implemented by national governments?  [For undernutrition:]42","How effective would it be if implemented by national governments?  [For overnutrition:]43","How effective would it be if implemented by national governments?  [For environmental sustainability:]44","How effective would it be if implemented by national governments?  [For socio-economic inequalities:]45","How effective would it be if implemented by national governments?  [For women's empowerment:]46","[Provision of nutritious, sustainable food] Suggestions or modifications","[Private companies] [For undernutrition:]","[Private companies] [For overnutrition:]","[Private companies] [For environmental sustainability:]","[Private companies] [For socio-economic inequalities:]","[Private companies] [For women's empowerment:]","How effective would it be if implemented by national governments?  [For undernutrition:]47","How effective would it be if implemented by national governments?  [For overnutrition:]48","How effective would it be if implemented by national governments?  [For environmental sustainability:]49","How effective would it be if implemented by national governments?  [For socio-economic inequalities:]50","How effective would it be if implemented by national governments?  [For women's empowerment:]51","[Private companies] Suggestions or modifications","Additional relevant indicators for food provision ","[Zoning laws] [For undernutrition:]","[Zoning laws] [For overnutrition:]","[Zoning laws] [For environmental sustainability:]","[Zoning laws] [For socio-economic inequalities:]","[Zoning laws] [For women's empowerment:]","How effective would it be if implemented by national governments?  [For undernutrition:]52","How effective would it be if implemented by national governments?  [For overnutrition:]53","How effective would it be if implemented by national governments?  [For environmental sustainability:]54","How effective would it be if implemented by national governments?  [For socio-economic inequalities:]55","How effective would it be if implemented by national governments?  [For women's empowerment:]56","[Zoning laws] Suggestions or modifications","[Healthy, sustainable food in food tracks, street vendors]  [For undernutrition:]","[Healthy, sustainable food in food tracks, street vendors] [For overnutrition:]","[Healthy, sustainable food in food tracks, street vendors]  [For environmental sustainability:]","[Healthy, sustainable food in food tracks, street vendors]  [For socio-economic inequalities:]","[Healthy, sustainable food in food tracks, street vendors]  [For women's empowerment:]","How effective would it be if implemented by national governments?  [For undernutrition:]57","How effective would it be if implemented by national governments?  [For overnutrition:]58","How effective would it be if implemented by national governments?  [For environmental sustainability:]59","How effective would it be if implemented by national governments?  [For socio-economic inequalities:]60","How effective would it be if implemented by national governments?  [For women's empowerment:]61","[Healthy, sustainable food in food tracks, street vendors] Suggestions or modifications","[Healthy, sustainable food in stores]  [For undernutrition:]","[Healthy, sustainable food in stores]  [For overnutrition:]","[Healthy, sustainable food in stores]  [For environmental sustainability:]","[Healthy, sustainable food in stores]  [For socio-economic inequalities:]","[Healthy, sustainable food in stores] [For women's empowerment:]","How effective would it be if implemented by national governments?  [For undernutrition:]62","How effective would it be if implemented by national governments?  [For overnutrition:]63","How effective would it be if implemented by national governments?  [For environmental sustainability:]64","How effective would it be if implemented by national governments?  [For socio-economic inequalities:]65","How effective would it be if implemented by national governments?  [For women's empowerment:]66","[Healthy, sustainable food in stores] Suggestions or modifications","[Environmental impact measures]  [For undernutrition:]","[Environmental impact measures] [For overnutrition:]","[Environmental impact measures] [For environmental sustainability:]","[Environmental impact measures] [For socio-economic inequalities:]","[Environmental impact measures] [For women's empowerment:]","How effective would it be if implemented by national governments?  [For undernutrition:]67","How effective would it be if implemented by national governments?  [For overnutrition:]68","How effective would it be if implemented by national governments?  [For environmental sustainability:]69","How effective would it be if implemented by national governments?  [For socio-economic inequalities:]70","How effective would it be if implemented by national governments?  [For women's empowerment:]71","[Environmental impact measures] Suggestions or modifications","Additional relevant indicators for food retail","[Fiscal measures – taxes and levies]  [For undernutrition:]","[Fiscal measures – taxes and levies] [For overnutrition:]","[Fiscal measures – taxes and levies]  [For environmental sustainability:]","[Fiscal measures – taxes and levies] [For socio-economic inequalities:]","[Fiscal measures – taxes and levies] [For women's empowerment:]","How effective would it be if implemented by national governments?  [For undernutrition:]72","How effective would it be if implemented by national governments?  [For overnutrition:]73","How effective would it be if implemented by national governments?  [For environmental sustainability:]74","How effective would it be if implemented by national governments?  [For socio-economic inequalities:]75","How effective would it be if implemented by national governments?  [For women's empowerment:]76","[Fiscal measures – taxes and levies] Suggestions or modifications","[Fiscal measures – subsidies]  [For undernutrition:]","[Fiscal measures – subsidies]  [For overnutrition:]","[Fiscal measures – subsidies] [For environmental sustainability:]","[Fiscal measures – subsidies]  [For socio-economic inequalities:]","[Fiscal measures – subsidies] [For women's empowerment:]","How effective would it be if implemented by national governments?  [For undernutrition:]77","How effective would it be if implemented by national governments?  [For overnutrition:]78","How effective would it be if implemented by national governments?  [For environmental sustainability:]79","How effective would it be if implemented by national governments?  [For socio-economic inequalities:]80","How effective would it be if implemented by national governments?  [For women's empowerment:]81","[Fiscal measures – subsidies] Suggestions or modifications ","[Affordability of healthy diets]  [For undernutrition:]","[Affordability of healthy diets]  [For overnutrition:]","[Affordability of healthy diets]  [For environmental sustainability:]","[Affordability of healthy diets]  [For socio-economic inequalities:]","[Affordability of healthy diets] [For women's empowerment:]","How effective would it be if implemented by national governments?  [For undernutrition:]82","How effective would it be if implemented by national governments?  [For overnutrition:]83","How effective would it be if implemented by national governments?  [For environmental sustainability:]84","How effective would it be if implemented by national governments?  [For socio-economic inequalities:]85","How effective would it be if implemented by national governments?  [For women's empowerment:]86","[Affordability of healthy diets] Suggestions or modifications","[Price volatility reduction]  [For undernutrition:]","[Price volatility reduction] [For overnutrition:]","[Price volatility reduction]  [For environmental sustainability:]","[Price volatility reduction]  [For socio-economic inequalities:]","[Price volatility reduction]  [For women's empowerment:]","How effective would it be if implemented by national governments?  [For undernutrition:]87","How effective would it be if implemented by national governments?  [For overnutrition:]88","How effective would it be if implemented by national governments?  [For environmental sustainability:]89","How effective would it be if implemented by national governments?  [For socio-economic inequalities:]90","How effective would it be if implemented by national governments?  [For women's empowerment:]91","[Price volatility reduction] Suggestions or modifications","Additional relevant indicators for food prices","Do you have any remaining comment that you would like to share with us? Is there something you would like us to taken into account?"]
[2,"2021-11-05 15:39:48","Public health nutrition","Neutral","Positive","Neutral","Neutral","Not applicable",null,"Effective",{"$nulls":4},"Neutral","Positive","Neutral","Neutral","Not applicable",null,"Effective",{"$nulls":5},"Neutral","Positive","Neutral","Neutral","Not applicable",null,"Effective",{"$nulls":4},"Neutral","Positive","Positive","Positive","Not applicable",null,"Effective","Effective","Somewhat effective",null,null,"Neutral","Positive","Positive","Positive","Not applicable",null,"Effective","Effective","Somewhat effective",null,null,"Neutral","Positive","Positive","Neutral","Not applicable",null,"Effective","Effective",{"$nulls":4},"Neutral","Positive","Neutral","Positive","Not applicable",null,"Effective",null,"Somewhat effective",null,null,"Positive","Positive","Not applicable","Positive","Positive","Very effective","Very effective",null,"Somewhat effective","Effective",null,null,"Positive","Positive","Positive","Positive","Not applicable","Effective","Effective","Somewhat effective","Somewhat effective",null,null,"Positive","Positive","Positive","Positive","Not applicable","Somewhat effective","Somewhat effective","Effective","Somewhat effective",null,null,"Neutral","Positive","Positive","Positive","Not applicable",null,"Effective","Effective","Somewhat effective",{"$nulls":3},"Positive","Positive","Not applicable","Positive","Not applicable","Effective","Effective",null,"Somewhat effective",null,null,"Positive","Positive","Positive","Positive","Not applicable","Somewhat effective","Somewhat effective","Somewhat effective","Somewhat effective",null,null,"Positive","Positive","Positive","Positive","Not applicable","Somewhat effective","Somewhat effective","Somewhat effective","Somewhat effective",null,null,"Neutral","Neutral","Positive","Positive","Neutral",null,null,"Somewhat effective","Somewhat effective",{"$nulls":3},"Positive","Positive","Positive","Negative","Not applicable","Somewhat effective","Very effective","Very effective",{"$nulls":3},"Positive","Positive","Positive","Positive","Neutral","Very effective","Very effective","Very effective","Effective",null,null,"Positive","Positive","Positive","Positive","Positive","Somewhat effective","Effective","Effective","Effective","Somewhat effective",null,"Positive","Neutral","Neutral","Positive","Not applicable","Somewhat effective",null,null,"Effective"]
[3,"2021-11-09 11:43:54","public health nutrition, obesity and NCDs prevention, food environments","Not applicable","Positive","Positive","Positive","Neutral",null,"Effective","Somewhat effective","Effective",null,"Should portion sizes also be considered in this indicator?","Not applicable","Positive","Positive","Positive","Neutral",null,"Effective","Somewhat effective","Effective",null,"Should portion sizes also be considered in this indicator?","Just thinking out loud about reducing meat and dairy content in out-of-home meals? So to make them more plant-based.","Not applicable","Positive","Not applicable","Negative","Neutral",null,"Somewhat effective",{"$nulls":3},"Since some countries have now added sugar or trans fats on the label, wonder whether this needs to be added (going beyond what is required through Codex)","Not applicable","Positive","Positive","Positive","Neutral",null,"Effective","Effective","Effective",null,"Wonder whether the indicator should specifically mention that regulatory systems needs to include a nutrient profiling system for nutrition and health claims (not sure something similar could be developed for environmental sustainability claims)","Not applicable","Positive","Positive","Positive","Neutral",null,"Effective","Effective","Effective",null,null,"Not applicable","Positive","Positive","Positive","Neutral",null,"Effective","Effective","Effective",null,"Perhaps mention between brackets for environmental sustainability the same examples as for front-of-pack labeling","Mandatory country of origin labeling?","Not applicable","Positive","Not applicable","Positive","Positive",null,"Very effective",null,"Very effective","Somewhat effective",null,"Positive","Positive","Not applicable","Positive","Positive","Very effective","Very effective",null,"Very effective","Effective",null,null,"Positive","Positive","Positive","Positive","Positive","Somewhat effective","Very effective","Very effective","Very effective","Somewhat effective","The short phrase for the indicator could read \"school food and nutrition programmes\"\nIs \"home grown\" the appropriate term to use?\nFor undernutrition wonder about the idea of free school meals as nutrition standards don't necessarily imply that children will not be hungry","Positive","Positive","Positive","Positive","Positive","Somewhat effective","Very effective","Very effective","Very effective","Somewhat effective","I would make the short phrase of the indicator more in line with the previous one so for example \"public sector settings programmes\" or similar","Neutral","Positive","Positive","Positive","Neutral",null,"Somewhat effective","Somewhat effective","Somewhat effective",null,"Change the last part of the indicator to \"to stimulate the shift towards sustainable diets\" ==> plant-based: not needed everywhere in the world, this is too extreme to go towards zero meat and dairy","Public procurement policies?\nThe European Food-EPI included the following indicator as well:\nThe government ensures that there are clear, consistent public procurement standards in public sector settings for food service activities to provide and promote healthy food choices. ==> Could be adapted to incorporate sustainability as well.","Positive","Positive","Positive","Positive","Positive","Somewhat effective","Very effective","Effective","Very effective","Somewhat effective","I would remove the notion of ultra-processed foods as it is not used anywhere else in the survey, just keep unhealthy?\nIn the last sentence, \"sell\" to be added? As farmers markets may be stimulated where people sell healthy foods.\nAlso for the last sentence \"sustainable\" could be added instead of only healthy and fresh?","Not applicable","Positive","Positive","Positive","Not applicable",null,"Somewhat effective","Somewhat effective","Somewhat effective",null,"\"food trucks\" instead of \"food tracks\"?","Not applicable","Positive","Positive","Positive","Not applicable",null,"Somewhat effective","Somewhat effective","Somewhat effective",null,"Why is the phrasing of this indicator so different than the previous one which is the same but then for food services? Here, safe is mentioned while this is not mentioned in the previous indicator dealing with food services.","I don't know","I don't know","I don't know","I don't know","I don't know",{"$nulls":5},"I don't really understand this indicator very well, is this to do with the distribution of food waste or something else?",null,"Not applicable","Positive","Positive","Positive","Neutral",null,"Very effective","Very effective","Very effective",null,"Change \"Governments\" by \"The Government\"","Positive","Positive","Positive","Positive","Neutral","Effective","Effective","Effective","Very effective",null,null,"Positive","Positive","Positive","Positive","Neutral","Very effective","Effective","Effective","Very effective",null,null,"Positive","Neutral","Neutral","Positive","Neutral","Effective",null,null,"Effective",{"$nulls":3},"No thanks"]
[6,"2021-11-16 15:22:37","Public health research","Positive","Positive","Not applicable","Negative","Positive","Effective","Very effective",null,null,"Somewhat effective","For undernutrition indicator the nutrients of concern may have minimal effect on this. Include micro nutrients that may address undernutrition","Not applicable","Positive","Positive","Positive","Not applicable",null,"Very effective","Somewhat effective","Effective",null,"Need for a food composition indicator for undernutrition and list essential nutrients for this particular e.g food fortification",null,"Positive","Positive","Neutral","Positive","Not applicable","Effective","Very effective",null,"Somewhat effective",null,null,"Positive","Positive","Positive","Neutral","Not applicable","Very effective","Very effective","Very effective",{"$nulls":3},"Positive","Positive","Positive","Positive","Not applicable","Very effective","Very effective","Very effective","Effective",null,null,"Positive","Positive","Positive","Positive","Not applicable","Very effective","Very effective","Very effective","Effective",{"$nulls":3},"Positive","Positive","Positive","Positive","Not applicable","Effective","Very effective","Somewhat effective","Somewhat effective",null,null,"Positive","Positive","Positive","Positive","Positive","Very effective","Effective","Somewhat effective","Effective","Very effective",null,null,"Positive","Positive","Negative","Positive","Positive","Very effective","Very effective",null,"Very effective","Very effective",null,"Positive","Positive","Negative","Positive","Positive","Very effective","Very effective",null,"Very effective","Very effective",null,"Positive","Positive","Negative","Positive","Positive","Very effective","Very effective",null,"Very effective","Very effective",null,null,"Positive","Positive","Neutral","Positive","Positive","Very effective","Very effective",null,"Very effective","Very effective",null,"Positive","Positive","Positive","Positive","Positive","Very effective","Very effective","Somewhat effective","Very effective","Very effective",null,"Positive","Positive","Positive","Positive","Not applicable","Very effective","Very effective","Effective","Effective",null,null,"Positive","Positive","Positive","Positive","Positive","Effective","Effective","Very effective","Very effective","Effective",null,null,"Positive","Positive","Positive","Positive","Not applicable","Very effective","Very effective","Effective","Very effective",null,null,"Positive","Positive","Positive","Positive","Positive","Very effective","Very effective","Effective","Very effective","Somewhat effective",null,"Positive","Positive","Neutral","Positive","Positive","Very effective","Very effective",null,"Very effective","Effective",null,"Positive","Positive","Not applicable","Positive","Neutral","Very effective","Very effective",null,"Very effective",{"$nulls":3},"None"]
[7,"2021-11-16 15:22:45","Medical Epidemiology and Non communicable diseases","Neutral","Positive","Not applicable","Neutral","Positive",null,"Very effective",null,null,"Somewhat effective","the content also include micronutrients that may address undernutrition?  At the moment the nutrients concern only focus on overnutrition and NCDs.","Not applicable","Positive","Positive","Positive","Not applicable",null,"Very effective","Somewhat effective","Effective",null,null,"There would be need to have a food composition indicator for undernutrition. It should list essential nutrients and fortification efforts by government","Positive","Positive","Neutral","Positive","Not applicable","Very effective","Very effective",null,"Somewhat effective",null,null,"Positive","Positive","Positive","Neutral","Not applicable","Very effective","Very effective","Very effective",{"$nulls":3},"Positive","Positive","Positive","Positive","Not applicable","Very effective","Very effective","Very effective","Effective",null,null,"Positive","Positive","Positive","Positive","Not applicable","Very effective","Very effective","Very effective","Effective",{"$nulls":3},"Positive","Positive","Positive","Positive","Not applicable","Effective","Very effective","Somewhat effective","Somewhat effective",null,null,"Positive","Positive","Positive","Positive","Positive","Very effective","Effective","Somewhat effective","Effective","Very effective",null,null,"Positive","Positive","Negative","Positive","Positive","Very effective","Very effective",null,"Very effective","Very effective",null,"Positive","Positive","Negative","Positive","Positive","Very effective","Very effective",null,"Very effective","Very effective",null,"Positive","Positive","Negative","Positive","Positive","Very effective","Very effective",null,"Very effective","Very effective",null,null,"Positive","Positive","Neutral","Positive","Positive","Very effective","Very effective",null,"Very effective","Very effective",null,"Positive","Positive","Positive","Positive","Positive","Very effective","Very effective","Somewhat effective","Very effective","Very effective",null,"Positive","Positive","Positive","Positive","Not applicable","Very effective","Very effective","Effective","Effective",null,null,"Positive","Positive","Positive","Positive","Positive","Effective","Effective","Very effective","Very effective","Effective",null,null,"Positive","Positive","Positive","Positive","Not applicable","Very effective","Very effective","Effective","Very effective",null,null,"Positive","Positive","Positive","Positive","Positive","Very effective","Very effective","Effective","Very effective","Somewhat effective",null,"Positive","Positive","Neutral","Positive","Positive","Very effective","Very effective",null,"Very effective","Effective",null,"Positive","Positive","Not applicable","Positive","Neutral","Very effective","Very effective",null,"Very effective"]
[9,"2021-11-23 00:30:23","Public health nutrition, food environments, international trade and governance","Positive","Positive","I don't know","I don't know","I don't know","Somewhat effective","Effective",{"$nulls":3},"The part on plant-based alternatives currently appears as an afterthought at the end. I suggest referring to these it at the end of the first part, eg:\n\"Food composition targets/standards/restrictions have been established by the government for the content of the nutrients of concern  (trans fats, added sugars, salt, saturated fat) in industrially processed foods, including plant-based alternatives for meat and dairy, in particular for those food groups that are major contributors to population intakes of those nutrients of concern (trans fats and added sugars in processed foods, salt in bread, saturated fat in commercial frying fats).\"","Positive","Positive","I don't know","Positive","I don't know","Somewhat effective","Effective",null,"Somewhat effective",{"$nulls":3},"Positive","Positive","I don't know","I don't know","I don't know","Somewhat effective","Somewhat effective",{"$nulls":3},"Codex standards are still very low in this regard - basically ingredient list and nutrient declarations must be included except for where it would be inappropriate/impossible in a national context, and most countries now comply with this anyway. We also know that most consumers have low literacy of this information. I don't think this indicator is overly relevant.","Positive","Positive","Positive","I don't know","I don't know","Somewhat effective","Somewhat effective","Somewhat effective",{"$nulls":3},"Positive","Positive","Positive","Positive","I don't know","Somewhat effective","Effective","Effective","Somewhat effective",null,null,"Positive","Positive","Positive","Positive","I don't know","Somewhat effective","Effective","Effective","Somewhat effective",{"$nulls":3},"Positive","Positive","Positive","Positive","I don't know","Somewhat effective","Very effective","Effective","Somewhat effective",null,"You could encounter the question of how to determine whether the policies are 'effective'. We do lack evidence in this area, especially as it is hard to tease out the effectiveness of marketing restrictions (still uncommon in a mandatory regulatory form), from other policies like FOPL. It might be more relevant to say \"Comprehensive, mandatory regulation with effective enforcement\" or something similar.","Positive","Positive","I don't know","I don't know","Neutral","Effective","Somewhat effective",{"$nulls":3},"I guess my only concern in this area is for women who, for whatever reason, are unable to breastfeed (including because they need to go to work). It could have a negative effect, e.g. for women's empowerment, if such products were less accessible and affordable because of a ban on promotion. However, I believe the International Code and WHA resolutions are strong and well-considered, so I conclude with the effect being fairly neutral.",null,"Positive","Positive","Positive","Positive","I don't know","Very effective","Effective","Effective","Effective",null,null,"Positive","Positive","Positive","Positive","Positive","Somewhat effective","Somewhat effective","Effective","Somewhat effective","Somewhat effective",null,"Positive","Positive","Positive","Positive","I don't know","Somewhat effective","Somewhat effective","Somewhat effective","Somewhat effective",null,"Might need a bit more detail here on how government is supporting businesses to do so. Hard to measure 'encouragement'.",null,"Positive","Positive","Positive","Positive","I don't know","Somewhat effective","Effective","Effective","Effective",null,null,"Positive","Positive","Positive","Positive","I don't know","Somewhat effective","Somewhat effective","Somewhat effective","Somewhat effective",null,null,"Positive","Positive","Positive","Positive","I don't know","Somewhat effective","Effective","Effective","Somewhat effective",null,null,"I don't know","Positive","Positive","I don't know","I don't know",null,"Somewhat effective","Effective",{"$nulls":4},"Positive","Positive","Positive","Positive","I don't know","Somewhat effective","Effective","Effective","Somewhat effective",null,null,"Positive","Positive","Positive","Positive","I don't know","Effective","Somewhat effective","Effective","Effective",null,null,"Positive","Positive","Positive","Positive","Positive","Effective","Effective","Somewhat effective","Effective","Somewhat effective",null,"Positive","I don't know","I don't know","Positive","I don't know","Somewhat effective",null,null,"Somewhat effective",{"$nulls":3},"While gender-based policy analysis is not my field, it seems to be that the assessment for women's empowerment comes in as an afterthought and is not well connected to most of the indicators. There is perhaps some rewording to do so that the policy indicators more explicitly relate back to the position of women (e.g. as farmers, earners, heads of families, etc.)."]
[11,"2021-11-24 06:28:37","Nutrition","Neutral","Positive","Neutral","Positive","I don't know",null,"Effective",null,"Very effective",null,null,"Neutral","Positive","Neutral","Positive","I don't know",null,"Effective",null,"Very effective",{"$nulls":3},"Positive","Positive","Neutral","Negative","Positive","Somewhat effective","Somewhat effective",null,null,"Somewhat effective",null,"Positive","Positive","Positive","Neutral","I don't know","Somewhat effective","Somewhat effective","Somewhat effective",{"$nulls":3},"Neutral","Positive","Positive","Neutral","I don't know",null,"Effective","Very effective",{"$nulls":3},"Neutral","Positive","Positive","Neutral","I don't know",null,"Somewhat effective","Effective",{"$nulls":4},"Neutral","Positive","Neutral","Positive","Positive",null,"Very effective",null,"Very effective","Somewhat effective",null,"Positive","Positive","Positive","Positive","Positive","Very effective","Very effective","Very effective","Very effective","Very effective",null,null,"Positive","Positive","Positive","Positive","Positive","Very effective","Effective","Very effective","Very effective","Effective",null,"Positive","Positive","Positive","Positive","Positive","Very effective","Very effective","Very effective","Very effective","Effective",null,"Positive","Positive","Positive","Positive","I don't know","Effective","Effective","Effective","Effective",{"$nulls":3},"I don't know","Positive","Neutral","Neutral","I don't know",null,"Effective",{"$nulls":4},"Neutral","Positive","Positive","Neutral","I don't know",null,"Effective","Effective",{"$nulls":3},"Positive","Positive","Positive","Neutral","I don't know","Somewhat effective","Effective","Effective",{"$nulls":3},"Positive","Positive","Positive","Positive","Positive","Somewhat effective","Somewhat effective","Effective","Very effective","Effective",null,null,"Negative","Positive","Positive","I don't know","I don't know",null,"Very effective","Very effective",{"$nulls":3},"Positive","Positive","Positive","Positive","Positive","Very effective","Effective","Very effective","Very effective","Effective",null,"Positive","Positive","Positive","Positive","Positive","Very effective","Very effective","Very effective","Very effective","Very effective",null,"Positive","I don't know","I don't know","Positive","I don't know","Effective",null,null,"Effective"]
[12,"2021-11-26 23:36:49","Food environments","Positive","Positive","Neutral","Positive","Neutral","Effective","Effective",null,"Effective",null,null,"Positive","Positive","Positive","Positive","Neutral","Effective","Effective","Effective","Effective",{"$nulls":3},"Positive","Positive","Positive","Positive","Positive","Effective","Effective","Effective","Effective","Effective",null,"Positive","Positive","Positive","Positive","Neutral","Somewhat effective","Somewhat effective","Somewhat effective","Somewhat effective",null,null,"Positive","Positive","Positive","Positive","Positive","Effective","Effective","Effective","Effective","Effective",null,"Positive","Positive","Positive","Positive","Positive","Effective","Effective","Effective","Effective","Effective",null,null,"Positive","Positive","Neutral","Positive","Positive","Very effective","Very effective",null,"Very effective","Very effective",null,"Positive","Positive","Positive","Positive","Positive","Very effective","Very effective","Effective","Very effective","Very effective",null,null,"Positive","Positive","Positive","Positive","Positive","Effective","Effective","Effective","Effective","Effective",null,"Positive","Positive","Positive","Positive","Positive","Effective","Effective","Effective","Effective","Effective",null,"Positive","Positive","Positive","Positive","Positive","Somewhat effective","Somewhat effective","Somewhat effective","Somewhat effective","Somewhat effective",null,null,"Positive","Positive","Positive","Positive","Positive","Effective","Effective","Effective","Effective","Effective",null,"Positive","Positive","Positive","Positive","Positive","Effective","Effective","Effective","Effective","Effective",null,"Positive","Positive","Positive","Positive","Positive","Somewhat effective","Somewhat effective","Somewhat effective","Somewhat effective","Somewhat effective",null,"Positive","Positive","Positive","Positive","Positive","Somewhat effective","Somewhat effective","Somewhat effective","Somewhat effective","Somewhat effective",null,null,"Positive","Positive","Positive","Positive","Positive","Very effective","Very effective","Very effective","Very effective","Very effective",null,"Positive","Positive","Positive","Positive","Positive","Very effective","Very effective","Very effective","Very effective","Very effective",null,"Positive","Positive","Positive","Positive","Positive","Effective","Effective","Effective","Effective","Effective",null,"Positive","Positive","Positive","Positive","Positive","Effective","Somewhat effective","Somewhat effective","Effective","Effective"]
[14,"2021-11-29 23:04:35","Nutrition","I don't know","Neutral","Positive","Neutral","Not applicable",null,null,"Somewhat effective",null,null,"The level of processing of processed food and the world of food additives really needs to be reevaluated as a whole in my view using new methodology when measuring o-an effect on health, both mental and physical health and understanding better the effect on the microbiota.","Neutral","Neutral","Positive","Positive","Not applicable",null,null,"Effective","Somewhat effective",null,"For undernutrition higher protein and energy content is one sometimes needed which is not listed.",null,"Positive","Positive","Positive","Neutral","Neutral","Effective","Effective","Effective",{"$nulls":3},"I don't know","I don't know","I don't know","I don't know","I don't know",{"$nulls":5},"Very hard to do in practice when not knowing the full diet, needs or preferences - demands high nutrition literacy from the consumer","Neutral","Neutral","Positive","Neutral","Neutral",null,null,"Effective",{"$nulls":3},"Positive","Positive","Positive","Positive","Positive","Effective","Effective","Very effective","Effective","Effective","As these are full meals being evaluated makes the labelling easier both to use and understand for consumer than on single food packages.",null,"Neutral","Positive","Neutral","Positive","Positive",null,"Very effective",null,"Effective","Effective",null,"Positive","Positive","Positive","Positive","Positive","Effective","Effective","Effective","Effective","Effective","At least in areas of the world where nutrition literacy is low.",null,"Positive","Positive","Positive","Positive","Positive","Very effective","Very effective","Very effective","Very effective","Very effective",null,"Positive","Positive","Positive","Positive","Positive","Very effective","Very effective","Very effective","Very effective","Very effective",null,"Neutral","Positive","Positive","Positive","Neutral",null,"Effective","Effective","Effective",{"$nulls":3},"Neutral","Positive","Neutral","Positive","Positive",null,"Effective",null,"Effective","Effective","","Neutral","Positive","Positive","Neutral","Neutral",null,"Effective","Effective",{"$nulls":3},"Positive","Positive","Positive","Positive","Positive","Effective","Effective","Effective","Effective","Effective",null,"Neutral","Neutral","Positive","Positive","Positive",null,null,"Effective","Effective","Effective",null,null,"Positive","Positive","Positive","Positive","Positive","Effective","Effective","Effective","Effective","Effective",null,"Positive","Positive","Positive","Positive","Positive","Effective","Effective","Effective","Effective","Effective",null,"Positive","Positive","Positive","Positive","Positive","Effective","Effective","Effective","Effective","Effective",null,"Neutral","Neutral","Neutral","Positive","Positive",{"$nulls":3},"Effective","Effective",null,null,"Good work - look forward to seeing the results. Just so you know it was very hard to answer questions on whether the policies might be very, effective or somewhat at it would always depend on the rollout and the discussion with/translation to consumers and other stakeholders etc."]
[15,"2021-12-01 10:27:53","Food and Nutrition","Positive","Positive","Neutral","Positive","Neutral","Effective","Effective",null,"Somewhat effective",null,null,"Positive","Positive","Neutral","Neutral","Neutral","Effective","Effective",{"$nulls":5},"Positive","Positive","Neutral","Neutral","Neutral","Effective","Effective",{"$nulls":4},"Positive","Positive","Positive","Neutral","Neutral","Effective","Effective","Somewhat effective",{"$nulls":3},"Positive","Positive","Positive","Neutral","Neutral","Effective","Effective","Somewhat effective",{"$nulls":3},"Positive","Positive","Neutral","Neutral","Neutral","Somewhat effective","Somewhat effective",{"$nulls":5},"Positive","Positive","Neutral","Positive","Positive","Effective","Effective",null,"Somewhat effective","Somewhat effective",null,"Positive","Positive","Neutral","Positive","Positive","Effective","Effective",null,"Somewhat effective","Somewhat effective",null,null,"Positive","Positive","Neutral","Positive","Positive","Effective","Effective",null,"Somewhat effective","Somewhat effective",null,"Positive","Positive","Neutral","Positive","Neutral","Effective","Effective",null,"Somewhat effective",null,null,"Positive","Positive","Positive","Neutral","Neutral","Effective","Effective","Somewhat effective",{"$nulls":4},"Positive","Positive","Neutral","Positive","Positive","Somewhat effective","Somewhat effective",null,"Somewhat effective","Somewhat effective",null,"Positive","Positive","Positive","Neutral","Neutral","Somewhat effective","Somewhat effective","Somewhat effective",{"$nulls":3},"Positive","Positive","Positive","Positive","Neutral","Effective","Effective","Somewhat effective","Somewhat effective",null,null,"Positive","Positive","Neutral","Positive","Positive","Somewhat effective","Somewhat effective",null,"Somewhat effective","Effective",null,null,"Positive","Positive","Neutral","Positive","Neutral","Somewhat effective","Somewhat effective",null,"Somewhat effective",null,null,"Positive","Positive","Neutral","Positive","Neutral","Effective","Effective",null,"Effective",null,null,"Positive","Positive","I don't know","Positive","Positive","Effective","Somewhat effective",null,"Somewhat effective","Somewhat effective",null,"Neutral","Neutral","I don't know","Positive","Positive",{"$nulls":3},"Effective","Somewhat effective"]
[16,"2021-12-01 12:01:37","population nutrition","Neutral","Positive","Neutral","Positive","Neutral",null,"Somewhat effective",null,"Somewhat effective",null,"trans fat is quite different to the others because it can be eliminated and it has a powerful effect - the others can only be reduced and will have a weak effect. nutrient maximum values is minimally effective because it only chops off the small numbers of products at the top of the distribution. High and low income country differences too (trans). The plant-based alternatives does not seem to be the same issue as the others. Is it referring to (eg) having lower salt plant protein foods like canned beans?","Neutral","Positive","Neutral","Positive","Neutral",null,"Somewhat effective",null,"Somewhat effective",null,"Same uncertainty about plant-based alternatives wording. Does this refer to all out of home meals including from the informal food sector (street food)","consider trans fat separately","Neutral","Positive","Neutral","Neutral","Neutral",null,"Somewhat effective",{"$nulls":3},"need a definition of women's empowerment","Positive","Positive","Neutral","Positive","Positive","Somewhat effective","Somewhat effective",null,"Somewhat effective","Somewhat effective","are breast milk substitutes included?","Positive","Positive","Positive","Positive","Positive","Somewhat effective","Effective","Effective","Somewhat effective","Somewhat effective","should state as mandatory - voluntary schemes are useless. Can it specify that it is the type of label systems with the strongest evidence.","Neutral","Positive","Positive","Neutral","Neutral",null,"Somewhat effective","Somewhat effective",{"$nulls":4},"Positive","Positive","Neutral","Positive","Positive","Somewhat effective","Very effective",null,"Effective","Effective",null,"Positive","Positive","Positive","Positive","Positive","Effective","Somewhat effective","Effective","Effective","Effective",null,null,"Positive","Positive","Positive","Positive","Positive","Very effective","Effective","Very effective","Very effective","Very effective","'home grown' is not the right wording. What is in brackets is fine.","Positive","Positive","Positive","Positive","Positive","Somewhat effective","Effective","Very effective","Somewhat effective","Somewhat effective","Public sector settings means govt-funded food provision eg govt catering, hospitals, armed forces?","Neutral","Positive","Positive","Positive","Positive",null,"Somewhat effective","Somewhat effective","Somewhat effective","Somewhat effective","shift to plant-based diets'\nthis is more govt advocacy not policy so it could be dropped as an indicator",null,"Positive","Positive","Positive","Positive","Positive","Somewhat effective","Somewhat effective","Somewhat effective","Somewhat effective","Somewhat effective","?includes informal food sector\nthe community food growing is a bit different to retail ie 2 concepts in there","Positive","Positive","Positive","Positive","Positive","Somewhat effective","Somewhat effective","Somewhat effective","Somewhat effective","Somewhat effective",null,"Neutral","Positive","Positive","Positive","Positive",null,"Somewhat effective","Somewhat effective","Somewhat effective","Somewhat effective","not clear how the e-commerce limits junk foods in stores\nThis is only govt advocacy not policy so weak and could be dropped","Positive","Positive","Positive","Positive","Positive","Somewhat effective","Somewhat effective","Somewhat effective","Somewhat effective","Somewhat effective","this is not really 'retail' - it is more community food systems. Govt should be measuring or requiring a declaration, not expect the retailers to do it. Needs more thought and better wording",null,"Positive","Positive","Positive","Positive","Positive","Effective","Very effective","Very effective","Very effective","Somewhat effective",null,"Positive","Positive","Positive","Positive","Positive","Very effective","Very effective","Somewhat effective","Very effective","Effective","Are these agricultural subsidies? not clear. subsidies is not the term applied to people. last bit of the descriptor sounds like social protection programs","Positive","Positive","Positive","Positive","Positive","Very effective","Effective","Effective","Very effective","Effective",null,"I don't know","I don't know","I don't know","I don't know","I don't know",{"$nulls":5},"this one is very unclear - what is the policy",null,"the 'O' in INFORMAS is Obesity/NCDs\novernutrition is not a good term - nutrition is a positive attribute so overnutrition does not make much sense and nutritionists dont like it. i suggest obesity and diet-NCDs\ndo you want people to think globally or their country. big differences between high and low income countries. since it will be applied nationally - better to specifically ask people to think of their country\ndefinition of women's empowerment would be helpful\n'somewhat effective' felt like a high rating for some of them ?'a bit effective'"]
[17,"2021-12-01 14:02:45","public health nutrition","Neutral","Positive","Neutral","Positive","Neutral",null,"Effective",null,"Somewhat effective",null,null,"Neutral","Positive","Neutral","Neutral","Neutral",null,"Somewhat effective",{"$nulls":5},"Neutral","Positive","Neutral","Neutral","Neutral",null,"Somewhat effective",{"$nulls":4},"Positive","Positive","Neutral","Positive","Positive","Somewhat effective","Somewhat effective",null,"Somewhat effective","Somewhat effective",null,"Neutral","Positive","Positive","Neutral","Neutral",null,"Somewhat effective","Somewhat effective",{"$nulls":3},"Neutral","Positive","Neutral","Neutral","Neutral",null,"Somewhat effective",{"$nulls":5},"Neutral","Positive","Neutral","Positive","Neutral",null,"Somewhat effective",null,"Somewhat effective",null,null,"Positive","Positive","Neutral","Positive","Positive","Somewhat effective","Effective",null,"Somewhat effective","Somewhat effective",null,null,"Positive","Positive","Positive","Positive","Not applicable","Very effective","Somewhat effective","Somewhat effective","Very effective",null,null,"Positive","Positive","Positive","Positive","Neutral","Effective","Effective","Somewhat effective","Very effective",null,null,"Neutral","Positive","Positive","Neutral","Neutral",null,"Somewhat effective","Somewhat effective",{"$nulls":4},"Neutral","Positive","Neutral","Positive","Negative",null,"Somewhat effective",null,"Somewhat effective",null,null,"Neutral","Positive","Neutral","Neutral","Neutral",null,"Somewhat effective",{"$nulls":4},"Neutral","Neutral","Positive","Neutral","Neutral",null,null,"Somewhat effective",{"$nulls":3},"Neutral","Neutral","Positive","Neutral","Neutral",null,null,"Somewhat effective",{"$nulls":4},"Negative","Positive","Positive","Negative","Neutral",null,"Somewhat effective","Somewhat effective",{"$nulls":3},"Positive","Positive","Positive","Positive","Neutral","Effective","Somewhat effective","Somewhat effective","Effective",null,null,"Positive","Neutral","Neutral","Positive","Positive","Very effective",null,null,"Very effective","Very effective",null,"Positive","Positive","Neutral","Positive","Positive","Somewhat effective","Somewhat effective",null,"Somewhat effective","Somewhat effective"]
[18,"2021-12-09 06:11:51","Public health Nutrition","Neutral","Positive","Neutral","Positive","Positive",null,"Very effective",null,"Very effective","Somewhat effective",null,"Neutral","Positive","Neutral","Positive","Neutral",null,"Very effective",null,"Effective",{"$nulls":3},"Neutral","Positive","Neutral","Positive","Neutral",null,"Very effective",null,"Effective",null,null,"Positive","Positive","Positive","Positive","Neutral","Effective","Very effective","Effective","Very effective",null,null,"Neutral","Positive","Positive","Positive","Neutral",null,"Very effective","Very effective","Effective",null,null,"Neutral","Positive","Positive","Positive","Neutral",null,"Very effective","Effective","Very effective",{"$nulls":3},"Neutral","Positive","Neutral","Positive","Neutral",null,"Very effective",null,"Effective",null,null,"Positive","Positive","Neutral","Positive","Positive","Very effective","Effective",null,"Very effective","Effective",null,null,"Positive","Positive","Positive","Positive","Positive","Very effective","Effective","Effective","Very effective","Very effective",null,"Positive","Positive","Positive","Positive","Positive","Very effective","Effective","Effective","Very effective","Very effective",null,"Positive","Positive","Negative","Positive","Neutral","Very effective","Effective",null,"Effective",{"$nulls":3},"Positive","Positive","Negative","Positive","Positive","Very effective","Very effective",null,"Effective","Effective",null,"Neutral","Positive","Positive","Positive","Positive",null,"Very effective","Effective","Effective","Effective",null,"Positive","Positive","Positive","Positive","Neutral","Very effective","Effective","Effective","Effective",null,null,"Positive","Neutral","Positive","Positive","Positive","Very effective",null,"Effective","Very effective","Very effective",null,null,"Positive","Positive","Neutral","Positive","Neutral","Effective","Very effective",null,"Very effective",null,null,"Positive","Positive","Neutral","Positive","Neutral","Very effective","Effective",null,"Very effective",null,null,"Positive","Positive","Neutral","Positive","Neutral","Very effective","Effective",null,"Very effective",null,null,"Positive","Positive","Neutral","Positive","Neutral","Effective","Effective",null,"Very effective"]
[19,"2021-12-09 18:36:57","Public Health nutrition","Neutral","Positive","Neutral","Positive","Neutral",null,"Very effective",null,"Effective",null,null,"Neutral","Positive","Neutral","Positive","Neutral",null,"Very effective",null,"Effective",{"$nulls":3},"Positive","Positive","Neutral","Positive","Neutral","Somewhat effective","Very effective",null,"Effective",null,null,"Neutral","Positive","Positive","Positive","Neutral",null,"Very effective","Very effective","Effective",null,null,"Neutral","Positive","Positive","Positive","Neutral",null,"Very effective","Very effective","Effective",null,null,"Neutral","Positive","Positive","Positive","Neutral",null,"Very effective","Very effective","Effective",{"$nulls":3},"Neutral","Positive","Neutral","Positive","Neutral",null,"Very effective",null,"Very effective",null,null,"Positive","Positive","Neutral","Positive","Positive","Very effective","Effective",null,"Very effective","Effective",null,null,"Positive","Positive","Negative","Positive","Positive","Very effective","Very effective",null,"Very effective","Effective",null,"Positive","Positive","Positive","Positive","Positive","Effective","Effective","Effective","Very effective","Very effective",null,"Positive","Positive","Positive","Positive","Positive","Effective","Effective","Effective","Very effective","Very effective",null,null,"Positive","Positive","Positive","Positive","Positive","Effective","Very effective","Effective","Very effective","Effective",null,"Positive","Positive","Neutral","Positive","Positive","Effective","Very effective",null,"Very effective","Effective",null,"Positive","Positive","Positive","Positive","Neutral","Very effective","Very effective","Effective","Effective",null,null,"Positive","Positive","Positive","Positive","Positive","Effective","Effective","Very effective","Very effective","Very effective",null,null,"Positive","Positive","Positive","Positive","Neutral","Effective","Very effective","Effective","Very effective",null,null,"Positive","Positive","Positive","Positive","Positive","Very effective","Effective","Effective","Very effective","Effective",null,"Positive","Positive","Neutral","Positive","Positive","Very effective","Effective",null,"Very effective","Effective",null,"Positive","Positive","Neutral","Positive","Neutral","Effective","Effective",null,"Very effective",{"$nulls":3},"I consider positive (for undernutrition or overnutrition) policies that reduce undernutrition and overnutrition and the policies will consider very effective or effective"]
[20,"2021-12-10 03:48:24","Nutrition epidemiology","Neutral","Positive","Positive","Positive","Positive",null,"Very effective","Effective","Effective","Effective",null,"Neutral","Positive","Neutral","Neutral","Positive",null,"Effective",null,null,"Somewhat effective",null,null,"Neutral","Neutral","Neutral","Neutral","Neutral",{"$nulls":6},"Neutral","Positive","Positive","Positive","Neutral",null,"Somewhat effective","Somewhat effective","Somewhat effective",null,null,"Positive","Positive","Positive","Neutral","Negative","Effective","Very effective","Effective",{"$nulls":3},"Neutral","Positive","Positive","Neutral","Negative",null,"Effective","Somewhat effective",{"$nulls":4},"Positive","Positive","Positive","Positive","Neutral","Somewhat effective","Very effective","Somewhat effective","Effective",null,null,"Positive","Positive","Positive","Positive","Negative","Very effective","Somewhat effective","Somewhat effective","Very effective",{"$nulls":3},"Positive","Positive","Positive","Positive","Positive","Very effective","Very effective","Very effective","Very effective","Very effective",null,"Positive","Positive","Positive","Positive","Positive","Effective","Effective","Effective","Effective","Effective",null,"Neutral","Positive","Positive","Positive","Positive",null,"Very effective","Very effective","Somewhat effective","Very effective",null,null,"I don't know","I don't know","I don't know","I don't know","I don't know",{"$nulls":5},"I did not understand this indicator, the second part seems vague on how this would be achieved.","Positive","Positive","Positive","Positive","Positive","Effective","Very effective","Very effective","Somewhat effective","Very effective",null,"Positive","Positive","Positive","Neutral","Neutral","Somewhat effective","Somewhat effective","Somewhat effective",{"$nulls":3},"I don't know","I don't know","I don't know","I don't know","I don't know",{"$nulls":5},"I did not understand this indicator",null,"Negative","Positive","Positive","Negative","Neutral",null,"Very effective","Very effective",{"$nulls":3},"Positive","Positive","Positive","Positive","Positive","Very effective","Very effective","Effective","Effective","Effective",null,"Positive","Positive","Positive","Positive","Neutral","Very effective","Very effective","Very effective","Very effective",null,null,"I don't know","I don't know","I don't know","I don't know","I don't know",{"$nulls":5},"If this is done for both healthy/unhealthy sustainable/not sustainable foods I'm unsure of the net effect"]
[21,"2021-12-10 17:21:43","Public Nutrition, Health Economics","Positive","Positive","I don't know","Positive","I don't know","Effective","Very effective",null,"Effective",null,"Should include: added sugar in beverages. Maybe for environmental indicators, the policy should restrict the use of palm oil in industrialized products. It is not very clear for me what is being considered in socio-economic inequalities.","Positive","Positive","I don't know","Positive","I don't know","Effective","Very effective",null,"Effective",null,"Include sugary beverages sold in out-of-home meals. In the case of Latin America, we have a large proportion of out-of-home meals from informal food outlets. I don´t know if this type of street food is being considered.","Labelling also impacts food composition. Subsidies and taxes on food inputs may also impact food composition. for example, a tax on Palm oil or High fructose corn syrup could affect food composition. The existence of country-level food-based dietary guidelines to promote healthy and sustainable food consumption.","I don't know","Positive","I don't know","Positive","Positive",null,"Effective",null,"Somewhat effective","Somewhat effective","I don´t know if the Codex is updated. For example, for infant formula and food for children under three years, the Codex doesn´t consider many types of added sugar.  In Mexico we used PAHO model for the front of package labelling regarding nutrient declarations.","Positive","Positive","Positive","Positive","Positive","Very effective","Very effective","Very effective","Effective","Very effective","Food labelling could also include warning labels for excessive critical nutrient content (sodium, added sugar etc) according to a nutrient profile model","Positive","Positive","Positive","Positive","Positive","Effective","Very effective","Very effective","Effective","Very effective",null,"Positive","Positive","Positive","Positive","Positive","Somewhat effective","Very effective","Very effective","Very effective","Very effective","A problem arises with street food in Latinamerica and informal outlets that don´t have a menu board",null,"Positive","Positive","Positive","Positive","Positive","Very effective","Very effective","Somewhat effective","Very effective","Very effective","Also restrict the promotion of food for toddlers. these products are not promoted to children directly, but to pregnant women, parents and caregivers.","Positive","Positive","Positive","Positive","Positive","Very effective","Very effective","Very effective","Very effective","Very effective","Prohibiting the promotion of BMS has been proved to be very effective to improve breastfeeding practices, empowering women, reducing socio-economic inequalities. BF has a low environmental impact compared to infant formulas. This is a very important indicator. Should be added restrictions on the marketing of breast milk substitutes to adult women of reproductive age, pregnant women, parents of children under 3 years, caregivers, and health care providers. It should clearly be stated that grow-up milk (12-36 months) is also a breastmilk substitute.","Include a statement for regulating marketing/promotion through influencers in social media, sponsorship of these companies to health personnel, schools, sport events, events where children gather, etc","Positive","Positive","Positive","Positive","Positive","Very effective","Very effective","Effective","Very effective","Very effective","I am not sure if this measure is effective or very effective on the environment since local food consumption is not always the most sustainable option according to evidence. The indicator should also include restrictions of industrialized products and sugary beverage inside the school and promotions of tap water/water fountains that are more sustainable than bottled water. This has been a problem in Mexico where the consumption of bottled water is very high and there is no confidence in the quality of tap water)","Positive","Positive","Positive","Positive","Positive","Effective","Effective","Effective","Effective","Effective",null,"Neutral","Positive","Positive","Positive","Positive",null,"Very effective","Very effective","Very effective","Somewhat effective",null,"To reduce environmental impact there should be an indicator that incentivizes the substitution of red meat for plant-based options (non-industrialized products )","Positive","Positive","Positive","Positive","Positive","Effective","Effective","Somewhat effective","Effective","Effective","Should the measure include food street food? It is not an ultra-processed product. Some street food is healthy and some are unhealthy","Positive","Positive","Positive","Positive","Positive","Effective","Effective","Effective","Very effective","Very effective",null,"Positive","Positive","Positive","Positive","Positive","Somewhat effective","Effective","Somewhat effective","Effective","Effective",null,"Neutral","Neutral","I don't know","Positive","Positive",{"$nulls":3},"Effective","Effective","I don´t know if just measuring the environmental impact of food will incentivize retailers to provide food from local markets. And not always local markets are more sustainable. The indicator could be \"incentivize retailers\" to provide food from local markets, through fiscal measures.","Include restrictions to food portions in food outlets, the default of plain water in food packages instead of sugary beverages","Positive","Positive","Positive","Positive","Positive","Somewhat effective","Very effective","Effective","Effective","Effective","It is very important that revenues are reinvested in healthy food environments, quality of tap water, promote healthy and sustainable diets, etc","Positive","Positive","Positive","Positive","Positive","Effective","Effective","Somewhat effective","Very effective","Very effective","For undernutrition in children, some animal products with lower environmental impact  (i,e  eggs) should be added to the package of subsidies. This indicator should describe if subsidies are directed to the consumer or the producer. I think this is a measure directed to the consumer through coupons, vouchers that can be used in local markets in the community.","Positive","Positive","Positive","Positive","Positive","Very effective","Very effective","Very effective","Very effective","Very effective",null,"Positive","Neutral","Neutral","Positive","Positive","Effective",null,null,"Effective","Effective","food price volatility especially for healthy and sustainable food",null,"An indicator for ensuring the provision of potable water in schools, homes (especially vulnerable ones), and public places. Food trade policies favoring imports/exports of healthy and sustainable food, agriculture subsidies for healthy food (f&V, legumes, nuts) directed to low-scale producers. For the environment, an indicator for reducing food loss and waste is also important"]
[22,"2021-12-13 13:48:19","Epidemiology","Negative","Negative","Neutral","Neutral","Neutral",{"$nulls":6},"Negative","Negative","Neutral","Neutral","Neutral",{"$nulls":7},"Neutral","Neutral","Neutral","Neutral","Neutral",{"$nulls":6},"Positive","Positive","Positive","Positive","Neutral","Somewhat effective","Effective","Effective","Effective",null,null,"Neutral","Positive","Positive","Positive","Neutral",null,"Effective","Somewhat effective","Somewhat effective",null,null,"Not applicable","Neutral","Neutral","Neutral","Neutral",{"$nulls":7},"Positive","Positive","Positive","Positive","Positive","Somewhat effective","Effective","Effective","Effective","Effective",null,"Positive","Positive","Positive","Positive","Positive","Very effective","Effective","Effective","Effective","Effective",null,null,"Positive","Positive","Positive","Positive","Positive","Very effective","Very effective","Effective","Effective","Effective",null,"Positive","Positive","Positive","Positive","Positive","Very effective","Very effective","Effective","Very effective","Effective",null,"Not applicable","Positive","Neutral","Positive","Positive",null,"Effective",null,"Effective","Effective",null,null,"Neutral","Positive","Positive","Positive","Positive",null,"Very effective","Effective","Somewhat effective","Somewhat effective",null,"Neutral","Positive","Neutral","Neutral","Neutral",null,"Effective",{"$nulls":4},"Positive","Positive","Neutral","Neutral","Positive","Effective","Very effective",null,null,"Effective",null,"Neutral","Positive","Positive","Positive","Neutral",null,"Very effective","Very effective","Effective",{"$nulls":3},"Positive","Positive","Positive","Positive","Positive","Very effective","Very effective","Very effective","Very effective","Very effective",null,"Positive","Positive","Positive","Positive","Positive","Effective","Effective","Effective","Effective","Effective",null,"Positive","Positive","Positive","Positive","Positive","Very effective","Very effective","Very effective","Very effective","Very effective",null,"Positive","Positive","Positive","Positive","Positive","Very effective","Very effective","Very effective","Very effective","Very effective"]
[23,"2021-12-13 19:27:59","ECONOMICS","Positive","Positive","Not applicable","Positive","Not applicable","Somewhat effective","Very effective",null,"Effective",null,null,"Positive","Positive","Not applicable","Neutral","Not applicable","Effective","Very effective",{"$nulls":5},"Positive","Positive","Not applicable","Positive","Not applicable","Effective","Very effective",null,"Effective",null,null,"Positive","Positive","Not applicable","Neutral","Not applicable","Very effective","Very effective",{"$nulls":4},"Positive","Positive","Positive","Neutral","Not applicable","Effective","Very effective","Very effective",{"$nulls":3},"Positive","Positive","Not applicable","Neutral","Not applicable","Effective","Very effective",{"$nulls":5},"Positive","Positive","Not applicable","Positive","Not applicable","Effective","Very effective",null,"Effective",null,null,"Positive","Positive","Positive","Positive","Positive","Very effective","Very effective","Effective","Effective","Very effective",null,null,"Positive","Positive","Positive","Positive","Neutral","Very effective","Very effective","Effective","Effective",null,null,"Positive","Positive","Positive","Positive","Neutral","Very effective","Very effective","Very effective","Effective",null,null,"Positive","Positive","Positive","Neutral","Not applicable","Very effective","Very effective","Very effective",{"$nulls":4},"Positive","Positive","Positive","Positive","Not applicable","Very effective","Very effective","Effective","Somewhat effective",null,null,"Positive","Positive","Positive","Positive","Not applicable","Effective","Effective","Very effective","Somewhat effective",null,null,"Positive","Positive","Positive","Neutral","Not applicable","Effective","Effective","Effective",{"$nulls":3},"Positive","Positive","Positive","Neutral","Not applicable","Somewhat effective","Somewhat effective","Very effective",{"$nulls":4},"Positive","Positive","Positive","Positive","Neutral","Very effective","Very effective","Very effective","Effective",null,null,"Positive","Positive","Positive","Positive","Neutral","Very effective","Very effective","Very effective","Effective",null,null,"Positive","Positive","Positive","Positive","Neutral","Very effective","Very effective","Very effective","Very effective",null,null,"Neutral","Neutral","Neutral","Neutral","Neutral"]
[24,"2021-12-20 15:33:06","Public health nutrition, food policy","Positive","Positive","Neutral","Negative","Neutral","Effective","Somewhat effective",{"$nulls":4},"Positive","Positive","Negative","Negative","Negative","Effective","Somewhat effective",{"$nulls":5},"Positive","Positive","Neutral","Positive","Neutral","Somewhat effective","Effective",null,"Effective",null,null,"Positive","Positive","Positive","Positive","Positive","Somewhat effective","Very effective","Effective","Effective","Effective",null,"Positive","Positive","Positive","Positive","Positive","Somewhat effective","Very effective","Very effective","Effective","Effective",null,"Neutral","Positive","Positive","Positive","Positive",null,"Effective","Very effective","Effective","Effective","I suggest to consider the information about the ingredients list, as it seems to bem more effective for consumers information for menu labelling.",null,"Positive","Positive","Positive","Positive","Positive","Somewhat effective","Very effective","Very effective","Effective","Effective",null,"Positive","Positive","Positive","Positive","Positive","Very effective","Effective","Effective","Very effective","Very effective",null,null,"Positive","Positive","Positive","Positive","Positive","Very effective","Very effective","Very effective","Very effective","Effective",null,"Positive","Positive","Positive","Positive","Positive","Very effective","Very effective","Very effective","Very effective","Effective",null,"Neutral","Positive","Positive","Positive","Neutral",null,"Somewhat effective","Effective","Effective",{"$nulls":3},"Positive","Positive","Positive","Positive","Positive","Somewhat effective","Very effective","Very effective","Very effective","Effective",null,"Neutral","Positive","Positive","Positive","Positive",null,"Effective","Effective","Very effective","Very effective",null,"Neutral","Positive","Positive","Neutral","Neutral",null,"Effective","Effective",{"$nulls":3},"Neutral","Positive","Positive","Positive","Positive",null,"Effective","Effective","Effective","Effective",null,null,"Positive","Positive","Positive","Positive","Positive","Somewhat effective","Very effective","Very effective","Effective","Effective",null,"Positive","Positive","Positive","Positive","Positive","Somewhat effective","Effective","Very effective","Very effective","Very effective",null,"Positive","Positive","Positive","Positive","Positive","Very effective","Effective","Effective","Very effective","Very effective",null,"Positive","Positive","Neutral","Positive","Positive","Somewhat effective","Effective",null,"Effective","Effective"]

{"sheet":"Production","index":3,"n_rows":50,"n_cols":121,"rows_kept":50,"merged":[[0,1,0,8],[0,9,0,16],[0,17,0,24],[0,25,0,32],[0,33,0,40],[0,41,0,48],[0,49,0,56],[0,57,0,64],[0,65,0,72],[0,73,0,80],[0,81,0,88],[0,89,0,96],[0,97,0,104],[0,105,0,112],[0,113,0,120],[1,1,1,5],[1,6,1,8],[1,9,1,13],[1,14,1,16],[1,17,1,21],[1,22,1,24],[1,25,1,29],[1,30,1,32],[1,33,1,37],[1,38,1,40],[1,41,1,45],[1,46,1,48],[1,49,1,53],[1,54,1,56],[1,57,1,61],[1,62,1,64],[1,65,1,69],[1,70,1,72],[1,73,1,77],[1,78,1,80],[1,81,1,85],[1,86,1,88],[1,89,1,93],[1,94,1,96],[1,97,1,101],[1,102,1,104],[1,105,1,109],[1,110,1,112],[1,113,1,117],[1,118,1,120],[14,1,14,5],[14,6,14,10],[14,12,14,16],[14,18,14,22],[32,1,32,15],[32,16,32,31],[33,1,33,3],[33,4,33,6],[33,7,33,9],[33,10,33,12],[33,13,33,15],[33,17,33,19],[33,20,33,22],[33,23,33,25],[33,26,33,28],[33,29,33,31]]}
[null,"Sustainable food production systems",{"$nulls":7},"Sustainable and regenerative agriculture",{"$nulls":7},"Crops/farms diversification and related agricultural investment",{"$nulls":7},"Land use management",{"$nulls":7},"Biodiversity/ecosystem restoration and conservation",{"$nulls":7},"Tariffs and subsidies for sustainable healthy foods",{"$nulls":7},"Optimisation of water resources",{"$nulls":7},"Management of use of fertilisers",{"$nulls":7},"Farmers access to seeds, innovation and technology",{"$nulls":7},"Bio-fortification",{"$nulls":7},"Farmers support and protection",{"$nulls":7},"Women’s empowerment in agriculture",{"$nulls":7},"Tailored support to rural and urban areas",{"$nulls":7},"Climate change impact preparedness",{"$nulls":7},"Land, fisheries and forest rights protection"]
[null,"Effect",{"$nulls":4},"Effectiveness",null,null,"Effect",{"$nulls":4},"Effectiveness",null,null,"Effect",{"$nulls":4},"Effectiveness",null,null,"Effect",{"$nulls":4},"Effectiveness",null,null,"Effect",{"$nulls":4},"Effectiveness",null,null,"Effect",{"$nulls":4},"Effectiveness",null,null,"Effect",{"$nulls":4},"Effectiveness",null,null,"Effect",{"$nulls":4},"Effectiveness",null,null,"Effect",{"$nulls":4},"Effectiveness",null,null,"Effect",{"$nulls":4},"Effectiveness",null,null,"Effect",{"$nulls":4},"Effectiveness",null,null,"Effect",{"$nulls":4},"Effectiveness",null,null,"Effect",{"$nulls":4},"Effectiveness",null,null,"Effect",{"$nulls":4},"Effectiveness",null,null,"Effect",{"$nulls":4},"Effectiveness"]
[null,"Positive","Neutral","Negative","I don't know","Not applicable","Very effective","Effective","Somewhat effective","Positive","Neutral","Negative","I don't know","Not applicable","Very effective","Effective","Somewhat effective","Positive","Neutral","Negative","I don't know","Not applicable","Very effective","Effective","Somewhat effective","Positive","Neutral","Negative","I don't know","Not applicable","Very effective","Effective","Somewhat effective","Positive","Neutral","Negative","I don't know","Not applicable","Very effective","Effective","Somewhat effective","Positive","Neutral","Negative","I don't know","Not applicable","Very effective","Effective","Somewhat effective","Positive","Neutral","Negative","I don't know","Not applicable","Very effective","Effective","Somewhat effective","Positive","Neutral","Negative","I don't know","Not applicable","Very effective","Effective","Somewhat effective","Positive","Neutral","Negative","I don't know","Not applicable","Very effective","Effective","Somewhat effective","Positive","Neutral","Negative","I don't know","Not applicable","Very effective","Effective","Somewhat effective","Positive","Neutral","Negative","I don't know","Not applicable","Very effective","Effective","Somewhat effective","Positive","Neutral","Negative","I don't know","Not applicable","Very effective","Effective","Somewhat effective","Positive","Neutral","Negative","I don't know","Not applicable","Very effective","Effective","Somewhat effective","Positive","Neutral","Negative","I don't know","Not applicable","Very effective","Effective","Somewhat effective","Positive","Neutral","Negative","I don't know","Not applicable","Very effective","Effective","Somewhat effective"]
["Undernutrition",{"$f":"COUNTIF(FSC!D2:D10,\"Positive\")","v":5},{"$f":"COUNTIF(FSC!D2:D10,\"Neutral\")","v":2},{"$f":"COUNTIF(FSC!D2:D10,\"Negative\")","v":0},{"$f":"COUNTIF(FSC!D2:D10,\"I don't know\")","v":1},{"$f":"COUNTIF(FSC!D2:D10,\"Not applicable\")","v":1},{"$f":"COUNTIF(FSC!I2:I10,\"Very effective\")","v":2},{"$f":"COUNTIF(FSC!I2:I10,\"Effective\")","v":0},{"$f":"COUNTIF(FSC!I2:I10,\"Somewhat effective\")","v":3},{"$f":"COUNTIF(FSC!O2:O10,\"Positive\")","v":4},{"$f":"COUNTIF(FSC!O2:O10,\"Neutral\")","v":2},{"$f":"COUNTIF(FSC!O2:O10,\"Negative\")","v":1},{"$f":"COUNTIF(FSC!O2:O10,\"I don't know\")","v":1},{"$f":"COUNTIF(FSC!O2:O10,\"Not applicable\")","v":1},{"$f":"COUNTIF(FSC!T2:T10,\"Very effective\")","v":0},{"$f":"COUNTIF(FSC!T2:T10,\"Effective\")","v":3},{"$f":"COUNTIF(FSC!T2:T10,\"Somewhat effective\")","v":1},{"$f":"COUNTIF(FSC!Z2:Z10,\"Positive\")","v":6},{"$f":"COUNTIF(FSC!Z2:Z10,\"Neutral\")","v":2},{"$f":"COUNTIF(FSC!Z2:Z10,\"Negative\")","v":0},{"$f":"COUNTIF(FSC!Z2:Z10,\"I don't know\")","v":0},{"$f":"COUNTIF(FSC!Z2:Z10,\"Not applicable\")","v":1},{"$f":"COUNTIF(FSC!AE2:AE10,\"Very effective\")","v":2},{"$f":"COUNTIF(FSC!AE2:AE10,\"Effective\")","v":3},{"$f":"COUNTIF(FSC!AE2:AE10,\"Somewhat effective\")","v":1},{"$f":"COUNTIF(FSC!AK2:AK10,\"Positive\")","v":7},{"$f":"COUNTIF(FSC!AK2:AK10,\"Neutral\")","v":1},{"$f":"COUNTIF(FSC!AK2:AK10,\"Negative\")","v":0},{"$f":"COUNTIF(FSC!AK2:AK10,\"I don't know\")","v":0},{"$f":"COUNTIF(FSC!AK2:AK10,\"Not applicable\")","v":1},{"$f":"COUNTIF(FSC!AP2:AP10,\"Very effective\")","v":1},{"$f":"COUNTIF(FSC!AP2:AP10,\"Effective\")","v":4},{"$f":"COUNTIF(FSC!AP2:AP10,\"Somewhat effective\")","v":2},{"$f":"COUNTIF(FSC!AV2:AV10,\"Positive\")","v":2},{"$f":"COUNTIF(FSC!AV2:AV10,\"Neutral\")","v":3},{"$f":"COUNTIF(FSC!AV2:AV10,\"Negative\")","v":0},{"$f":"COUNTIF(FSC!AV2:AV10,\"I don't know\")","v":2},{"$f":"COUNTIF(FSC!AV2:AV10,\"Not applicable\")","v":2},{"$f":"COUNTIF(FSC!BA2:BA10,\"Very effective\")","v":0},{"$f":"COUNTIF(FSC!BA2:BA10,\"Effective\")","v":0},{"$f":"COUNTIF(FSC!BA2:BA10,\"Somewhat effective\")","v":2},{"$f":"COUNTIF(FSC!BG2:BG10,\"Positive\")","v":3},{"$f":"COUNTIF(FSC!BG2:BG10,\"Neutral\")","v":1},{"$f":"COUNTIF(FSC!BG2:BG10,\"Negative\")","v":1},{"$f":"COUNTIF(FSC!BG2:BG10,\"I don't know\")","v":3},{"$f":"COUNTIF(FSC!BG2:BG10,\"Not applicable\")","v":1},{"$f":"COUNTIF(FSC!BL2:BL10,\"Very effective\")","v":1},{"$f":"COUNTIF(FSC!BL2:BL10,\"Effective\")","v":1},{"$f":"COUNTIF(FSC!BL2:BL10,\"Somewhat effective\")","v":1},{"$f":"COUNTIF(FSC!BR2:BR10,\"Positive\")","v":1},{"$f":"COUNTIF(FSC!BR2:BR10,\"Neutral\")","v":2},{"$f":"COUNTIF(FSC!BR2:BR10,\"Negative\")","v":0},{"$f":"COUNTIF(FSC!BR2:BR10,\"I don't know\")","v":2},{"$f":"COUNTIF(FSC!BR2:BR10,\"Not applicable\")","v":4},{"$f":"COUNTIF(FSC!BW2:BW10,\"Very effective\")","v":0},{"$f":"COUNTIF(FSC!BW2:BW10,\"Effective\")","v":0},{"$f":"COUNTIF(FSC!BW2:BW10,\"Somewhat effective\")","v":1},{"$f":"COUNTIF(FSC!CC2:CC10,\"Positive\")","v":1},{"$f":"COUNTIF(FSC!CC2:CC10,\"Neutral\")","v":2},{"$f":"COUNTIF(FSC!CC2:CC10,\"Negative\")","v":1},{"$f":"COUNTIF(FSC!CC2:CC10,\"I don't know\")","v":2},{"$f":"COUNTIF(FSC!CC2:CC10,\"Not applicable\")","v":3},{"$f":"COUNTIF(FSC!CH2:CH10,\"Very effective\")","v":0},{"$f":"COUNTIF(FSC!CH2:CH10,\"Effective\")","v":0},{"$f":"COUNTIF(FSC!CH2:CH10,\"Somewhat effective\")","v":1},{"$f":"COUNTIF(FSC!CN2:CN10,\"Positive\")","v":6},{"$f":"COUNTIF(FSC!CN2:CN10,\"Neutral\")","v":1},{"$f":"COUNTIF(FSC!CN2:CN10,\"Negative\")","v":0},{"$f":"COUNTIF(FSC!CN2:CN10,\"I don't know\")","v":0},{"$f":"COUNTIF(FSC!CN2:CN10,\"Not applicable\")","v":2},{"$f":"COUNTIF(FSC!CS2:CS10,\"Very effective\")","v":0},{"$f":"COUNTIF(FSC!CS2:CS10,\"Effective\")","v":3},{"$f":"COUNTIF(FSC!CS2:CS10,\"Somewhat effective\")","v":3},{"$f":"COUNTIF(FSC!CY2:CY10,\"Positive\")","v":6},{"$f":"COUNTIF(FSC!CY2:CY10,\"Neutral\")","v":0},{"$f":"COUNTIF(FSC!CY2:CY10,\"Negative\")","v":0},{"$f":"COUNTIF(FSC!CY2:CY10,\"I don't know\")","v":3},{"$f":"COUNTIF(FSC!CY2:CY10,\"Not applicable\")","v":0},{"$f":"COUNTIF(FSC!DD2:DD10,\"Very effective\")","v":1},{"$f":"COUNTIF(FSC!DD2:DD10,\"Effective\")","v":5},{"$f":"COUNTIF(FSC!DD2:DD10,\"Somewhat effective\")","v":0},{"$f":"COUNTIF(FSC!DJ2:DJ10,\"Positive\")","v":8},{"$f":"COUNTIF(FSC!DJ2:DJ10,\"Neutral\")","v":1},{"$f":"COUNTIF(FSC!DJ2:DJ10,\"Negative\")","v":0},{"$f":"COUNTIF(FSC!DJ2:DJ10,\"I don't know\")","v":0},{"$f":"COUNTIF(FSC!DJ2:DJ10,\"Not applicable\")","v":0},{"$f":"COUNTIF(FSC!DO2:DO10,\"Very effective\")","v":4},{"$f":"COUNTIF(FSC!DO2:DO10,\"Effective\")","v":2},{"$f":"COUNTIF(FSC!DO2:DO10,\"Somewhat effective\")","v":2},{"$f":"COUNTIF(FSC!DU2:DU10,\"Positive\")","v":5},{"$f":"COUNTIF(FSC!DU2:DU10,\"Neutral\")","v":1},{"$f":"COUNTIF(FSC!DU2:DU10,\"Negative\")","v":0},{"$f":"COUNTIF(FSC!DU2:DU10,\"I don't know\")","v":2},{"$f":"COUNTIF(FSC!DU2:DU10,\"Not applicable\")","v":1},{"$f":"COUNTIF(FSC!DZ2:DZ10,\"Very effective\")","v":0},{"$f":"COUNTIF(FSC!DZ2:DZ10,\"Effective\")","v":3},{"$f":"COUNTIF(FSC!DZ2:DZ10,\"Somewhat effective\")","v":2},{"$f":"COUNTIF(FSC!EF2:EF10,\"Positive\")","v":7},{"$f":"COUNTIF(FSC!EF2:EF10,\"Neutral\")","v":0},{"$f":"COUNTIF(FSC!EF2:EF10,\"Negative\")","v":0},{"$f":"COUNTIF(FSC!EF2:EF10,\"I don't know\")","v":0},{"$f":"COUNTIF(FSC!EF2:EF10,\"Not applicable\")","v":2},{"$f":"COUNTIF(FSC!EK2:EK10,\"Very effective\")","v":4},{"$f":"COUNTIF(FSC!EK2:EK10,\"Effective\")","v":3},{"$f":"COUNTIF(FSC!EK2:EK10,\"Somewhat effective\")","v":0},{"$f":"COUNTIF(FSC!EQ2:EQ10,\"Positive\")","v":3},{"$f":"COUNTIF(FSC!EQ2:EQ10,\"Neutral\")","v":2},{"$f":"COUNTIF(FSC!EQ2:EQ10,\"Negative\")","v":0},{"$f":"COUNTIF(FSC!EQ2:EQ10,\"I don't know\")","v":1},{"$f":"COUNTIF(FSC!EQ2:EQ10,\"Not applicable\")","v":3},{"$f":"COUNTIF(FSC!EV2:EV10,\"Very effective\")","v":1},{"$f":"COUNTIF(FSC!EV2:EV10,\"Effective\")","v":2},{"$f":"COUNTIF(FSC!EV2:EV10,\"Somewhat effective\")","v":0},{"$f":"COUNTIF(FSC!FB2:FB10,\"Positive\")","v":5},{"$f":"COUNTIF(FSC!FB2:FB10,\"Neutral\")","v":1},{"$f":"COUNTIF(FSC!FB2:FB10,\"Negative\")","v":0},{"$f":"COUNTIF(FSC!FB2:FB10,\"I don't know\")","v":1},{"$f":"COUNTIF(FSC!FB2:FB10,\"Not applicable\")","v":2},{"$f":"COUNTIF(FSC!FG2:FG10,\"Very effective\")","v":0},{"$f":"COUNTIF(FSC!FG2:FG10,\"Effective\")","v":3},{"$f":"COUNTIF(FSC!FG2:FG10,\"Somewhat effective\")","v":2}]
["Overnutrition",{"$f":"COUNTIF(FSC!E2:E10,\"Positive\")","v":1},{"$f":"COUNTIF(FSC!E2:E10,\"Neutral\")","v":5},{"$f":"COUNTIF(FSC!E2:E10,\"Negative\")","v":0},{"$f":"COUNTIF(FSC!E2:E10,\"I don't know\")","v":1},{"$f":"COUNTIF(FSC!E2:E10,\"Not applicable\")","v":2},{"$f":"COUNTIF(FSC!J2:J10,\"Very effective\")","v":0},{"$f":"COUNTIF(FSC!J2:J10,\"Effective\")","v":0},{"$f":"COUNTIF(FSC!J2:J10,\"Somewhat effective\")","v":1},{"$f":"COUNTIF(FSC!P2:P10,\"Positive\")","v":3},{"$f":"COUNTIF(FSC!P2:P10,\"Neutral\")","v":3},{"$f":"COUNTIF(FSC!P2:P10,\"Negative\")","v":0},{"$f":"COUNTIF(FSC!P2:P10,\"I don't know\")","v":1},{"$f":"COUNTIF(FSC!P2:P10,\"Not applicable\")","v":2},{"$f":"COUNTIF(FSC!U2:U10,\"Very effective\")","v":0},{"$f":"COUNTIF(FSC!U2:U10,\"Effective\")","v":1},{"$f":"COUNTIF(FSC!U2:U10,\"Somewhat effective\")","v":2},{"$f":"COUNTIF(FSC!AA2:AA10,\"Positive\")","v":5},{"$f":"COUNTIF(FSC!AA2:AA10,\"Neutral\")","v":2},{"$f":"COUNTIF(FSC!AA2:AA10,\"Negative\")","v":0},{"$f":"COUNTIF(FSC!AA2:AA10,\"I don't know\")","v":1},{"$f":"COUNTIF(FSC!AA2:AA10,\"Not applicable\")","v":1},{"$f":"COUNTIF(FSC!AF2:AF10,\"Very effective\")","v":2},{"$f":"COUNTIF(FSC!AF2:AF10,\"Effective\")","v":2},{"$f":"COUNTIF(FSC!AF2:AF10,\"Somewhat effective\")","v":1},{"$f":"COUNTIF(FSC!AL2:AL10,\"Positive\")","v":2},{"$f":"COUNTIF(FSC!AL2:AL10,\"Neutral\")","v":4},{"$f":"COUNTIF(FSC!AL2:AL10,\"Negative\")","v":0},{"$f":"COUNTIF(FSC!AL2:AL10,\"I don't know\")","v":1},{"$f":"COUNTIF(FSC!AL2:AL10,\"Not applicable\")","v":2},{"$f":"COUNTIF(FSC!AQ2:AQ10,\"Very effective\")","v":0},{"$f":"COUNTIF(FSC!AQ2:AQ10,\"Effective\")","v":0},{"$f":"COUNTIF(FSC!AQ2:AQ10,\"Somewhat effective\")","v":2},{"$f":"COUNTIF(FSC!AW2:AW10,\"Positive\")","v":1},{"$f":"COUNTIF(FSC!AW2:AW10,\"Neutral\")","v":2},{"$f":"COUNTIF(FSC!AW2:AW10,\"Negative\")","v":0},{"$f":"COUNTIF(FSC!AW2:AW10,\"I don't know\")","v":3},{"$f":"COUNTIF(FSC!AW2:AW10,\"Not applicable\")","v":3},{"$f":"COUNTIF(FSC!BB2:BB10,\"Very effective\")","v":0},{"$f":"COUNTIF(FSC!BB2:BB10,\"Effective\")","v":0},{"$f":"COUNTIF(FSC!BB2:BB10,\"Somewhat effective\")","v":1},{"$f":"COUNTIF(FSC!BH2:BH10,\"Positive\")","v":5},{"$f":"COUNTIF(FSC!BH2:BH10,\"Neutral\")","v":1},{"$f":"COUNTIF(FSC!BH2:BH10,\"Negative\")","v":0},{"$f":"COUNTIF(FSC!BH2:BH10,\"I don't know\")","v":2},{"$f":"COUNTIF(FSC!BH2:BH10,\"Not applicable\")","v":1},{"$f":"COUNTIF(FSC!BM2:BM10,\"Very effective\")","v":3},{"$f":"COUNTIF(FSC!BM2:BM10,\"Effective\")","v":2},{"$f":"COUNTIF(FSC!BM2:BM10,\"Somewhat effective\")","v":0},{"$f":"COUNTIF(FSC!BS2:BS10,\"Positive\")","v":0},{"$f":"COUNTIF(FSC!BS2:BS10,\"Neutral\")","v":3},{"$f":"COUNTIF(FSC!BS2:BS10,\"Negative\")","v":0},{"$f":"COUNTIF(FSC!BS2:BS10,\"I don't know\")","v":2},{"$f":"COUNTIF(FSC!BS2:BS10,\"Not applicable\")","v":4},{"$f":"COUNTIF(FSC!BX2:BX10,\"Very effective\")","v":0},{"$f":"COUNTIF(FSC!BX2:BX10,\"Effective\")","v":0},{"$f":"COUNTIF(FSC!BX2:BX10,\"Somewhat effective\")","v":0},{"$f":"COUNTIF(FSC!CD2:CD10,\"Positive\")","v":0},{"$f":"COUNTIF(FSC!CD2:CD10,\"Neutral\")","v":3},{"$f":"COUNTIF(FSC!CD2:CD10,\"Negative\")","v":0},{"$f":"COUNTIF(FSC!CD2:CD10,\"I don't know\")","v":2},{"$f":"COUNTIF(FSC!CD2:CD10,\"Not applicable\")","v":4},{"$f":"COUNTIF(FSC!CI2:CI10,\"Very effective\")","v":0},{"$f":"COUNTIF(FSC!CI2:CI10,\"Effective\")","v":0},{"$f":"COUNTIF(FSC!CI2:CI10,\"Somewhat effective\")","v":0},{"$f":"COUNTIF(FSC!CO2:CO10,\"Positive\")","v":2},{"$f":"COUNTIF(FSC!CO2:CO10,\"Neutral\")","v":3},{"$f":"COUNTIF(FSC!CO2:CO10,\"Negative\")","v":0},{"$f":"COUNTIF(FSC!CO2:CO10,\"I don't know\")","v":1},{"$f":"COUNTIF(FSC!CO2:CO10,\"Not applicable\")","v":3},{"$f":"COUNTIF(FSC!CT2:CT10,\"Very effective\")","v":0},{"$f":"COUNTIF(FSC!CT2:CT10,\"Effective\")","v":1},{"$f":"COUNTIF(FSC!CT2:CT10,\"Somewhat effective\")","v":1},{"$f":"COUNTIF(FSC!CZ2:CZ10,\"Positive\")","v":0},{"$f":"COUNTIF(FSC!CZ2:CZ10,\"Neutral\")","v":5},{"$f":"COUNTIF(FSC!CZ2:CZ10,\"Negative\")","v":0},{"$f":"COUNTIF(FSC!CZ2:CZ10,\"I don't know\")","v":3},{"$f":"COUNTIF(FSC!CZ2:CZ10,\"Not applicable\")","v":1},{"$f":"COUNTIF(FSC!DE2:DE10,\"Very effective\")","v":0},{"$f":"COUNTIF(FSC!DE2:DE10,\"Effective\")","v":0},{"$f":"COUNTIF(FSC!DE2:DE10,\"Somewhat effective\")","v":0},{"$f":"COUNTIF(FSC!DK2:DK10,\"Positive\")","v":3},{"$f":"COUNTIF(FSC!DK2:DK10,\"Neutral\")","v":4},{"$f":"COUNTIF(FSC!DK2:DK10,\"Negative\")","v":0},{"$f":"COUNTIF(FSC!DK2:DK10,\"I don't know\")","v":1},{"$f":"COUNTIF(FSC!DK2:DK10,\"Not applicable\")","v":1},{"$f":"COUNTIF(FSC!DP2:DP10,\"Very effective\")","v":3},{"$f":"COUNTIF(FSC!DP2:DP10,\"Effective\")","v":0},{"$f":"COUNTIF(FSC!DP2:DP10,\"Somewhat effective\")","v":0},{"$f":"COUNTIF(FSC!DV2:DV10,\"Positive\")","v":3},{"$f":"COUNTIF(FSC!DV2:DV10,\"Neutral\")","v":2},{"$f":"COUNTIF(FSC!DV2:DV10,\"Negative\")","v":0},{"$f":"COUNTIF(FSC!DV2:DV10,\"I don't know\")","v":3},{"$f":"COUNTIF(FSC!DV2:DV10,\"Not applicable\")","v":1},{"$f":"COUNTIF(FSC!EA2:EA10,\"Very effective\")","v":0},{"$f":"COUNTIF(FSC!EA2:EA10,\"Effective\")","v":2},{"$f":"COUNTIF(FSC!EA2:EA10,\"Somewhat effective\")","v":1},{"$f":"COUNTIF(FSC!EG2:EG10,\"Positive\")","v":2},{"$f":"COUNTIF(FSC!EG2:EG10,\"Neutral\")","v":3},{"$f":"COUNTIF(FSC!EG2:EG10,\"Negative\")","v":0},{"$f":"COUNTIF(FSC!EG2:EG10,\"I don't know\")","v":2},{"$f":"COUNTIF(FSC!EG2:EG10,\"Not applicable\")","v":2},{"$f":"COUNTIF(FSC!EL2:EL10,\"Very effective\")","v":1},{"$f":"COUNTIF(FSC!EL2:EL10,\"Effective\")","v":0},{"$f":"COUNTIF(FSC!EL2:EL10,\"Somewhat effective\")","v":1},{"$f":"COUNTIF(FSC!ER2:ER10,\"Positive\")","v":1},{"$f":"COUNTIF(FSC!ER2:ER10,\"Neutral\")","v":4},{"$f":"COUNTIF(FSC!ER2:ER10,\"Negative\")","v":0},{"$f":"COUNTIF(FSC!ER2:ER10,\"I don't know\")","v":1},{"$f":"COUNTIF(FSC!ER2:ER10,\"Not applicable\")","v":3},{"$f":"COUNTIF(FSC!EW2:EW10,\"Very effective\")","v":0},{"$f":"COUNTIF(FSC!EW2:EW10,\"Effective\")","v":0},{"$f":"COUNTIF(FSC!EW2:EW10,\"Somewhat effective\")","v":1},{"$f":"COUNTIF(FSC!FC2:FC10,\"Positive\")","v":2},{"$f":"COUNTIF(FSC!FC2:FC10,\"Neutral\")","v":2},{"$f":"COUNTIF(FSC!FC2:FC10,\"Negative\")","v":0},{"$f":"COUNTIF(FSC!FC2:FC10,\"I don't know\")","v":3},{"$f":"COUNTIF(FSC!FC2:FC10,\"Not applicable\")","v":2},{"$f":"COUNTIF(FSC!FH2:FH10,\"Very effective\")","v":0},{"$f":"COUNTIF(FSC!FH2:FH10,\"Effective\")","v":1},{"$f":"COUNTIF(FSC!FH2:FH10,\"Somewhat effective\")","v":1}]
["Environmental sustainability",{"$f":"COUNTIF(FSC!F2:F10,\"Positive\")","v":9},{"$f":"COUNTIF(FSC!F2:F10,\"Neutral\")","v":0},{"$f":"COUNTIF(FSC!F2:F10,\"Negative\")","v":0},{"$f":"COUNTIF(FSC!F2:F10,\"I don't know\")","v":0},{"$f":"COUNTIF(FSC!F2:F10,\"Not applicable\")","v":0},{"$f":"COUNTIF(FSC!K2:K10,\"Very effective\")","v":5},{"$f":"COUNTIF(FSC!K2:K10,\"Effective\")","v":4},{"$f":"COUNTIF(FSC!K2:K10,\"Somewhat effective\")","v":0},{"$f":"COUNTIF(FSC!Q2:Q10,\"Positive\")","v":9},{"$f":"COUNTIF(FSC!Q2:Q10,\"Neutral\")","v":0},{"$f":"COUNTIF(FSC!Q2:Q10,\"Negative\")","v":0},{"$f":"COUNTIF(FSC!Q2:Q10,\"I don't know\")","v":0},{"$f":"COUNTIF(FSC!Q2:Q10,\"Not applicable\")","v":0},{"$f":"COUNTIF(FSC!V2:V10,\"Very effective\")","v":4},{"$f":"COUNTIF(FSC!V2:V10,\"Effective\")","v":4},{"$f":"COUNTIF(FSC!V2:V10,\"Somewhat effective\")","v":1},{"$f":"COUNTIF(FSC!AB2:AB10,\"Positive\")","v":8},{"$f":"COUNTIF(FSC!AB2:AB10,\"Neutral\")","v":1},{"$f":"COUNTIF(FSC!AB2:AB10,\"Negative\")","v":0},{"$f":"COUNTIF(FSC!AB2:AB10,\"I don't know\")","v":0},{"$f":"COUNTIF(FSC!AB2:AB10,\"Not applicable\")","v":0},{"$f":"COUNTIF(FSC!AG2:AG10,\"Very effective\")","v":3},{"$f":"COUNTIF(FSC!AG2:AG10,\"Effective\")","v":4},{"$f":"COUNTIF(FSC!AG2:AG10,\"Somewhat effective\")","v":1},{"$f":"COUNTIF(FSC!AM2:AM10,\"Positive\")","v":9},{"$f":"COUNTIF(FSC!AM2:AM10,\"Neutral\")","v":0},{"$f":"COUNTIF(FSC!AM2:AM10,\"Negative\")","v":0},{"$f":"COUNTIF(FSC!AM2:AM10,\"I don't know\")","v":0},{"$f":"COUNTIF(FSC!AM2:AM10,\"Not applicable\")","v":0},{"$f":"COUNTIF(FSC!AR2:AR10,\"Very effective\")","v":2},{"$f":"COUNTIF(FSC!AR2:AR10,\"Effective\")","v":6},{"$f":"COUNTIF(FSC!AR2:AR10,\"Somewhat effective\")","v":1},{"$f":"COUNTIF(FSC!AX2:AX10,\"Positive\")","v":8},{"$f":"COUNTIF(FSC!AX2:AX10,\"Neutral\")","v":0},{"$f":"COUNTIF(FSC!AX2:AX10,\"Negative\")","v":0},{"$f":"COUNTIF(FSC!AX2:AX10,\"I don't know\")","v":1},{"$f":"COUNTIF(FSC!AX2:AX10,\"Not applicable\")","v":0},{"$f":"COUNTIF(FSC!BC2:BC10,\"Very effective\")","v":5},{"$f":"COUNTIF(FSC!BC2:BC10,\"Effective\")","v":3},{"$f":"COUNTIF(FSC!BC2:BC10,\"Somewhat effective\")","v":0},{"$f":"COUNTIF(FSC!BI2:BI10,\"Positive\")","v":6},{"$f":"COUNTIF(FSC!BI2:BI10,\"Neutral\")","v":1},{"$f":"COUNTIF(FSC!BI2:BI10,\"Negative\")","v":0},{"$f":"COUNTIF(FSC!BI2:BI10,\"I don't know\")","v":2},{"$f":"COUNTIF(FSC!BI2:BI10,\"Not applicable\")","v":0},{"$f":"COUNTIF(FSC!BN2:BN10,\"Very effective\")","v":1},{"$f":"COUNTIF(FSC!BN2:BN10,\"Effective\")","v":4},{"$f":"COUNTIF(FSC!BN2:BN10,\"Somewhat effective\")","v":1},{"$f":"COUNTIF(FSC!BT2:BT10,\"Positive\")","v":9},{"$f":"COUNTIF(FSC!BT2:BT10,\"Neutral\")","v":0},{"$f":"COUNTIF(FSC!BT2:BT10,\"Negative\")","v":0},{"$f":"COUNTIF(FSC!BT2:BT10,\"I don't know\")","v":0},{"$f":"COUNTIF(FSC!BT2:BT10,\"Not applicable\")","v":0},{"$f":"COUNTIF(FSC!BY2:BY10,\"Very effective\")","v":4},{"$f":"COUNTIF(FSC!BY2:BY10,\"Effective\")","v":5},{"$f":"COUNTIF(FSC!BY2:BY10,\"Somewhat effective\")","v":0},{"$f":"COUNTIF(FSC!CE2:CE10,\"Positive\")","v":9},{"$f":"COUNTIF(FSC!CE2:CE10,\"Neutral\")","v":0},{"$f":"COUNTIF(FSC!CE2:CE10,\"Negative\")","v":0},{"$f":"COUNTIF(FSC!CE2:CE10,\"I don't know\")","v":0},{"$f":"COUNTIF(FSC!CE2:CE10,\"Not applicable\")","v":0},{"$f":"COUNTIF(FSC!CJ2:CJ10,\"Very effective\")","v":3},{"$f":"COUNTIF(FSC!CJ2:CJ10,\"Effective\")","v":5},{"$f":"COUNTIF(FSC!CJ2:CJ10,\"Somewhat effective\")","v":1},{"$f":"COUNTIF(FSC!CP2:CP10,\"Positive\")","v":6},{"$f":"COUNTIF(FSC!CP2:CP10,\"Neutral\")","v":2},{"$f":"COUNTIF(FSC!CP2:CP10,\"Negative\")","v":0},{"$f":"COUNTIF(FSC!CP2:CP10,\"I don't know\")","v":1},{"$f":"COUNTIF(FSC!CP2:CP10,\"Not applicable\")","v":0},{"$f":"COUNTIF(FSC!CU2:CU10,\"Very effective\")","v":1},{"$f":"COUNTIF(FSC!CU2:CU10,\"Effective\")","v":4},{"$f":"COUNTIF(FSC!CU2:CU10,\"Somewhat effective\")","v":1},{"$f":"COUNTIF(FSC!DA2:DA10,\"Positive\")","v":0},{"$f":"COUNTIF(FSC!DA2:DA10,\"Neutral\")","v":3},{"$f":"COUNTIF(FSC!DA2:DA10,\"Negative\")","v":0},{"$f":"COUNTIF(FSC!DA2:DA10,\"I don't know\")","v":3},{"$f":"COUNTIF(FSC!DA2:DA10,\"Not applicable\")","v":3},{"$f":"COUNTIF(FSC!DF2:DF10,\"Very effective\")","v":0},{"$f":"COUNTIF(FSC!DF2:DF10,\"Effective\")","v":0},{"$f":"COUNTIF(FSC!DF2:DF10,\"Somewhat effective\")","v":0},{"$f":"COUNTIF(FSC!DL2:DL10,\"Positive\")","v":4},{"$f":"COUNTIF(FSC!DL2:DL10,\"Neutral\")","v":3},{"$f":"COUNTIF(FSC!DL2:DL10,\"Negative\")","v":0},{"$f":"COUNTIF(FSC!DL2:DL10,\"I don't know\")","v":1},{"$f":"COUNTIF(FSC!DL2:DL10,\"Not applicable\")","v":1},{"$f":"COUNTIF(FSC!DQ2:DQ10,\"Very effective\")","v":1},{"$f":"COUNTIF(FSC!DQ2:DQ10,\"Effective\")","v":2},{"$f":"COUNTIF(FSC!DQ2:DQ10,\"Somewhat effective\")","v":1},{"$f":"COUNTIF(FSC!DW2:DW10,\"Positive\")","v":1},{"$f":"COUNTIF(FSC!DW2:DW10,\"Neutral\")","v":4},{"$f":"COUNTIF(FSC!DW2:DW10,\"Negative\")","v":0},{"$f":"COUNTIF(FSC!DW2:DW10,\"I don't know\")","v":2},{"$f":"COUNTIF(FSC!DW2:DW10,\"Not applicable\")","v":2},{"$f":"COUNTIF(FSC!EB2:EB10,\"Very effective\")","v":0},{"$f":"COUNTIF(FSC!EB2:EB10,\"Effective\")","v":0},{"$f":"COUNTIF(FSC!EB2:EB10,\"Somewhat effective\")","v":1},{"$f":"COUNTIF(FSC!EH2:EH10,\"Positive\")","v":4},{"$f":"COUNTIF(FSC!EH2:EH10,\"Neutral\")","v":3},{"$f":"COUNTIF(FSC!EH2:EH10,\"Negative\")","v":0},{"$f":"COUNTIF(FSC!EH2:EH10,\"I don't know\")","v":1},{"$f":"COUNTIF(FSC!EH2:EH10,\"Not applicable\")","v":1},{"$f":"COUNTIF(FSC!EM2:EM10,\"Very effective\")","v":0},{"$f":"COUNTIF(FSC!EM2:EM10,\"Effective\")","v":3},{"$f":"COUNTIF(FSC!EM2:EM10,\"Somewhat effective\")","v":1},{"$f":"COUNTIF(FSC!ES2:ES10,\"Positive\")","v":7},{"$f":"COUNTIF(FSC!ES2:ES10,\"Neutral\")","v":2},{"$f":"COUNTIF(FSC!ES2:ES10,\"Negative\")","v":0},{"$f":"COUNTIF(FSC!ES2:ES10,\"I don't know\")","v":0},{"$f":"COUNTIF(FSC!ES2:ES10,\"Not applicable\")","v":0},{"$f":"COUNTIF(FSC!EX2:EX10,\"Very effective\")","v":3},{"$f":"COUNTIF(FSC!EX2:EX10,\"Effective\")","v":3},{"$f":"COUNTIF(FSC!EX2:EX10,\"Somewhat effective\")","v":1},{"$f":"COUNTIF(FSC!FD2:FD10,\"Positive\")","v":7},{"$f":"COUNTIF(FSC!FD2:FD10,\"Neutral\")","v":2},{"$f":"COUNTIF(FSC!FD2:FD10,\"Negative\")","v":0},{"$f":"COUNTIF(FSC!FD2:FD10,\"I don't know\")","v":0},{"$f":"COUNTIF(FSC!FD2:FD10,\"Not applicable\")","v":0},{"$f":"COUNTIF(FSC!FI2:FI10,\"Very effective\")","v":0},{"$f":"COUNTIF(FSC!FI2:FI10,\"Effective\")","v":3},{"$f":"COUNTIF(FSC!FI2:FI10,\"Somewhat effective\")","v":4}]
["Socio-economic inequalities",{"$f":"COUNTIF(FSC!G2:G10,\"Positive\")","v":6},{"$f":"COUNTIF(FSC!G2:G10,\"Neutral\")","v":3},{"$f":"COUNTIF(FSC!G2:G10,\"Negative\")","v":0},{"$f":"COUNTIF(FSC!G2:G10,\"I don't know\")","v":0},{"$f":"COUNTIF(FSC!G2:G10,\"Not applicable\")","v":0},{"$f":"COUNTIF(FSC!L2:L10,\"Very effective\")","v":0},{"$f":"COUNTIF(FSC!L2:L10,\"Effective\")","v":2},{"$f":"COUNTIF(FSC!L2:L10,\"Somewhat effective\")","v":4},{"$f":"COUNTIF(FSC!R2:R10,\"Positive\")","v":7},{"$f":"COUNTIF(FSC!R2:R10,\"Neutral\")","v":1},{"$f":"COUNTIF(FSC!R2:R10,\"Negative\")","v":0},{"$f":"COUNTIF(FSC!R2:R10,\"I don't know\")","v":1},{"$f":"COUNTIF(FSC!R2:R10,\"Not applicable\")","v":0},{"$f":"COUNTIF(FSC!W2:W10,\"Very effective\")","v":0},{"$f":"COUNTIF(FSC!W2:W10,\"Effective\")","v":2},{"$f":"COUNTIF(FSC!W2:W10,\"Somewhat effective\")","v":5},{"$f":"COUNTIF(FSC!AC2:AC10,\"Positive\")","v":5},{"$f":"COUNTIF(FSC!AC2:AC10,\"Neutral\")","v":3},{"$f":"COUNTIF(FSC!AC2:AC10,\"Negative\")","v":0},{"$f":"COUNTIF(FSC!AC2:AC10,\"I don't know\")","v":0},{"$f":"COUNTIF(FSC!AC2:AC10,\"Not applicable\")","v":1},{"$f":"COUNTIF(FSC!AH2:AH10,\"Very effective\")","v":3},{"$f":"COUNTIF(FSC!AH2:AH10,\"Effective\")","v":0},{"$f":"COUNTIF(FSC!AH2:AH10,\"Somewhat effective\")","v":2},{"$f":"COUNTIF(FSC!AN2:AN10,\"Positive\")","v":8},{"$f":"COUNTIF(FSC!AN2:AN10,\"Neutral\")","v":0},{"$f":"COUNTIF(FSC!AN2:AN10,\"Negative\")","v":0},{"$f":"COUNTIF(FSC!AN2:AN10,\"I don't know\")","v":1},{"$f":"COUNTIF(FSC!AN2:AN10,\"Not applicable\")","v":0},{"$f":"COUNTIF(FSC!AS2:AS10,\"Very effective\")","v":3},{"$f":"COUNTIF(FSC!AS2:AS10,\"Effective\")","v":2},{"$f":"COUNTIF(FSC!AS2:AS10,\"Somewhat effective\")","v":3},{"$f":"COUNTIF(FSC!AY2:AY10,\"Positive\")","v":1},{"$f":"COUNTIF(FSC!AY2:AY10,\"Neutral\")","v":4},{"$f":"COUNTIF(FSC!AY2:AY10,\"Negative\")","v":0},{"$f":"COUNTIF(FSC!AY2:AY10,\"I don't know\")","v":3},{"$f":"COUNTIF(FSC!AY2:AY10,\"Not applicable\")","v":1},{"$f":"COUNTIF(FSC!BD2:BD10,\"Very effective\")","v":1},{"$f":"COUNTIF(FSC!BD2:BD10,\"Effective\")","v":0},{"$f":"COUNTIF(FSC!BD2:BD10,\"Somewhat effective\")","v":0},{"$f":"COUNTIF(FSC!BJ2:BJ10,\"Positive\")","v":3},{"$f":"COUNTIF(FSC!BJ2:BJ10,\"Neutral\")","v":2},{"$f":"COUNTIF(FSC!BJ2:BJ10,\"Negative\")","v":1},{"$f":"COUNTIF(FSC!BJ2:BJ10,\"I don't know\")","v":3},{"$f":"COUNTIF(FSC!BJ2:BJ10,\"Not applicable\")","v":0},{"$f":"COUNTIF(FSC!BO2:BO10,\"Very effective\")","v":0},{"$f":"COUNTIF(FSC!BO2:BO10,\"Effective\")","v":2},{"$f":"COUNTIF(FSC!BO2:BO10,\"Somewhat effective\")","v":1},{"$f":"COUNTIF(FSC!BU2:BU10,\"Positive\")","v":3},{"$f":"COUNTIF(FSC!BU2:BU10,\"Neutral\")","v":2},{"$f":"COUNTIF(FSC!BU2:BU10,\"Negative\")","v":1},{"$f":"COUNTIF(FSC!BU2:BU10,\"I don't know\")","v":2},{"$f":"COUNTIF(FSC!BU2:BU10,\"Not applicable\")","v":1},{"$f":"COUNTIF(FSC!BZ2:BZ10,\"Very effective\")","v":0},{"$f":"COUNTIF(FSC!BZ2:BZ10,\"Effective\")","v":1},{"$f":"COUNTIF(FSC!BZ2:BZ10,\"Somewhat effective\")","v":2},{"$f":"COUNTIF(FSC!CF2:CF10,\"Positive\")","v":0},{"$f":"COUNTIF(FSC!CF2:CF10,\"Neutral\")","v":3},{"$f":"COUNTIF(FSC!CF2:CF10,\"Negative\")","v":1},{"$f":"COUNTIF(FSC!CF2:CF10,\"I don't know\")","v":2},{"$f":"COUNTIF(FSC!CF2:CF10,\"Not applicable\")","v":3},{"$f":"COUNTIF(FSC!CK2:CK10,\"Very effective\")","v":0},{"$f":"COUNTIF(FSC!CK2:CK10,\"Effective\")","v":0},{"$f":"COUNTIF(FSC!CK2:CK10,\"Somewhat effective\")","v":0},{"$f":"COUNTIF(FSC!CQ2:CQ10,\"Positive\")","v":5},{"$f":"COUNTIF(FSC!CQ2:CQ10,\"Neutral\")","v":1},{"$f":"COUNTIF(FSC!CQ2:CQ10,\"Negative\")","v":2},{"$f":"COUNTIF(FSC!CQ2:CQ10,\"I don't know\")","v":1},{"$f":"COUNTIF(FSC!CQ2:CQ10,\"Not applicable\")","v":0},{"$f":"COUNTIF(FSC!CV2:CV10,\"Very effective\")","v":1},{"$f":"COUNTIF(FSC!CV2:CV10,\"Effective\")","v":1},{"$f":"COUNTIF(FSC!CV2:CV10,\"Somewhat effective\")","v":3},{"$f":"COUNTIF(FSC!DB2:DB10,\"Positive\")","v":4},{"$f":"COUNTIF(FSC!DB2:DB10,\"Neutral\")","v":1},{"$f":"COUNTIF(FSC!DB2:DB10,\"Negative\")","v":0},{"$f":"COUNTIF(FSC!DB2:DB10,\"I don't know\")","v":3},{"$f":"COUNTIF(FSC!DB2:DB10,\"Not applicable\")","v":1},{"$f":"COUNTIF(FSC!DG2:DG10,\"Very effective\")","v":0},{"$f":"COUNTIF(FSC!DG2:DG10,\"Effective\")","v":1},{"$f":"COUNTIF(FSC!DG2:DG10,\"Somewhat effective\")","v":3},{"$f":"COUNTIF(FSC!DM2:DM10,\"Positive\")","v":9},{"$f":"COUNTIF(FSC!DM2:DM10,\"Neutral\")","v":0},{"$f":"COUNTIF(FSC!DM2:DM10,\"Negative\")","v":0},{"$f":"COUNTIF(FSC!DM2:DM10,\"I don't know\")","v":0},{"$f":"COUNTIF(FSC!DM2:DM10,\"Not applicable\")","v":0},{"$f":"COUNTIF(FSC!DR2:DR10,\"Very effective\")","v":4},{"$f":"COUNTIF(FSC!DR2:DR10,\"Effective\")","v":4},{"$f":"COUNTIF(FSC!DR2:DR10,\"Somewhat effective\")","v":1},{"$f":"COUNTIF(FSC!DX2:DX10,\"Positive\")","v":9},{"$f":"COUNTIF(FSC!DX2:DX10,\"Neutral\")","v":0},{"$f":"COUNTIF(FSC!DX2:DX10,\"Negative\")","v":0},{"$f":"COUNTIF(FSC!DX2:DX10,\"I don't know\")","v":0},{"$f":"COUNTIF(FSC!DX2:DX10,\"Not applicable\")","v":0},{"$f":"COUNTIF(FSC!EC2:EC10,\"Very effective\")","v":0},{"$f":"COUNTIF(FSC!EC2:EC10,\"Effective\")","v":8},{"$f":"COUNTIF(FSC!EC2:EC10,\"Somewhat effective\")","v":1},{"$f":"COUNTIF(FSC!EI2:EI10,\"Positive\")","v":9},{"$f":"COUNTIF(FSC!EI2:EI10,\"Neutral\")","v":0},{"$f":"COUNTIF(FSC!EI2:EI10,\"Negative\")","v":0},{"$f":"COUNTIF(FSC!EI2:EI10,\"I don't know\")","v":0},{"$f":"COUNTIF(FSC!EI2:EI10,\"Not applicable\")","v":0},{"$f":"COUNTIF(FSC!EN2:EN10,\"Very effective\")","v":3},{"$f":"COUNTIF(FSC!EN2:EN10,\"Effective\")","v":5},{"$f":"COUNTIF(FSC!EN2:EN10,\"Somewhat effective\")","v":1},{"$f":"COUNTIF(FSC!ET2:ET10,\"Positive\")","v":6},{"$f":"COUNTIF(FSC!ET2:ET10,\"Neutral\")","v":2},{"$f":"COUNTIF(FSC!ET2:ET10,\"Negative\")","v":0},{"$f":"COUNTIF(FSC!ET2:ET10,\"I don't know\")","v":1},{"$f":"COUNTIF(FSC!ET2:ET10,\"Not applicable\")","v":0},{"$f":"COUNTIF(FSC!EY2:EY10,\"Very effective\")","v":1},{"$f":"COUNTIF(FSC!EY2:EY10,\"Effective\")","v":2},{"$f":"COUNTIF(FSC!EY2:EY10,\"Somewhat effective\")","v":3},{"$f":"COUNTIF(FSC!FE2:FE10,\"Positive\")","v":8},{"$f":"COUNTIF(FSC!FE2:FE10,\"Neutral\")","v":0},{"$f":"COUNTIF(FSC!FE2:FE10,\"Negative\")","v":0},{"$f":"COUNTIF(FSC!FE2:FE10,\"I don't know\")","v":0},{"$f":"COUNTIF(FSC!FE2:FE10,\"Not applicable\")","v":1},{"$f":"COUNTIF(FSC!FJ2:FJ10,\"Very effective\")","v":2},{"$f":"COUNTIF(FSC!FJ2:FJ10,\"Effective\")","v":4},{"$f":"COUNTIF(FSC!FJ2:FJ10,\"Somewhat effective\")","v":2}]
["Women's empowerment",{"$f":"COUNTIF(FSC!H2:H10,\"Positive\")","v":4},{"$f":"COUNTIF(FSC!H2:H10,\"Neutral\")","v":2},{"$f":"COUNTIF(FSC!H2:H10,\"Negative\")","v":0},{"$f":"COUNTIF(FSC!H2:H10,\"I don't know\")","v":0},{"$f":"COUNTIF(FSC!H2:H10,\"Not applicable\")","v":3},{"$f":"COUNTIF(FSC!M2:M10,\"Very effective\")","v":0},{"$f":"COUNTIF(FSC!M2:M10,\"Effective\")","v":1},{"$f":"COUNTIF(FSC!M2:M10,\"Somewhat effective\")","v":3},{"$f":"COUNTIF(FSC!S2:S10,\"Positive\")","v":3},{"$f":"COUNTIF(FSC!S2:S10,\"Neutral\")","v":4},{"$f":"COUNTIF(FSC!S2:S10,\"Negative\")","v":0},{"$f":"COUNTIF(FSC!S2:S10,\"I don't know\")","v":0},{"$f":"COUNTIF(FSC!S2:S10,\"Not applicable\")","v":2},{"$f":"COUNTIF(FSC!X2:X10,\"Very effective\")","v":0},{"$f":"COUNTIF(FSC!X2:X10,\"Effective\")","v":2},{"$f":"COUNTIF(FSC!X2:X10,\"Somewhat effective\")","v":1},{"$f":"COUNTIF(FSC!AD2:AD10,\"Positive\")","v":3},{"$f":"COUNTIF(FSC!AD2:AD10,\"Neutral\")","v":3},{"$f":"COUNTIF(FSC!AD2:AD10,\"Negative\")","v":0},{"$f":"COUNTIF(FSC!AD2:AD10,\"I don't know\")","v":0},{"$f":"COUNTIF(FSC!AD2:AD10,\"Not applicable\")","v":3},{"$f":"COUNTIF(FSC!AI2:AI10,\"Very effective\")","v":0},{"$f":"COUNTIF(FSC!AI2:AI10,\"Effective\")","v":3},{"$f":"COUNTIF(FSC!AI2:AI10,\"Somewhat effective\")","v":0},{"$f":"COUNTIF(FSC!AO2:AO10,\"Positive\")","v":9},{"$f":"COUNTIF(FSC!AO2:AO10,\"Neutral\")","v":0},{"$f":"COUNTIF(FSC!AO2:AO10,\"Negative\")","v":0},{"$f":"COUNTIF(FSC!AO2:AO10,\"I don't know\")","v":0},{"$f":"COUNTIF(FSC!AO2:AO10,\"Not applicable\")","v":0},{"$f":"COUNTIF(FSC!AT2:AT10,\"Very effective\")","v":3},{"$f":"COUNTIF(FSC!AT2:AT10,\"Effective\")","v":3},{"$f":"COUNTIF(FSC!AT2:AT10,\"Somewhat effective\")","v":3},{"$f":"COUNTIF(FSC!AZ2:AZ10,\"Positive\")","v":2},{"$f":"COUNTIF(FSC!AZ2:AZ10,\"Neutral\")","v":3},{"$f":"COUNTIF(FSC!AZ2:AZ10,\"Negative\")","v":0},{"$f":"COUNTIF(FSC!AZ2:AZ10,\"I don't know\")","v":2},{"$f":"COUNTIF(FSC!AZ2:AZ10,\"Not applicable\")","v":2},{"$f":"COUNTIF(FSC!BE2:BE10,\"Very effective\")","v":0},{"$f":"COUNTIF(FSC!BE2:BE10,\"Effective\")","v":1},{"$f":"COUNTIF(FSC!BE2:BE10,\"Somewhat effective\")","v":1},{"$f":"COUNTIF(FSC!BK2:BK10,\"Positive\")","v":1},{"$f":"COUNTIF(FSC!BK2:BK10,\"Neutral\")","v":2},{"$f":"COUNTIF(FSC!BK2:BK10,\"Negative\")","v":0},{"$f":"COUNTIF(FSC!BK2:BK10,\"I don't know\")","v":3},{"$f":"COUNTIF(FSC!BK2:BK10,\"Not applicable\")","v":3},{"$f":"COUNTIF(FSC!BP2:BP10,\"Very effective\")","v":0},{"$f":"COUNTIF(FSC!BP2:BP10,\"Effective\")","v":0},{"$f":"COUNTIF(FSC!BP2:BP10,\"Somewhat effective\")","v":1},{"$f":"COUNTIF(FSC!BV2:BV10,\"Positive\")","v":2},{"$f":"COUNTIF(FSC!BV2:BV10,\"Neutral\")","v":2},{"$f":"COUNTIF(FSC!BV2:BV10,\"Negative\")","v":1},{"$f":"COUNTIF(FSC!BV2:BV10,\"I don't know\")","v":1},{"$f":"COUNTIF(FSC!BV2:BV10,\"Not applicable\")","v":3},{"$f":"COUNTIF(FSC!CA2:CA10,\"Very effective\")","v":1},{"$f":"COUNTIF(FSC!CA2:CA10,\"Effective\")","v":0},{"$f":"COUNTIF(FSC!CA2:CA10,\"Somewhat effective\")","v":1},{"$f":"COUNTIF(FSC!CG2:CG10,\"Positive\")","v":0},{"$f":"COUNTIF(FSC!CG2:CG10,\"Neutral\")","v":3},{"$f":"COUNTIF(FSC!CG2:CG10,\"Negative\")","v":0},{"$f":"COUNTIF(FSC!CG2:CG10,\"I don't know\")","v":2},{"$f":"COUNTIF(FSC!CG2:CG10,\"Not applicable\")","v":4},{"$f":"COUNTIF(FSC!CL2:CL10,\"Very effective\")","v":0},{"$f":"COUNTIF(FSC!CL2:CL10,\"Effective\")","v":0},{"$f":"COUNTIF(FSC!CL2:CL10,\"Somewhat effective\")","v":0},{"$f":"COUNTIF(FSC!CR2:CR10,\"Positive\")","v":3},{"$f":"COUNTIF(FSC!CR2:CR10,\"Neutral\")","v":1},{"$f":"COUNTIF(FSC!CR2:CR10,\"Negative\")","v":2},{"$f":"COUNTIF(FSC!CR2:CR10,\"I don't know\")","v":0},{"$f":"COUNTIF(FSC!CR2:CR10,\"Not applicable\")","v":3},{"$f":"COUNTIF(FSC!CW2:CW10,\"Very effective\")","v":1},{"$f":"COUNTIF(FSC!CW2:CW10,\"Effective\")","v":2},{"$f":"COUNTIF(FSC!CW2:CW10,\"Somewhat effective\")","v":0},{"$f":"COUNTIF(FSC!DC2:DC10,\"Positive\")","v":1},{"$f":"COUNTIF(FSC!DC2:DC10,\"Neutral\")","v":1},{"$f":"COUNTIF(FSC!DC2:DC10,\"Negative\")","v":0},{"$f":"COUNTIF(FSC!DC2:DC10,\"I don't know\")","v":4},{"$f":"COUNTIF(FSC!DC2:DC10,\"Not applicable\")","v":3},{"$f":"COUNTIF(FSC!DH2:DH10,\"Very effective\")","v":0},{"$f":"COUNTIF(FSC!DH2:DH10,\"Effective\")","v":0},{"$f":"COUNTIF(FSC!DH2:DH10,\"Somewhat effective\")","v":1},{"$f":"COUNTIF(FSC!DN2:DN10,\"Positive\")","v":5},{"$f":"COUNTIF(FSC!DN2:DN10,\"Neutral\")","v":2},{"$f":"COUNTIF(FSC!DN2:DN10,\"Negative\")","v":0},{"$f":"COUNTIF(FSC!DN2:DN10,\"I don't know\")","v":0},{"$f":"COUNTIF(FSC!DN2:DN10,\"Not applicable\")","v":2},{"$f":"COUNTIF(FSC!DS2:DS10,\"Very effective\")","v":1},{"$f":"COUNTIF(FSC!DS2:DS10,\"Effective\")","v":3},{"$f":"COUNTIF(FSC!DS2:DS10,\"Somewhat effective\")","v":1},{"$f":"COUNTIF(FSC!DY2:DY10,\"Positive\")","v":9},{"$f":"COUNTIF(FSC!DY2:DY10,\"Neutral\")","v":0},{"$f":"COUNTIF(FSC!DY2:DY10,\"Negative\")","v":0},{"$f":"COUNTIF(FSC!DY2:DY10,\"I don't know\")","v":0},{"$f":"COUNTIF(FSC!DY2:DY10,\"Not applicable\")","v":0},{"$f":"COUNTIF(FSC!ED2:ED10,\"Very effective\")","v":7},{"$f":"COUNTIF(FSC!ED2:ED10,\"Effective\")","v":2},{"$f":"COUNTIF(FSC!ED2:ED10,\"Somewhat effective\")","v":0},{"$f":"COUNTIF(FSC!EJ2:EJ10,\"Positive\")","v":3},{"$f":"COUNTIF(FSC!EJ2:EJ10,\"Neutral\")","v":2},{"$f":"COUNTIF(FSC!EJ2:EJ10,\"Negative\")","v":0},{"$f":"COUNTIF(FSC!EJ2:EJ10,\"I don't know\")","v":1},{"$f":"COUNTIF(FSC!EJ2:EJ10,\"Not applicable\")","v":3},{"$f":"COUNTIF(FSC!EO2:EO10,\"Very effective\")","v":0},{"$f":"COUNTIF(FSC!EO2:EO10,\"Effective\")","v":1},{"$f":"COUNTIF(FSC!EO2:EO10,\"Somewhat effective\")","v":2},{"$f":"COUNTIF(FSC!EU2:EU10,\"Positive\")","v":1},{"$f":"COUNTIF(FSC!EU2:EU10,\"Neutral\")","v":2},{"$f":"COUNTIF(FSC!EU2:EU10,\"Negative\")","v":0},{"$f":"COUNTIF(FSC!EU2:EU10,\"I don't know\")","v":3},{"$f":"COUNTIF(FSC!EU2:EU10,\"Not applicable\")","v":3},{"$f":"COUNTIF(FSC!EZ2:EZ10,\"Very effective\")","v":0},{"$f":"COUNTIF(FSC!EZ2:EZ10,\"Effective\")","v":0},{"$f":"COUNTIF(FSC!EZ2:EZ10,\"Somewhat effective\")","v":1},{"$f":"COUNTIF(FSC!FF2:FF10,\"Positive\")","v":2},{"$f":"COUNTIF(FSC!FF2:FF10,\"Neutral\")","v":2},{"$f":"COUNTIF(FSC!FF2:FF10,\"Negative\")","v":0},{"$f":"COUNTIF(FSC!FF2:FF10,\"I don't know\")","v":2},{"$f":"COUNTIF(FSC!FF2:FF10,\"Not applicable\")","v":3},{"$f":"COUNTIF(FSC!FK2:FK10,\"Very effective\")","v":1},{"$f":"COUNTIF(FSC!FK2:FK10,\"Effective\")","v":1},{"$f":"COUNTIF(FSC!FK2:FK10,\"Somewhat effective\")","v":0}]
[]
[]
[]
[]
[]
[]
[null,"Positive effect",{"$nulls":4},"Negative effect",{"$nulls":5},"Positive effect",{"$nulls":5},"Negative effect"]
[null,"Undernutrition","Overnutrition","Environmental sustainability","Socio-economic inequalities","Women's empowerment","Undernutrition","Overnutrition","Environmental sustainability","Socio-economic inequalities","Women's empowerment",null,"Undernutrition","Overnutrition","Environmental sustainability","Socio-economic inequalities","Women's empowerment",null,"Undernutrition","Overnutrition","Environmental sustainability","Socio-economic inequalities","Women's empowerment"]
["Sustainable food production systems",{"$f":"B4","v":5},{"$f":"B5","v":1},{"$f":"B6","v":9},{"$f":"B7","v":6},{"$f":"B8","v":4},{"$f":"D4","v":0},{"$f":"D5","v":0},{"$f":"D6","v":0},{"$f":"D7","v":0},{"$f":"D8","v":0},"Sustainable food production systems",{"$f":"B17/'Initial info'!$B$2","v":{"v":0.5555555555555556,"d":"56%"}},{"$f":"C17/'Initial info'!$B$2","v":{"v":0.1111111111111111,"d":"11%"}},{"$f":"D17/'Initial info'!$B$2","v":{"v":1,"d":"100%"}},{"$f":"E17/'Initial info'!$B$2","v":{"v":0.6666666666666666,"d":"67%"}},{"$f":"F17/'Initial info'!$B$2","v":{"v":0.4444444444444444,"d":"44%"}},"Sustainable food production systems",{"$f":"G17/'Initial info'!$B$2","v":{"v":0,"d":"0%"}},{"$f":"H17/'Initial info'!$B$2","v":{"v":0,"d":"0%"}},{"$f":"I17/'Initial info'!$B$2","v":{"v":0,"d":"0%"}},{"$f":"J17/'Initial info'!$B$2","v":{"v":0,"d":"0%"}},{"$f":"K17/'Initial info'!$B$2","v":{"v":0,"d":"0%"}}]
["Sustainable and regenerative agriculture",{"$f":"J4","v":4},{"$f":"J5","v":3},{"$f":"J6","v":9},{"$f":"J7","v":7},{"$f":"J8","v":3},{"$f":"L4","v":1},{"$f":"L5","v":0},{"$f":"L6","v":0},{"$f":"L7","v":0},{"$f":"L8","v":0},"Sustainable and regenerative agriculture",{"$f":"B18/'Initial info'!$B$2","v":{"v":0.4444444444444444,"d":"44%"}},{"$f":"C18/'Initial info'!$B$2","v":{"v":0.3333333333333333,"d":"33%"}},{"$f":"D18/'Initial info'!$B$2","v":{"v":1,"d":"100%"}},{"$f":"E18/'Initial info'!$B$2","v":{"v":0.7777777777777778,"d":"78%"}},{"$f":"F18/'Initial info'!$B$2","v":{"v":0.3333333333333333,"d":"33%"}},"Sustainable and regenerative agriculture",{"$f":"G18/'Initial info'!$B$2","v":{"v":0.1111111111111111,"d":"11%"}},{"$f":"H18/'Initial info'!$B$2","v":{"v":0,"d":"0%"}},{"$f":"I18/'Initial info'!$B$2","v":{"v":0,"d":"0%"}},{"$f":"J18/'Initial info'!$B$2","v":{"v":0,"d":"0%"}},{"$f":"K18/'Initial info'!$B$2","v":{"v":0,"d":"0%"}}]
["Crops/farms diversification and related agricultural investment",{"$f":"R4","v":6},{"$f":"R5","v":5},{"$f":"R6","v":8},{"$f":"R7","v":5},{"$f":"R8","v":3},{"$f":"T4","v":0},{"$f":"T5","v":0},{"$f":"T6","v":0},{"$f":"T7","v":0},{"$f":"T8","v":0},"Crops/farms diversification and related agricultural investment",{"$f":"B19/'Initial info'!$B$2","v":{"v":0.6666666666666666,"d":"67%"}},{"$f":"C19/'Initial info'!$B$2","v":{"v":0.5555555555555556,"d":"56%"}},{"$f":"D19/'Initial info'!$B$2","v":{"v":0.8888888888888888,"d":"89%"}},{"$f":"E19/'Initial info'!$B$2","v":{"v":0.5555555555555556,"d":"56%"}},{"$f":"F19/'Initial info'!$B$2","v":{"v":0.3333333333333333,"d":"33%"}},"Crops/farms diversification and related agricultural investment",{"$f":"G19/'Initial info'!$B$2","v":{"v":0,"d":"0%"}},{"$f":"H19/'Initial info'!$B$2","v":{"v":0,"d":"0%"}},{"$f":"I19/'Initial info'!$B$2","v":{"v":0,"d":"0%"}},{"$f":"J19/'Initial info'!$B$2","v":{"v":0,"d":"0%"}},{"$f":"K19/'Initial info'!$B$2","v":{"v":0,"d":"0%"}}]
["Land use management",{"$f":"Z4","v":7},{"$f":"Z5","v":2},{"$f":"Z6","v":9},{"$f":"Z7","v":8},{"$f":"Z8","v":9},{"$f":"AB4","v":0},{"$f":"AB5","v":0},{"$f":"AB6","v":0},{"$f":"AB7","v":0},{"$f":"AB8","v":0},"Land use management",{"$f":"B20/'Initial info'!$B$2","v":{"v":0.7777777777777778,"d":"78%"}},{"$f":"C20/'Initial info'!$B$2","v":{"v":0.2222222222222222,"d":"22%"}},{"$f":"D20/'Initial info'!$B$2","v":{"v":1,"d":"100%"}},{"$f":"E20/'Initial info'!$B$2","v":{"v":0.8888888888888888,"d":"89%"}},{"$f":"F20/'Initial info'!$B$2","v":{"v":1,"d":"100%"}},"Land use management",{"$f":"G20/'Initial info'!$B$2","v":{"v":0,"d":"0%"}},{"$f":"H20/'Initial info'!$B$2","v":{"v":0,"d":"0%"}},{"$f":"I20/'Initial info'!$B$2","v":{"v":0,"d":"0%"}},{"$f":"J20/'Initial info'!$B$2","v":{"v":0,"d":"0%"}},{"$f":"K20/'Initial info'!$B$2","v":{"v":0,"d":"0%"}}]
["Biodiversity/ecosystem restoration and conservation",{"$f":"AH4","v":2},{"$f":"AH5","v":1},{"$f":"AH6","v":8},{"$f":"AH7","v":1},{"$f":"AH8","v":2},{"$f":"AJ4","v":0},{"$f":"AJ5","v":0},{"$f":"AJ6","v":0},{"$f":"AJ7","v":0},{"$f":"AJ8","v":0},"Biodiversity/ecosystem restoration and conservation",{"$f":"B21/'Initial info'!$B$2","v":{"v":0.2222222222222222,"d":"22%"}},{"$f":"C21/'Initial info'!$B$2","v":{"v":0.1111111111111111,"d":"11%"}},{"$f":"D21/'Initial info'!$B$2","v":{"v":0.8888888888888888,"d":"89%"}},{"$f":"E21/'Initial info'!$B$2","v":{"v":0.1111111111111111,"d":"11%"}},{"$f":"F21/'Initial info'!$B$2","v":{"v":0.2222222222222222,"d":"22%"}},"Biodiversity/ecosystem restoration and conservation",{"$f":"G21/'Initial info'!$B$2","v":{"v":0,"d":"0%"}},{"$f":"H21/'Initial info'!$B$2","v":{"v":0,"d":"0%"}},{"$f":"I21/'Initial info'!$B$2","v":{"v":0,"d":"0%"}},{"$f":"J21/'Initial info'!$B$2","v":{"v":0,"d":"0%"}},{"$f":"K21/'Initial info'!$B$2","v":{"v":0,"d":"0%"}}]
["Tariffs and subsidies for sustainable healthy foods",{"$f":"AP4","v":3},{"$f":"AP5","v":5},{"$f":"AP6","v":6},{"$f":"AP7","v":3},{"$f":"AP8","v":1},{"$f":"AR4","v":1},{"$f":"AR5","v":0},{"$f":"AR6","v":0},{"$f":"AR7","v":1},{"$f":"AR8","v":0},"Tariffs and subsidies for sustainable healthy foods",{"$f":"B22/'Initial info'!$B$2","v":{"v":0.3333333333333333,"d":"33%"}},{"$f":"C22/'Initial info'!$B$2","v":{"v":0.5555555555555556,"d":"56%"}},{"$f":"D22/'Initial info'!$B$2","v":{"v":0.6666666666666666,"d":"67%"}},{"$f":"E22/'Initial info'!$B$2","v":{"v":0.3333333333333333,"d":"33%"}},{"$f":"F22/'Initial info'!$B$2","v":{"v":0.1111111111111111,"d":"11%"}},"Tariffs and subsidies for sustainable healthy foods",{"$f":"G22/'Initial info'!$B$2","v":{"v":0.1111111111111111,"d":"11%"}},{"$f":"H22/'Initial info'!$B$2","v":{"v":0,"d":"0%"}},{"$f":"I22/'Initial info'!$B$2","v":{"v":0,"d":"0%"}},{"$f":"J22/'Initial info'!$B$2","v":{"v":0.1111111111111111,"d":"11%"}},{"$f":"K22/'Initial info'!$B$2","v":{"v":0,"d":"0%"}}]
["Optimisation of water resources",{"$f":"AX4","v":1},{"$f":"AX5","v":0},{"$f":"AX6","v":9},{"$f":"AX7","v":3},{"$f":"AX8","v":2},{"$f":"AZ4","v":0},{"$f":"AZ5","v":0},{"$f":"AZ6","v":0},{"$f":"AZ7","v":1},{"$f":"AZ8","v":1},"Optimisation of water resources",{"$f":"B23/'Initial info'!$B$2","v":{"v":0.1111111111111111,"d":"11%"}},{"$f":"C23/'Initial info'!$B$2","v":{"v":0,"d":"0%"}},{"$f":"D23/'Initial info'!$B$2","v":{"v":1,"d":"100%"}},{"$f":"E23/'Initial info'!$B$2","v":{"v":0.3333333333333333,"d":"33%"}},{"$f":"F23/'Initial info'!$B$2","v":{"v":0.2222222222222222,"d":"22%"}},"Optimisation of water resources",{"$f":"G23/'Initial info'!$B$2","v":{"v":0,"d":"0%"}},{"$f":"H23/'Initial info'!$B$2","v":{"v":0,"d":"0%"}},{"$f":"I23/'Initial info'!$B$2","v":{"v":0,"d":"0%"}},{"$f":"J23/'Initial info'!$B$2","v":{"v":0.1111111111111111,"d":"11%"}},{"$f":"K23/'Initial info'!$B$2","v":{"v":0.1111111111111111,"d":"11%"}}]
["Management of use of fertilisers",{"$f":"BF4","v":1},{"$f":"BF5","v":0},{"$f":"BF6","v":9},{"$f":"BF7","v":0},{"$f":"BF8","v":0},{"$f":"BH4","v":1},{"$f":"BH5","v":0},{"$f":"BH6","v":0},{"$f":"BH7","v":1},{"$f":"BH8","v":0},"Management of use of fertilisers",{"$f":"B24/'Initial info'!$B$2","v":{"v":0.1111111111111111,"d":"11%"}},{"$f":"C24/'Initial info'!$B$2","v":{"v":0,"d":"0%"}},{"$f":"D24/'Initial info'!$B$2","v":{"v":1,"d":"100%"}},{"$f":"E24/'Initial info'!$B$2","v":{"v":0,"d":"0%"}},{"$f":"F24/'Initial info'!$B$2","v":{"v":0,"d":"0%"}},"Management of use of fertilisers",{"$f":"G24/'Initial info'!$B$2","v":{"v":0.1111111111111111,"d":"11%"}},{"$f":"H24/'Initial info'!$B$2","v":{"v":0,"d":"0%"}},{"$f":"I24/'Initial info'!$B$2","v":{"v":0,"d":"0%"}},{"$f":"J24/'Initial info'!$B$2","v":{"v":0.1111111111111111,"d":"11%"}},{"$f":"K24/'Initial info'!$B$2","v":{"v":0,"d":"0%"}}]
["Farmers access to seeds, innovation and technology",{"$f":"BN4","v":6},{"$f":"BN5","v":2},{"$f":"BN6","v":6},{"$f":"BN7","v":5},{"$f":"BN8","v":3},{"$f":"BP4","v":0},{"$f":"BP5","v":0},{"$f":"BP6","v":0},{"$f":"BP7","v":2},{"$f":"BP8","v":2},"Farmers access to seeds, innovation and technology",{"$f":"B25/'Initial info'!$B$2","v":{"v":0.6666666666666666,"d":"67%"}},{"$f":"C25/'Initial info'!$B$2","v":{"v":0.2222222222222222,"d":"22%"}},{"$f":"D25/'Initial info'!$B$2","v":{"v":0.6666666666666666,"d":"67%"}},{"$f":"E25/'Initial info'!$B$2","v":{"v":0.5555555555555556,"d":"56%"}},{"$f":"F25/'Initial info'!$B$2","v":{"v":0.3333333333333333,"d":"33%"}},"Farmers access to seeds, innovation and technology",{"$f":"G25/'Initial info'!$B$2","v":{"v":0,"d":"0%"}},{"$f":"H25/'Initial info'!$B$2","v":{"v":0,"d":"0%"}},{"$f":"I25/'Initial info'!$B$2","v":{"v":0,"d":"0%"}},{"$f":"J25/'Initial info'!$B$2","v":{"v":0.2222222222222222,"d":"22%"}},{"$f":"K25/'Initial info'!$B$2","v":{"v":0.2222222222222222,"d":"22%"}}]
["Bio-fortification",{"$f":"BV4","v":6},{"$f":"BV5","v":0},{"$f":"BV6","v":0},{"$f":"BV7","v":4},{"$f":"BV8","v":1},{"$f":"BX4","v":0},{"$f":"BX5","v":0},{"$f":"BX6","v":0},{"$f":"BX7","v":0},{"$f":"BX8","v":0},"Bio-fortification",{"$f":"B26/'Initial info'!$B$2","v":{"v":0.6666666666666666,"d":"67%"}},{"$f":"C26/'Initial info'!$B$2","v":{"v":0,"d":"0%"}},{"$f":"D26/'Initial info'!$B$2","v":{"v":0,"d":"0%"}},{"$f":"E26/'Initial info'!$B$2","v":{"v":0.4444444444444444,"d":"44%"}},{"$f":"F26/'Initial info'!$B$2","v":{"v":0.1111111111111111,"d":"11%"}},"Bio-fortification",{"$f":"G26/'Initial info'!$B$2","v":{"v":0,"d":"0%"}},{"$f":"H26/'Initial info'!$B$2","v":{"v":0,"d":"0%"}},{"$f":"I26/'Initial info'!$B$2","v":{"v":0,"d":"0%"}},{"$f":"J26/'Initial info'!$B$2","v":{"v":0,"d":"0%"}},{"$f":"K26/'Initial info'!$B$2","v":{"v":0,"d":"0%"}}]
["Farmers support and protection",{"$f":"CD4","v":8},{"$f":"CD5","v":3},{"$f":"CD6","v":4},{"$f":"CD7","v":9},{"$f":"CD8","v":5},{"$f":"CF4","v":0},{"$f":"CF5","v":0},{"$f":"CF6","v":0},{"$f":"CF7","v":0},{"$f":"CF8","v":0},"Farmers support and protection",{"$f":"B27/'Initial info'!$B$2","v":{"v":0.8888888888888888,"d":"89%"}},{"$f":"C27/'Initial info'!$B$2","v":{"v":0.3333333333333333,"d":"33%"}},{"$f":"D27/'Initial info'!$B$2","v":{"v":0.4444444444444444,"d":"44%"}},{"$f":"E27/'Initial info'!$B$2","v":{"v":1,"d":"100%"}},{"$f":"F27/'Initial info'!$B$2","v":{"v":0.5555555555555556,"d":"56%"}},"Farmers support and protection",{"$f":"G27/'Initial info'!$B$2","v":{"v":0,"d":"0%"}},{"$f":"H27/'Initial info'!$B$2","v":{"v":0,"d":"0%"}},{"$f":"I27/'Initial info'!$B$2","v":{"v":0,"d":"0%"}},{"$f":"J27/'Initial info'!$B$2","v":{"v":0,"d":"0%"}},{"$f":"K27/'Initial info'!$B$2","v":{"v":0,"d":"0%"}}]
["Women’s empowerment in agriculture",{"$f":"CL4","v":5},{"$f":"CL5","v":3},{"$f":"CL6","v":1},{"$f":"CL7","v":9},{"$f":"CL8","v":9},{"$f":"CN4","v":0},{"$f":"CN5","v":0},{"$f":"CN6","v":0},{"$f":"CN7","v":0},{"$f":"CN8","v":0},"Women’s empowerment in agriculture",{"$f":"B28/'Initial info'!$B$2","v":{"v":0.5555555555555556,"d":"56%"}},{"$f":"C28/'Initial info'!$B$2","v":{"v":0.3333333333333333,"d":"33%"}},{"$f":"D28/'Initial info'!$B$2","v":{"v":0.1111111111111111,"d":"11%"}},{"$f":"E28/'Initial info'!$B$2","v":{"v":1,"d":"100%"}},{"$f":"F28/'Initial info'!$B$2","v":{"v":1,"d":"100%"}},"Women’s empowerment in agriculture",{"$f":"G28/'Initial info'!$B$2","v":{"v":0,"d":"0%"}},{"$f":"H28/'Initial info'!$B$2","v":{"v":0,"d":"0%"}},{"$f":"I28/'Initial info'!$B$2","v":{"v":0,"d":"0%"}},{"$f":"J28/'Initial info'!$B$2","v":{"v":0,"d":"0%"}},{"$f":"K28/'Initial info'!$B$2","v":{"v":0,"d":"0%"}}]
["Tailored support to rural and urban areas",{"$f":"CT4","v":7},{"$f":"CT5","v":2},{"$f":"CT6","v":4},{"$f":"CT7","v":9},{"$f":"CT8","v":3},{"$f":"CV4","v":0},{"$f":"CV5","v":0},{"$f":"CV6","v":0},{"$f":"CV7","v":0},{"$f":"CV8","v":0},"Tailored support to rural and urban areas",{"$f":"B29/'Initial info'!$B$2","v":{"v":0.7777777777777778,"d":"78%"}},{"$f":"C29/'Initial info'!$B$2","v":{"v":0.2222222222222222,"d":"22%"}},{"$f":"D29/'Initial info'!$B$2","v":{"v":0.4444444444444444,"d":"44%"}},{"$f":"E29/'Initial info'!$B$2","v":{"v":1,"d":"100%"}},{"$f":"F29/'Initial info'!$B$2","v":{"v":0.3333333333333333,"d":"33%"}},"Tailored support to rural and urban areas",{"$f":"G29/'Initial info'!$B$2","v":{"v":0,"d":"0%"}},{"$f":"H29/'Initial info'!$B$2","v":{"v":0,"d":"0%"}},{"$f":"I29/'Initial info'!$B$2","v":{"v":0,"d":"0%"}},{"$f":"J29/'Initial info'!$B$2","v":{"v":0,"d":"0%"}},{"$f":"K29/'Initial info'!$B$2","v":{"v":0,"d":"0%"}}]
["Climate change impact preparedness",{"$f":"DB4","v":3},{"$f":"DB5","v":1},{"$f":"DB6","v":7},{"$f":"DB7","v":6},{"$f":"DB8","v":1},{"$f":"DD4","v":0},{"$f":"DD5","v":0},{"$f":"DD6","v":0},{"$f":"DD7","v":0},{"$f":"DD8","v":0},"Climate change impact preparedness",{"$f":"B30/'Initial info'!$B$2","v":{"v":0.3333333333333333,"d":"33%"}},{"$f":"C30/'Initial info'!$B$2","v":{"v":0.1111111111111111,"d":"11%"}},{"$f":"D30/'Initial info'!$B$2","v":{"v":0.7777777777777778,"d":"78%"}},{"$f":"E30/'Initial info'!$B$2","v":{"v":0.6666666666666666,"d":"67%"}},{"$f":"F30/'Initial info'!$B$2","v":{"v":0.1111111111111111,"d":"11%"}},"Climate change impact preparedness",{"$f":"G30/'Initial info'!$B$2","v":{"v":0,"d":"0%"}},{"$f":"H30/'Initial info'!$B$2","v":{"v":0,"d":"0%"}},{"$f":"I30/'Initial info'!$B$2","v":{"v":0,"d":"0%"}},{"$f":"J30/'Initial info'!$B$2","v":{"v":0,"d":"0%"}},{"$f":"K30/'Initial info'!$B$2","v":{"v":0,"d":"0%"}}]
["Land, fisheries and forest rights protection",{"$f":"DJ4","v":5},{"$f":"DJ5","v":2},{"$f":"DJ6","v":7},{"$f":"DJ7","v":8},{"$f":"DJ8","v":2},{"$f":"DL4","v":0},{"$f":"DL5","v":0},{"$f":"DL6","v":0},{"$f":"DL7","v":0},{"$f":"DL8","v":0},"Land, fisheries and forest rights protection",{"$f":"B31/'Initial info'!$B$2","v":{"v":0.5555555555555556,"d":"56%"}},{"$f":"C31/'Initial info'!$B$2","v":{"v":0.2222222222222222,"d":"22%"}},{"$f":"D31/'Initial info'!$B$2","v":{"v":0.7777777777777778,"d":"78%"}},{"$f":"E31/'Initial info'!$B$2","v":{"v":0.8888888888888888,"d":"89%"}},{"$f":"F31/'Initial info'!$B$2","v":{"v":0.2222222222222222,"d":"22%"}},"Land, fisheries and forest rights protection",{"$f":"G31/'Initial info'!$B$2","v":{"v":0,"d":"0%"}},{"$f":"H31/'Initial info'!$B$2","v":{"v":0,"d":"0%"}},{"$f":"I31/'Initial info'!$B$2","v":{"v":0,"d":"0%"}},{"$f":"J31/'Initial info'!$B$2","v":{"v":0,"d":"0%"}},{"$f":"K31/'Initial info'!$B$2","v":{"v":0,"d":"0%"}}]
[]
[null,"Effectiveness levels",{"$nulls":14},"Effectiveness levels - porcentages"]
[null,"Undernutrition",null,null,"Overnutrition",null,null,"Environmental sustainability",null,null,"Socio-economic inequalities",null,null,"Women's empowerment",{"$nulls":3},"Undernutrition",null,null,"Overnutrition",null,null,"Environmental sustainability",null,null,"Socio-economic inequalities",null,null,"Women's empowerment"]
[null,"Very effective","Effective","Somewhat effective","Very effective","Effective","Somewhat effective","Very effective","Effective","Somewhat effective","Very effective","Effective","Somewhat effective","Very effective","Effective","Somewhat effective",null,"Very effective","Effective","Somewhat effective","Very effective","Effective","Somewhat effective","Very effective","Effective","Somewhat effective","Very effective","Effective","Somewhat effective","Very effective","Effective","Somewhat effective"]
["Sustainable food production systems",{"$f":"G4","v":2},{"$f":"H4","v":0},{"$f":"I4","v":3},{"$f":"G5","v":0},{"$f":"H5","v":0},{"$f":"I5","v":1},{"$f":"G6","v":5},{"$f":"H6","v":4},{"$f":"I6","v":0},{"$f":"G7","v":0},{"$f":"H7","v":2},4,{"$f":"G8","v":0},{"$f":"H8","v":1},3,"Sustainable food production systems",{"$f":"B36/B17","v":{"v":0.4,"d":"40%"}},{"$f":"C36/B17","v":{"v":0,"d":"0%"}},{"$f":"D36/B17","v":{"v":0.6,"d":"60%"}},{"v":0,"d":"0%"},{"$f":"F36/C17","v":{"v":0,"d":"0%"}},{"$f":"G36/C17","v":{"v":1,"d":"100%"}},{"v":0.5555555555555556,"d":"56%"},{"$f":"I36/D17","v":{"v":0.4444444444444444,"d":"44%"}},{"$f":"J36/D17","v":{"v":0,"d":"0%"}},{"$f":"K36/E17","v":{"v":0,"d":"0%"}},{"$f":"L36/E17","v":{"v":0.3333333333333333,"d":"33%"}},{"$f":"M36/E17","v":{"v":0.6666666666666666,"d":"67%"}},{"v":0,"d":"0%"},{"$f":"O36/F17","v":{"v":0.25,"d":"25%"}},{"$f":"P36/F17","v":{"v":0.75,"d":"75%"}}]
["Sustainable and regenerative agriculture",{"$f":"O4","v":0},{"$f":"P4","v":3},1,{"$f":"O5","v":0},{"$f":"P5","v":1},2,{"$f":"O6","v":4},{"$f":"P6","v":4},{"$f":"Q6","v":1},{"$f":"O7","v":0},{"$f":"P7","v":2},5,{"$f":"O8","v":0},{"$f":"P8","v":2},1,"Sustainable and regenerative agriculture",{"$f":"B37/B18","v":{"v":0,"d":"0%"}},{"v":0.75,"d":"75%"},{"v":0.25,"d":"25%"},{"v":0,"d":"0%"},{"v":0.3333333333333333,"d":"33%"},{"v":0.6666666666666666,"d":"67%"},{"v":0.4444444444444444,"d":"44%"},{"v":0.4444444444444444,"d":"44%"},{"v":0.1111111111111111,"d":"11%"},{"v":0,"d":"0%"},{"v":0.2857142857142857,"d":"29%"},{"v":0.7142857142857143,"d":"71%"},{"v":0,"d":"0%"},{"v":0.6666666666666666,"d":"67%"},{"v":0.3333333333333333,"d":"33%"}]
["Crops/farms diversification and related agricultural investment",{"$f":"W4","v":2},{"$f":"X4","v":3},1,{"$f":"W5","v":2},{"$f":"X5","v":2},1,{"$f":"W6","v":3},{"$f":"X6","v":4},1,{"$f":"W7","v":3},{"$f":"X7","v":0},2,{"$f":"W8","v":0},{"$f":"X8","v":3},0,"Crops/farms diversification and related agricultural investment",{"v":0.3333333333333333,"d":"33%"},{"v":0.5,"d":"50%"},{"v":0.16666666666666666,"d":"17%"},{"v":0.4,"d":"40%"},{"v":0.4,"d":"40%"},{"v":0.2,"d":"20%"},{"v":0.375,"d":"38%"},{"v":0.5,"d":"50%"},{"v":0.125,"d":"13%"},{"v":0.6,"d":"60%"},{"v":0,"d":"0%"},{"v":0.4,"d":"40%"},{"v":0,"d":"0%"},{"v":1,"d":"100%"},{"v":0,"d":"0%"}]
["Land use management",{"$f":"AE4","v":1},{"$f":"AF4","v":4},2,{"$f":"AE5","v":0},{"$f":"AF5","v":0},2,{"$f":"AE6","v":2},{"$f":"AF6","v":6},1,{"$f":"AE7","v":3},{"$f":"AF7","v":2},3,{"$f":"AE8","v":3},{"$f":"AF8","v":3},3,"Land use management",{"v":0.14285714285714285,"d":"14%"},{"v":0.5714285714285714,"d":"57%"},{"v":0.2857142857142857,"d":"29%"},{"v":0,"d":"0%"},{"v":0,"d":"0%"},{"v":1,"d":"100%"},{"v":0.2222222222222222,"d":"22%"},{"v":0.6666666666666666,"d":"67%"},{"v":0.1111111111111111,"d":"11%"},{"v":0.375,"d":"38%"},{"v":0.25,"d":"25%"},{"v":0.375,"d":"38%"},{"v":0.3333333333333333,"d":"33%"},{"v":0.3333333333333333,"d":"33%"},{"v":0.3333333333333333,"d":"33%"}]
["Biodiversity/ecosystem restoration and conservation",{"$f":"AM4","v":0},{"$f":"AN4","v":0},2,{"$f":"AM5","v":0},{"$f":"AN5","v":0},1,{"$f":"AM6","v":5},{"$f":"AN6","v":3},0,{"$f":"AM7","v":1},{"$f":"AN7","v":0},0,{"$f":"AM8","v":0},{"$f":"AN8","v":1},{"$f":"AO8","v":1},"Biodiversity/ecosystem restoration and conservation",{"v":0,"d":"0%"},{"v":0,"d":"0%"},{"v":1,"d":"100%"},{"v":0,"d":"0%"},{"v":0,"d":"0%"},{"v":1,"d":"100%"},{"v":0.625,"d":"63%"},{"v":0.375,"d":"38%"},{"v":0,"d":"0%"},{"v":1,"d":"100%"},{"v":0,"d":"0%"},{"v":0,"d":"0%"},{"v":0,"d":"0%"},{"v":0.5,"d":"50%"},{"v":0.5,"d":"50%"}]
["Tariffs and subsidies for sustainable healthy foods",{"$f":"AU4","v":1},{"$f":"AV4","v":1},1,{"$f":"AU5","v":3},{"$f":"AV5","v":2},0,{"$f":"AU6","v":1},{"$f":"AV6","v":4},{"$f":"AW6","v":1},{"$f":"AU7","v":0},{"$f":"AV7","v":2},1,{"$f":"AU8","v":0},{"$f":"AV8","v":0},1,"Tariffs and subsidies for sustainable healthy foods",{"v":0.3333333333333333,"d":"33%"},{"v":0.3333333333333333,"d":"33%"},{"v":0.3333333333333333,"d":"33%"},{"v":0.6,"d":"60%"},{"v":0.4,"d":"40%"},{"v":0,"d":"0%"},{"v":0.16666666666666666,"d":"17%"},{"v":0.6666666666666666,"d":"67%"},{"v":0.16666666666666666,"d":"17%"},{"v":0,"d":"0%"},{"v":0.6666666666666666,"d":"67%"},{"v":0.3333333333333333,"d":"33%"},{"v":0,"d":"0%"},{"v":0,"d":"0%"},{"v":1,"d":"100%"}]
["Optimisation of water resources",{"$f":"BC4","v":0},{"$f":"BD4","v":0},1,{"$f":"BC5","v":0},{"$f":"BD5","v":0},0,{"$f":"BC6","v":4},{"$f":"BD6","v":5},0,{"$f":"BC7","v":0},{"$f":"BD7","v":1},2,{"$f":"BC8","v":1},{"$f":"BD8","v":0},1,"Optimisation of water resources",{"v":0,"d":"0%"},{"v":0,"d":"0%"},{"$f":"D42/B23","v":{"v":1,"d":"100%"}},{"v":0,"d":"0%"},{"v":0,"d":"0%"},{"v":0,"d":"0%"},{"$f":"H42/D23","v":{"v":0.4444444444444444,"d":"44%"}},{"v":0.5555555555555556,"d":"56%"},{"v":0,"d":"0%"},{"v":0,"d":"0%"},{"v":0.3333333333333333,"d":"33%"},{"v":0.6666666666666666,"d":"67%"},{"v":0.5,"d":"50%"},{"v":0,"d":"0%"},{"v":0.5,"d":"50%"}]
["Management of use of fertilisers",{"$f":"BK4","v":0},{"$f":"BL4","v":0},1,{"$f":"BK5","v":0},{"$f":"BL5","v":0},0,{"$f":"BK6","v":3},{"$f":"BL6","v":5},1,{"$f":"BK7","v":0},{"$f":"BL7","v":0},0,{"$f":"BK8","v":0},{"$f":"BL8","v":0},0,"Management of use of fertilisers",{"v":0,"d":"0%"},{"v":0,"d":"0%"},{"v":1,"d":"100%"},{"v":0,"d":"0%"},{"v":0,"d":"0%"},{"v":0,"d":"0%"},{"$f":"H43/D24","v":{"v":0.3333333333333333,"d":"33%"}},{"v":0.5555555555555556,"d":"56%"},{"$f":"J43/D24","v":{"v":0.1111111111111111,"d":"11%"}},{"v":0,"d":"0%"},{"v":0,"d":"0%"},{"v":0,"d":"0%"},{"v":0,"d":"0%"},{"v":0,"d":"0%"},{"v":0,"d":"0%"}]
["Farmers access to seeds, innovation and technology",{"$f":"BS4","v":0},{"$f":"BT4","v":3},3,{"$f":"BS5","v":0},{"$f":"BT5","v":1},1,{"$f":"BS6","v":1},{"$f":"BT6","v":4},1,{"$f":"BS7","v":1},{"$f":"BT7","v":1},3,{"$f":"BS8","v":1},{"$f":"BT8","v":2},0,"Farmers access to seeds, innovation and technology",{"v":0,"d":"0%"},{"v":0.5,"d":"50%"},{"v":0.5,"d":"50%"},{"$f":"E44/C25","v":{"v":0,"d":"0%"}},{"$f":"F44/C25","v":{"v":0.5,"d":"50%"}},{"$f":"G44/C25","v":{"v":0.5,"d":"50%"}},{"$f":"H44/D25","v":{"v":0.16666666666666666,"d":"17%"}},{"v":0.6666666666666666,"d":"67%"},{"$f":"J44/D25","v":{"v":0.16666666666666666,"d":"17%"}},{"$f":"K44/E25","v":{"v":0.2,"d":"20%"}},{"$f":"L44/E25","v":{"v":0.2,"d":"20%"}},{"$f":"M44/E25","v":{"v":0.6,"d":"60%"}},{"v":0.3333333333333333,"d":"33%"},{"$f":"O44/F25","v":{"v":0.6666666666666666,"d":"67%"}},{"$f":"P44/F25","v":{"v":0,"d":"0%"}}]
["Bio-fortification",{"$f":"CA4","v":1},{"$f":"CB4","v":5},0,{"$f":"CA5","v":0},{"$f":"CB5","v":0},0,{"$f":"CA6","v":0},{"$f":"CB6","v":0},0,{"$f":"CA7","v":0},{"$f":"CB7","v":1},3,{"$f":"CA8","v":0},{"$f":"CB8","v":0},1,"Bio-fortification",{"v":0.16666666666666666,"d":"17%"},{"v":0.8333333333333334,"d":"83%"},{"v":0,"d":"0%"},{"v":0,"d":"0%"},{"v":0,"d":"0%"},{"v":0,"d":"0%"},{"v":0,"d":"0%"},{"v":0,"d":"0%"},{"v":0,"d":"0%"},{"v":0,"d":"0%"},{"v":0.25,"d":"25%"},{"v":0.75,"d":"75%"},{"v":0,"d":"0%"},{"v":0,"d":"0%"},{"v":1,"d":"100%"}]
["Farmers support and protection",{"$f":"CI4","v":4},{"$f":"CJ4","v":2},2,{"$f":"CI5","v":3},{"$f":"CJ5","v":0},0,{"$f":"CI6","v":1},{"$f":"CJ6","v":2},1,{"$f":"CI7","v":4},{"$f":"CJ7","v":4},1,{"$f":"CI8","v":1},{"$f":"CJ8","v":3},1,"Farmers support and protection",{"v":0.5,"d":"50%"},{"v":0.25,"d":"25%"},{"v":0.25,"d":"25%"},{"$f":"E46/C27","v":{"v":1,"d":"100%"}},{"$f":"F46/C27","v":{"v":0,"d":"0%"}},{"$f":"G46/C27","v":{"v":0,"d":"0%"}},{"v":0.25,"d":"25%"},{"$f":"I46/D27","v":{"v":0.5,"d":"50%"}},{"$f":"J46/D27","v":{"v":0.25,"d":"25%"}},{"v":0.4444444444444444,"d":"44%"},{"v":0.4444444444444444,"d":"44%"},{"v":0.1111111111111111,"d":"11%"},{"v":0.2,"d":"20%"},{"v":0.6,"d":"60%"},{"v":0.2,"d":"20%"}]
["Women’s empowerment in agriculture",{"$f":"CQ4","v":0},{"$f":"CR4","v":3},2,{"$f":"CQ5","v":0},{"$f":"CR5","v":2},1,{"$f":"CQ6","v":0},{"$f":"CR6","v":0},1,{"$f":"CQ7","v":0},{"$f":"CR7","v":8},1,{"$f":"CQ8","v":7},{"$f":"CR8","v":2},0,"Women’s empowerment in agriculture",{"v":0,"d":"0%"},{"v":0.6,"d":"60%"},{"v":0.4,"d":"40%"},{"$f":"E47/C28","v":{"v":0,"d":"0%"}},{"$f":"F47/C28","v":{"v":0.6666666666666666,"d":"67%"}},{"v":0.3333333333333333,"d":"33%"},{"v":0,"d":"0%"},{"$f":"I47/D28","v":{"v":0,"d":"0%"}},{"$f":"J47/D28","v":{"v":1,"d":"100%"}},{"v":0,"d":"0%"},{"v":0.8888888888888888,"d":"89%"},{"v":0.1111111111111111,"d":"11%"},{"v":0.7777777777777778,"d":"78%"},{"v":0.2222222222222222,"d":"22%"},{"v":0,"d":"0%"}]
["Tailored support to rural and urban areas",{"$f":"CY4","v":4},{"$f":"CZ4","v":3},0,{"$f":"CY5","v":1},{"$f":"CZ5","v":0},1,{"$f":"CY6","v":0},{"$f":"CZ6","v":3},1,{"$f":"CY7","v":3},{"$f":"CZ7","v":5},1,{"$f":"CY8","v":0},{"$f":"CZ8","v":1},2,"Tailored support to rural and urban areas",{"v":0.5714285714285714,"d":"57%"},{"v":0.42857142857142855,"d":"43%"},{"v":0,"d":"0%"},{"$f":"E48/C29","v":{"v":0.5,"d":"50%"}},{"$f":"F48/C29","v":{"v":0,"d":"0%"}},{"v":0.5,"d":"50%"},{"v":0,"d":"0%"},{"$f":"I48/D29","v":{"v":0.75,"d":"75%"}},{"$f":"J48/D29","v":{"v":0.25,"d":"25%"}},{"v":0.3333333333333333,"d":"33%"},{"v":0.5555555555555556,"d":"56%"},{"v":0.1111111111111111,"d":"11%"},{"v":0,"d":"0%"},{"v":0.3333333333333333,"d":"33%"},{"v":0.6666666666666666,"d":"67%"}]
["Climate change impact preparedness",{"$f":"DG4","v":1},{"$f":"DH4","v":2},0,{"$f":"DG5","v":0},{"$f":"DH5","v":0},1,{"$f":"DG6","v":3},{"$f":"DH6","v":3},1,{"$f":"DG7","v":1},{"$f":"DH7","v":2},3,{"$f":"DG8","v":0},{"$f":"DH8","v":0},1,"Climate change impact preparedness",{"v":0.3333333333333333,"d":"33%"},{"v":0.6666666666666666,"d":"67%"},{"v":0,"d":"0%"},{"$f":"E49/C30","v":{"v":0,"d":"0%"}},{"$f":"F49/C30","v":{"v":0,"d":"0%"}},{"v":1,"d":"100%"},{"v":0.42857142857142855,"d":"43%"},{"$f":"I49/D30","v":{"v":0.42857142857142855,"d":"43%"}},{"$f":"J49/D30","v":{"v":0.14285714285714285,"d":"14%"}},{"v":0.16666666666666666,"d":"17%"},{"v":0.3333333333333333,"d":"33%"},{"v":0.5,"d":"50%"},{"v":0,"d":"0%"},{"v":0,"d":"0%"},{"v":1,"d":"100%"}]
["Land, fisheries and forest rights protection",{"$f":"DO4","v":0},{"$f":"DP4","v":3},2,{"$f":"DO5","v":0},{"$f":"DP5","v":1},1,{"$f":"DO6","v":0},{"$f":"DP6","v":3},4,{"$f":"DO7","v":2},{"$f":"DP7","v":4},2,{"$f":"DO8","v":1},{"$f":"DP8","v":1},0,"Land, fisheries and forest rights protection",{"v":0,"d":"0%"},{"v":0.6,"d":"60%"},{"v":0.4,"d":"40%"},{"$f":"E50/C31","v":{"v":0,"d":"0%"}},{"$f":"F50/C31","v":{"v":0.5,"d":"50%"}},{"v":0.5,"d":"50%"},{"v":0,"d":"0%"},{"$f":"I50/D31","v":{"v":0.42857142857142855,"d":"43%"}},{"$f":"J50/D31","v":{"v":0.5714285714285714,"d":"57%"}},{"v":0.25,"d":"25%"},{"v":0.5,"d":"50%"},{"v":0.25,"d":"25%"},{"v":0.5,"d":"50%"},{"v":0.5,"d":"50%"},{"v":0,"d":"0%"}]

{"sheet":"Storage, etc","index":4,"n_rows":29,"n_cols":49,"rows_kept":29,"merged":[[0,1,0,8],[0,9,0,16],[0,17,0,24],[0,25,0,32],[0,33,0,40],[0,41,0,48],[1,1,1,5],[1,6,1,8],[1,9,1,13],[1,14,1,16],[1,17,1,21],[1,22,1,24],[1,25,1,29],[1,30,1,32],[1,33,1,37],[1,38,1,40],[1,41,1,45],[1,46,1,48],[10,1,10,5],[10,6,10,10],[10,12,10,16],[10,18,10,22],[20,1,20,16],[20,17,20,31],[21,1,21,3],[21,4,21,6],[21,7,21,9],[21,10,21,12],[21,13,21,15],[21,17,21,19],[21,20,21,22],[21,23,21,25],[21,26,21,28],[21,29,21,31]]}
[null,"Transport and infrastructure investment",{"$nulls":7},"SMEs and start-ups support",{"$nulls":7},"Fortification programmes",{"$nulls":7},"Social protection mechanism",{"$nulls":7},"Employment generation in rural economies",{"$nulls":7},"Packaging innovation"]
[null,"Effect",{"$nulls":4},"Effectiveness",null,null,"Effect",{"$nulls":4},"Effectiveness",null,null,"Effect",{"$nulls":4},"Effectiveness",null,null,"Effect",{"$nulls":4},"Effectiveness",null,null,"Effect",{"$nulls":4},"Effectiveness",null,null,"Effect",{"$nulls":4},"Effectiveness"]
[null,"Positive","Neutral","Negative","I don't know","Not applicable","Very effective","Effective","Somewhat effective","Positive","Neutral","Negative","I don't know","Not applicable","Very effective","Effective","Somewhat effective","Positive","Neutral","Negative","I don't know","Not applicable","Very effective","Effective","Somewhat effective","Positive","Neutral","Negative","I don't know","Not applicable","Very effective","Effective","Somewhat effective","Positive","Neutral","Negative","I don't know","Not applicable","Very effective","Effective","Somewhat effective","Positive","Neutral","Negative","I don't know","Not applicable","Very effective","Effective","Somewhat effective"]
["Undernutrition",{"$f":"COUNTIF(FSC!FN2:FN10,\"Positive\")","v":8},{"$f":"COUNTIF(FSC!FN2:FN10,\"Neutral\")","v":0},{"$f":"COUNTIF(FSC!FN2:FN10,\"Negative\")","v":0},{"$f":"COUNTIF(FSC!FN2:FN10,\"I don't know\")","v":0},{"$f":"COUNTIF(FSC!FN2:FN10,\"Not applicable\")","v":1},{"$f":"COUNTIF(FSC!FS2:FS10,\"Very effective\")","v":0},{"$f":"COUNTIF(FSC!FS2:FS10,\"Effective\")","v":4},{"$f":"COUNTIF(FSC!FS2:FS10,\"Somewhat effective\")","v":4},{"$f":"COUNTIF(FSC!FY2:FY10,\"Positive\")","v":7},{"$f":"COUNTIF(FSC!FY2:FY10,\"Neutral\")","v":0},{"$f":"COUNTIF(FSC!FY2:FY10,\"Negative\")","v":0},{"$f":"COUNTIF(FSC!FY2:FY10,\"I don't know\")","v":1},{"$f":"COUNTIF(FSC!FY2:FY10,\"Not applicable\")","v":1},{"$f":"COUNTIF(FSC!GD2:GD10,\"Very effective\")","v":1},{"$f":"COUNTIF(FSC!GD2:GD10,\"Effective\")","v":1},{"$f":"COUNTIF(FSC!GD2:GD10,\"Somewhat effective\")","v":5},{"$f":"COUNTIF(FSC!GJ2:GJ10,\"Positive\")","v":8},{"$f":"COUNTIF(FSC!GJ2:GJ10,\"Neutral\")","v":0},{"$f":"COUNTIF(FSC!GJ2:GJ10,\"Negative\")","v":0},{"$f":"COUNTIF(FSC!GJ2:GJ10,\"I don't know\")","v":1},{"$f":"COUNTIF(FSC!GJ2:GJ10,\"Not applicable\")","v":0},{"$f":"COUNTIF(FSC!GO2:GO10,\"Very effective\")","v":2},{"$f":"COUNTIF(FSC!GO2:GO10,\"Effective\")","v":3},{"$f":"COUNTIF(FSC!GO2:GO10,\"Somewhat effective\")","v":3},{"$f":"COUNTIF(FSC!GU2:GU10,\"Positive\")","v":8},{"$f":"COUNTIF(FSC!GU2:GU10,\"Neutral\")","v":0},{"$f":"COUNTIF(FSC!GU2:GU10,\"Negative\")","v":0},{"$f":"COUNTIF(FSC!GU2:GU10,\"I don't know\")","v":1},{"$f":"COUNTIF(FSC!GU2:GU10,\"Not applicable\")","v":0},{"$f":"COUNTIF(FSC!GZ2:GZ10,\"Very effective\")","v":4},{"$f":"COUNTIF(FSC!GZ2:GZ10,\"Effective\")","v":4},{"$f":"COUNTIF(FSC!GZ2:GZ10,\"Somewhat effective\")","v":0},{"$f":"COUNTIF(FSC!HF2:HF10,\"Positive\")","v":6},{"$f":"COUNTIF(FSC!HF2:HF10,\"Neutral\")","v":0},{"$f":"COUNTIF(FSC!HF2:HF10,\"Negative\")","v":0},{"$f":"COUNTIF(FSC!HF2:HF10,\"I don't know\")","v":2},{"$f":"COUNTIF(FSC!HF2:HF10,\"Not applicable\")","v":1},{"$f":"COUNTIF(FSC!HK2:HK10,\"Very effective\")","v":0},{"$f":"COUNTIF(FSC!HK2:HK10,\"Effective\")","v":3},{"$f":"COUNTIF(FSC!HK2:HK10,\"Somewhat effective\")","v":3},{"$f":"COUNTIF(FSC!HQ2:HQ10,\"Positive\")","v":1},{"$f":"COUNTIF(FSC!HQ2:HQ10,\"Neutral\")","v":4},{"$f":"COUNTIF(FSC!HQ2:HQ10,\"Negative\")","v":1},{"$f":"COUNTIF(FSC!HQ2:HQ10,\"I don't know\")","v":0},{"$f":"COUNTIF(FSC!HQ2:HQ10,\"Not applicable\")","v":3},{"$f":"COUNTIF(FSC!HV2:HV10,\"Very effective\")","v":0},{"$f":"COUNTIF(FSC!HV2:HV10,\"Effective\")","v":1},{"$f":"COUNTIF(FSC!HV2:HV10,\"Somewhat effective\")","v":0}]
["Overnutrition",{"$f":"COUNTIF(FSC!FO2:FO10,\"Positive\")","v":2},{"$f":"COUNTIF(FSC!FO2:FO10,\"Neutral\")","v":3},{"$f":"COUNTIF(FSC!FO2:FO10,\"Negative\")","v":0},{"$f":"COUNTIF(FSC!FO2:FO10,\"I don't know\")","v":3},{"$f":"COUNTIF(FSC!FO2:FO10,\"Not applicable\")","v":1},{"$f":"COUNTIF(FSC!FT2:FT10,\"Very effective\")","v":0},{"$f":"COUNTIF(FSC!FT2:FT10,\"Effective\")","v":1},{"$f":"COUNTIF(FSC!FT2:FT10,\"Somewhat effective\")","v":1},{"$f":"COUNTIF(FSC!FZ2:FZ10,\"Positive\")","v":5},{"$f":"COUNTIF(FSC!FZ2:FZ10,\"Neutral\")","v":2},{"$f":"COUNTIF(FSC!FZ2:FZ10,\"Negative\")","v":0},{"$f":"COUNTIF(FSC!FZ2:FZ10,\"I don't know\")","v":1},{"$f":"COUNTIF(FSC!FZ2:FZ10,\"Not applicable\")","v":1},{"$f":"COUNTIF(FSC!GE2:GE10,\"Very effective\")","v":1},{"$f":"COUNTIF(FSC!GE2:GE10,\"Effective\")","v":0},{"$f":"COUNTIF(FSC!GE2:GE10,\"Somewhat effective\")","v":4},{"$f":"COUNTIF(FSC!GK2:GK10,\"Positive\")","v":3},{"$f":"COUNTIF(FSC!GK2:GK10,\"Neutral\")","v":1},{"$f":"COUNTIF(FSC!GK2:GK10,\"Negative\")","v":0},{"$f":"COUNTIF(FSC!GK2:GK10,\"I don't know\")","v":3},{"$f":"COUNTIF(FSC!GK2:GK10,\"Not applicable\")","v":2},{"$f":"COUNTIF(FSC!GP2:GP10,\"Very effective\")","v":0},{"$f":"COUNTIF(FSC!GP2:GP10,\"Effective\")","v":0},{"$f":"COUNTIF(FSC!GP2:GP10,\"Somewhat effective\")","v":3},{"$f":"COUNTIF(FSC!GV2:GV10,\"Positive\")","v":2},{"$f":"COUNTIF(FSC!GV2:GV10,\"Neutral\")","v":4},{"$f":"COUNTIF(FSC!GV2:GV10,\"Negative\")","v":0},{"$f":"COUNTIF(FSC!GV2:GV10,\"I don't know\")","v":1},{"$f":"COUNTIF(FSC!GV2:GV10,\"Not applicable\")","v":2},{"$f":"COUNTIF(FSC!HA2:HA10,\"Very effective\")","v":0},{"$f":"COUNTIF(FSC!HA2:HA10,\"Effective\")","v":0},{"$f":"COUNTIF(FSC!HA2:HA10,\"Somewhat effective\")","v":2},{"$f":"COUNTIF(FSC!HG2:HG10,\"Positive\")","v":2},{"$f":"COUNTIF(FSC!HG2:HG10,\"Neutral\")","v":1},{"$f":"COUNTIF(FSC!HG2:HG10,\"Negative\")","v":0},{"$f":"COUNTIF(FSC!HG2:HG10,\"I don't know\")","v":3},{"$f":"COUNTIF(FSC!HG2:HG10,\"Not applicable\")","v":3},{"$f":"COUNTIF(FSC!HL2:HL10,\"Very effective\")","v":0},{"$f":"COUNTIF(FSC!HL2:HL10,\"Effective\")","v":0},{"$f":"COUNTIF(FSC!HL2:HL10,\"Somewhat effective\")","v":2},{"$f":"COUNTIF(FSC!HR2:HR10,\"Positive\")","v":0},{"$f":"COUNTIF(FSC!HR2:HR10,\"Neutral\")","v":6},{"$f":"COUNTIF(FSC!HR2:HR10,\"Negative\")","v":0},{"$f":"COUNTIF(FSC!HR2:HR10,\"I don't know\")","v":0},{"$f":"COUNTIF(FSC!HR2:HR10,\"Not applicable\")","v":3},{"$f":"COUNTIF(FSC!HW2:HW10,\"Very effective\")","v":0},{"$f":"COUNTIF(FSC!HW2:HW10,\"Effective\")","v":0},{"$f":"COUNTIF(FSC!HW2:HW10,\"Somewhat effective\")","v":0}]
["Environmental sustainability",{"$f":"COUNTIF(FSC!FP2:FP10,\"Positive\")","v":5},{"$f":"COUNTIF(FSC!FP2:FP10,\"Neutral\")","v":3},{"$f":"COUNTIF(FSC!FP2:FP10,\"Negative\")","v":0},{"$f":"COUNTIF(FSC!FP2:FP10,\"I don't know\")","v":1},{"$f":"COUNTIF(FSC!FP2:FP10,\"Not applicable\")","v":0},{"$f":"COUNTIF(FSC!FU2:FU10,\"Very effective\")","v":1},{"$f":"COUNTIF(FSC!FU2:FU10,\"Effective\")","v":2},{"$f":"COUNTIF(FSC!FU2:FU10,\"Somewhat effective\")","v":2},{"$f":"COUNTIF(FSC!GA2:GA10,\"Positive\")","v":5},{"$f":"COUNTIF(FSC!GA2:GA10,\"Neutral\")","v":1},{"$f":"COUNTIF(FSC!GA2:GA10,\"Negative\")","v":0},{"$f":"COUNTIF(FSC!GA2:GA10,\"I don't know\")","v":1},{"$f":"COUNTIF(FSC!GA2:GA10,\"Not applicable\")","v":2},{"$f":"COUNTIF(FSC!GF2:GF10,\"Very effective\")","v":0},{"$f":"COUNTIF(FSC!GF2:GF10,\"Effective\")","v":1},{"$f":"COUNTIF(FSC!GF2:GF10,\"Somewhat effective\")","v":4},{"$f":"COUNTIF(FSC!GL2:GL10,\"Positive\")","v":0},{"$f":"COUNTIF(FSC!GL2:GL10,\"Neutral\")","v":3},{"$f":"COUNTIF(FSC!GL2:GL10,\"Negative\")","v":0},{"$f":"COUNTIF(FSC!GL2:GL10,\"I don't know\")","v":2},{"$f":"COUNTIF(FSC!GL2:GL10,\"Not applicable\")","v":4},{"$f":"COUNTIF(FSC!GQ2:GQ10,\"Very effective\")","v":0},{"$f":"COUNTIF(FSC!GQ2:GQ10,\"Effective\")","v":0},{"$f":"COUNTIF(FSC!GQ2:GQ10,\"Somewhat effective\")","v":0},{"$f":"COUNTIF(FSC!GW2:GW10,\"Positive\")","v":2},{"$f":"COUNTIF(FSC!GW2:GW10,\"Neutral\")","v":3},{"$f":"COUNTIF(FSC!GW2:GW10,\"Negative\")","v":0},{"$f":"COUNTIF(FSC!GW2:GW10,\"I don't know\")","v":2},{"$f":"COUNTIF(FSC!GW2:GW10,\"Not applicable\")","v":2},{"$f":"COUNTIF(FSC!HB2:HB10,\"Very effective\")","v":0},{"$f":"COUNTIF(FSC!HB2:HB10,\"Effective\")","v":0},{"$f":"COUNTIF(FSC!HB2:HB10,\"Somewhat effective\")","v":2},{"$f":"COUNTIF(FSC!HH2:HH10,\"Positive\")","v":2},{"$f":"COUNTIF(FSC!HH2:HH10,\"Neutral\")","v":4},{"$f":"COUNTIF(FSC!HH2:HH10,\"Negative\")","v":0},{"$f":"COUNTIF(FSC!HH2:HH10,\"I don't know\")","v":2},{"$f":"COUNTIF(FSC!HH2:HH10,\"Not applicable\")","v":1},{"$f":"COUNTIF(FSC!HM2:HM10,\"Very effective\")","v":0},{"$f":"COUNTIF(FSC!HM2:HM10,\"Effective\")","v":1},{"$f":"COUNTIF(FSC!HM2:HM10,\"Somewhat effective\")","v":1},{"$f":"COUNTIF(FSC!HS2:HS10,\"Positive\")","v":8},{"$f":"COUNTIF(FSC!HS2:HS10,\"Neutral\")","v":1},{"$f":"COUNTIF(FSC!HS2:HS10,\"Negative\")","v":0},{"$f":"COUNTIF(FSC!HS2:HS10,\"I don't know\")","v":0},{"$f":"COUNTIF(FSC!HS2:HS10,\"Not applicable\")","v":0},{"$f":"COUNTIF(FSC!HX2:HX10,\"Very effective\")","v":1},{"$f":"COUNTIF(FSC!HX2:HX10,\"Effective\")","v":5},{"$f":"COUNTIF(FSC!HX2:HX10,\"Somewhat effective\")","v":2}]
["Socio-economic inequalities",{"$f":"COUNTIF(FSC!FQ2:FQ10,\"Positive\")","v":9},{"$f":"COUNTIF(FSC!FQ2:FQ10,\"Neutral\")","v":0},{"$f":"COUNTIF(FSC!FQ2:FQ10,\"Negative\")","v":0},{"$f":"COUNTIF(FSC!FQ2:FQ10,\"I don't know\")","v":0},{"$f":"COUNTIF(FSC!FQ2:FQ10,\"Not applicable\")","v":0},{"$f":"COUNTIF(FSC!FV2:FV10,\"Very effective\")","v":2},{"$f":"COUNTIF(FSC!FV2:FV10,\"Effective\")","v":7},{"$f":"COUNTIF(FSC!FV2:FV10,\"Somewhat effective\")","v":0},{"$f":"COUNTIF(FSC!GB2:GB10,\"Positive\")","v":9},{"$f":"COUNTIF(FSC!GB2:GB10,\"Neutral\")","v":0},{"$f":"COUNTIF(FSC!GB2:GB10,\"Negative\")","v":0},{"$f":"COUNTIF(FSC!GB2:GB10,\"I don't know\")","v":0},{"$f":"COUNTIF(FSC!GB2:GB10,\"Not applicable\")","v":0},{"$f":"COUNTIF(FSC!GG2:GG10,\"Very effective\")","v":1},{"$f":"COUNTIF(FSC!GG2:GG10,\"Effective\")","v":5},{"$f":"COUNTIF(FSC!GG2:GG10,\"Somewhat effective\")","v":3},{"$f":"COUNTIF(FSC!GM2:GM10,\"Positive\")","v":4},{"$f":"COUNTIF(FSC!GM2:GM10,\"Neutral\")","v":2},{"$f":"COUNTIF(FSC!GM2:GM10,\"Negative\")","v":0},{"$f":"COUNTIF(FSC!GM2:GM10,\"I don't know\")","v":2},{"$f":"COUNTIF(FSC!GM2:GM10,\"Not applicable\")","v":1},{"$f":"COUNTIF(FSC!GR2:GR10,\"Very effective\")","v":1},{"$f":"COUNTIF(FSC!GR2:GR10,\"Effective\")","v":1},{"$f":"COUNTIF(FSC!GR2:GR10,\"Somewhat effective\")","v":2},{"$f":"COUNTIF(FSC!GX2:GX10,\"Positive\")","v":6},{"$f":"COUNTIF(FSC!GX2:GX10,\"Neutral\")","v":1},{"$f":"COUNTIF(FSC!GX2:GX10,\"Negative\")","v":0},{"$f":"COUNTIF(FSC!GX2:GX10,\"I don't know\")","v":1},{"$f":"COUNTIF(FSC!GX2:GX10,\"Not applicable\")","v":1},{"$f":"COUNTIF(FSC!HC2:HC10,\"Very effective\")","v":1},{"$f":"COUNTIF(FSC!HC2:HC10,\"Effective\")","v":4},{"$f":"COUNTIF(FSC!HC2:HC10,\"Somewhat effective\")","v":1},{"$f":"COUNTIF(FSC!HI2:HI10,\"Positive\")","v":8},{"$f":"COUNTIF(FSC!HI2:HI10,\"Neutral\")","v":0},{"$f":"COUNTIF(FSC!HI2:HI10,\"Negative\")","v":0},{"$f":"COUNTIF(FSC!HI2:HI10,\"I don't know\")","v":1},{"$f":"COUNTIF(FSC!HI2:HI10,\"Not applicable\")","v":0},{"$f":"COUNTIF(FSC!HN2:HN10,\"Very effective\")","v":1},{"$f":"COUNTIF(FSC!HN2:HN10,\"Effective\")","v":4},{"$f":"COUNTIF(FSC!HN2:HN10,\"Somewhat effective\")","v":3},{"$f":"COUNTIF(FSC!HT2:HT10,\"Positive\")","v":0},{"$f":"COUNTIF(FSC!HT2:HT10,\"Neutral\")","v":3},{"$f":"COUNTIF(FSC!HT2:HT10,\"Negative\")","v":3},{"$f":"COUNTIF(FSC!HT2:HT10,\"I don't know\")","v":1},{"$f":"COUNTIF(FSC!HT2:HT10,\"Not applicable\")","v":2},{"$f":"COUNTIF(FSC!HY2:HY10,\"Very effective\")","v":0},{"$f":"COUNTIF(FSC!HY2:HY10,\"Effective\")","v":0},{"$f":"COUNTIF(FSC!HY2:HY10,\"Somewhat effective\")","v":0}]
["Women's empowerment",{"$f":"COUNTIF(FSC!FR2:FR10,\"Positive\")","v":3},{"$f":"COUNTIF(FSC!FR2:FR10,\"Neutral\")","v":2},{"$f":"COUNTIF(FSC!FR2:FR10,\"Negative\")","v":0},{"$f":"COUNTIF(FSC!FR2:FR10,\"I don't know\")","v":2},{"$f":"COUNTIF(FSC!FR2:FR10,\"Not applicable\")","v":2},{"$f":"COUNTIF(FSC!FW2:FW10,\"Very effective\")","v":1},{"$f":"COUNTIF(FSC!FW2:FW10,\"Effective\")","v":1},{"$f":"COUNTIF(FSC!FW2:FW10,\"Somewhat effective\")","v":1},{"$f":"COUNTIF(FSC!GC2:GC10,\"Positive\")","v":4},{"$f":"COUNTIF(FSC!GC2:GC10,\"Neutral\")","v":3},{"$f":"COUNTIF(FSC!GC2:GC10,\"Negative\")","v":0},{"$f":"COUNTIF(FSC!GC2:GC10,\"I don't know\")","v":0},{"$f":"COUNTIF(FSC!GC2:GC10,\"Not applicable\")","v":2},{"$f":"COUNTIF(FSC!GH2:GH10,\"Very effective\")","v":1},{"$f":"COUNTIF(FSC!GH2:GH10,\"Effective\")","v":1},{"$f":"COUNTIF(FSC!GH2:GH10,\"Somewhat effective\")","v":2},{"$f":"COUNTIF(FSC!GN2:GN10,\"Positive\")","v":2},{"$f":"COUNTIF(FSC!GN2:GN10,\"Neutral\")","v":2},{"$f":"COUNTIF(FSC!GN2:GN10,\"Negative\")","v":0},{"$f":"COUNTIF(FSC!GN2:GN10,\"I don't know\")","v":2},{"$f":"COUNTIF(FSC!GN2:GN10,\"Not applicable\")","v":3},{"$f":"COUNTIF(FSC!GS2:GS10,\"Very effective\")","v":0},{"$f":"COUNTIF(FSC!GS2:GS10,\"Effective\")","v":2},{"$f":"COUNTIF(FSC!GS2:GS10,\"Somewhat effective\")","v":0},{"$f":"COUNTIF(FSC!GY2:GY10,\"Positive\")","v":0},{"$f":"COUNTIF(FSC!GY2:GY10,\"Neutral\")","v":4},{"$f":"COUNTIF(FSC!GY2:GY10,\"Negative\")","v":0},{"$f":"COUNTIF(FSC!GY2:GY10,\"I don't know\")","v":3},{"$f":"COUNTIF(FSC!GY2:GY10,\"Not applicable\")","v":2},{"$f":"COUNTIF(FSC!HD2:HD10,\"Very effective\")","v":0},{"$f":"COUNTIF(FSC!HD2:HD10,\"Effective\")","v":0},{"$f":"COUNTIF(FSC!HD2:HD10,\"Somewhat effective\")","v":0},{"$f":"COUNTIF(FSC!HJ2:HJ10,\"Positive\")","v":2},{"$f":"COUNTIF(FSC!HJ2:HJ10,\"Neutral\")","v":2},{"$f":"COUNTIF(FSC!HJ2:HJ10,\"Negative\")","v":0},{"$f":"COUNTIF(FSC!HJ2:HJ10,\"I don't know\")","v":3},{"$f":"COUNTIF(FSC!HJ2:HJ10,\"Not applicable\")","v":2},{"$f":"COUNTIF(FSC!HO2:HO10,\"Very effective\")","v":0},{"$f":"COUNTIF(FSC!HO2:HO10,\"Effective\")","v":1},{"$f":"COUNTIF(FSC!HO2:HO10,\"Somewhat effective\")","v":1},{"$f":"COUNTIF(FSC!HU2:HU10,\"Positive\")","v":0},{"$f":"COUNTIF(FSC!HU2:HU10,\"Neutral\")","v":2},{"$f":"COUNTIF(FSC!HU2:HU10,\"Negative\")","v":2},{"$f":"COUNTIF(FSC!HU2:HU10,\"I don't know\")","v":1},{"$f":"COUNTIF(FSC!HU2:HU10,\"Not applicable\")","v":4},{"$f":"COUNTIF(FSC!HZ2:HZ10,\"Very effective\")","v":0},{"$f":"COUNTIF(FSC!HZ2:HZ10,\"Effective\")","v":0},{"$f":"COUNTIF(FSC!HZ2:HZ10,\"Somewhat effective\")","v":0}]
[]
[]
[null,"Positive effect",{"$nulls":4},"Negative effect",{"$nulls":5},"Positive effect",{"$nulls":5},"Negative effect"]
[null,"Undernutrition","Overnutrition","Environmental sustainability","Socio-economic inequalities","Women's empowerment","Undernutrition","Overnutrition","Environmental sustainability","Socio-economic inequalities","Women's empowerment",null,"Undernutrition","Overnutrition","Environmental sustainability","Socio-economic inequalities","Women's empowerment",null,"Undernutrition","Overnutrition","Environmental sustainability","Socio-economic inequalities","Women's empowerment"]
["Transport and infrastructure investment",{"$f":"B4","v":8},{"$f":"B5","v":2},{"$f":"B6","v":5},{"$f":"B7","v":9},{"$f":"B8","v":3},{"$f":"D4","v":0},{"$f":"D5","v":0},{"$f":"D6","v":0},{"$f":"D7","v":0},{"$f":"D8","v":0},"Transport and infrastructure investment",{"$f":"B13/'Initial info'!B2","v":{"v":0.8888888888888888,"d":"89%"}},{"$f":"C13/'Initial info'!B2","v":{"v":0.2222222222222222,"d":"22%"}},{"$f":"D13/'Initial info'!B2","v":{"v":0.5555555555555556,"d":"56%"}},{"$f":"E13/'Initial info'!B2","v":{"v":1,"d":"100%"}},{"$f":"F13/'Initial info'!B2","v":{"v":0.3333333333333333,"d":"33%"}},"Transport and infrastructure investment",{"$f":"G13/'Initial info'!B2","v":{"v":0,"d":"0%"}},{"$f":"H13/'Initial info'!B2","v":{"v":0,"d":"0%"}},{"$f":"I13/'Initial info'!B2","v":{"v":0,"d":"0%"}},{"$f":"J13/'Initial info'!B2","v":{"v":0,"d":"0%"}},{"$f":"K13/'Initial info'!B2","v":{"v":0,"d":"0%"}}]
["SMEs and start-ups support",{"$f":"J4","v":7},{"$f":"J5","v":5},{"$f":"J6","v":5},{"$f":"J7","v":9},{"$f":"J8","v":4},{"$f":"L4","v":0},{"$f":"L5","v":0},{"$f":"L6","v":0},{"$f":"L7","v":0},{"$f":"L8","v":0},"SMEs and start-ups support",{"$f":"B14/'Initial info'!B2","v":{"v":0.7777777777777778,"d":"78%"}},{"$f":"C14/'Initial info'!B2","v":{"v":0.5555555555555556,"d":"56%"}},{"$f":"D14/'Initial info'!B2","v":{"v":0.5555555555555556,"d":"56%"}},{"$f":"E14/'Initial info'!B2","v":{"v":1,"d":"100%"}},{"$f":"F14/'Initial info'!B2","v":{"v":0.4444444444444444,"d":"44%"}},"SMEs and start-ups support",{"$f":"G14/'Initial info'!B2","v":{"v":0,"d":"0%"}},{"$f":"H14/'Initial info'!B2","v":{"v":0,"d":"0%"}},{"$f":"I14/'Initial info'!B2","v":{"v":0,"d":"0%"}},{"$f":"J14/'Initial info'!B2","v":{"v":0,"d":"0%"}},{"$f":"K14/'Initial info'!B2","v":{"v":0,"d":"0%"}}]
["Fortification programmes",{"$f":"R4","v":8},{"$f":"R5","v":3},{"$f":"R6","v":0},{"$f":"R7","v":4},{"$f":"R8","v":2},{"$f":"T4","v":0},{"$f":"T5","v":0},{"$f":"T6","v":0},{"$f":"T7","v":0},{"$f":"T8","v":0},"Fortification programmes",{"$f":"B15/'Initial info'!B2","v":{"v":0.8888888888888888,"d":"89%"}},{"$f":"C15/'Initial info'!B2","v":{"v":0.3333333333333333,"d":"33%"}},{"$f":"D15/'Initial info'!B2","v":{"v":0,"d":"0%"}},{"$f":"E15/'Initial info'!B2","v":{"v":0.4444444444444444,"d":"44%"}},{"$f":"F15/'Initial info'!B2","v":{"v":0.2222222222222222,"d":"22%"}},"Fortification programmes",{"$f":"G15/'Initial info'!B2","v":{"v":0,"d":"0%"}},{"$f":"H15/'Initial info'!B2","v":{"v":0,"d":"0%"}},{"$f":"I15/'Initial info'!B2","v":{"v":0,"d":"0%"}},{"$f":"J15/'Initial info'!B2","v":{"v":0,"d":"0%"}},{"$f":"K15/'Initial info'!B2","v":{"v":0,"d":"0%"}}]
["Social protection mechanism",{"$f":"Z4","v":8},{"$f":"Z5","v":2},{"$f":"Z6","v":2},{"$f":"Z7","v":6},{"$f":"Z8","v":0},{"$f":"AB4","v":0},{"$f":"AB5","v":0},{"$f":"AB6","v":0},{"$f":"AB7","v":0},{"$f":"AB8","v":0},"Social protection mechanism",{"$f":"B16/'Initial info'!B2","v":{"v":0.8888888888888888,"d":"89%"}},{"$f":"C16/'Initial info'!B2","v":{"v":0.2222222222222222,"d":"22%"}},{"$f":"D16/'Initial info'!B2","v":{"v":0.2222222222222222,"d":"22%"}},{"$f":"E16/'Initial info'!B2","v":{"v":0.6666666666666666,"d":"67%"}},{"$f":"F16/'Initial info'!B2","v":{"v":0,"d":"0%"}},"Social protection mechanism",{"$f":"G16/'Initial info'!B2","v":{"v":0,"d":"0%"}},{"$f":"H16/'Initial info'!B2","v":{"v":0,"d":"0%"}},{"$f":"I16/'Initial info'!B2","v":{"v":0,"d":"0%"}},{"$f":"J16/'Initial info'!B2","v":{"v":0,"d":"0%"}},{"$f":"K16/'Initial info'!B2","v":{"v":0,"d":"0%"}}]
["Employment generation in rural economies",{"$f":"AH4","v":6},{"$f":"AH5","v":2},{"$f":"AH6","v":2},{"$f":"AH7","v":8},{"$f":"AH8","v":2},{"$f":"AJ4","v":0},{"$f":"AJ5","v":0},{"$f":"AJ6","v":0},{"$f":"AJ7","v":0},{"$f":"AJ8","v":0},"Employment generation in rural economies",{"$f":"B17/'Initial info'!B2","v":{"v":0.6666666666666666,"d":"67%"}},{"$f":"C17/'Initial info'!B2","v":{"v":0.2222222222222222,"d":"22%"}},{"$f":"D17/'Initial info'!B2","v":{"v":0.2222222222222222,"d":"22%"}},{"$f":"E17/'Initial info'!B2","v":{"v":0.8888888888888888,"d":"89%"}},{"$f":"F17/'Initial info'!B2","v":{"v":0.2222222222222222,"d":"22%"}},"Employment generation in rural economies",{"$f":"G17/'Initial info'!B2","v":{"v":0,"d":"0%"}},{"$f":"H17/'Initial info'!B2","v":{"v":0,"d":"0%"}},{"$f":"I17/'Initial info'!B2","v":{"v":0,"d":"0%"}},{"$f":"J17/'Initial info'!B2","v":{"v":0,"d":"0%"}},{"$f":"K17/'Initial info'!B2","v":{"v":0,"d":"0%"}}]
["Packaging innovation",{"$f":"AP4","v":1},{"$f":"AP5","v":0},{"$f":"AP6","v":8},{"$f":"AP7","v":0},{"$f":"AP8","v":0},{"$f":"AR4","v":1},{"$f":"AR5","v":0},{"$f":"AR6","v":0},{"$f":"AR7","v":3},{"$f":"AR8","v":2},"Packaging innovation",{"$f":"B18/'Initial info'!B2","v":{"v":0.1111111111111111,"d":"11%"}},{"$f":"C18/'Initial info'!B2","v":{"v":0,"d":"0%"}},{"$f":"D18/'Initial info'!B2","v":{"v":0.8888888888888888,"d":"89%"}},{"$f":"E18/'Initial info'!B2","v":{"v":0,"d":"0%"}},{"$f":"F18/'Initial info'!B2","v":{"v":0,"d":"0%"}},"Packaging innovation",{"$f":"G18/'Initial info'!B2","v":{"v":0.1111111111111111,"d":"11%"}},{"$f":"H18/'Initial info'!B2","v":{"v":0,"d":"0%"}},{"$f":"I18/'Initial info'!B2","v":{"v":0,"d":"0%"}},{"$f":"J18/'Initial info'!B2","v":{"v":0.3333333333333333,"d":"33%"}},{"$f":"K18/'Initial info'!B2","v":{"v":0.2222222222222222,"d":"22%"}}]
[]
[]
[null,"Effectiveness levels",{"$nulls":15},"Effectiveness levels - %"]
[null,"Undernutrition",null,null,"Overnutrition",null,null,"Environmental sustainability",null,null,"Socio-economic inequalities",null,null,"Women's empowerment",{"$nulls":3},"Undernutrition",null,null,"Overnutrition",null,null,"Environmental sustainability",null,null,"Socio-economic inequalities",null,null,"Women's empowerment"]
[null,"Very effective","Effective","Somewhat effective","Very effective","Effective","Somewhat effective","Very effective","Effective","Somewhat effective","Very effective","Effective","Somewhat effective","Very effective","Effective","Somewhat effective",null,"Very effective","Effective","Somewhat effective","Very effective","Effective","Somewhat effective","Very effective","Effective","Somewhat effective","Very effective","Effective","Somewhat effective","Very effective","Effective","Somewhat effective"]
["Transport and infrastructure investment",{"$f":"G4","v":0},{"$f":"H4","v":4},4,{"$f":"G5","v":0},{"$f":"H5","v":1},1,{"$f":"G6","v":1},{"$f":"H6","v":2},2,{"$f":"G7","v":2},{"$f":"H7","v":7},0,{"$f":"G8","v":1},{"$f":"H8","v":1},1,"Transport and infrastructure investment",{"$f":"B24/B13","v":{"v":0,"d":"0%"}},{"$f":"C24/B13","v":{"v":0.5,"d":"50%"}},{"$f":"D24/B13","v":{"v":0.5,"d":"50%"}},{"$f":"E24/C13","v":{"v":0,"d":"0%"}},{"$f":"F24/C13","v":{"v":0.5,"d":"50%"}},{"$f":"G24/C13","v":{"v":0.5,"d":"50%"}},{"$f":"H24/D13","v":{"v":0.2,"d":"20%"}},{"$f":"I24/D13","v":{"v":0.4,"d":"40%"}},{"$f":"J24/D13","v":{"v":0.4,"d":"40%"}},{"$f":"K24/E13","v":{"v":0.2222222222222222,"d":"22%"}},{"$f":"L24/E13","v":{"v":0.7777777777777778,"d":"78%"}},{"$f":"M24/E13","v":{"v":0,"d":"0%"}},{"$f":"N24/F13","v":{"v":0.3333333333333333,"d":"33%"}},{"$f":"O24/F13","v":{"v":0.3333333333333333,"d":"33%"}},{"$f":"P24/F13","v":{"v":0.3333333333333333,"d":"33%"}}]
["SMEs and start-ups support",{"$f":"O4","v":1},{"$f":"P4","v":1},5,{"$f":"O5","v":1},{"$f":"P5","v":0},4,{"$f":"O6","v":0},{"$f":"P6","v":1},4,{"$f":"O7","v":1},{"$f":"P7","v":5},3,{"$f":"O8","v":1},{"$f":"P8","v":1},2,"SMEs and start-ups support",{"v":0.14285714285714285,"d":"14%"},{"v":0.14285714285714285,"d":"14%"},{"$f":"D25/B14","v":{"v":0.7142857142857143,"d":"71%"}},{"$f":"E25/C14","v":{"v":0.2,"d":"20%"}},{"$f":"F25/C14","v":{"v":0,"d":"0%"}},{"$f":"G25/C14","v":{"v":0.8,"d":"80%"}},{"$f":"H25/D14","v":{"v":0,"d":"0%"}},{"$f":"I25/D14","v":{"v":0.2,"d":"20%"}},{"$f":"J25/D14","v":{"v":0.8,"d":"80%"}},{"$f":"K25/E14","v":{"v":0.1111111111111111,"d":"11%"}},{"$f":"L25/E14","v":{"v":0.5555555555555556,"d":"56%"}},{"$f":"M25/E14","v":{"v":0.3333333333333333,"d":"33%"}},{"$f":"N25/F14","v":{"v":0.25,"d":"25%"}},{"$f":"O25/F14","v":{"v":0.25,"d":"25%"}},{"$f":"P25/F14","v":{"v":0.5,"d":"50%"}}]
["Fortification programmes",{"$f":"W4","v":2},{"$f":"X4","v":3},{"$f":"Y4","v":3},{"$f":"W5","v":0},{"$f":"X5","v":0},3,{"$f":"W6","v":0},{"$f":"X6","v":0},0,{"$f":"W7","v":1},{"$f":"X7","v":1},2,{"$f":"W8","v":0},{"$f":"X8","v":2},0,"Fortification programmes",{"v":0.25,"d":"25%"},{"v":0.375,"d":"38%"},{"v":0.375,"d":"38%"},{"v":0,"d":"0%"},{"$f":"F26/C15","v":{"v":0,"d":"0%"}},{"v":1,"d":"100%"},{"v":0,"d":"0%"},{"v":0,"d":"0%"},{"v":0,"d":"0%"},{"v":0.25,"d":"25%"},{"v":0.25,"d":"25%"},{"v":0.5,"d":"50%"},{"v":0,"d":"0%"},{"v":1,"d":"100%"},{"v":0,"d":"0%"}]
["Social protection mechanism",{"$f":"AE4","v":4},{"$f":"AF4","v":4},0,{"$f":"AE5","v":0},{"$f":"AF5","v":0},2,{"$f":"AE6","v":0},{"$f":"AF6","v":0},2,{"$f":"AE7","v":1},{"$f":"AF7","v":4},1,{"$f":"AE8","v":0},{"$f":"AF8","v":0},0,"Social protection mechanism",{"v":0.5,"d":"50%"},{"v":0.5,"d":"50%"},{"v":0,"d":"0%"},{"v":0,"d":"0%"},{"v":0,"d":"0%"},{"$f":"G27/C16","v":{"v":1,"d":"100%"}},{"v":0,"d":"0%"},{"v":0,"d":"0%"},{"v":1,"d":"100%"},{"v":0.16666666666666666,"d":"17%"},{"v":0.6666666666666666,"d":"67%"},{"v":0.16666666666666666,"d":"17%"},{"v":0,"d":"0%"},{"v":0,"d":"0%"},{"v":0,"d":"0%"}]
["Employment generation in rural economies",{"$f":"AM4","v":0},{"$f":"AN4","v":3},3,{"$f":"AM5","v":0},{"$f":"AN5","v":0},2,{"$f":"AM6","v":0},{"$f":"AN6","v":1},1,{"$f":"AM7","v":1},{"$f":"AN7","v":4},3,{"$f":"AM8","v":0},{"$f":"AN8","v":1},1,"Employment generation in rural economies",{"v":0,"d":"0%"},{"v":0.5,"d":"50%"},{"v":0.5,"d":"50%"},{"v":0,"d":"0%"},{"v":0,"d":"0%"},{"v":1,"d":"100%"},{"v":0,"d":"0%"},{"v":0.5,"d":"50%"},{"v":0.5,"d":"50%"},{"v":0.125,"d":"13%"},{"v":0.5,"d":"50%"},{"v":0.375,"d":"38%"},{"v":0,"d":"0%"},{"v":0.5,"d":"50%"},{"v":0.5,"d":"50%"}]
["Packaging innovation",{"$f":"AU4","v":0},{"$f":"AV4","v":1},0,{"$f":"AU5","v":0},{"$f":"AV5","v":0},0,{"$f":"AU6","v":1},{"$f":"AV6","v":5},2,{"$f":"AU7","v":0},{"$f":"AV7","v":0},0,{"$f":"AU8","v":0},{"$f":"AV8","v":0},0,"Packaging innovation",{"v":0,"d":"0%"},{"v":1,"d":"100%"},{"v":0,"d":"0%"},{"v":0,"d":"0%"},{"v":0,"d":"0%"},{"v":0,"d":"0%"},{"v":0.125,"d":"13%"},{"v":0.625,"d":"63%"},{"v":0.25,"d":"25%"},{"v":0,"d":"0%"},{"v":0,"d":"0%"},{"v":0,"d":"0%"},{"v":0,"d":"0%"},{"v":0,"d":"0%"},{"v":0,"d":"0%"}]

{"sheet":"Loss waste","index":5,"n_rows":23,"n_cols":32,"rows_kept":23,"merged":[[0,1,0,8],[0,9,0,16],[0,17,0,24],[1,1,1,5],[1,6,1,8],[1,9,1,13],[1,14,1,16],[1,17,1,21],[1,22,1,24],[10,1,10,5],[10,6,10,10],[10,12,10,16],[10,18,10,22],[17,1,17,16],[17,17,17,31],[18,1,18,3],[18,4,18,6],[18,7,18,9],[18,10,18,12],[18,13,18,15],[18,17,18,19],[18,20,18,22],[18,23,18,25],[18,26,18,28],[18,29,18,31]]}
[null,"Prevention through infrastructure and coordination",{"$nulls":7},"Exchange of best practices",{"$nulls":7},"Regulation framework at retail level"]
[null,"Effect",{"$nulls":4},"Effectiveness",null,null,"Effect",{"$nulls":4},"Effectiveness",null,null,"Effect",{"$nulls":4},"Effectiveness"]
[null,"Positive","Neutral","Negative","I don't know","Not applicable","Very effective","Effective","Somewhat effective","Positive","Neutral","Negative","I don't know","Not applicable","Very effective","Effective","Somewhat effective","Positive","Neutral","Negative","I don't know","Not applicable","Very effective","Effective","Somewhat effective"]
["Undernutrition",{"$f":"COUNTIF(FSC!IC2:IC10,\"Positive\")","v":5},{"$f":"COUNTIF(FSC!IC2:IC10,\"Neutral\")","v":1},{"$f":"COUNTIF(FSC!IC2:IC10,\"Negative\")","v":0},{"$f":"COUNTIF(FSC!IC2:IC10,\"I don't know\")","v":2},{"$f":"COUNTIF(FSC!IC2:IC10,\"Not applicable\")","v":1},{"$f":"COUNTIF(FSC!IH2:IH10,\"Very effective\")","v":1},{"$f":"COUNTIF(FSC!IH2:IH10,\"Effective\")","v":2},{"$f":"COUNTIF(FSC!IH2:IH10,\"Somewhat effective\")","v":2},{"$f":"COUNTIF(FSC!IN2:IN10,\"Positive\")","v":2},{"$f":"COUNTIF(FSC!IN2:IN10,\"Neutral\")","v":2},{"$f":"COUNTIF(FSC!IN2:IN10,\"Negative\")","v":0},{"$f":"COUNTIF(FSC!IN2:IN10,\"I don't know\")","v":2},{"$f":"COUNTIF(FSC!IN2:IN10,\"Not applicable\")","v":3},{"$f":"COUNTIF(FSC!IS2:IS10,\"Very effective\")","v":0},{"$f":"COUNTIF(FSC!IS2:IS10,\"Effective\")","v":0},{"$f":"COUNTIF(FSC!IS2:IS10,\"Somewhat effective\")","v":2},{"$f":"COUNTIF(FSC!IY2:IY10,\"Positive\")","v":3},{"$f":"COUNTIF(FSC!IY2:IY10,\"Neutral\")","v":3},{"$f":"COUNTIF(FSC!IY2:IY10,\"Negative\")","v":0},{"$f":"COUNTIF(FSC!IY2:IY10,\"I don't know\")","v":2},{"$f":"COUNTIF(FSC!IY2:IY10,\"Not applicable\")","v":1},{"$f":"COUNTIF(FSC!JD2:JD10,\"Very effective\")","v":1},{"$f":"COUNTIF(FSC!JD2:JD10,\"Effective\")","v":1},{"$f":"COUNTIF(FSC!JD2:JD10,\"Somewhat effective\")","v":1}]
["Overnutrition",{"$f":"COUNTIF(FSC!ID2:ID10,\"Positive\")","v":0},{"$f":"COUNTIF(FSC!ID2:ID10,\"Neutral\")","v":5},{"$f":"COUNTIF(FSC!ID2:ID10,\"Negative\")","v":0},{"$f":"COUNTIF(FSC!ID2:ID10,\"I don't know\")","v":2},{"$f":"COUNTIF(FSC!ID2:ID10,\"Not applicable\")","v":2},{"$f":"COUNTIF(FSC!II2:II10,\"Very effective\")","v":0},{"$f":"COUNTIF(FSC!II2:II10,\"Effective\")","v":0},{"$f":"COUNTIF(FSC!II2:II10,\"Somewhat effective\")","v":0},{"$f":"COUNTIF(FSC!IO2:IO10,\"Positive\")","v":0},{"$f":"COUNTIF(FSC!IO2:IO10,\"Neutral\")","v":4},{"$f":"COUNTIF(FSC!IO2:IO10,\"Negative\")","v":0},{"$f":"COUNTIF(FSC!IO2:IO10,\"I don't know\")","v":2},{"$f":"COUNTIF(FSC!IO2:IO10,\"Not applicable\")","v":3},{"$f":"COUNTIF(FSC!IT2:IT10,\"Very effective\")","v":0},{"$f":"COUNTIF(FSC!IT2:IT10,\"Effective\")","v":0},{"$f":"COUNTIF(FSC!IT2:IT10,\"Somewhat effective\")","v":0},{"$f":"COUNTIF(FSC!IZ2:IZ10,\"Positive\")","v":0},{"$f":"COUNTIF(FSC!IZ2:IZ10,\"Neutral\")","v":5},{"$f":"COUNTIF(FSC!IZ2:IZ10,\"Negative\")","v":0},{"$f":"COUNTIF(FSC!IZ2:IZ10,\"I don't know\")","v":2},{"$f":"COUNTIF(FSC!IZ2:IZ10,\"Not applicable\")","v":2},{"$f":"COUNTIF(FSC!JE2:JE10,\"Very effective\")","v":0},{"$f":"COUNTIF(FSC!JE2:JE10,\"Effective\")","v":0},{"$f":"COUNTIF(FSC!JE2:JE10,\"Somewhat effective\")","v":0}]
["Environmental sustainability",{"$f":"COUNTIF(FSC!IE2:IE10,\"Positive\")","v":9},{"$f":"COUNTIF(FSC!IE2:IE10,\"Neutral\")","v":0},{"$f":"COUNTIF(FSC!IE2:IE10,\"Negative\")","v":0},{"$f":"COUNTIF(FSC!IE2:IE10,\"I don't know\")","v":0},{"$f":"COUNTIF(FSC!IE2:IE10,\"Not applicable\")","v":0},{"$f":"COUNTIF(FSC!IJ2:IJ10,\"Very effective\")","v":3},{"$f":"COUNTIF(FSC!IJ2:IJ10,\"Effective\")","v":5},{"$f":"COUNTIF(FSC!IJ2:IJ10,\"Somewhat effective\")","v":1},{"$f":"COUNTIF(FSC!IP2:IP10,\"Positive\")","v":7},{"$f":"COUNTIF(FSC!IP2:IP10,\"Neutral\")","v":1},{"$f":"COUNTIF(FSC!IP2:IP10,\"Negative\")","v":0},{"$f":"COUNTIF(FSC!IP2:IP10,\"I don't know\")","v":1},{"$f":"COUNTIF(FSC!IP2:IP10,\"Not applicable\")","v":0},{"$f":"COUNTIF(FSC!IU2:IU10,\"Very effective\")","v":0},{"$f":"COUNTIF(FSC!IU2:IU10,\"Effective\")","v":2},{"$f":"COUNTIF(FSC!IU2:IU10,\"Somewhat effective\")","v":5},{"$f":"COUNTIF(FSC!JA2:JA10,\"Positive\")","v":9},{"$f":"COUNTIF(FSC!JA2:JA10,\"Neutral\")","v":0},{"$f":"COUNTIF(FSC!JA2:JA10,\"Negative\")","v":0},{"$f":"COUNTIF(FSC!JA2:JA10,\"I don't know\")","v":0},{"$f":"COUNTIF(FSC!JA2:JA10,\"Not applicable\")","v":0},{"$f":"COUNTIF(FSC!JF2:JF10,\"Very effective\")","v":4},{"$f":"COUNTIF(FSC!JF2:JF10,\"Effective\")","v":2},{"$f":"COUNTIF(FSC!JF2:JF10,\"Somewhat effective\")","v":3}]
["Socio-economic inequalities",{"$f":"COUNTIF(FSC!IF2:IF10,\"Positive\")","v":4},{"$f":"COUNTIF(FSC!IF2:IF10,\"Neutral\")","v":4},{"$f":"COUNTIF(FSC!IF2:IF10,\"Negative\")","v":0},{"$f":"COUNTIF(FSC!IF2:IF10,\"I don't know\")","v":0},{"$f":"COUNTIF(FSC!IF2:IF10,\"Not applicable\")","v":1},{"$f":"COUNTIF(FSC!IK2:IK10,\"Very effective\")","v":1},{"$f":"COUNTIF(FSC!IK2:IK10,\"Effective\")","v":1},{"$f":"COUNTIF(FSC!IK2:IK10,\"Somewhat effective\")","v":2},{"$f":"COUNTIF(FSC!IQ2:IQ10,\"Positive\")","v":2},{"$f":"COUNTIF(FSC!IQ2:IQ10,\"Neutral\")","v":4},{"$f":"COUNTIF(FSC!IQ2:IQ10,\"Negative\")","v":0},{"$f":"COUNTIF(FSC!IQ2:IQ10,\"I don't know\")","v":2},{"$f":"COUNTIF(FSC!IQ2:IQ10,\"Not applicable\")","v":1},{"$f":"COUNTIF(FSC!IV2:IV10,\"Very effective\")","v":0},{"$f":"COUNTIF(FSC!IV2:IV10,\"Effective\")","v":1},{"$f":"COUNTIF(FSC!IV2:IV10,\"Somewhat effective\")","v":1},{"$f":"COUNTIF(FSC!JB2:JB10,\"Positive\")","v":3},{"$f":"COUNTIF(FSC!JB2:JB10,\"Neutral\")","v":2},{"$f":"COUNTIF(FSC!JB2:JB10,\"Negative\")","v":1},{"$f":"COUNTIF(FSC!JB2:JB10,\"I don't know\")","v":2},{"$f":"COUNTIF(FSC!JB2:JB10,\"Not applicable\")","v":1},{"$f":"COUNTIF(FSC!JG2:JG10,\"Very effective\")","v":0},{"$f":"COUNTIF(FSC!JG2:JG10,\"Effective\")","v":1},{"$f":"COUNTIF(FSC!JG2:JG10,\"Somewhat effective\")","v":2}]
["Women's empowerment",{"$f":"COUNTIF(FSC!IG2:IG10,\"Positive\")","v":6},{"$f":"COUNTIF(FSC!IG2:IG10,\"Neutral\")","v":1},{"$f":"COUNTIF(FSC!IG2:IG10,\"Negative\")","v":0},{"$f":"COUNTIF(FSC!IG2:IG10,\"I don't know\")","v":2},{"$f":"COUNTIF(FSC!IG2:IG10,\"Not applicable\")","v":0},{"$f":"COUNTIF(FSC!IL2:IL10,\"Very effective\")","v":1},{"$f":"COUNTIF(FSC!IL2:IL10,\"Effective\")","v":3},{"$f":"COUNTIF(FSC!IL2:IL10,\"Somewhat effective\")","v":2},{"$f":"COUNTIF(FSC!IR2:IR10,\"Positive\")","v":0},{"$f":"COUNTIF(FSC!IR2:IR10,\"Neutral\")","v":4},{"$f":"COUNTIF(FSC!IR2:IR10,\"Negative\")","v":0},{"$f":"COUNTIF(FSC!IR2:IR10,\"I don't know\")","v":2},{"$f":"COUNTIF(FSC!IR2:IR10,\"Not applicable\")","v":3},{"$f":"COUNTIF(FSC!IW2:IW10,\"Very effective\")","v":0},{"$f":"COUNTIF(FSC!IW2:IW10,\"Effective\")","v":0},{"$f":"COUNTIF(FSC!IW2:IW10,\"Somewhat effective\")","v":0},{"$f":"COUNTIF(FSC!JC2:JC10,\"Positive\")","v":0},{"$f":"COUNTIF(FSC!JC2:JC10,\"Neutral\")","v":3},{"$f":"COUNTIF(FSC!JC2:JC10,\"Negative\")","v":0},{"$f":"COUNTIF(FSC!JC2:JC10,\"I don't know\")","v":3},{"$f":"COUNTIF(FSC!JC2:JC10,\"Not applicable\")","v":3},{"$f":"COUNTIF(FSC!JH2:JH10,\"Very effective\")","v":0},{"$f":"COUNTIF(FSC!JH2:JH10,\"Effective\")","v":0},{"$f":"COUNTIF(FSC!JH2:JH10,\"Somewhat effective\")","v":0}]
[]
[]
[null,"Positive effect",{"$nulls":4},"Negative effect",{"$nulls":5},"Positive effect",{"$nulls":5},"Negative effect"]
[null,"Undernutrition","Overnutrition","Environmental sustainability","Socio-economic inequalities","Women's empowerment","Undernutrition","Overnutrition","Environmental sustainability","Socio-economic inequalities","Women's empowerment",null,"Undernutrition","Overnutrition","Environmental sustainability","Socio-economic inequalities","Women's empowerment",null,"Undernutrition","Overnutrition","Environmental sustainability","Socio-economic inequalities","Women's empowerment"]
["Prevention through infrastructure and coordination",{"$f":"B4","v":5},{"$f":"B5","v":0},{"$f":"B6","v":9},{"$f":"B7","v":4},{"$f":"B8","v":6},{"$f":"D4","v":0},{"$f":"D5","v":0},{"$f":"D6","v":0},{"$f":"D7","v":0},{"$f":"D8","v":0},"Prevention through infrastructure and coordination",{"$f":"B13/'Initial info'!B2","v":{"v":0.5555555555555556,"d":"56%"}},{"$f":"C13/'Initial info'!B2","v":{"v":0,"d":"0%"}},{"$f":"D13/'Initial info'!B2","v":{"v":1,"d":"100%"}},{"$f":"E13/'Initial info'!B2","v":{"v":0.4444444444444444,"d":"44%"}},{"$f":"F13/'Initial info'!B2","v":{"v":0.6666666666666666,"d":"67%"}},"Prevention through infrastructure and coordination",{"$f":"G13/'Initial info'!B2","v":{"v":0,"d":"0%"}},{"$f":"H13/'Initial info'!B2","v":{"v":0,"d":"0%"}},{"$f":"I13/'Initial info'!B2","v":{"v":0,"d":"0%"}},{"$f":"J13/'Initial info'!B2","v":{"v":0,"d":"0%"}},{"$f":"K13/'Initial info'!B2","v":{"v":0,"d":"0%"}}]
["Exchange of best practices",{"$f":"J4","v":2},{"$f":"J5","v":0},{"$f":"J6","v":7},{"$f":"J7","v":2},{"$f":"J8","v":0},{"$f":"L4","v":0},{"$f":"L5","v":0},{"$f":"L6","v":0},{"$f":"L7","v":0},{"$f":"L8","v":0},"Exchange of best practices",{"$f":"B14/'Initial info'!B2","v":{"v":0.2222222222222222,"d":"22%"}},{"$f":"C14/'Initial info'!B2","v":{"v":0,"d":"0%"}},{"$f":"D14/'Initial info'!B2","v":{"v":0.7777777777777778,"d":"78%"}},{"$f":"E14/'Initial info'!B2","v":{"v":0.2222222222222222,"d":"22%"}},{"$f":"F14/'Initial info'!B2","v":{"v":0,"d":"0%"}},"Exchange of best practices",{"$f":"G14/'Initial info'!B2","v":{"v":0,"d":"0%"}},{"$f":"H14/'Initial info'!B2","v":{"v":0,"d":"0%"}},{"$f":"I14/'Initial info'!B2","v":{"v":0,"d":"0%"}},{"$f":"J14/'Initial info'!B2","v":{"v":0,"d":"0%"}},{"$f":"K14/'Initial info'!B2","v":{"v":0,"d":"0%"}}]
["Regulation framework at retail level",{"$f":"R4","v":3},{"$f":"R5","v":0},{"$f":"R6","v":9},{"$f":"R7","v":3},{"$f":"R8","v":0},{"$f":"T4","v":0},{"$f":"T5","v":0},{"$f":"T6","v":0},{"$f":"T7","v":1},{"$f":"T8","v":0},"Regulation framework at retail level",{"$f":"B15/'Initial info'!B2","v":{"v":0.3333333333333333,"d":"33%"}},{"$f":"C15/'Initial info'!B2","v":{"v":0,"d":"0%"}},{"$f":"D15/'Initial info'!B2","v":{"v":1,"d":"100%"}},{"$f":"E15/'Initial info'!B2","v":{"v":0.3333333333333333,"d":"33%"}},{"$f":"F15/'Initial info'!B2","v":{"v":0,"d":"0%"}},"Regulation framework at retail level",{"$f":"G15/'Initial info'!B2","v":{"v":0,"d":"0%"}},{"$f":"H15/'Initial info'!B2","v":{"v":0,"d":"0%"}},{"$f":"I15/'Initial info'!B2","v":{"v":0,"d":"0%"}},{"$f":"J15/'Initial info'!B2","v":{"v":0.1111111111111111,"d":"11%"}},{"$f":"K15/'Initial info'!B2","v":{"v":0,"d":"0%"}}]
[]
[]
[null,"Effectiveness levels",{"$nulls":15},"Effectiveness levels - %"]
[null,"Undernutrition",null,null,"Overnutrition",null,null,"Environmental sustainability",null,null,"Socio-economic inequalities",null,null,"Women's empowerment",{"$nulls":3},"Undernutrition",null,null,"Overnutrition",null,null,"Environmental sustainability",null,null,"Socio-economic inequalities",null,null,"Women's empowerment"]
[null,"Very effective","Effective","Somewhat effective","Very effective","Effective","Somewhat effective","Very effective","Effective","Somewhat effective","Very effective","Effective","Somewhat effective","Very effective","Effective","Somewhat effective",null,"Very effective","Effective","Somewhat effective","Very effective","Effective","Somewhat effective","Very effective","Effective","Somewhat effective","Very effective","Effective","Somewhat effective","Very effective","Effective","Somewhat effective"]
["Prevention through infrastructure and coordination",{"$f":"G4","v":1},{"$f":"H4","v":2},2,{"$f":"G5","v":0},{"$f":"H5","v":0},0,{"$f":"G6","v":3},{"$f":"H6","v":5},1,{"$f":"G7","v":1},{"$f":"H7","v":1},2,{"$f":"G8","v":1},{"$f":"H8","v":3},2,"Prevention through infrastructure and coordination",{"$f":"B21/B13","v":{"v":0.2,"d":"20%"}},{"$f":"C21/B13","v":{"v":0.4,"d":"40%"}},{"$f":"D21/B13","v":{"v":0.4,"d":"40%"}},{"v":0,"d":"0%"},{"v":0,"d":"0%"},{"v":0,"d":"0%"},{"$f":"H21/D13","v":{"v":0.3333333333333333,"d":"33%"}},{"$f":"I21/D13","v":{"v":0.5555555555555556,"d":"56%"}},{"$f":"J21/D13","v":{"v":0.1111111111111111,"d":"11%"}},{"$f":"K21/E13","v":{"v":0.25,"d":"25%"}},{"$f":"L21/E13","v":{"v":0.25,"d":"25%"}},{"$f":"M21/E13","v":{"v":0.5,"d":"50%"}},{"$f":"N21/F13","v":{"v":0.16666666666666666,"d":"17%"}},{"$f":"O21/F13","v":{"v":0.5,"d":"50%"}},{"$f":"P21/F13","v":{"v":0.3333333333333333,"d":"33%"}}]
["Exchange of best practices",{"$f":"O4","v":0},{"$f":"P4","v":0},2,{"$f":"O5","v":0},{"$f":"P5","v":0},0,{"$f":"O6","v":0},{"$f":"P6","v":2},5,{"$f":"O7","v":0},{"$f":"P7","v":1},1,{"$f":"O8","v":0},{"$f":"P8","v":0},0,"Exchange of best practices",{"$f":"B22/B14","v":{"v":0,"d":"0%"}},{"$f":"C22/B14","v":{"v":0,"d":"0%"}},{"$f":"D22/B14","v":{"v":1,"d":"100%"}},{"v":0,"d":"0%"},{"v":0,"d":"0%"},{"v":0,"d":"0%"},{"$f":"H22/D14","v":{"v":0,"d":"0%"}},{"$f":"I22/D14","v":{"v":0.2857142857142857,"d":"29%"}},{"$f":"J22/D14","v":{"v":0.7142857142857143,"d":"71%"}},{"$f":"K22/E14","v":{"v":0,"d":"0%"}},{"$f":"L22/E14","v":{"v":0.5,"d":"50%"}},{"$f":"M22/E14","v":{"v":0.5,"d":"50%"}},{"v":0,"d":"0%"},{"v":0,"d":"0%"},{"v":0,"d":"0%"}]
["Regulation framework at retail level",{"$f":"W4","v":1},{"$f":"X4","v":1},1,{"$f":"W5","v":0},{"$f":"X5","v":0},0,{"$f":"W6","v":4},{"$f":"X6","v":2},3,{"$f":"W7","v":0},{"$f":"X7","v":1},2,{"$f":"W8","v":0},{"$f":"X8","v":0},0,"Regulation framework at retail level",{"$f":"B23/B15","v":{"v":0.3333333333333333,"d":"33%"}},{"v":0.3333333333333333,"d":"33%"},{"v":0.3333333333333333,"d":"33%"},{"v":0,"d":"0%"},{"v":0,"d":"0%"},{"v":0,"d":"0%"},{"v":0.4444444444444444,"d":"44%"},{"v":0.2222222222222222,"d":"22%"},{"v":0.3333333333333333,"d":"33%"},{"v":0,"d":"0%"},{"v":0.3333333333333333,"d":"33%"},{"v":0.6666666666666666,"d":"67%"},{"v":0,"d":"0%"},{"v":0,"d":"0%"},{"v":0,"d":"0%"}]

{"sheet":"Trade","index":6,"n_rows":23,"n_cols":32,"rows_kept":23,"merged":[[0,1,0,8],[0,9,0,16],[0,17,0,24],[1,1,1,5],[1,6,1,8],[1,9,1,13],[1,14,1,16],[1,17,1,21],[1,22,1,24],[10,1,10,5],[10,6,10,10],[10,12,10,16],[10,18,10,22],[17,1,17,16],[17,17,17,31],[18,1,18,3],[18,4,18,6],[18,7,18,9],[18,10,18,12],[18,13,18,15],[18,17,18,19],[18,20,18,22],[18,23,18,25],[18,26,18,28],[18,29,18,31]]}
[null,"TIA risk impact assessment",{"$nulls":7},"Use of resources",{"$nulls":7},"Regulatory capacity protection"]
[null,"Effect",{"$nulls":4},"Effectiveness",null,null,"Effect",{"$nulls":4},"Effectiveness",null,null,"Effect",{"$nulls":4},"Effectiveness"]
[null,"Positive","Neutral","Negative","I don't know","Not applicable","Very effective","Effective","Somewhat effective","Positive","Neutral","Negative","I don't know","Not applicable","Very effective","Effective","Somewhat effective","Positive","Neutral","Negative","I don't know","Not applicable","Very effective","Effective","Somewhat effective"]
["Undernutrition",{"$f":"COUNTIF(FSC!JK2:JK10,\"Positive\")","v":5},{"$f":"COUNTIF(FSC!JK2:JK10,\"Neutral\")","v":2},{"$f":"COUNTIF(FSC!JK2:JK10,\"Negative\")","v":0},{"$f":"COUNTIF(FSC!JK2:JK10,\"I don't know\")","v":1},{"$f":"COUNTIF(FSC!JK2:JK10,\"Not applicable\")","v":1},{"$f":"COUNTIF(FSC!JP2:JP10,\"Very effective\")","v":0},{"$f":"COUNTIF(FSC!JP2:JP10,\"Effective\")","v":3},{"$f":"COUNTIF(FSC!JP2:JP10,\"Somewhat effective\")","v":2},{"$f":"COUNTIF(FSC!JV2:JV10,\"Positive\")","v":4},{"$f":"COUNTIF(FSC!JV2:JV10,\"Neutral\")","v":2},{"$f":"COUNTIF(FSC!JV2:JV10,\"Negative\")","v":0},{"$f":"COUNTIF(FSC!JV2:JV10,\"I don't know\")","v":2},{"$f":"COUNTIF(FSC!JV2:JV10,\"Not applicable\")","v":1},{"$f":"COUNTIF(FSC!KA2:KA10,\"Very effective\")","v":0},{"$f":"COUNTIF(FSC!KA2:KA10,\"Effective\")","v":2},{"$f":"COUNTIF(FSC!KA2:KA10,\"Somewhat effective\")","v":2},{"$f":"COUNTIF(FSC!KG2:KG10,\"Positive\")","v":6},{"$f":"COUNTIF(FSC!KG2:KG10,\"Neutral\")","v":2},{"$f":"COUNTIF(FSC!KG2:KG10,\"Negative\")","v":0},{"$f":"COUNTIF(FSC!KG2:KG10,\"I don't know\")","v":1},{"$f":"COUNTIF(FSC!KG2:KG10,\"Not applicable\")","v":0},{"$f":"COUNTIF(FSC!KL2:KL10,\"Very effective\")","v":0},{"$f":"COUNTIF(FSC!KL2:KL10,\"Effective\")","v":3},{"$f":"COUNTIF(FSC!KL2:KL10,\"Somewhat effective\")","v":3}]
["Overnutrition",{"$f":"COUNTIF(FSC!JL2:JL10,\"Positive\")","v":5},{"$f":"COUNTIF(FSC!JL2:JL10,\"Neutral\")","v":2},{"$f":"COUNTIF(FSC!JL2:JL10,\"Negative\")","v":0},{"$f":"COUNTIF(FSC!JL2:JL10,\"I don't know\")","v":1},{"$f":"COUNTIF(FSC!JL2:JL10,\"Not applicable\")","v":1},{"$f":"COUNTIF(FSC!JQ2:JQ10,\"Very effective\")","v":0},{"$f":"COUNTIF(FSC!JQ2:JQ10,\"Effective\")","v":4},{"$f":"COUNTIF(FSC!JQ2:JQ10,\"Somewhat effective\")","v":1},{"$f":"COUNTIF(FSC!JW2:JW10,\"Positive\")","v":4},{"$f":"COUNTIF(FSC!JW2:JW10,\"Neutral\")","v":2},{"$f":"COUNTIF(FSC!JW2:JW10,\"Negative\")","v":0},{"$f":"COUNTIF(FSC!JW2:JW10,\"I don't know\")","v":2},{"$f":"COUNTIF(FSC!JW2:JW10,\"Not applicable\")","v":1},{"$f":"COUNTIF(FSC!KB2:KB10,\"Very effective\")","v":1},{"$f":"COUNTIF(FSC!KB2:KB10,\"Effective\")","v":1},{"$f":"COUNTIF(FSC!KB2:KB10,\"Somewhat effective\")","v":2},{"$f":"COUNTIF(FSC!KH2:KH10,\"Positive\")","v":9},{"$f":"COUNTIF(FSC!KH2:KH10,\"Neutral\")","v":0},{"$f":"COUNTIF(FSC!KH2:KH10,\"Negative\")","v":0},{"$f":"COUNTIF(FSC!KH2:KH10,\"I don't know\")","v":0},{"$f":"COUNTIF(FSC!KH2:KH10,\"Not applicable\")","v":0},{"$f":"COUNTIF(FSC!KM2:KM10,\"Very effective\")","v":3},{"$f":"COUNTIF(FSC!KM2:KM10,\"Effective\")","v":2},{"$f":"COUNTIF(FSC!KM2:KM10,\"Somewhat effective\")","v":4}]
["Environmental sustainability",{"$f":"COUNTIF(FSC!JM2:JM10,\"Positive\")","v":6},{"$f":"COUNTIF(FSC!JM2:JM10,\"Neutral\")","v":1},{"$f":"COUNTIF(FSC!JM2:JM10,\"Negative\")","v":0},{"$f":"COUNTIF(FSC!JM2:JM10,\"I don't know\")","v":2},{"$f":"COUNTIF(FSC!JM2:JM10,\"Not applicable\")","v":0},{"$f":"COUNTIF(FSC!JR2:JR10,\"Very effective\")","v":0},{"$f":"COUNTIF(FSC!JR2:JR10,\"Effective\")","v":5},{"$f":"COUNTIF(FSC!JR2:JR10,\"Somewhat effective\")","v":1},{"$f":"COUNTIF(FSC!JX2:JX10,\"Positive\")","v":8},{"$f":"COUNTIF(FSC!JX2:JX10,\"Neutral\")","v":1},{"$f":"COUNTIF(FSC!JX2:JX10,\"Negative\")","v":0},{"$f":"COUNTIF(FSC!JX2:JX10,\"I don't know\")","v":0},{"$f":"COUNTIF(FSC!JX2:JX10,\"Not applicable\")","v":0},{"$f":"COUNTIF(FSC!KC2:KC10,\"Very effective\")","v":2},{"$f":"COUNTIF(FSC!KC2:KC10,\"Effective\")","v":1},{"$f":"COUNTIF(FSC!KC2:KC10,\"Somewhat effective\")","v":5},{"$f":"COUNTIF(FSC!KI2:KI10,\"Positive\")","v":2},{"$f":"COUNTIF(FSC!KI2:KI10,\"Neutral\")","v":3},{"$f":"COUNTIF(FSC!KI2:KI10,\"Negative\")","v":0},{"$f":"COUNTIF(FSC!KI2:KI10,\"I don't know\")","v":3},{"$f":"COUNTIF(FSC!KI2:KI10,\"Not applicable\")","v":1},{"$f":"COUNTIF(FSC!KN2:KN10,\"Very effective\")","v":0},{"$f":"COUNTIF(FSC!KN2:KN10,\"Effective\")","v":0},{"$f":"COUNTIF(FSC!KN2:KN10,\"Somewhat effective\")","v":2}]
["Socio-economic inequalities",{"$f":"COUNTIF(FSC!JN2:JN10,\"Positive\")","v":6},{"$f":"COUNTIF(FSC!JN2:JN10,\"Neutral\")","v":1},{"$f":"COUNTIF(FSC!JN2:JN10,\"Negative\")","v":0},{"$f":"COUNTIF(FSC!JN2:JN10,\"I don't know\")","v":2},{"$f":"COUNTIF(FSC!JN2:JN10,\"Not applicable\")","v":0},{"$f":"COUNTIF(FSC!JS2:JS10,\"Very effective\")","v":0},{"$f":"COUNTIF(FSC!JS2:JS10,\"Effective\")","v":4},{"$f":"COUNTIF(FSC!JS2:JS10,\"Somewhat effective\")","v":2},{"$f":"COUNTIF(FSC!JY2:JY10,\"Positive\")","v":5},{"$f":"COUNTIF(FSC!JY2:JY10,\"Neutral\")","v":2},{"$f":"COUNTIF(FSC!JY2:JY10,\"Negative\")","v":1},{"$f":"COUNTIF(FSC!JY2:JY10,\"I don't know\")","v":1},{"$f":"COUNTIF(FSC!JY2:JY10,\"Not applicable\")","v":0},{"$f":"COUNTIF(FSC!KD2:KD10,\"Very effective\")","v":0},{"$f":"COUNTIF(FSC!KD2:KD10,\"Effective\")","v":1},{"$f":"COUNTIF(FSC!KD2:KD10,\"Somewhat effective\")","v":4},{"$f":"COUNTIF(FSC!KJ2:KJ10,\"Positive\")","v":6},{"$f":"COUNTIF(FSC!KJ2:KJ10,\"Neutral\")","v":1},{"$f":"COUNTIF(FSC!KJ2:KJ10,\"Negative\")","v":0},{"$f":"COUNTIF(FSC!KJ2:KJ10,\"I don't know\")","v":1},{"$f":"COUNTIF(FSC!KJ2:KJ10,\"Not applicable\")","v":1},{"$f":"COUNTIF(FSC!KO2:KO10,\"Very effective\")","v":1},{"$f":"COUNTIF(FSC!KO2:KO10,\"Effective\")","v":3},{"$f":"COUNTIF(FSC!KO2:KO10,\"Somewhat effective\")","v":2}]
["Women's empowerment",{"$f":"COUNTIF(FSC!JO2:JO10,\"Positive\")","v":3},{"$f":"COUNTIF(FSC!JO2:JO10,\"Neutral\")","v":2},{"$f":"COUNTIF(FSC!JO2:JO10,\"Negative\")","v":0},{"$f":"COUNTIF(FSC!JO2:JO10,\"I don't know\")","v":3},{"$f":"COUNTIF(FSC!JO2:JO10,\"Not applicable\")","v":1},{"$f":"COUNTIF(FSC!JT2:JT10,\"Very effective\")","v":0},{"$f":"COUNTIF(FSC!JT2:JT10,\"Effective\")","v":1},{"$f":"COUNTIF(FSC!JT2:JT10,\"Somewhat effective\")","v":2},{"$f":"COUNTIF(FSC!JZ2:JZ10,\"Positive\")","v":1},{"$f":"COUNTIF(FSC!JZ2:JZ10,\"Neutral\")","v":3},{"$f":"COUNTIF(FSC!JZ2:JZ10,\"Negative\")","v":1},{"$f":"COUNTIF(FSC!JZ2:JZ10,\"I don't know\")","v":2},{"$f":"COUNTIF(FSC!JZ2:JZ10,\"Not applicable\")","v":2},{"$f":"COUNTIF(FSC!KE2:KE10,\"Very effective\")","v":0},{"$f":"COUNTIF(FSC!KE2:KE10,\"Effective\")","v":0},{"$f":"COUNTIF(FSC!KE2:KE10,\"Somewhat effective\")","v":1},{"$f":"COUNTIF(FSC!KK2:KK10,\"Positive\")","v":2},{"$f":"COUNTIF(FSC!KK2:KK10,\"Neutral\")","v":3},{"$f":"COUNTIF(FSC!KK2:KK10,\"Negative\")","v":0},{"$f":"COUNTIF(FSC!KK2:KK10,\"I don't know\")","v":3},{"$f":"COUNTIF(FSC!KK2:KK10,\"Not applicable\")","v":1},{"$f":"COUNTIF(FSC!KP2:KP10,\"Very effective\")","v":0},{"$f":"COUNTIF(FSC!KP2:KP10,\"Effective\")","v":1},{"$f":"COUNTIF(FSC!KP2:KP10,\"Somewhat effective\")","v":1}]
[]
[]
[null,"Positive effect",{"$nulls":4},"Negative effect",{"$nulls":5},"Positive effect",{"$nulls":5},"Negative effect"]
[null,"Undernutrition","Overnutrition","Environmental sustainability","Socio-economic inequalities","Women's empowerment","Undernutrition","Overnutrition","Environmental sustainability","Socio-economic inequalities","Women's empowerment",null,"Undernutrition","Overnutrition","Environmental sustainability","Socio-economic inequalities","Women's empowerment",null,"Undernutrition","Overnutrition","Environmental sustainability","Socio-economic inequalities","Women's empowerment"]
["TIA risk impact assessment",{"$f":"B4","v":5},{"$f":"B5","v":5},{"$f":"B6","v":6},{"$f":"B7","v":6},{"$f":"B8","v":3},{"$f":"D4","v":0},{"$f":"D5","v":0},{"$f":"D6","v":0},{"$f":"D7","v":0},{"$f":"D8","v":0},"TIA risk impact assessment",{"$f":"B13/'Initial info'!B2","v":{"v":0.5555555555555556,"d":"56%"}},{"$f":"C13/'Initial info'!B2","v":{"v":0.5555555555555556,"d":"56%"}},{"$f":"D13/'Initial info'!B2","v":{"v":0.6666666666666666,"d":"67%"}},{"$f":"E13/'Initial info'!B2","v":{"v":0.6666666666666666,"d":"67%"}},{"$f":"F13/'Initial info'!B2","v":{"v":0.3333333333333333,"d":"33%"}},"TIA risk impact assessment",{"$f":"G13/'Initial info'!B2","v":{"v":0,"d":"0%"}},{"$f":"H13/'Initial info'!B2","v":{"v":0,"d":"0%"}},{"$f":"I13/'Initial info'!B2","v":{"v":0,"d":"0%"}},{"$f":"J13/'Initial info'!B2","v":{"v":0,"d":"0%"}},{"$f":"K13/'Initial info'!B2","v":{"v":0,"d":"0%"}}]
["Use of resources",{"$f":"J4","v":4},{"$f":"J5","v":4},{"$f":"J6","v":8},{"$f":"J7","v":5},{"$f":"J8","v":1},{"$f":"L4","v":0},{"$f":"L5","v":0},{"$f":"L6","v":0},{"$f":"L7","v":1},{"$f":"L8","v":1},"Use of resources",{"$f":"B14/'Initial info'!B2","v":{"v":0.4444444444444444,"d":"44%"}},{"$f":"C14/'Initial info'!B2","v":{"v":0.4444444444444444,"d":"44%"}},{"$f":"D14/'Initial info'!B2","v":{"v":0.8888888888888888,"d":"89%"}},{"$f":"E14/'Initial info'!B2","v":{"v":0.5555555555555556,"d":"56%"}},{"$f":"F14/'Initial info'!B2","v":{"v":0.1111111111111111,"d":"11%"}},"Use of resources",{"$f":"G14/'Initial info'!B2","v":{"v":0,"d":"0%"}},{"$f":"H14/'Initial info'!B2","v":{"v":0,"d":"0%"}},{"$f":"I14/'Initial info'!B2","v":{"v":0,"d":"0%"}},{"$f":"J14/'Initial info'!B2","v":{"v":0.1111111111111111,"d":"11%"}},{"$f":"K14/'Initial info'!B2","v":{"v":0.1111111111111111,"d":"11%"}}]
["Regulatory capacity protection",{"$f":"R4","v":6},{"$f":"R5","v":9},{"$f":"R6","v":2},{"$f":"R7","v":6},{"$f":"R8","v":2},{"$f":"T4","v":0},{"$f":"T5","v":0},{"$f":"T6","v":0},{"$f":"T7","v":0},{"$f":"T8","v":0},"Regulatory capacity protection",{"$f":"B15/'Initial info'!B2","v":{"v":0.6666666666666666,"d":"67%"}},{"$f":"C15/'Initial info'!B2","v":{"v":1,"d":"100%"}},{"$f":"D15/'Initial info'!B2","v":{"v":0.2222222222222222,"d":"22%"}},{"$f":"E15/'Initial info'!B2","v":{"v":0.6666666666666666,"d":"67%"}},{"$f":"F15/'Initial info'!B2","v":{"v":0.2222222222222222,"d":"22%"}},"Regulatory capacity protection",{"$f":"G15/'Initial info'!B2","v":{"v":0,"d":"0%"}},{"$f":"H15/'Initial info'!B2","v":{"v":0,"d":"0%"}},{"$f":"I15/'Initial info'!B2","v":{"v":0,"d":"0%"}},{"$f":"J15/'Initial info'!B2","v":{"v":0,"d":"0%"}},{"$f":"K15/'Initial info'!B2","v":{"v":0,"d":"0%"}}]
[]
[]
[null,"Effectiveness levels",{"$nulls":15},"Effectiveness levels - %"]
[null,"Undernutrition",null,null,"Overnutrition",null,null,"Environmental sustainability",null,null,"Socio-economic inequalities",null,null,"Women's empowerment",{"$nulls":3},"Undernutrition",null,null,"Overnutrition",null,null,"Environmental sustainability",null,null,"Socio-economic inequalities",null,null,"Women's empowerment"]
[null,"Very effective","Effective","Somewhat effective","Very effective","Effective","Somewhat effective","Very effective","Effective","Somewhat effective","Very effective","Effective","Somewhat effective","Very effective","Effective","Somewhat effective",null,"Very effective","Effective","Somewhat effective","Very effective","Effective","Somewhat effective","Very effective","Effective","Somewhat effective","Very effective","Effective","Somewhat effective","Very effective","Effective","Somewhat effective"]
["TIA risk impact assessment",{"$f":"G4","v":0},{"$f":"H4","v":3},{"$f":"I4","v":2},{"$f":"G5","v":0},{"$f":"H5","v":4},{"$f":"I5","v":1},{"$f":"G6","v":0},{"$f":"H6","v":5},1,{"$f":"G7","v":0},{"$f":"H7","v":4},2,{"$f":"G8","v":0},{"$f":"H8","v":1},2,"TIA risk impact assessment",{"$f":"B21/B13","v":{"v":0,"d":"0%"}},{"$f":"C21/B13","v":{"v":0.6,"d":"60%"}},{"$f":"D21/B13","v":{"v":0.4,"d":"40%"}},{"$f":"E21/C13","v":{"v":0,"d":"0%"}},{"$f":"F21/C13","v":{"v":0.8,"d":"80%"}},{"$f":"G21/C13","v":{"v":0.2,"d":"20%"}},{"$f":"H21/D13","v":{"v":0,"d":"0%"}},{"$f":"I21/D13","v":{"v":0.8333333333333334,"d":"83%"}},{"$f":"J21/D13","v":{"v":0.16666666666666666,"d":"17%"}},{"$f":"K21/E13","v":{"v":0,"d":"0%"}},{"$f":"L21/E13","v":{"v":0.6666666666666666,"d":"67%"}},{"$f":"M21/E13","v":{"v":0.3333333333333333,"d":"33%"}},{"$f":"N21/F13","v":{"v":0,"d":"0%"}},{"$f":"O21/F13","v":{"v":0.3333333333333333,"d":"33%"}},{"$f":"P21/F13","v":{"v":0.6666666666666666,"d":"67%"}}]
["Use of resources",{"$f":"O4","v":0},{"$f":"P4","v":2},2,{"$f":"O5","v":1},{"$f":"P5","v":1},2,{"$f":"O6","v":2},{"$f":"P6","v":1},5,{"$f":"O7","v":0},{"$f":"P7","v":1},4,{"$f":"O8","v":0},{"$f":"P8","v":0},1,"Use of resources",{"$f":"B22/B14","v":{"v":0,"d":"0%"}},{"$f":"C22/B14","v":{"v":0.5,"d":"50%"}},{"$f":"D22/B14","v":{"v":0.5,"d":"50%"}},{"$f":"E22/C14","v":{"v":0.25,"d":"25%"}},{"$f":"F22/C14","v":{"v":0.25,"d":"25%"}},{"$f":"G22/C14","v":{"v":0.5,"d":"50%"}},{"$f":"H22/D14","v":{"v":0.25,"d":"25%"}},{"$f":"I22/D14","v":{"v":0.125,"d":"13%"}},{"$f":"J22/D14","v":{"v":0.625,"d":"63%"}},{"v":0,"d":"0%"},{"$f":"L22/E14","v":{"v":0.2,"d":"20%"}},{"$f":"M22/E14","v":{"v":0.8,"d":"80%"}},{"$f":"N22/F14","v":{"v":0,"d":"0%"}},{"$f":"O22/F14","v":{"v":0,"d":"0%"}},{"$f":"P22/F14","v":{"v":1,"d":"100%"}}]
["Regulatory capacity protection",{"$f":"W4","v":0},{"$f":"X4","v":3},3,{"$f":"W5","v":3},{"$f":"X5","v":2},4,{"$f":"W6","v":0},{"$f":"X6","v":0},2,{"$f":"W7","v":1},{"$f":"X7","v":3},2,{"$f":"W8","v":0},{"$f":"X8","v":1},1,"Regulatory capacity protection",{"$f":"B23/B15","v":{"v":0,"d":"0%"}},{"v":0.5,"d":"50%"},{"v":0.5,"d":"50%"},{"v":0.3333333333333333,"d":"33%"},{"v":0.2222222222222222,"d":"22%"},{"v":0.4444444444444444,"d":"44%"},{"v":0,"d":"0%"},{"v":0,"d":"0%"},{"v":1,"d":"100%"},{"v":0.16666666666666666,"d":"17%"},{"v":0.5,"d":"50%"},{"v":0.3333333333333333,"d":"33%"},{"v":0,"d":"0%"},{"v":0.5,"d":"50%"},{"v":0.5,"d":"50%"}]

{"sheet":"Supply chains","index":7,"n_rows":30,"n_cols":8,"rows_kept":30,"merged":[[0,1,0,6]]}
[null,"Positive effect"]
[null,"Undernutrition","Overnutrition","Environmental sustainability","Socio-economic inequalities","Women's empowerment","Total","Double or triple duty,"]
["Packaging innovation",{"v":0.1111111111111111,"d":"11%"},{"v":0,"d":"0%"},{"v":0.8888888888888888,"d":"89%"},{"v":0,"d":"0%"},{"v":0,"d":"0%"},{"$f":"B3+C3+D3+E3+F3","v":{"v":1,"d":"100%"}},0]
["Management of use of fertilisers",{"v":0.1111111111111111,"d":"11%"},{"v":0,"d":"0%"},{"v":1,"d":"100%"},{"v":0,"d":"0%"},{"v":0,"d":"0%"},{"v":1.1111111111111112,"d":"111%"},0]
["Bio-fortification",{"v":0.6666666666666666,"d":"67%"},{"v":0,"d":"0%"},{"v":0,"d":"0%"},{"v":0.4444444444444444,"d":"44%"},{"v":0.1111111111111111,"d":"11%"},{"v":1.2222222222222223,"d":"122%"},0]
["Exchange of best practices",{"v":0.2222222222222222,"d":"22%"},{"v":0,"d":"0%"},{"v":0.7777777777777778,"d":"78%"},{"v":0.2222222222222222,"d":"22%"},{"v":0,"d":"0%"},{"v":1.2222222222222223,"d":"122%"},0]
["Biodiversity/ecosystem restoration and conservation",{"v":0.2222222222222222,"d":"22%"},{"v":0.1111111111111111,"d":"11%"},{"v":0.8888888888888888,"d":"89%"},{"v":0.1111111111111111,"d":"11%"},{"v":0.2222222222222222,"d":"22%"},{"v":1.5555555555555554,"d":"156%"},0]
["Optimisation of water resources",{"v":0.1111111111111111,"d":"11%"},{"v":0,"d":"0%"},{"v":1,"d":"100%"},{"v":0.3333333333333333,"d":"33%"},{"v":0.2222222222222222,"d":"22%"},{"v":1.6666666666666665,"d":"167%"},0]
["Regulation framework at retail level",{"v":0.3333333333333333,"d":"33%"},{"v":0,"d":"0%"},{"v":1,"d":"100%"},{"v":0.3333333333333333,"d":"33%"},{"v":0,"d":"0%"},{"v":1.6666666666666665,"d":"167%"},0]
["Fortification programmes",{"v":0.8888888888888888,"d":"89%"},{"v":0.3333333333333333,"d":"33%"},{"v":0,"d":"0%"},{"v":0.4444444444444444,"d":"44%"},{"v":0.2222222222222222,"d":"22%"},{"v":1.8888888888888888,"d":"189%"},0]
["Tariffs and subsidies for sustainable healthy foods",{"v":0.3333333333333333,"d":"33%"},{"v":0.5555555555555556,"d":"56%"},{"v":0.6666666666666666,"d":"67%"},{"v":0.3333333333333333,"d":"33%"},{"v":0.1111111111111111,"d":"11%"},{"v":1.9999999999999998,"d":"200%"},2]
["Climate change impact preparedness",{"v":0.3333333333333333,"d":"33%"},{"v":0.1111111111111111,"d":"11%"},{"v":0.7777777777777778,"d":"78%"},{"v":0.6666666666666666,"d":"67%"},{"v":0.1111111111111111,"d":"11%"},{"v":2,"d":"200%"},0]
["Social protection mechanism",{"v":0.8888888888888888,"d":"89%"},{"v":0.2222222222222222,"d":"22%"},{"v":0.2222222222222222,"d":"22%"},{"v":0.6666666666666666,"d":"67%"},{"v":0,"d":"0%"},{"v":2,"d":"200%"},0]
["Employment generation in rural economies",{"v":0.6666666666666666,"d":"67%"},{"v":0.2222222222222222,"d":"22%"},{"v":0.2222222222222222,"d":"22%"},{"v":0.8888888888888888,"d":"89%"},{"v":0.2222222222222222,"d":"22%"},{"v":2.2222222222222223,"d":"222%"},0]
["Farmers access to seeds, innovation and technology",{"v":0.6666666666666666,"d":"67%"},{"v":0.2222222222222222,"d":"22%"},{"v":0.6666666666666666,"d":"67%"},{"v":0.5555555555555556,"d":"56%"},{"v":0.3333333333333333,"d":"33%"},{"v":2.444444444444444,"d":"244%"},"2+Eq"]
["Use of resources",{"v":0.4444444444444444,"d":"44%"},{"v":0.4444444444444444,"d":"44%"},{"v":0.8888888888888888,"d":"89%"},{"v":0.5555555555555556,"d":"56%"},{"v":0.1111111111111111,"d":"11%"},{"v":2.444444444444444,"d":"244%"},0]
["Prevention through infrastructure and coordination",{"v":0.5555555555555556,"d":"56%"},{"v":0,"d":"0%"},{"v":1,"d":"100%"},{"v":0.4444444444444444,"d":"44%"},{"v":0.6666666666666666,"d":"67%"},{"v":2.6666666666666665,"d":"267%"},"2+WE"]
["Land, fisheries and forest rights protection",{"v":0.5555555555555556,"d":"56%"},{"v":0.2222222222222222,"d":"22%"},{"v":0.7777777777777778,"d":"78%"},{"v":0.8888888888888888,"d":"89%"},{"v":0.2222222222222222,"d":"22%"},{"v":2.666666666666667,"d":"267%"},"2+Eq"]
["Sustainable food production systems",{"v":0.5555555555555556,"d":"56%"},{"v":0.1111111111111111,"d":"11%"},{"v":1,"d":"100%"},{"v":0.6666666666666666,"d":"67%"},{"v":0.4444444444444444,"d":"44%"},{"v":2.7777777777777777,"d":"278%"},"2+Eq"]
["TIA risk impact assessment",{"v":0.5555555555555556,"d":"56%"},{"v":0.5555555555555556,"d":"56%"},{"v":0.6666666666666666,"d":"67%"},{"v":0.6666666666666666,"d":"67%"},{"v":0.3333333333333333,"d":"33%"},{"v":2.7777777777777777,"d":"278%"},"3+Eq"]
["Regulatory capacity protection",{"v":0.6666666666666666,"d":"67%"},{"v":1,"d":"100%"},{"v":0.2222222222222222,"d":"22%"},{"v":0.6666666666666666,"d":"67%"},{"v":0.2222222222222222,"d":"22%"},{"v":2.7777777777777777,"d":"278%"},"2+Eq"]
["Tailored support to rural and urban areas",{"v":0.7777777777777778,"d":"78%"},{"v":0.2222222222222222,"d":"22%"},{"v":0.4444444444444444,"d":"44%"},{"v":1,"d":"100%"},{"v":0.3333333333333333,"d":"33%"},{"v":2.777777777777778,"d":"278%"},0]
["Sustainable and regenerative agriculture",{"v":0.4444444444444444,"d":"44%"},{"v":0.3333333333333333,"d":"33%"},{"v":1,"d":"100%"},{"v":0.7777777777777778,"d":"78%"},{"v":0.3333333333333333,"d":"33%"},{"v":2.888888888888889,"d":"289%"},"2+Eq"]
["Women’s empowerment in agriculture",{"v":0.5555555555555556,"d":"56%"},{"v":0.3333333333333333,"d":"33%"},{"v":0.1111111111111111,"d":"11%"},{"v":1,"d":"100%"},{"v":1,"d":"100%"},{"v":3,"d":"300%"},0]
["Crops/farms diversification and related agricultural investment",{"v":0.6666666666666666,"d":"67%"},{"v":0.5555555555555556,"d":"56%"},{"v":0.8888888888888888,"d":"89%"},{"v":0.5555555555555556,"d":"56%"},{"v":0.3333333333333333,"d":"33%"},{"v":3.0000000000000004,"d":"300%"},"2+Eq"]
["Transport and infrastructure investment",{"v":0.8888888888888888,"d":"89%"},{"v":0.2222222222222222,"d":"22%"},{"v":0.5555555555555556,"d":"56%"},{"v":1,"d":"100%"},{"v":0.3333333333333333,"d":"33%"},{"v":3.0000000000000004,"d":"300%"},"2+Eq"]
["Farmers support and protection",{"v":0.8888888888888888,"d":"89%"},{"v":0.3333333333333333,"d":"33%"},{"v":0.4444444444444444,"d":"44%"},{"v":1,"d":"100%"},{"v":0.5555555555555556,"d":"56%"},{"v":3.2222222222222223,"d":"322%"},0]
["SMEs and start-ups support",{"v":0.7777777777777778,"d":"78%"},{"v":0.5555555555555556,"d":"56%"},{"v":0.5555555555555556,"d":"56%"},{"v":1,"d":"100%"},{"v":0.4444444444444444,"d":"44%"},{"v":3.333333333333334,"d":"333%"},"3+Eq"]
["Land use management",{"v":0.7777777777777778,"d":"78%"},{"v":0.2222222222222222,"d":"22%"},{"v":1,"d":"100%"},{"v":0.8888888888888888,"d":"89%"},{"v":1,"d":"100%"},{"v":3.888888888888889,"d":"389%"},"2+Eq"]
[null,{"$f":"B3+B4+B5+B6+B7+B8+B9+B10+B11+B12+B13+B14+B15+B16+B17+B18+B19+B20+B21+B22+B23+B24+B25+B26+B27+B28+B29","v":{"v":14.66666666666667,"d":"1467%"}},{"$f":"C3+C4+C5+C6+C7+C8+C9+C10+C11+C12+C13+C14+C15+C16+C17+C18+C19+C20+C21+C22+C23+C24+C25+C26+C27+C28+C29","v":{"v":6.888888888888888,"d":"689%"}},{"v":17.666666666666668,"d":"1767%"},{"v":16.11111111111111,"d":"1611%"},{"v":7.888888888888888,"d":"789%"}]

{"sheet":"Composition","index":8,"n_rows":21,"n_cols":32,"rows_kept":21,"merged":[[0,1,0,8],[0,9,0,16],[1,1,1,5],[1,6,1,8],[1,9,1,13],[1,14,1,16],[10,1,10,5],[10,6,10,10],[10,12,10,16],[10,18,10,22],[16,1,16,16],[16,17,16,31],[17,1,17,3],[17,4,17,6],[17,7,17,9],[17,10,17,12],[17,13,17,15],[17,17,17,19],[17,20,17,22],[17,23,17,25],[17,26,17,28],[17,29,17,31]]}
[null,"Reformulation of processed foods",{"$nulls":7},"Reformulation of out-of-home meals"]
[null,"Effect",{"$nulls":4},"Effectiveness",null,null,"Effect",{"$nulls":4},"Effectiveness"]
[null,"Positive","Neutral","Negative","I don't know","Not applicable","Very effective","Effective","Somewhat effective","Positive","Neutral","Negative","I don't know","Not applicable","Very effective","Effective","Somewhat effective"]
["Undernutrition",{"$f":"COUNTIF(FE!D2:D19,\"Positive\")","v":7},{"$f":"COUNTIF(FE!D2:D19,\"Neutral\")","v":8},{"$f":"COUNTIF(FE!D2:D19,\"Negative\")","v":1},{"$f":"COUNTIF(FE!D2:D19,\"I don't know\")","v":1},{"$f":"COUNTIF(FE!D2:D19,\"Not applicable\")","v":1},{"$f":"COUNTIF(FE!I2:I19,\"Very effective\")","v":0},{"$f":"COUNTIF(FE!I2:I19,\"Effective\")","v":5},{"$f":"COUNTIF(FE!I2:I19,\"Somewhat effective\")","v":2},{"$f":"COUNTIF(FE!O2:O19,\"Positive\")","v":6},{"$f":"COUNTIF(FE!O2:O19,\"Neutral\")","v":8},{"$f":"COUNTIF(FE!O2:O19,\"Negative\")","v":1},{"$f":"COUNTIF(FE!O2:O19,\"I don't know\")","v":0},{"$f":"COUNTIF(FE!O2:O19,\"Not applicable\")","v":3},{"$f":"COUNTIF(FE!T2:T19,\"Very effective\")","v":0},{"$f":"COUNTIF(FE!T2:T19,\"Effective\")","v":5},{"$f":"COUNTIF(FE!T2:T19,\"Somewhat effective\")","v":1}]
["Overnutrition",{"$f":"COUNTIF(FE!E2:E19,\"Positive\")","v":16},{"$f":"COUNTIF(FE!E2:E19,\"Neutral\")","v":1},{"$f":"COUNTIF(FE!E2:E19,\"Negative\")","v":1},{"$f":"COUNTIF(FE!E2:E19,\"I don't know\")","v":0},{"$f":"COUNTIF(FE!E2:E19,\"Not applicable\")","v":0},{"$f":"COUNTIF(FE!J2:J19,\"Very effective\")","v":7},{"$f":"COUNTIF(FE!J2:J19,\"Effective\")","v":7},{"$f":"COUNTIF(FE!J2:J19,\"Somewhat effective\")","v":2},{"$f":"COUNTIF(FE!P2:P19,\"Positive\")","v":16},{"$f":"COUNTIF(FE!P2:P19,\"Neutral\")","v":1},{"$f":"COUNTIF(FE!P2:P19,\"Negative\")","v":1},{"$f":"COUNTIF(FE!P2:P19,\"I don't know\")","v":0},{"$f":"COUNTIF(FE!P2:P19,\"Not applicable\")","v":0},{"$f":"COUNTIF(FE!U2:U19,\"Very effective\")","v":6},{"$f":"COUNTIF(FE!U2:U19,\"Effective\")","v":7},{"$f":"COUNTIF(FE!U2:U19,\"Somewhat effective\")","v":3}]
["Environmental sustainability",{"$f":"COUNTIF(FE!F2:F19,\"Positive\")","v":3},{"$f":"COUNTIF(FE!F2:F19,\"Neutral\")","v":10},{"$f":"COUNTIF(FE!F2:F19,\"Negative\")","v":0},{"$f":"COUNTIF(FE!F2:F19,\"I don't know\")","v":2},{"$f":"COUNTIF(FE!F2:F19,\"Not applicable\")","v":3},{"$f":"COUNTIF(FE!K2:K19,\"Very effective\")","v":0},{"$f":"COUNTIF(FE!K2:K19,\"Effective\")","v":1},{"$f":"COUNTIF(FE!K2:K19,\"Somewhat effective\")","v":2},{"$f":"COUNTIF(FE!Q2:Q19,\"Positive\")","v":5},{"$f":"COUNTIF(FE!Q2:Q19,\"Neutral\")","v":9},{"$f":"COUNTIF(FE!Q2:Q19,\"Negative\")","v":1},{"$f":"COUNTIF(FE!Q2:Q19,\"I don't know\")","v":2},{"$f":"COUNTIF(FE!Q2:Q19,\"Not applicable\")","v":1},{"$f":"COUNTIF(FE!V2:V19,\"Very effective\")","v":0},{"$f":"COUNTIF(FE!V2:V19,\"Effective\")","v":2},{"$f":"COUNTIF(FE!V2:V19,\"Somewhat effective\")","v":3}]
["Socio-economic inequalities",{"$f":"COUNTIF(FE!G2:G19,\"Positive\")","v":11},{"$f":"COUNTIF(FE!G2:G19,\"Neutral\")","v":4},{"$f":"COUNTIF(FE!G2:G19,\"Negative\")","v":2},{"$f":"COUNTIF(FE!G2:G19,\"I don't know\")","v":1},{"$f":"COUNTIF(FE!G2:G19,\"Not applicable\")","v":0},{"$f":"COUNTIF(FE!L2:L19,\"Very effective\")","v":2},{"$f":"COUNTIF(FE!L2:L19,\"Effective\")","v":6},{"$f":"COUNTIF(FE!L2:L19,\"Somewhat effective\")","v":3},{"$f":"COUNTIF(FE!R2:R19,\"Positive\")","v":11},{"$f":"COUNTIF(FE!R2:R19,\"Neutral\")","v":6},{"$f":"COUNTIF(FE!R2:R19,\"Negative\")","v":1},{"$f":"COUNTIF(FE!R2:R19,\"I don't know\")","v":0},{"$f":"COUNTIF(FE!R2:R19,\"Not applicable\")","v":0},{"$f":"COUNTIF(FE!W2:W19,\"Very effective\")","v":1},{"$f":"COUNTIF(FE!W2:W19,\"Effective\")","v":7},{"$f":"COUNTIF(FE!W2:W19,\"Somewhat effective\")","v":3}]
["Women's empowerment",{"$f":"COUNTIF(FE!H2:H19,\"Positive\")","v":4},{"$f":"COUNTIF(FE!H2:H19,\"Neutral\")","v":8},{"$f":"COUNTIF(FE!H2:H19,\"Negative\")","v":0},{"$f":"COUNTIF(FE!H2:H19,\"I don't know\")","v":3},{"$f":"COUNTIF(FE!H2:H19,\"Not applicable\")","v":3},{"$f":"COUNTIF(FE!M2:M19,\"Very effective\")","v":0},{"$f":"COUNTIF(FE!M2:M19,\"Effective\")","v":1},{"$f":"COUNTIF(FE!M2:M19,\"Somewhat effective\")","v":3},{"$f":"COUNTIF(FE!S2:S19,\"Positive\")","v":1},{"$f":"COUNTIF(FE!S2:S19,\"Neutral\")","v":8},{"$f":"COUNTIF(FE!S2:S19,\"Negative\")","v":1},{"$f":"COUNTIF(FE!S2:S19,\"I don't know\")","v":3},{"$f":"COUNTIF(FE!S2:S19,\"Not applicable\")","v":5},{"$f":"COUNTIF(FE!X2:X19,\"Very effective\")","v":0},{"$f":"COUNTIF(FE!X2:X19,\"Effective\")","v":0},{"$f":"COUNTIF(FE!X2:X19,\"Somewhat effective\")","v":1}]
[]
[]
[null,"Positive effect",{"$nulls":4},"Negative effect",{"$nulls":5},"Positive effect",{"$nulls":5},"Negative effect"]
[null,"Undernutrition","Overnutrition","Environmental sustainability","Socio-economic inequalities","Women's empowerment","Undernutrition","Overnutrition","Environmental sustainability","Socio-economic inequalities","Women's empowerment",null,"Undernutrition","Overnutrition","Environmental sustainability","Socio-economic inequalities","Women's empowerment",null,"Undernutrition","Overnutrition","Environmental sustainability","Socio-economic inequalities","Women's empowerment"]
["Reformulation of processed foods",{"$f":"B4","v":7},{"$f":"B5","v":16},{"$f":"B6","v":3},{"$f":"B7","v":11},{"$f":"B8","v":4},{"$f":"D4","v":1},{"$f":"D5","v":1},{"$f":"D6","v":0},{"$f":"D7","v":2},{"$f":"D8","v":0},"Reformulation of processed foods",{"$f":"B13/'Initial info'!B3","v":{"v":0.3888888888888889,"d":"39%"}},{"$f":"C13/'Initial info'!B3","v":{"v":0.8888888888888888,"d":"89%"}},{"$f":"D13/'Initial info'!B3","v":{"v":0.16666666666666666,"d":"17%"}},{"$f":"E13/'Initial info'!B3","v":{"v":0.6111111111111112,"d":"61%"}},{"$f":"F13/'Initial info'!B3","v":{"v":0.2222222222222222,"d":"22%"}},"Reformulation of processed foods",{"$f":"G13/'Initial info'!B3","v":{"v":0.05555555555555555,"d":"6%"}},{"$f":"H13/'Initial info'!B3","v":{"v":0.05555555555555555,"d":"6%"}},{"$f":"I13/'Initial info'!B3","v":{"v":0,"d":"0%"}},{"$f":"J13/'Initial info'!B3","v":{"v":0.1111111111111111,"d":"11%"}},{"$f":"K13/'Initial info'!B3","v":{"v":0,"d":"0%"}}]
["Reformulation of out-of-home meals",{"$f":"J4","v":6},{"$f":"J5","v":16},{"$f":"J6","v":5},{"$f":"J7","v":11},{"$f":"J8","v":1},{"$f":"L4","v":1},{"$f":"L5","v":1},{"$f":"L6","v":1},{"$f":"L7","v":1},{"$f":"L8","v":1},"Reformulation of out-of-home meals",{"$f":"B14/'Initial info'!B3","v":{"v":0.3333333333333333,"d":"33%"}},{"$f":"C14/'Initial info'!B3","v":{"v":0.8888888888888888,"d":"89%"}},{"$f":"D14/'Initial info'!B3","v":{"v":0.2777777777777778,"d":"28%"}},{"$f":"E14/'Initial info'!B3","v":{"v":0.6111111111111112,"d":"61%"}},{"$f":"F14/'Initial info'!B3","v":{"v":0.05555555555555555,"d":"6%"}},"Reformulation of out-of-home meals",{"$f":"G14/'Initial info'!B3","v":{"v":0.05555555555555555,"d":"6%"}},{"$f":"H14/'Initial info'!B3","v":{"v":0.05555555555555555,"d":"6%"}},{"$f":"I14/'Initial info'!B3","v":{"v":0.05555555555555555,"d":"6%"}},{"$f":"J14/'Initial info'!B3","v":{"v":0.05555555555555555,"d":"6%"}},{"$f":"K14/'Initial info'!B3","v":{"v":0.05555555555555555,"d":"6%"}}]
[]
[]
[null,"Effectiveness levels",{"$nulls":15},"Effectiveness levels - %"]
[null,"Undernutrition",null,null,"Overnutrition",null,null,"Environmental sustainability",null,null,"Socio-economic inequalities",null,null,"Women's empowerment",{"$nulls":3},"Undernutrition",null,null,"Overnutrition",null,null,"Environmental sustainability",null,null,"Socio-economic inequalities",null,null,"Women's empowerment"]
[null,"Very effective","Effective","Somewhat effective","Very effective","Effective","Somewhat effective","Very effective","Effective","Somewhat effective","Very effective","Effective","Somewhat effective","Very effective","Effective","Somewhat effective",null,"Very effective","Effective","Somewhat effective","Very effective","Effective","Somewhat effective","Very effective","Effective","Somewhat effective","Very effective","Effective","Somewhat effective","Very effective","Effective","Somewhat effective"]
["Reformulation of processed foods",{"$f":"G4","v":0},{"$f":"H4","v":5},{"$f":"I4","v":2},{"$f":"G5","v":7},{"$f":"H5","v":7},2,{"$f":"G6","v":0},{"$f":"H6","v":1},2,{"$f":"G7","v":2},{"$f":"H7","v":6},3,{"$f":"G8","v":0},{"$f":"H8","v":1},3,"Reformulation of processed foods",{"$f":"B20/B13","v":{"v":0,"d":"0%"}},{"$f":"C20/B13","v":{"v":0.7142857142857143,"d":"71%"}},{"$f":"D20/B13","v":{"v":0.2857142857142857,"d":"29%"}},{"$f":"E20/C13","v":{"v":0.4375,"d":"44%"}},{"$f":"F20/C13","v":{"v":0.4375,"d":"44%"}},{"$f":"G20/C13","v":{"v":0.125,"d":"13%"}},{"$f":"H20/D13","v":{"v":0,"d":"0%"}},{"$f":"I20/D13","v":{"v":0.3333333333333333,"d":"33%"}},{"$f":"J20/D13","v":{"v":0.6666666666666666,"d":"67%"}},{"$f":"K20/E13","v":{"v":0.18181818181818182,"d":"18%"}},{"$f":"L20/E13","v":{"v":0.5454545454545454,"d":"55%"}},{"$f":"M20/E13","v":{"v":0.2727272727272727,"d":"27%"}},{"$f":"N20/F13","v":{"v":0,"d":"0%"}},{"$f":"O20/F13","v":{"v":0.25,"d":"25%"}},{"$f":"P20/F13","v":{"v":0.75,"d":"75%"}}]
["Reformulation of out-of-home meals",{"$f":"O4","v":0},{"$f":"P4","v":5},{"$f":"Q4","v":1},{"$f":"O5","v":6},{"$f":"P5","v":7},3,{"$f":"O6","v":0},{"$f":"P6","v":2},3,{"$f":"O7","v":1},{"$f":"P7","v":7},3,{"$f":"O8","v":0},{"$f":"P8","v":0},1,"Reformulation of out-of-home meals",{"$f":"B21/B14","v":{"v":0,"d":"0%"}},{"$f":"C21/B14","v":{"v":0.8333333333333334,"d":"83%"}},{"$f":"D21/B14","v":{"v":0.16666666666666666,"d":"17%"}},{"$f":"E21/C14","v":{"v":0.375,"d":"38%"}},{"$f":"F21/C14","v":{"v":0.4375,"d":"44%"}},{"$f":"G21/C14","v":{"v":0.1875,"d":"19%"}},{"$f":"H21/D14","v":{"v":0,"d":"0%"}},{"$f":"I21/D14","v":{"v":0.4,"d":"40%"}},{"$f":"J21/D14","v":{"v":0.6,"d":"60%"}},{"$f":"K21/E14","v":{"v":0.09090909090909091,"d":"9%"}},{"$f":"L21/E14","v":{"v":0.6363636363636364,"d":"64%"}},{"$f":"M21/E14","v":{"v":0.2727272727272727,"d":"27%"}},{"$f":"N21/F14","v":{"v":0,"d":"0%"}},{"$f":"O21/F14","v":{"v":0,"d":"0%"}},{"$f":"P21/F14","v":{"v":1,"d":"100%"}}]

{"sheet":"Labelling","index":9,"n_rows":25,"n_cols":33,"rows_kept":25,"merged":[[0,1,0,8],[0,9,0,16],[0,17,0,24],[0,25,0,32],[1,1,1,5],[1,6,1,8],[1,9,1,13],[1,14,1,16],[1,17,1,21],[1,22,1,24],[1,25,1,29],[1,30,1,32],[10,1,10,5],[10,6,10,10],[10,12,10,16],[10,18,10,22],[18,1,18,16],[18,17,18,31],[19,1,19,3],[19,4,19,6],[19,7,19,9],[19,10,19,12],[19,13,19,15],[19,17,19,19],[19,20,19,22],[19,23,19,25],[19,26,19,28],[19,29,19,31]]}
[null,"Codex standards",{"$nulls":7},"Evidence-based claim regulations",{"$nulls":7},"Front-of pack labeling",{"$nulls":7},"Quick-service outlets menu labeling"]
[null,"Effect",{"$nulls":4},"Effectiveness",null,null,"Effect",{"$nulls":4},"Effectiveness",null,null,"Effect",{"$nulls":4},"Effectiveness",null,null,"Effect",{"$nulls":4},"Effectiveness"]
[null,"Positive","Neutral","Negative","I don't know","Not applicable","Very effective","Effective","Somewhat effective","Positive","Neutral","Negative","I don't know","Not applicable","Very effective","Effective","Somewhat effective","Positive","Neutral","Negative","I don't know","Not applicable","Very effective","Effective","Somewhat effective","Positive","Neutral","Negative","I don't know","Not applicable","Very effective","Effective","Somewhat effective"]
["Undernutrition",{"$f":"COUNTIF(FE!AA2:AA19,\"Positive\")","v":10},{"$f":"COUNTIF(FE!AA2:AA19,\"Neutral\")","v":6},{"$f":"COUNTIF(FE!AA2:AA19,\"Negative\")","v":0},{"$f":"COUNTIF(FE!AA2:AA19,\"I don't know\")","v":1},{"$f":"COUNTIF(FE!AA2:AA19,\"Not applicable\")","v":1},{"$f":"COUNTIF(FE!AF2:AF19,\"Very effective\")","v":1},{"$f":"COUNTIF(FE!AF2:AF19,\"Effective\")","v":5},{"$f":"COUNTIF(FE!AF2:AF19,\"Somewhat effective\")","v":4},{"$f":"COUNTIF(FE!AL2:AL19,\"Positive\")","v":13},{"$f":"COUNTIF(FE!AL2:AL19,\"Neutral\")","v":3},{"$f":"COUNTIF(FE!AL2:AL19,\"Negative\")","v":0},{"$f":"COUNTIF(FE!AL2:AL19,\"I don't know\")","v":1},{"$f":"COUNTIF(FE!AL2:AL19,\"Not applicable\")","v":1},{"$f":"COUNTIF(FE!AQ2:AQ19,\"Very effective\")","v":4},{"$f":"COUNTIF(FE!AQ2:AQ19,\"Effective\")","v":2},{"$f":"COUNTIF(FE!AQ2:AQ19,\"Somewhat effective\")","v":7},{"$f":"COUNTIF(FE!AW2:AW19,\"Positive\")","v":10},{"$f":"COUNTIF(FE!AW2:AW19,\"Neutral\")","v":7},{"$f":"COUNTIF(FE!AW2:AW19,\"Negative\")","v":0},{"$f":"COUNTIF(FE!AW2:AW19,\"I don't know\")","v":0},{"$f":"COUNTIF(FE!AW2:AW19,\"Not applicable\")","v":1},{"$f":"COUNTIF(FE!BB2:BB19,\"Very effective\")","v":2},{"$f":"COUNTIF(FE!BB2:BB19,\"Effective\")","v":5},{"$f":"COUNTIF(FE!BB2:BB19,\"Somewhat effective\")","v":3},{"$f":"COUNTIF(FE!BH2:BH19,\"Positive\")","v":8},{"$f":"COUNTIF(FE!BH2:BH19,\"Neutral\")","v":8},{"$f":"COUNTIF(FE!BH2:BH19,\"Negative\")","v":0},{"$f":"COUNTIF(FE!BH2:BH19,\"I don't know\")","v":0},{"$f":"COUNTIF(FE!BH2:BH19,\"Not applicable\")","v":2},{"$f":"COUNTIF(FE!BM2:BM19,\"Very effective\")","v":2},{"$f":"COUNTIF(FE!BM2:BM19,\"Effective\")","v":3},{"$f":"COUNTIF(FE!BM2:BM19,\"Somewhat effective\")","v":3}]
["Overnutrition",{"$f":"COUNTIF(FE!AB2:AB19,\"Positive\")","v":16},{"$f":"COUNTIF(FE!AB2:AB19,\"Neutral\")","v":2},{"$f":"COUNTIF(FE!AB2:AB19,\"Negative\")","v":0},{"$f":"COUNTIF(FE!AB2:AB19,\"I don't know\")","v":0},{"$f":"COUNTIF(FE!AB2:AB19,\"Not applicable\")","v":0},{"$f":"COUNTIF(FE!AG2:AG19,\"Very effective\")","v":5},{"$f":"COUNTIF(FE!AG2:AG19,\"Effective\")","v":6},{"$f":"COUNTIF(FE!AG2:AG19,\"Somewhat effective\")","v":5},{"$f":"COUNTIF(FE!AM2:AM19,\"Positive\")","v":17},{"$f":"COUNTIF(FE!AM2:AM19,\"Neutral\")","v":0},{"$f":"COUNTIF(FE!AM2:AM19,\"Negative\")","v":0},{"$f":"COUNTIF(FE!AM2:AM19,\"I don't know\")","v":1},{"$f":"COUNTIF(FE!AM2:AM19,\"Not applicable\")","v":0},{"$f":"COUNTIF(FE!AR2:AR19,\"Very effective\")","v":7},{"$f":"COUNTIF(FE!AR2:AR19,\"Effective\")","v":4},{"$f":"COUNTIF(FE!AR2:AR19,\"Somewhat effective\")","v":6},{"$f":"COUNTIF(FE!AX2:AX19,\"Positive\")","v":17},{"$f":"COUNTIF(FE!AX2:AX19,\"Neutral\")","v":1},{"$f":"COUNTIF(FE!AX2:AX19,\"Negative\")","v":0},{"$f":"COUNTIF(FE!AX2:AX19,\"I don't know\")","v":0},{"$f":"COUNTIF(FE!AX2:AX19,\"Not applicable\")","v":0},{"$f":"COUNTIF(FE!BC2:BC19,\"Very effective\")","v":8},{"$f":"COUNTIF(FE!BC2:BC19,\"Effective\")","v":8},{"$f":"COUNTIF(FE!BC2:BC19,\"Somewhat effective\")","v":1},{"$f":"COUNTIF(FE!BI2:BI19,\"Positive\")","v":17},{"$f":"COUNTIF(FE!BI2:BI19,\"Neutral\")","v":1},{"$f":"COUNTIF(FE!BI2:BI19,\"Negative\")","v":0},{"$f":"COUNTIF(FE!BI2:BI19,\"I don't know\")","v":0},{"$f":"COUNTIF(FE!BI2:BI19,\"Not applicable\")","v":0},{"$f":"COUNTIF(FE!BN2:BN19,\"Very effective\")","v":6},{"$f":"COUNTIF(FE!BN2:BN19,\"Effective\")","v":7},{"$f":"COUNTIF(FE!BN2:BN19,\"Somewhat effective\")","v":4}]
["Environmental sustainability",{"$f":"COUNTIF(FE!AC2:AC19,\"Positive\")","v":2},{"$f":"COUNTIF(FE!AC2:AC19,\"Neutral\")","v":12},{"$f":"COUNTIF(FE!AC2:AC19,\"Negative\")","v":0},{"$f":"COUNTIF(FE!AC2:AC19,\"I don't know\")","v":2},{"$f":"COUNTIF(FE!AC2:AC19,\"Not applicable\")","v":2},{"$f":"COUNTIF(FE!AH2:AH19,\"Very effective\")","v":0},{"$f":"COUNTIF(FE!AH2:AH19,\"Effective\")","v":2},{"$f":"COUNTIF(FE!AH2:AH19,\"Somewhat effective\")","v":0},{"$f":"COUNTIF(FE!AN2:AN19,\"Positive\")","v":14},{"$f":"COUNTIF(FE!AN2:AN19,\"Neutral\")","v":2},{"$f":"COUNTIF(FE!AN2:AN19,\"Negative\")","v":0},{"$f":"COUNTIF(FE!AN2:AN19,\"I don't know\")","v":1},{"$f":"COUNTIF(FE!AN2:AN19,\"Not applicable\")","v":1},{"$f":"COUNTIF(FE!AS2:AS19,\"Very effective\")","v":4},{"$f":"COUNTIF(FE!AS2:AS19,\"Effective\")","v":5},{"$f":"COUNTIF(FE!AS2:AS19,\"Somewhat effective\")","v":5},{"$f":"COUNTIF(FE!AY2:AY19,\"Positive\")","v":18},{"$f":"COUNTIF(FE!AY2:AY19,\"Neutral\")","v":0},{"$f":"COUNTIF(FE!AY2:AY19,\"Negative\")","v":0},{"$f":"COUNTIF(FE!AY2:AY19,\"I don't know\")","v":0},{"$f":"COUNTIF(FE!AY2:AY19,\"Not applicable\")","v":0},{"$f":"COUNTIF(FE!BD2:BD19,\"Very effective\")","v":8},{"$f":"COUNTIF(FE!BD2:BD19,\"Effective\")","v":7},{"$f":"COUNTIF(FE!BD2:BD19,\"Somewhat effective\")","v":3},{"$f":"COUNTIF(FE!BJ2:BJ19,\"Positive\")","v":14},{"$f":"COUNTIF(FE!BJ2:BJ19,\"Neutral\")","v":3},{"$f":"COUNTIF(FE!BJ2:BJ19,\"Negative\")","v":0},{"$f":"COUNTIF(FE!BJ2:BJ19,\"I don't know\")","v":0},{"$f":"COUNTIF(FE!BJ2:BJ19,\"Not applicable\")","v":1},{"$f":"COUNTIF(FE!BO2:BO19,\"Very effective\")","v":6},{"$f":"COUNTIF(FE!BO2:BO19,\"Effective\")","v":6},{"$f":"COUNTIF(FE!BO2:BO19,\"Somewhat effective\")","v":2}]
["Socio-economic inequalities",{"$f":"COUNTIF(FE!AD2:AD19,\"Positive\")","v":8},{"$f":"COUNTIF(FE!AD2:AD19,\"Neutral\")","v":7},{"$f":"COUNTIF(FE!AD2:AD19,\"Negative\")","v":2},{"$f":"COUNTIF(FE!AD2:AD19,\"I don't know\")","v":1},{"$f":"COUNTIF(FE!AD2:AD19,\"Not applicable\")","v":0},{"$f":"COUNTIF(FE!AI2:AI19,\"Very effective\")","v":0},{"$f":"COUNTIF(FE!AI2:AI19,\"Effective\")","v":5},{"$f":"COUNTIF(FE!AI2:AI19,\"Somewhat effective\")","v":3},{"$f":"COUNTIF(FE!AO2:AO19,\"Positive\")","v":11},{"$f":"COUNTIF(FE!AO2:AO19,\"Neutral\")","v":5},{"$f":"COUNTIF(FE!AO2:AO19,\"Negative\")","v":0},{"$f":"COUNTIF(FE!AO2:AO19,\"I don't know\")","v":2},{"$f":"COUNTIF(FE!AO2:AO19,\"Not applicable\")","v":0},{"$f":"COUNTIF(FE!AT2:AT19,\"Very effective\")","v":1},{"$f":"COUNTIF(FE!AT2:AT19,\"Effective\")","v":5},{"$f":"COUNTIF(FE!AT2:AT19,\"Somewhat effective\")","v":5},{"$f":"COUNTIF(FE!AZ2:AZ19,\"Positive\")","v":12},{"$f":"COUNTIF(FE!AZ2:AZ19,\"Neutral\")","v":6},{"$f":"COUNTIF(FE!AZ2:AZ19,\"Negative\")","v":0},{"$f":"COUNTIF(FE!AZ2:AZ19,\"I don't know\")","v":0},{"$f":"COUNTIF(FE!AZ2:AZ19,\"Not applicable\")","v":0},{"$f":"COUNTIF(FE!BE2:BE19,\"Very effective\")","v":0},{"$f":"COUNTIF(FE!BE2:BE19,\"Effective\")","v":8},{"$f":"COUNTIF(FE!BE2:BE19,\"Somewhat effective\")","v":4},{"$f":"COUNTIF(FE!BK2:BK19,\"Positive\")","v":10},{"$f":"COUNTIF(FE!BK2:BK19,\"Neutral\")","v":8},{"$f":"COUNTIF(FE!BK2:BK19,\"Negative\")","v":0},{"$f":"COUNTIF(FE!BK2:BK19,\"I don't know\")","v":0},{"$f":"COUNTIF(FE!BK2:BK19,\"Not applicable\")","v":0},{"$f":"COUNTIF(FE!BP2:BP19,\"Very effective\")","v":2},{"$f":"COUNTIF(FE!BP2:BP19,\"Effective\")","v":7},{"$f":"COUNTIF(FE!BP2:BP19,\"Somewhat effective\")","v":1}]
["Women's empowerment",{"$f":"COUNTIF(FE!AE2:AE19,\"Positive\")","v":3},{"$f":"COUNTIF(FE!AE2:AE19,\"Neutral\")","v":10},{"$f":"COUNTIF(FE!AE2:AE19,\"Negative\")","v":0},{"$f":"COUNTIF(FE!AE2:AE19,\"I don't know\")","v":1},{"$f":"COUNTIF(FE!AE2:AE19,\"Not applicable\")","v":4},{"$f":"COUNTIF(FE!AJ2:AJ19,\"Very effective\")","v":0},{"$f":"COUNTIF(FE!AJ2:AJ19,\"Effective\")","v":1},{"$f":"COUNTIF(FE!AJ2:AJ19,\"Somewhat effective\")","v":2},{"$f":"COUNTIF(FE!AP2:AP19,\"Positive\")","v":4},{"$f":"COUNTIF(FE!AP2:AP19,\"Neutral\")","v":7},{"$f":"COUNTIF(FE!AP2:AP19,\"Negative\")","v":0},{"$f":"COUNTIF(FE!AP2:AP19,\"I don't know\")","v":3},{"$f":"COUNTIF(FE!AP2:AP19,\"Not applicable\")","v":4},{"$f":"COUNTIF(FE!AU2:AU19,\"Very effective\")","v":1},{"$f":"COUNTIF(FE!AU2:AU19,\"Effective\")","v":1},{"$f":"COUNTIF(FE!AU2:AU19,\"Somewhat effective\")","v":2},{"$f":"COUNTIF(FE!BA2:BA19,\"Positive\")","v":4},{"$f":"COUNTIF(FE!BA2:BA19,\"Neutral\")","v":7},{"$f":"COUNTIF(FE!BA2:BA19,\"Negative\")","v":1},{"$f":"COUNTIF(FE!BA2:BA19,\"I don't know\")","v":2},{"$f":"COUNTIF(FE!BA2:BA19,\"Not applicable\")","v":4},{"$f":"COUNTIF(FE!BF2:BF19,\"Very effective\")","v":1},{"$f":"COUNTIF(FE!BF2:BF19,\"Effective\")","v":2},{"$f":"COUNTIF(FE!BF2:BF19,\"Somewhat effective\")","v":1},{"$f":"COUNTIF(FE!BL2:BL19,\"Positive\")","v":4},{"$f":"COUNTIF(FE!BL2:BL19,\"Neutral\")","v":7},{"$f":"COUNTIF(FE!BL2:BL19,\"Negative\")","v":1},{"$f":"COUNTIF(FE!BL2:BL19,\"I don't know\")","v":2},{"$f":"COUNTIF(FE!BL2:BL19,\"Not applicable\")","v":4},{"$f":"COUNTIF(FE!BQ2:BQ19,\"Very effective\")","v":1},{"$f":"COUNTIF(FE!BQ2:BQ19,\"Effective\")","v":3},{"$f":"COUNTIF(FE!BQ2:BQ19,\"Somewhat effective\")","v":0}]
[]
[]
[null,"Positive effect",{"$nulls":4},"Negative effect",{"$nulls":5},"Positive effect",{"$nulls":5},"Negative effect"]
[null,"Undernutrition","Overnutrition","Environmental sustainability","Socio-economic inequalities","Women's empowerment","Undernutrition","Overnutrition","Environmental sustainability","Socio-economic inequalities","Women's empowerment",null,"Undernutrition","Overnutrition","Environmental sustainability","Socio-economic inequalities","Women's empowerment",null,"Undernutrition","Overnutrition","Environmental sustainability","Socio-economic inequalities","Women's empowerment"]
["Codex standards",{"$f":"B4","v":10},{"$f":"B5","v":16},{"$f":"B6","v":2},{"$f":"B7","v":8},{"$f":"B8","v":3},{"$f":"D4","v":0},{"$f":"D5","v":0},{"$f":"D6","v":0},{"$f":"D7","v":2},{"$f":"D8","v":0},"Codex standards",{"$f":"B13/'Initial info'!B3","v":{"v":0.5555555555555556,"d":"56%"}},{"$f":"C13/'Initial info'!B3","v":{"v":0.8888888888888888,"d":"89%"}},{"$f":"D13/'Initial info'!B3","v":{"v":0.1111111111111111,"d":"11%"}},{"$f":"E13/'Initial info'!B3","v":{"v":0.4444444444444444,"d":"44%"}},{"$f":"F13/'Initial info'!B3","v":{"v":0.16666666666666666,"d":"17%"}},"Codex standards",{"$f":"G13/'Initial info'!B3","v":{"v":0,"d":"0%"}},{"$f":"H13/'Initial info'!B3","v":{"v":0,"d":"0%"}},{"$f":"I13/'Initial info'!B3","v":{"v":0,"d":"0%"}},{"$f":"J13/'Initial info'!B3","v":{"v":0.1111111111111111,"d":"11%"}},{"$f":"K13/'Initial info'!B3","v":{"v":0,"d":"0%"}}]
["Evidence-based claim regulations",{"$f":"J4","v":13},{"$f":"J5","v":17},{"$f":"J6","v":14},{"$f":"J7","v":11},{"$f":"J8","v":4},{"$f":"L4","v":0},{"$f":"L5","v":0},{"$f":"L6","v":0},{"$f":"L7","v":0},{"$f":"L8","v":0},"Evidence-based claim regulations",{"$f":"B14/'Initial info'!B3","v":{"v":0.7222222222222222,"d":"72%"}},{"$f":"C14/'Initial info'!B3","v":{"v":0.9444444444444444,"d":"94%"}},{"$f":"D14/'Initial info'!B3","v":{"v":0.7777777777777778,"d":"78%"}},{"$f":"E14/'Initial info'!B3","v":{"v":0.6111111111111112,"d":"61%"}},{"$f":"F14/'Initial info'!B3","v":{"v":0.2222222222222222,"d":"22%"}},"Evidence-based claim regulations",{"$f":"G14/'Initial info'!B3","v":{"v":0,"d":"0%"}},{"$f":"H14/'Initial info'!B3","v":{"v":0,"d":"0%"}},{"$f":"I14/'Initial info'!B3","v":{"v":0,"d":"0%"}},{"$f":"J14/'Initial info'!B3","v":{"v":0,"d":"0%"}},{"$f":"K14/'Initial info'!B3","v":{"v":0,"d":"0%"}}]
["Front-of pack labeling",{"$f":"R4","v":10},{"$f":"R5","v":17},{"$f":"R6","v":18},{"$f":"R7","v":12},{"$f":"R8","v":4},{"$f":"T4","v":0},{"$f":"T5","v":0},{"$f":"T6","v":0},{"$f":"T7","v":0},{"$f":"T8","v":1},"Front-of pack labeling",{"$f":"B15/'Initial info'!B3","v":{"v":0.5555555555555556,"d":"56%"}},{"$f":"C15/'Initial info'!B3","v":{"v":0.9444444444444444,"d":"94%"}},{"$f":"D15/'Initial info'!B3","v":{"v":1,"d":"100%"}},{"$f":"E15/'Initial info'!B3","v":{"v":0.6666666666666666,"d":"67%"}},{"$f":"F15/'Initial info'!B3","v":{"v":0.2222222222222222,"d":"22%"}},"Front-of pack labeling",{"$f":"G15/'Initial info'!B3","v":{"v":0,"d":"0%"}},{"$f":"H15/'Initial info'!B3","v":{"v":0,"d":"0%"}},{"$f":"I15/'Initial info'!B3","v":{"v":0,"d":"0%"}},{"$f":"J15/'Initial info'!B3","v":{"v":0,"d":"0%"}},{"$f":"K15/'Initial info'!B3","v":{"v":0.05555555555555555,"d":"6%"}}]
["Quick-service outlets menu labeling",{"$f":"Z4","v":8},{"$f":"Z5","v":17},{"$f":"Z6","v":14},{"$f":"Z7","v":10},{"$f":"Z8","v":4},{"$f":"AB4","v":0},{"$f":"AB5","v":0},{"$f":"AB6","v":0},{"$f":"AB7","v":0},{"$f":"AB8","v":1},"Quick-service outlets menu labeling",{"$f":"B16/'Initial info'!B3","v":{"v":0.4444444444444444,"d":"44%"}},{"$f":"C16/'Initial info'!B3","v":{"v":0.9444444444444444,"d":"94%"}},{"$f":"D16/'Initial info'!B3","v":{"v":0.7777777777777778,"d":"78%"}},{"$f":"E16/'Initial info'!B3","v":{"v":0.5555555555555556,"d":"56%"}},{"$f":"F16/'Initial info'!B3","v":{"v":0.2222222222222222,"d":"22%"}},"Quick-service outlets menu labeling",{"$f":"G16/'Initial info'!B3","v":{"v":0,"d":"0%"}},{"$f":"H16/'Initial info'!B3","v":{"v":0,"d":"0%"}},{"$f":"I16/'Initial info'!B3","v":{"v":0,"d":"0%"}},{"$f":"J16/'Initial info'!B3","v":{"v":0,"d":"0%"}},{"$f":"K16/'Initial info'!B3","v":{"v":0.05555555555555555,"d":"6%"}}]
[]
[]
[null,"Effectiveness levels",{"$nulls":15},"Effectiveness levels - %"]
[null,"Undernutrition",null,null,"Overnutrition",null,null,"Environmental sustainability",null,null,"Socio-economic inequalities",null,null,"Women's empowerment",{"$nulls":3},"Undernutrition",null,null,"Overnutrition",null,null,"Environmental sustainability",null,null,"Socio-economic inequalities",null,null,"Women's empowerment"]
[null,"Very effective","Effective","Somewhat effective","Very effective","Effective","Somewhat effective","Very effective","Effective","Somewhat effective","Very effective","Effective","Somewhat effective","Very effective","Effective","Somewhat effective",null,"Very effective","Effective","Somewhat effective","Very effective","Effective","Somewhat effective","Very effective","Effective","Somewhat effective","Very effective","Effective","Somewhat effective","Very effective","Effective","Somewhat effective"]
["Codex standards",{"$f":"G4","v":1},{"$f":"H4","v":5},4,{"$f":"G5","v":5},{"$f":"H5","v":6},5,{"$f":"G6","v":0},{"$f":"H6","v":2},0,{"$f":"G7","v":0},{"$f":"H7","v":5},3,{"$f":"G8","v":0},{"$f":"H8","v":1},2,"Codex standards",{"$f":"B22/B13","v":{"v":0.1,"d":"10%"}},{"$f":"C22/B13","v":{"v":0.5,"d":"50%"}},{"$f":"D22/B13","v":{"v":0.4,"d":"40%"}},{"$f":"E22/C13","v":{"v":0.3125,"d":"31%"}},{"$f":"F22/C13","v":{"v":0.375,"d":"38%"}},{"$f":"G22/C13","v":{"v":0.3125,"d":"31%"}},{"$f":"H22/D13","v":{"v":0,"d":"0%"}},{"$f":"I22/D13","v":{"v":1,"d":"100%"}},{"$f":"J22/D13","v":{"v":0,"d":"0%"}},{"$f":"K22/E13","v":{"v":0,"d":"0%"}},{"$f":"L22/E13","v":{"v":0.625,"d":"63%"}},{"$f":"M22/E13","v":{"v":0.375,"d":"38%"}},{"$f":"N22/F13","v":{"v":0,"d":"0%"}},{"$f":"O22/F13","v":{"v":0.3333333333333333,"d":"33%"}},{"$f":"P22/F13","v":{"v":0.6666666666666666,"d":"67%"}}]
["Evidence-based claim regulations",{"$f":"O4","v":4},{"$f":"P4","v":2},7,{"$f":"O5","v":7},{"$f":"P5","v":4},6,{"$f":"O6","v":4},{"$f":"P6","v":5},5,{"$f":"O7","v":1},{"$f":"P7","v":5},5,{"$f":"O8","v":1},{"$f":"P8","v":1},2,"Evidence-based claim regulations",{"$f":"B23/B14","v":{"v":0.3076923076923077,"d":"31%"}},{"$f":"C23/B14","v":{"v":0.15384615384615385,"d":"15%"}},{"$f":"D23/B14","v":{"v":0.5384615384615384,"d":"54%"}},{"$f":"E23/C14","v":{"v":0.4117647058823529,"d":"41%"}},{"$f":"F23/C14","v":{"v":0.23529411764705882,"d":"24%"}},{"$f":"G23/C14","v":{"v":0.35294117647058826,"d":"35%"}},{"$f":"H23/D14","v":{"v":0.2857142857142857,"d":"29%"}},{"$f":"I23/D14","v":{"v":0.35714285714285715,"d":"36%"}},{"$f":"J23/D14","v":{"v":0.35714285714285715,"d":"36%"}},{"$f":"K23/E14","v":{"v":0.09090909090909091,"d":"9%"}},{"$f":"L23/E14","v":{"v":0.45454545454545453,"d":"45%"}},{"$f":"M23/E14","v":{"v":0.45454545454545453,"d":"45%"}},{"$f":"N23/F14","v":{"v":0.25,"d":"25%"}},{"$f":"O23/F14","v":{"v":0.25,"d":"25%"}},{"$f":"P23/F14","v":{"v":0.5,"d":"50%"}}]
["Front-of pack labeling",{"$f":"W4","v":2},{"$f":"X4","v":5},3,{"$f":"W5","v":8},{"$f":"X5","v":8},1,{"$f":"W6","v":8},{"$f":"X6","v":7},3,{"$f":"W7","v":0},{"$f":"X7","v":8},4,{"$f":"W8","v":1},{"$f":"X8","v":2},1,"Front-of pack labeling",{"$f":"B24/B15","v":{"v":0.2,"d":"20%"}},{"$f":"C24/B15","v":{"v":0.5,"d":"50%"}},{"v":0.3,"d":"30%"},{"v":0.47058823529411764,"d":"47%"},{"v":0.47058823529411764,"d":"47%"},{"v":0.058823529411764705,"d":"6%"},{"v":0.4444444444444444,"d":"44%"},{"v":0.3888888888888889,"d":"39%"},{"v":0.16666666666666666,"d":"17%"},{"v":0,"d":"0%"},{"v":0.6666666666666666,"d":"67%"},{"v":0.3333333333333333,"d":"33%"},{"v":0.25,"d":"25%"},{"v":0.5,"d":"50%"},{"v":0.25,"d":"25%"}]
["Quick-service outlets menu labeling",{"$f":"AE4","v":2},{"$f":"AF4","v":3},3,{"$f":"AE5","v":6},{"$f":"AF5","v":7},4,{"$f":"AE6","v":6},{"$f":"AF6","v":6},2,{"$f":"AE7","v":2},{"$f":"AF7","v":7},1,{"$f":"AE8","v":1},{"$f":"AF8","v":3},0,"Quick-service outlets menu labeling",{"$f":"B25/B16","v":{"v":0.25,"d":"25%"}},{"$f":"C25/B16","v":{"v":0.375,"d":"38%"}},{"v":0.375,"d":"38%"},{"v":0.35294117647058826,"d":"35%"},{"v":0.4117647058823529,"d":"41%"},{"v":0.23529411764705882,"d":"24%"},{"v":0.42857142857142855,"d":"43%"},{"v":0.42857142857142855,"d":"43%"},{"v":0.14285714285714285,"d":"14%"},{"v":0.2,"d":"20%"},{"v":0.7,"d":"70%"},{"v":0.1,"d":"10%"},{"v":0.25,"d":"25%"},{"v":0.75,"d":"75%"},{"v":0,"d":"0%"}]

{"sheet":"Promotion","index":10,"n_rows":21,"n_cols":32,"rows_kept":21,"merged":[[0,1,0,8],[0,9,0,16],[1,1,1,5],[1,6,1,8],[1,9,1,13],[1,14,1,16],[10,1,10,5],[10,6,10,10],[10,12,10,16],[10,18,10,22],[16,1,16,16],[16,17,16,31],[17,1,17,3],[17,4,17,6],[17,7,17,9],[17,10,17,12],[17,13,17,15],[17,17,17,19],[17,20,17,22],[17,23,17,25],[17,26,17,28],[17,29,17,31]]}
[null,"Marketing restrictions to children through all media",{"$nulls":7},"Marketing restrictions on  breastmilk substitutes"]
[null,"Effect",{"$nulls":4},"Effectiveness",null,null,"Effect",{"$nulls":4},"Effectiveness"]
[null,"Positive","Neutral","Negative","I don't know","Not applicable","Very effective","Effective","Somewhat effective","Positive","Neutral","Negative","I don't know","Not applicable","Very effective","Effective","Somewhat effective"]
["Undernutrition",{"$f":"COUNTIF(FE!BT2:BT19,\"Positive\")","v":11},{"$f":"COUNTIF(FE!BT2:BT19,\"Neutral\")","v":6},{"$f":"COUNTIF(FE!BT2:BT19,\"Negative\")","v":0},{"$f":"COUNTIF(FE!BT2:BT19,\"I don't know\")","v":0},{"$f":"COUNTIF(FE!BT2:BT19,\"Not applicable\")","v":1},{"$f":"COUNTIF(FE!BY2:BY19,\"Very effective\")","v":2},{"$f":"COUNTIF(FE!BY2:BY19,\"Effective\")","v":4},{"$f":"COUNTIF(FE!BY2:BY19,\"Somewhat effective\")","v":5},{"$f":"COUNTIF(FE!CE2:CE19,\"Positive\")","v":18},{"$f":"COUNTIF(FE!CE2:CE19,\"Neutral\")","v":0},{"$f":"COUNTIF(FE!CE2:CE19,\"Negative\")","v":0},{"$f":"COUNTIF(FE!CE2:CE19,\"I don't know\")","v":0},{"$f":"COUNTIF(FE!CE2:CE19,\"Not applicable\")","v":0},{"$f":"COUNTIF(FE!CJ2:CJ19,\"Very effective\")","v":13},{"$f":"COUNTIF(FE!CJ2:CJ19,\"Effective\")","v":4},{"$f":"COUNTIF(FE!CJ2:CJ19,\"Somewhat effective\")","v":1}]
["Overnutrition",{"$f":"COUNTIF(FE!BU2:BU19,\"Positive\")","v":18},{"$f":"COUNTIF(FE!BU2:BU19,\"Neutral\")","v":0},{"$f":"COUNTIF(FE!BU2:BU19,\"Negative\")","v":0},{"$f":"COUNTIF(FE!BU2:BU19,\"I don't know\")","v":0},{"$f":"COUNTIF(FE!BU2:BU19,\"Not applicable\")","v":0},{"$f":"COUNTIF(FE!BZ2:BZ19,\"Very effective\")","v":14},{"$f":"COUNTIF(FE!BZ2:BZ19,\"Effective\")","v":3},{"$f":"COUNTIF(FE!BZ2:BZ19,\"Somewhat effective\")","v":1},{"$f":"COUNTIF(FE!CF2:CF19,\"Positive\")","v":18},{"$f":"COUNTIF(FE!CF2:CF19,\"Neutral\")","v":0},{"$f":"COUNTIF(FE!CF2:CF19,\"Negative\")","v":0},{"$f":"COUNTIF(FE!CF2:CF19,\"I don't know\")","v":0},{"$f":"COUNTIF(FE!CF2:CF19,\"Not applicable\")","v":0},{"$f":"COUNTIF(FE!CK2:CK19,\"Very effective\")","v":6},{"$f":"COUNTIF(FE!CK2:CK19,\"Effective\")","v":9},{"$f":"COUNTIF(FE!CK2:CK19,\"Somewhat effective\")","v":3}]
["Environmental sustainability",{"$f":"COUNTIF(FE!BV2:BV19,\"Positive\")","v":7},{"$f":"COUNTIF(FE!BV2:BV19,\"Neutral\")","v":9},{"$f":"COUNTIF(FE!BV2:BV19,\"Negative\")","v":0},{"$f":"COUNTIF(FE!BV2:BV19,\"I don't know\")","v":0},{"$f":"COUNTIF(FE!BV2:BV19,\"Not applicable\")","v":2},{"$f":"COUNTIF(FE!CA2:CA19,\"Very effective\")","v":1},{"$f":"COUNTIF(FE!CA2:CA19,\"Effective\")","v":2},{"$f":"COUNTIF(FE!CA2:CA19,\"Somewhat effective\")","v":4},{"$f":"COUNTIF(FE!CG2:CG19,\"Positive\")","v":11},{"$f":"COUNTIF(FE!CG2:CG19,\"Neutral\")","v":4},{"$f":"COUNTIF(FE!CG2:CG19,\"Negative\")","v":0},{"$f":"COUNTIF(FE!CG2:CG19,\"I don't know\")","v":1},{"$f":"COUNTIF(FE!CG2:CG19,\"Not applicable\")","v":2},{"$f":"COUNTIF(FE!CL2:CL19,\"Very effective\")","v":2},{"$f":"COUNTIF(FE!CL2:CL19,\"Effective\")","v":6},{"$f":"COUNTIF(FE!CL2:CL19,\"Somewhat effective\")","v":3}]
["Socio-economic inequalities",{"$f":"COUNTIF(FE!BW2:BW19,\"Positive\")","v":18},{"$f":"COUNTIF(FE!BW2:BW19,\"Neutral\")","v":0},{"$f":"COUNTIF(FE!BW2:BW19,\"Negative\")","v":0},{"$f":"COUNTIF(FE!BW2:BW19,\"I don't know\")","v":0},{"$f":"COUNTIF(FE!BW2:BW19,\"Not applicable\")","v":0},{"$f":"COUNTIF(FE!CB2:CB19,\"Very effective\")","v":5},{"$f":"COUNTIF(FE!CB2:CB19,\"Effective\")","v":7},{"$f":"COUNTIF(FE!CB2:CB19,\"Somewhat effective\")","v":6},{"$f":"COUNTIF(FE!CH2:CH19,\"Positive\")","v":17},{"$f":"COUNTIF(FE!CH2:CH19,\"Neutral\")","v":0},{"$f":"COUNTIF(FE!CH2:CH19,\"Negative\")","v":0},{"$f":"COUNTIF(FE!CH2:CH19,\"I don't know\")","v":1},{"$f":"COUNTIF(FE!CH2:CH19,\"Not applicable\")","v":0},{"$f":"COUNTIF(FE!CM2:CM19,\"Very effective\")","v":8},{"$f":"COUNTIF(FE!CM2:CM19,\"Effective\")","v":6},{"$f":"COUNTIF(FE!CM2:CM19,\"Somewhat effective\")","v":3}]
["Women's empowerment",{"$f":"COUNTIF(FE!BX2:BX19,\"Positive\")","v":9},{"$f":"COUNTIF(FE!BX2:BX19,\"Neutral\")","v":4},{"$f":"COUNTIF(FE!BX2:BX19,\"Negative\")","v":0},{"$f":"COUNTIF(FE!BX2:BX19,\"I don't know\")","v":1},{"$f":"COUNTIF(FE!BX2:BX19,\"Not applicable\")","v":4},{"$f":"COUNTIF(FE!CC2:CC19,\"Very effective\")","v":2},{"$f":"COUNTIF(FE!CC2:CC19,\"Effective\")","v":4},{"$f":"COUNTIF(FE!CC2:CC19,\"Somewhat effective\")","v":3},{"$f":"COUNTIF(FE!CI2:CI19,\"Positive\")","v":16},{"$f":"COUNTIF(FE!CI2:CI19,\"Neutral\")","v":1},{"$f":"COUNTIF(FE!CI2:CI19,\"Negative\")","v":1},{"$f":"COUNTIF(FE!CI2:CI19,\"I don't know\")","v":0},{"$f":"COUNTIF(FE!CI2:CI19,\"Not applicable\")","v":0},{"$f":"COUNTIF(FE!CN2:CN19,\"Very effective\")","v":7},{"$f":"COUNTIF(FE!CN2:CN19,\"Effective\")","v":7},{"$f":"COUNTIF(FE!CN2:CN19,\"Somewhat effective\")","v":2}]
[]
[]
[null,"Positive effect",{"$nulls":4},"Negative effect",{"$nulls":5},"Positive effect",{"$nulls":5},"Negative effect"]
[null,"Undernutrition","Overnutrition","Environmental sustainability","Socio-economic inequalities","Women's empowerment","Undernutrition","Overnutrition","Environmental sustainability","Socio-economic inequalities","Women's empowerment",null,"Undernutrition","Overnutrition","Environmental sustainability","Socio-economic inequalities","Women's empowerment",null,"Undernutrition","Overnutrition","Environmental sustainability","Socio-economic inequalities","Women's empowerment"]
["Marketing restrictions to children through all media",{"$f":"B4","v":11},{"$f":"B5","v":18},{"$f":"B6","v":7},{"$f":"B7","v":18},{"$f":"B8","v":9},{"$f":"D4","v":0},{"$f":"D5","v":0},{"$f":"D6","v":0},{"$f":"D7","v":0},{"$f":"D8","v":0},"Marketing restrictions to children through all media",{"$f":"B13/'Initial info'!B3","v":{"v":0.6111111111111112,"d":"61%"}},{"$f":"C13/'Initial info'!B3","v":{"v":1,"d":"100%"}},{"$f":"D13/'Initial info'!B3","v":{"v":0.3888888888888889,"d":"39%"}},{"$f":"E13/'Initial info'!B3","v":{"v":1,"d":"100%"}},{"$f":"F13/'Initial info'!B3","v":{"v":0.5,"d":"50%"}},"Marketing restrictions to children through all media",{"$f":"G13/'Initial info'!B3","v":{"v":0,"d":"0%"}},{"$f":"H13/'Initial info'!B3","v":{"v":0,"d":"0%"}},{"$f":"I13/'Initial info'!B3","v":{"v":0,"d":"0%"}},{"$f":"J13/'Initial info'!B3","v":{"v":0,"d":"0%"}},{"$f":"K13/'Initial info'!B3","v":{"v":0,"d":"0%"}}]
["Marketing restrictions on  breastmilk substitutes",{"$f":"J4","v":18},{"$f":"J5","v":18},{"$f":"J6","v":11},{"$f":"J7","v":17},{"$f":"J8","v":16},{"$f":"L4","v":0},{"$f":"L5","v":0},{"$f":"L6","v":0},{"$f":"L7","v":0},{"$f":"L8","v":1},"Marketing restrictions on  breastmilk substitutes",{"$f":"B14/'Initial info'!B3","v":{"v":1,"d":"100%"}},{"$f":"C14/'Initial info'!B3","v":{"v":1,"d":"100%"}},{"$f":"D14/'Initial info'!B3","v":{"v":0.6111111111111112,"d":"61%"}},{"$f":"E14/'Initial info'!B3","v":{"v":0.9444444444444444,"d":"94%"}},{"$f":"F14/'Initial info'!B3","v":{"v":0.8888888888888888,"d":"89%"}},"Marketing restrictions on  breastmilk substitutes",{"$f":"G14/'Initial info'!B3","v":{"v":0,"d":"0%"}},{"$f":"H14/'Initial info'!B3","v":{"v":0,"d":"0%"}},{"$f":"I14/'Initial info'!B3","v":{"v":0,"d":"0%"}},{"$f":"J14/'Initial info'!B3","v":{"v":0,"d":"0%"}},{"$f":"K14/'Initial info'!B3","v":{"v":0.05555555555555555,"d":"6%"}}]
[]
[]
[null,"Effectiveness levels",{"$nulls":15},"Effectiveness levels - %"]
[null,"Undernutrition",null,null,"Overnutrition",null,null,"Environmental sustainability",null,null,"Socio-economic inequalities",null,null,"Women's empowerment",{"$nulls":3},"Undernutrition",null,null,"Overnutrition",null,null,"Environmental sustainability",null,null,"Socio-economic inequalities",null,null,"Women's empowerment"]
[null,"Very effective","Effective","Somewhat effective","Very effective","Effective","Somewhat effective","Very effective","Effective","Somewhat effective","Very effective","Effective","Somewhat effective","Very effective","Effective","Somewhat effective",null,"Very effective","Effective","Somewhat effective","Very effective","Effective","Somewhat effective","Very effective","Effective","Somewhat effective","Very effective","Effective","Somewhat effective","Very effective","Effective","Somewhat effective"]
["Marketing restrictions to children through all media",{"$f":"G4","v":2},{"$f":"H4","v":4},{"$f":"I4","v":5},{"$f":"G5","v":14},{"$f":"H5","v":3},1,{"$f":"G6","v":1},{"$f":"H6","v":2},4,{"$f":"G7","v":5},{"$f":"H7","v":7},6,{"$f":"G8","v":2},{"$f":"H8","v":4},3,"Marketing restrictions to children through all media",{"$f":"B20/B13","v":{"v":0.18181818181818182,"d":"18%"}},{"$f":"C20/B13","v":{"v":0.36363636363636365,"d":"36%"}},{"$f":"D20/B13","v":{"v":0.45454545454545453,"d":"45%"}},{"$f":"E20/C13","v":{"v":0.7777777777777778,"d":"78%"}},{"$f":"F20/C13","v":{"v":0.16666666666666666,"d":"17%"}},{"$f":"G20/C13","v":{"v":0.05555555555555555,"d":"6%"}},{"$f":"H20/D13","v":{"v":0.14285714285714285,"d":"14%"}},{"$f":"I20/D13","v":{"v":0.2857142857142857,"d":"29%"}},{"$f":"J20/D13","v":{"v":0.5714285714285714,"d":"57%"}},{"$f":"K20/E13","v":{"v":0.2777777777777778,"d":"28%"}},{"$f":"L20/E13","v":{"v":0.3888888888888889,"d":"39%"}},{"$f":"M20/E13","v":{"v":0.3333333333333333,"d":"33%"}},{"$f":"N20/F13","v":{"v":0.2222222222222222,"d":"22%"}},{"$f":"O20/F13","v":{"v":0.4444444444444444,"d":"44%"}},{"$f":"P20/F13","v":{"v":0.3333333333333333,"d":"33%"}}]
["Marketing restrictions on  breastmilk substitutes",{"$f":"O4","v":13},{"$f":"P4","v":4},{"$f":"Q4","v":1},{"$f":"O5","v":6},{"$f":"P5","v":9},3,{"$f":"O6","v":2},{"$f":"P6","v":6},3,{"$f":"O7","v":8},{"$f":"P7","v":6},3,{"$f":"O8","v":7},{"$f":"P8","v":7},2,"Marketing restrictions on  breastmilk substitutes",{"$f":"B21/B14","v":{"v":0.7222222222222222,"d":"72%"}},{"$f":"C21/B14","v":{"v":0.2222222222222222,"d":"22%"}},{"$f":"D21/B14","v":{"v":0.05555555555555555,"d":"6%"}},{"$f":"E21/C14","v":{"v":0.3333333333333333,"d":"33%"}},{"$f":"F21/C14","v":{"v":0.5,"d":"50%"}},{"$f":"G21/C14","v":{"v":0.16666666666666666,"d":"17%"}},{"$f":"H21/D14","v":{"v":0.18181818181818182,"d":"18%"}},{"$f":"I21/D14","v":{"v":0.5454545454545454,"d":"55%"}},{"$f":"J21/D14","v":{"v":0.2727272727272727,"d":"27%"}},{"$f":"K21/E14","v":{"v":0.47058823529411764,"d":"47%"}},{"$f":"L21/E14","v":{"v":0.35294117647058826,"d":"35%"}},{"$f":"M21/E14","v":{"v":0.17647058823529413,"d":"18%"}},{"$f":"N21/F14","v":{"v":0.4375,"d":"44%"}},{"$f":"O21/F14","v":{"v":0.4375,"d":"44%"}},{"$f":"P21/F14","v":{"v":0.125,"d":"13%"}}]

{"sheet":"Provision","index":11,"n_rows":23,"n_cols":32,"rows_kept":23,"merged":[[0,1,0,8],[0,9,0,16],[0,17,0,24],[1,1,1,5],[1,6,1,8],[1,9,1,13],[1,14,1,16],[1,17,1,21],[1,22,1,24],[10,1,10,5],[10,6,10,10],[10,12,10,16],[10,18,10,22],[17,1,17,16],[17,17,17,31],[18,1,18,3],[18,4,18,6],[18,7,18,9],[18,10,18,12],[18,13,18,15],[18,17,18,19],[18,20,18,22],[18,23,18,25],[18,26,18,28],[18,29,18,31]]}
[null,"School programmes",{"$nulls":7},"Provision of nutritious, sustainable food",{"$nulls":7},"Private companies"]
[null,"Effect",{"$nulls":4},"Effectiveness",null,null,"Effect",{"$nulls":4},"Effectiveness",null,null,"Effect",{"$nulls":4},"Effectiveness"]
[null,"Positive","Neutral","Negative","I don't know","Not applicable","Very effective","Effective","Somewhat effective","Positive","Neutral","Negative","I don't know","Not applicable","Very effective","Effective","Somewhat effective","Positive","Neutral","Negative","I don't know","Not applicable","Very effective","Effective","Somewhat effective"]
["Undernutrition",{"$f":"COUNTIF(FE!CQ2:CQ19,\"Positive\")","v":18},{"$f":"COUNTIF(FE!CQ2:CQ19,\"Neutral\")","v":0},{"$f":"COUNTIF(FE!CQ2:CQ19,\"Negative\")","v":0},{"$f":"COUNTIF(FE!CQ2:CQ19,\"I don't know\")","v":0},{"$f":"COUNTIF(FE!CQ2:CQ19,\"Not applicable\")","v":0},{"$f":"COUNTIF(FE!CV2:CV19,\"Very effective\")","v":14},{"$f":"COUNTIF(FE!CV2:CV19,\"Effective\")","v":3},{"$f":"COUNTIF(FE!CV2:CV19,\"Somewhat effective\")","v":1},{"$f":"COUNTIF(FE!DB2:DB19,\"Positive\")","v":18},{"$f":"COUNTIF(FE!DB2:DB19,\"Neutral\")","v":0},{"$f":"COUNTIF(FE!DB2:DB19,\"Negative\")","v":0},{"$f":"COUNTIF(FE!DB2:DB19,\"I don't know\")","v":0},{"$f":"COUNTIF(FE!DB2:DB19,\"Not applicable\")","v":0},{"$f":"COUNTIF(FE!DG2:DG19,\"Very effective\")","v":8},{"$f":"COUNTIF(FE!DG2:DG19,\"Effective\")","v":6},{"$f":"COUNTIF(FE!DG2:DG19,\"Somewhat effective\")","v":4},{"$f":"COUNTIF(FE!DM2:DM19,\"Positive\")","v":9},{"$f":"COUNTIF(FE!DM2:DM19,\"Neutral\")","v":8},{"$f":"COUNTIF(FE!DM2:DM19,\"Negative\")","v":0},{"$f":"COUNTIF(FE!DM2:DM19,\"I don't know\")","v":0},{"$f":"COUNTIF(FE!DM2:DM19,\"Not applicable\")","v":1},{"$f":"COUNTIF(FE!DR2:DR19,\"Very effective\")","v":4},{"$f":"COUNTIF(FE!DR2:DR19,\"Effective\")","v":3},{"$f":"COUNTIF(FE!DR2:DR19,\"Somewhat effective\")","v":2}]
["Overnutrition",{"$f":"COUNTIF(FE!CR2:CR19,\"Positive\")","v":18},{"$f":"COUNTIF(FE!CR2:CR19,\"Neutral\")","v":0},{"$f":"COUNTIF(FE!CR2:CR19,\"Negative\")","v":0},{"$f":"COUNTIF(FE!CR2:CR19,\"I don't know\")","v":0},{"$f":"COUNTIF(FE!CR2:CR19,\"Not applicable\")","v":0},{"$f":"COUNTIF(FE!CW2:CW19,\"Very effective\")","v":10},{"$f":"COUNTIF(FE!CW2:CW19,\"Effective\")","v":7},{"$f":"COUNTIF(FE!CW2:CW19,\"Somewhat effective\")","v":1},{"$f":"COUNTIF(FE!DC2:DC19,\"Positive\")","v":18},{"$f":"COUNTIF(FE!DC2:DC19,\"Neutral\")","v":0},{"$f":"COUNTIF(FE!DC2:DC19,\"Negative\")","v":0},{"$f":"COUNTIF(FE!DC2:DC19,\"I don't know\")","v":0},{"$f":"COUNTIF(FE!DC2:DC19,\"Not applicable\")","v":0},{"$f":"COUNTIF(FE!DH2:DH19,\"Very effective\")","v":8},{"$f":"COUNTIF(FE!DH2:DH19,\"Effective\")","v":8},{"$f":"COUNTIF(FE!DH2:DH19,\"Somewhat effective\")","v":2},{"$f":"COUNTIF(FE!DN2:DN19,\"Positive\")","v":18},{"$f":"COUNTIF(FE!DN2:DN19,\"Neutral\")","v":0},{"$f":"COUNTIF(FE!DN2:DN19,\"Negative\")","v":0},{"$f":"COUNTIF(FE!DN2:DN19,\"I don't know\")","v":0},{"$f":"COUNTIF(FE!DN2:DN19,\"Not applicable\")","v":0},{"$f":"COUNTIF(FE!DS2:DS19,\"Very effective\")","v":5},{"$f":"COUNTIF(FE!DS2:DS19,\"Effective\")","v":7},{"$f":"COUNTIF(FE!DS2:DS19,\"Somewhat effective\")","v":6}]
["Environmental sustainability",{"$f":"COUNTIF(FE!CS2:CS19,\"Positive\")","v":14},{"$f":"COUNTIF(FE!CS2:CS19,\"Neutral\")","v":1},{"$f":"COUNTIF(FE!CS2:CS19,\"Negative\")","v":3},{"$f":"COUNTIF(FE!CS2:CS19,\"I don't know\")","v":0},{"$f":"COUNTIF(FE!CS2:CS19,\"Not applicable\")","v":0},{"$f":"COUNTIF(FE!CX2:CX19,\"Very effective\")","v":6},{"$f":"COUNTIF(FE!CX2:CX19,\"Effective\")","v":6},{"$f":"COUNTIF(FE!CX2:CX19,\"Somewhat effective\")","v":2},{"$f":"COUNTIF(FE!DD2:DD19,\"Positive\")","v":15},{"$f":"COUNTIF(FE!DD2:DD19,\"Neutral\")","v":1},{"$f":"COUNTIF(FE!DD2:DD19,\"Negative\")","v":2},{"$f":"COUNTIF(FE!DD2:DD19,\"I don't know\")","v":0},{"$f":"COUNTIF(FE!DD2:DD19,\"Not applicable\")","v":0},{"$f":"COUNTIF(FE!DI2:DI19,\"Very effective\")","v":6},{"$f":"COUNTIF(FE!DI2:DI19,\"Effective\")","v":8},{"$f":"COUNTIF(FE!DI2:DI19,\"Somewhat effective\")","v":1},{"$f":"COUNTIF(FE!DO2:DO19,\"Positive\")","v":14},{"$f":"COUNTIF(FE!DO2:DO19,\"Neutral\")","v":1},{"$f":"COUNTIF(FE!DO2:DO19,\"Negative\")","v":3},{"$f":"COUNTIF(FE!DO2:DO19,\"I don't know\")","v":0},{"$f":"COUNTIF(FE!DO2:DO19,\"Not applicable\")","v":0},{"$f":"COUNTIF(FE!DT2:DT19,\"Very effective\")","v":3},{"$f":"COUNTIF(FE!DT2:DT19,\"Effective\")","v":5},{"$f":"COUNTIF(FE!DT2:DT19,\"Somewhat effective\")","v":6}]
["Socio-economic inequalities",{"$f":"COUNTIF(FE!CT2:CT19,\"Positive\")","v":18},{"$f":"COUNTIF(FE!CT2:CT19,\"Neutral\")","v":0},{"$f":"COUNTIF(FE!CT2:CT19,\"Negative\")","v":0},{"$f":"COUNTIF(FE!CT2:CT19,\"I don't know\")","v":0},{"$f":"COUNTIF(FE!CT2:CT19,\"Not applicable\")","v":0},{"$f":"COUNTIF(FE!CY2:CY19,\"Very effective\")","v":12},{"$f":"COUNTIF(FE!CY2:CY19,\"Effective\")","v":4},{"$f":"COUNTIF(FE!CY2:CY19,\"Somewhat effective\")","v":2},{"$f":"COUNTIF(FE!DE2:DE19,\"Positive\")","v":18},{"$f":"COUNTIF(FE!DE2:DE19,\"Neutral\")","v":0},{"$f":"COUNTIF(FE!DE2:DE19,\"Negative\")","v":0},{"$f":"COUNTIF(FE!DE2:DE19,\"I don't know\")","v":0},{"$f":"COUNTIF(FE!DE2:DE19,\"Not applicable\")","v":0},{"$f":"COUNTIF(FE!DJ2:DJ19,\"Very effective\")","v":10},{"$f":"COUNTIF(FE!DJ2:DJ19,\"Effective\")","v":4},{"$f":"COUNTIF(FE!DJ2:DJ19,\"Somewhat effective\")","v":4},{"$f":"COUNTIF(FE!DP2:DP19,\"Positive\")","v":15},{"$f":"COUNTIF(FE!DP2:DP19,\"Neutral\")","v":3},{"$f":"COUNTIF(FE!DP2:DP19,\"Negative\")","v":0},{"$f":"COUNTIF(FE!DP2:DP19,\"I don't know\")","v":0},{"$f":"COUNTIF(FE!DP2:DP19,\"Not applicable\")","v":0},{"$f":"COUNTIF(FE!DU2:DU19,\"Very effective\")","v":4},{"$f":"COUNTIF(FE!DU2:DU19,\"Effective\")","v":5},{"$f":"COUNTIF(FE!DU2:DU19,\"Somewhat effective\")","v":6}]
["Women's empowerment",{"$f":"COUNTIF(FE!CU2:CU19,\"Positive\")","v":14},{"$f":"COUNTIF(FE!CU2:CU19,\"Neutral\")","v":1},{"$f":"COUNTIF(FE!CU2:CU19,\"Negative\")","v":0},{"$f":"COUNTIF(FE!CU2:CU19,\"I don't know\")","v":1},{"$f":"COUNTIF(FE!CU2:CU19,\"Not applicable\")","v":2},{"$f":"COUNTIF(FE!CZ2:CZ19,\"Very effective\")","v":7},{"$f":"COUNTIF(FE!CZ2:CZ19,\"Effective\")","v":5},{"$f":"COUNTIF(FE!CZ2:CZ19,\"Somewhat effective\")","v":2},{"$f":"COUNTIF(FE!DF2:DF19,\"Positive\")","v":14},{"$f":"COUNTIF(FE!DF2:DF19,\"Neutral\")","v":3},{"$f":"COUNTIF(FE!DF2:DF19,\"Negative\")","v":0},{"$f":"COUNTIF(FE!DF2:DF19,\"I don't know\")","v":0},{"$f":"COUNTIF(FE!DF2:DF19,\"Not applicable\")","v":1},{"$f":"COUNTIF(FE!DK2:DK19,\"Very effective\")","v":5},{"$f":"COUNTIF(FE!DK2:DK19,\"Effective\")","v":6},{"$f":"COUNTIF(FE!DK2:DK19,\"Somewhat effective\")","v":3},{"$f":"COUNTIF(FE!DQ2:DQ19,\"Positive\")","v":8},{"$f":"COUNTIF(FE!DQ2:DQ19,\"Neutral\")","v":6},{"$f":"COUNTIF(FE!DQ2:DQ19,\"Negative\")","v":0},{"$f":"COUNTIF(FE!DQ2:DQ19,\"I don't know\")","v":2},{"$f":"COUNTIF(FE!DQ2:DQ19,\"Not applicable\")","v":2},{"$f":"COUNTIF(FE!DV2:DV19,\"Very effective\")","v":4},{"$f":"COUNTIF(FE!DV2:DV19,\"Effective\")","v":1},{"$f":"COUNTIF(FE!DV2:DV19,\"Somewhat effective\")","v":3}]
[]
[]
[null,"Positive effect",{"$nulls":4},"Negative effect",{"$nulls":5},"Positive effect",{"$nulls":5},"Negative effect"]
[null,"Undernutrition","Overnutrition","Environmental sustainability","Socio-economic inequalities","Women's empowerment","Undernutrition","Overnutrition","Environmental sustainability","Socio-economic inequalities","Women's empowerment",null,"Undernutrition","Overnutrition","Environmental sustainability","Socio-economic inequalities","Women's empowerment",null,"Undernutrition","Overnutrition","Environmental sustainability","Socio-economic inequalities","Women's empowerment"]
["School programmes",{"$f":"B4","v":18},{"$f":"B5","v":18},{"$f":"B6","v":14},{"$f":"B7","v":18},{"$f":"B8","v":14},{"$f":"D4","v":0},{"$f":"D5","v":0},{"$f":"D6","v":3},{"$f":"D7","v":0},{"$f":"D8","v":0},"School programmes",{"$f":"B13/'Initial info'!B3","v":{"v":1,"d":"100%"}},{"$f":"C13/'Initial info'!B3","v":{"v":1,"d":"100%"}},{"$f":"D13/'Initial info'!B3","v":{"v":0.7777777777777778,"d":"78%"}},{"$f":"E13/'Initial info'!B3","v":{"v":1,"d":"100%"}},{"$f":"F13/'Initial info'!B3","v":{"v":0.7777777777777778,"d":"78%"}},"School programmes",{"$f":"G13/'Initial info'!B3","v":{"v":0,"d":"0%"}},{"$f":"H13/'Initial info'!B3","v":{"v":0,"d":"0%"}},{"$f":"I13/'Initial info'!B3","v":{"v":0.16666666666666666,"d":"17%"}},{"$f":"J13/'Initial info'!B3","v":{"v":0,"d":"0%"}},{"$f":"K13/'Initial info'!B3","v":{"v":0,"d":"0%"}}]
["Provision of nutritious, sustainable food",{"$f":"J4","v":18},{"$f":"J5","v":18},{"$f":"J6","v":15},{"$f":"J7","v":18},{"$f":"J8","v":14},{"$f":"L4","v":0},{"$f":"L5","v":0},{"$f":"L6","v":2},{"$f":"L7","v":0},{"$f":"L8","v":0},"Provision of nutritious, sustainable food",{"$f":"B14/'Initial info'!B3","v":{"v":1,"d":"100%"}},{"$f":"C14/'Initial info'!B3","v":{"v":1,"d":"100%"}},{"$f":"D14/'Initial info'!B3","v":{"v":0.8333333333333334,"d":"83%"}},{"$f":"E14/'Initial info'!B3","v":{"v":1,"d":"100%"}},{"$f":"F14/'Initial info'!B3","v":{"v":0.7777777777777778,"d":"78%"}},"Provision of nutritious, sustainable food",{"$f":"G14/'Initial info'!B3","v":{"v":0,"d":"0%"}},{"$f":"H14/'Initial info'!B3","v":{"v":0,"d":"0%"}},{"$f":"I14/'Initial info'!B3","v":{"v":0.1111111111111111,"d":"11%"}},{"$f":"J14/'Initial info'!B3","v":{"v":0,"d":"0%"}},{"$f":"K14/'Initial info'!B3","v":{"v":0,"d":"0%"}}]
["Private companies",{"$f":"R4","v":9},{"$f":"R5","v":18},{"$f":"R6","v":14},{"$f":"R7","v":15},{"$f":"R8","v":8},{"$f":"T4","v":0},{"$f":"T5","v":0},{"$f":"T6","v":3},{"$f":"T7","v":0},{"$f":"T8","v":0},"Private companies",{"$f":"B15/'Initial info'!B3","v":{"v":0.5,"d":"50%"}},{"$f":"C15/'Initial info'!B3","v":{"v":1,"d":"100%"}},{"$f":"D15/'Initial info'!B3","v":{"v":0.7777777777777778,"d":"78%"}},{"$f":"E15/'Initial info'!B3","v":{"v":0.8333333333333334,"d":"83%"}},{"$f":"F15/'Initial info'!B3","v":{"v":0.4444444444444444,"d":"44%"}},"Private companies",{"$f":"G15/'Initial info'!B3","v":{"v":0,"d":"0%"}},{"$f":"H15/'Initial info'!B3","v":{"v":0,"d":"0%"}},{"$f":"I15/'Initial info'!B3","v":{"v":0.16666666666666666,"d":"17%"}},{"$f":"J15/'Initial info'!B3","v":{"v":0,"d":"0%"}},{"$f":"K15/'Initial info'!B3","v":{"v":0,"d":"0%"}}]
[]
[]
[null,"Effectiveness levels",{"$nulls":15},"Effectiveness levels - %"]
[null,"Undernutrition",null,null,"Overnutrition",null,null,"Environmental sustainability",null,null,"Socio-economic inequalities",null,null,"Women's empowerment",{"$nulls":3},"Undernutrition",null,null,"Overnutrition",null,null,"Environmental sustainability",null,null,"Socio-economic inequalities",null,null,"Women's empowerment"]
[null,"Very effective","Effective","Somewhat effective","Very effective","Effective","Somewhat effective","Very effective","Effective","Somewhat effective","Very effective","Effective","Somewhat effective","Very effective","Effective","Somewhat effective",null,"Very effective","Effective","Somewhat effective","Very effective","Effective","Somewhat effective","Very effective","Effective","Somewhat effective","Very effective","Effective","Somewhat effective","Very effective","Effective","Somewhat effective"]
["School programmes",{"$f":"G4","v":14},{"$f":"H4","v":3},{"$f":"I4","v":1},{"$f":"G5","v":10},{"$f":"H5","v":7},{"$f":"I5","v":1},{"$f":"G6","v":6},{"$f":"H6","v":6},2,{"$f":"G7","v":12},{"$f":"H7","v":4},2,{"$f":"G8","v":7},{"$f":"H8","v":5},2,"School programmes",{"$f":"B21/B13","v":{"v":0.7777777777777778,"d":"78%"}},{"$f":"C21/B13","v":{"v":0.16666666666666666,"d":"17%"}},{"$f":"D21/B13","v":{"v":0.05555555555555555,"d":"6%"}},{"$f":"E21/C13","v":{"v":0.5555555555555556,"d":"56%"}},{"$f":"F21/C13","v":{"v":0.3888888888888889,"d":"39%"}},{"$f":"G21/C13","v":{"v":0.05555555555555555,"d":"6%"}},{"$f":"H21/D13","v":{"v":0.42857142857142855,"d":"43%"}},{"$f":"I21/D13","v":{"v":0.42857142857142855,"d":"43%"}},{"$f":"J21/D13","v":{"v":0.14285714285714285,"d":"14%"}},{"$f":"K21/E13","v":{"v":0.6666666666666666,"d":"67%"}},{"$f":"L21/E13","v":{"v":0.2222222222222222,"d":"22%"}},{"$f":"M21/E13","v":{"v":0.1111111111111111,"d":"11%"}},{"$f":"N21/F13","v":{"v":0.5,"d":"50%"}},{"$f":"O21/F13","v":{"v":0.35714285714285715,"d":"36%"}},{"$f":"P21/F13","v":{"v":0.14285714285714285,"d":"14%"}}]
["Provision of nutritious, sustainable food",{"$f":"O4","v":8},{"$f":"P4","v":6},4,{"$f":"O5","v":8},{"$f":"P5","v":8},2,{"$f":"O6","v":6},{"$f":"P6","v":8},1,{"$f":"O7","v":10},{"$f":"P7","v":4},4,{"$f":"O8","v":5},{"$f":"P8","v":6},3,"Provision of nutritious, sustainable food",{"$f":"B22/B14","v":{"v":0.4444444444444444,"d":"44%"}},{"$f":"C22/B14","v":{"v":0.3333333333333333,"d":"33%"}},{"$f":"D22/B14","v":{"v":0.2222222222222222,"d":"22%"}},{"v":0.4444444444444444,"d":"44%"},{"$f":"F22/C14","v":{"v":0.4444444444444444,"d":"44%"}},{"$f":"G22/C14","v":{"v":0.1111111111111111,"d":"11%"}},{"$f":"H22/D14","v":{"v":0.4,"d":"40%"}},{"$f":"I22/D14","v":{"v":0.5333333333333333,"d":"53%"}},{"$f":"J22/D14","v":{"v":0.06666666666666667,"d":"7%"}},{"$f":"K22/E14","v":{"v":0.5555555555555556,"d":"56%"}},{"$f":"L22/E14","v":{"v":0.2222222222222222,"d":"22%"}},{"$f":"M22/E14","v":{"v":0.2222222222222222,"d":"22%"}},{"$f":"N22/F14","v":{"v":0.35714285714285715,"d":"36%"}},{"$f":"O22/F14","v":{"v":0.42857142857142855,"d":"43%"}},{"$f":"P22/F14","v":{"v":0.21428571428571427,"d":"21%"}}]
["Private companies",{"$f":"W4","v":4},{"$f":"X4","v":3},2,{"$f":"W5","v":5},{"$f":"X5","v":7},6,{"$f":"W6","v":3},{"$f":"X6","v":5},6,{"$f":"W7","v":4},{"$f":"X7","v":5},6,{"$f":"W8","v":4},{"$f":"X8","v":1},3,"Private companies",{"$f":"B23/B15","v":{"v":0.4444444444444444,"d":"44%"}},{"v":0.3333333333333333,"d":"33%"},{"v":0.2222222222222222,"d":"22%"},{"v":0.2777777777777778,"d":"28%"},{"v":0.3888888888888889,"d":"39%"},{"v":0.3333333333333333,"d":"33%"},{"v":0.21428571428571427,"d":"21%"},{"$f":"I23/D15","v":{"v":0.35714285714285715,"d":"36%"}},{"$f":"J23/D15","v":{"v":0.42857142857142855,"d":"43%"}},{"v":0.26666666666666666,"d":"27%"},{"$f":"L23/E15","v":{"v":0.3333333333333333,"d":"33%"}},{"v":0.4,"d":"40%"},{"v":0.5,"d":"50%"},{"v":0.125,"d":"13%"},{"v":0.375,"d":"38%"}]

{"sheet":"Retail","index":12,"n_rows":25,"n_cols":33,"rows_kept":25,"merged":[[0,1,0,8],[0,9,0,16],[0,17,0,24],[0,25,0,32],[1,1,1,5],[1,6,1,8],[1,9,1,13],[1,14,1,16],[1,17,1,21],[1,22,1,24],[1,25,1,29],[1,30,1,32],[10,1,10,5],[10,6,10,10],[10,12,10,16],[10,18,10,22],[18,1,18,16],[18,17,18,31],[19,1,19,3],[19,4,19,6],[19,7,19,9],[19,10,19,12],[19,13,19,15],[19,17,19,19],[19,20,19,22],[19,23,19,25],[19,26,19,28],[19,29,19,31]]}
[null,"Zoning laws",{"$nulls":7},"Healthy, sustainable food in food tracks, street vendors",{"$nulls":7},"Healthy, sustainable food in stores",{"$nulls":7},"Environmental impact measures"]
[null,"Effect",{"$nulls":4},"Effectiveness",null,null,"Effect",{"$nulls":4},"Effectiveness",null,null,"Effect",{"$nulls":4},"Effectiveness",null,null,"Effect",{"$nulls":4},"Effectiveness"]
[null,"Positive","Neutral","Negative","I don't know","Not applicable","Very effective","Effective","Somewhat effective","Positive","Neutral","Negative","I don't know","Not applicable","Very effective","Effective","Somewhat effective","Positive","Neutral","Negative","I don't know","Not applicable","Very effective","Effective","Somewhat effective","Positive","Neutral","Negative","I don't know","Not applicable","Very effective","Effective","Somewhat effective"]
["Undernutrition",{"$f":"COUNTIF(FE!DY2:DY19,\"Positive\")","v":13},{"$f":"COUNTIF(FE!DY2:DY19,\"Neutral\")","v":3},{"$f":"COUNTIF(FE!DY2:DY19,\"Negative\")","v":0},{"$f":"COUNTIF(FE!DY2:DY19,\"I don't know\")","v":2},{"$f":"COUNTIF(FE!DY2:DY19,\"Not applicable\")","v":0},{"$f":"COUNTIF(FE!ED2:ED19,\"Very effective\")","v":4},{"$f":"COUNTIF(FE!ED2:ED19,\"Effective\")","v":4},{"$f":"COUNTIF(FE!ED2:ED19,\"Somewhat effective\")","v":5},{"$f":"COUNTIF(FE!EJ2:EJ19,\"Positive\")","v":11},{"$f":"COUNTIF(FE!EJ2:EJ19,\"Neutral\")","v":6},{"$f":"COUNTIF(FE!EJ2:EJ19,\"Negative\")","v":0},{"$f":"COUNTIF(FE!EJ2:EJ19,\"I don't know\")","v":0},{"$f":"COUNTIF(FE!EJ2:EJ19,\"Not applicable\")","v":1},{"$f":"COUNTIF(FE!EO2:EO19,\"Very effective\")","v":2},{"$f":"COUNTIF(FE!EO2:EO19,\"Effective\")","v":5},{"$f":"COUNTIF(FE!EO2:EO19,\"Somewhat effective\")","v":4},{"$f":"COUNTIF(FE!EU2:EU19,\"Positive\")","v":14},{"$f":"COUNTIF(FE!EU2:EU19,\"Neutral\")","v":3},{"$f":"COUNTIF(FE!EU2:EU19,\"Negative\")","v":0},{"$f":"COUNTIF(FE!EU2:EU19,\"I don't know\")","v":0},{"$f":"COUNTIF(FE!EU2:EU19,\"Not applicable\")","v":1},{"$f":"COUNTIF(FE!EZ2:EZ19,\"Very effective\")","v":4},{"$f":"COUNTIF(FE!EZ2:EZ19,\"Effective\")","v":4},{"$f":"COUNTIF(FE!EZ2:EZ19,\"Somewhat effective\")","v":6},{"$f":"COUNTIF(FE!FF2:FF19,\"Positive\")","v":9},{"$f":"COUNTIF(FE!FF2:FF19,\"Neutral\")","v":6},{"$f":"COUNTIF(FE!FF2:FF19,\"Negative\")","v":0},{"$f":"COUNTIF(FE!FF2:FF19,\"I don't know\")","v":3},{"$f":"COUNTIF(FE!FF2:FF19,\"Not applicable\")","v":0},{"$f":"COUNTIF(FE!FK2:FK19,\"Very effective\")","v":1},{"$f":"COUNTIF(FE!FK2:FK19,\"Effective\")","v":3},{"$f":"COUNTIF(FE!FK2:FK19,\"Somewhat effective\")","v":5}]
["Overnutrition",{"$f":"COUNTIF(FE!DZ2:DZ19,\"Positive\")","v":17},{"$f":"COUNTIF(FE!DZ2:DZ19,\"Neutral\")","v":0},{"$f":"COUNTIF(FE!DZ2:DZ19,\"Negative\")","v":0},{"$f":"COUNTIF(FE!DZ2:DZ19,\"I don't know\")","v":1},{"$f":"COUNTIF(FE!DZ2:DZ19,\"Not applicable\")","v":0},{"$f":"COUNTIF(FE!EE2:EE19,\"Very effective\")","v":8},{"$f":"COUNTIF(FE!EE2:EE19,\"Effective\")","v":6},{"$f":"COUNTIF(FE!EE2:EE19,\"Somewhat effective\")","v":3},{"$f":"COUNTIF(FE!EK2:EK19,\"Positive\")","v":18},{"$f":"COUNTIF(FE!EK2:EK19,\"Neutral\")","v":0},{"$f":"COUNTIF(FE!EK2:EK19,\"Negative\")","v":0},{"$f":"COUNTIF(FE!EK2:EK19,\"I don't know\")","v":0},{"$f":"COUNTIF(FE!EK2:EK19,\"Not applicable\")","v":0},{"$f":"COUNTIF(FE!EP2:EP19,\"Very effective\")","v":5},{"$f":"COUNTIF(FE!EP2:EP19,\"Effective\")","v":7},{"$f":"COUNTIF(FE!EP2:EP19,\"Somewhat effective\")","v":6},{"$f":"COUNTIF(FE!EV2:EV19,\"Positive\")","v":17},{"$f":"COUNTIF(FE!EV2:EV19,\"Neutral\")","v":1},{"$f":"COUNTIF(FE!EV2:EV19,\"Negative\")","v":0},{"$f":"COUNTIF(FE!EV2:EV19,\"I don't know\")","v":0},{"$f":"COUNTIF(FE!EV2:EV19,\"Not applicable\")","v":0},{"$f":"COUNTIF(FE!FA2:FA19,\"Very effective\")","v":4},{"$f":"COUNTIF(FE!FA2:FA19,\"Effective\")","v":8},{"$f":"COUNTIF(FE!FA2:FA19,\"Somewhat effective\")","v":5},{"$f":"COUNTIF(FE!FG2:FG19,\"Positive\")","v":11},{"$f":"COUNTIF(FE!FG2:FG19,\"Neutral\")","v":5},{"$f":"COUNTIF(FE!FG2:FG19,\"Negative\")","v":0},{"$f":"COUNTIF(FE!FG2:FG19,\"I don't know\")","v":2},{"$f":"COUNTIF(FE!FG2:FG19,\"Not applicable\")","v":0},{"$f":"COUNTIF(FE!FL2:FL19,\"Very effective\")","v":1},{"$f":"COUNTIF(FE!FL2:FL19,\"Effective\")","v":4},{"$f":"COUNTIF(FE!FL2:FL19,\"Somewhat effective\")","v":6}]
["Environmental sustainability",{"$f":"COUNTIF(FE!EA2:EA19,\"Positive\")","v":9},{"$f":"COUNTIF(FE!EA2:EA19,\"Neutral\")","v":6},{"$f":"COUNTIF(FE!EA2:EA19,\"Negative\")","v":1},{"$f":"COUNTIF(FE!EA2:EA19,\"I don't know\")","v":1},{"$f":"COUNTIF(FE!EA2:EA19,\"Not applicable\")","v":1},{"$f":"COUNTIF(FE!EF2:EF19,\"Very effective\")","v":1},{"$f":"COUNTIF(FE!EF2:EF19,\"Effective\")","v":6},{"$f":"COUNTIF(FE!EF2:EF19,\"Somewhat effective\")","v":2},{"$f":"COUNTIF(FE!EL2:EL19,\"Positive\")","v":15},{"$f":"COUNTIF(FE!EL2:EL19,\"Neutral\")","v":3},{"$f":"COUNTIF(FE!EL2:EL19,\"Negative\")","v":0},{"$f":"COUNTIF(FE!EL2:EL19,\"I don't know\")","v":0},{"$f":"COUNTIF(FE!EL2:EL19,\"Not applicable\")","v":0},{"$f":"COUNTIF(FE!EQ2:EQ19,\"Very effective\")","v":2},{"$f":"COUNTIF(FE!EQ2:EQ19,\"Effective\")","v":6},{"$f":"COUNTIF(FE!EQ2:EQ19,\"Somewhat effective\")","v":7},{"$f":"COUNTIF(FE!EW2:EW19,\"Positive\")","v":17},{"$f":"COUNTIF(FE!EW2:EW19,\"Neutral\")","v":1},{"$f":"COUNTIF(FE!EW2:EW19,\"Negative\")","v":0},{"$f":"COUNTIF(FE!EW2:EW19,\"I don't know\")","v":0},{"$f":"COUNTIF(FE!EW2:EW19,\"Not applicable\")","v":0},{"$f":"COUNTIF(FE!FB2:FB19,\"Very effective\")","v":0},{"$f":"COUNTIF(FE!FB2:FB19,\"Effective\")","v":9},{"$f":"COUNTIF(FE!FB2:FB19,\"Somewhat effective\")","v":8},{"$f":"COUNTIF(FE!FH2:FH19,\"Positive\")","v":14},{"$f":"COUNTIF(FE!FH2:FH19,\"Neutral\")","v":1},{"$f":"COUNTIF(FE!FH2:FH19,\"Negative\")","v":0},{"$f":"COUNTIF(FE!FH2:FH19,\"I don't know\")","v":3},{"$f":"COUNTIF(FE!FH2:FH19,\"Not applicable\")","v":0},{"$f":"COUNTIF(FE!FM2:FM19,\"Very effective\")","v":5},{"$f":"COUNTIF(FE!FM2:FM19,\"Effective\")","v":5},{"$f":"COUNTIF(FE!FM2:FM19,\"Somewhat effective\")","v":4}]
["Socio-economic inequalities",{"$f":"COUNTIF(FE!EB2:EB19,\"Positive\")","v":16},{"$f":"COUNTIF(FE!EB2:EB19,\"Neutral\")","v":1},{"$f":"COUNTIF(FE!EB2:EB19,\"Negative\")","v":0},{"$f":"COUNTIF(FE!EB2:EB19,\"I don't know\")","v":1},{"$f":"COUNTIF(FE!EB2:EB19,\"Not applicable\")","v":0},{"$f":"COUNTIF(FE!EG2:EG19,\"Very effective\")","v":5},{"$f":"COUNTIF(FE!EG2:EG19,\"Effective\")","v":5},{"$f":"COUNTIF(FE!EG2:EG19,\"Somewhat effective\")","v":6},{"$f":"COUNTIF(FE!EM2:EM19,\"Positive\")","v":13},{"$f":"COUNTIF(FE!EM2:EM19,\"Neutral\")","v":5},{"$f":"COUNTIF(FE!EM2:EM19,\"Negative\")","v":0},{"$f":"COUNTIF(FE!EM2:EM19,\"I don't know\")","v":0},{"$f":"COUNTIF(FE!EM2:EM19,\"Not applicable\")","v":0},{"$f":"COUNTIF(FE!ER2:ER19,\"Very effective\")","v":5},{"$f":"COUNTIF(FE!ER2:ER19,\"Effective\")","v":2},{"$f":"COUNTIF(FE!ER2:ER19,\"Somewhat effective\")","v":6},{"$f":"COUNTIF(FE!EX2:EX19,\"Positive\")","v":12},{"$f":"COUNTIF(FE!EX2:EX19,\"Neutral\")","v":6},{"$f":"COUNTIF(FE!EX2:EX19,\"Negative\")","v":0},{"$f":"COUNTIF(FE!EX2:EX19,\"I don't know\")","v":0},{"$f":"COUNTIF(FE!EX2:EX19,\"Not applicable\")","v":0},{"$f":"COUNTIF(FE!FC2:FC19,\"Very effective\")","v":0},{"$f":"COUNTIF(FE!FC2:FC19,\"Effective\")","v":6},{"$f":"COUNTIF(FE!FC2:FC19,\"Somewhat effective\")","v":6},{"$f":"COUNTIF(FE!FI2:FI19,\"Positive\")","v":13},{"$f":"COUNTIF(FE!FI2:FI19,\"Neutral\")","v":2},{"$f":"COUNTIF(FE!FI2:FI19,\"Negative\")","v":0},{"$f":"COUNTIF(FE!FI2:FI19,\"I don't know\")","v":3},{"$f":"COUNTIF(FE!FI2:FI19,\"Not applicable\")","v":0},{"$f":"COUNTIF(FE!FN2:FN19,\"Very effective\")","v":5},{"$f":"COUNTIF(FE!FN2:FN19,\"Effective\")","v":4},{"$f":"COUNTIF(FE!FN2:FN19,\"Somewhat effective\")","v":4}]
["Women's empowerment",{"$f":"COUNTIF(FE!EC2:EC19,\"Positive\")","v":12},{"$f":"COUNTIF(FE!EC2:EC19,\"Neutral\")","v":0},{"$f":"COUNTIF(FE!EC2:EC19,\"Negative\")","v":1},{"$f":"COUNTIF(FE!EC2:EC19,\"I don't know\")","v":3},{"$f":"COUNTIF(FE!EC2:EC19,\"Not applicable\")","v":2},{"$f":"COUNTIF(FE!EH2:EH19,\"Very effective\")","v":2},{"$f":"COUNTIF(FE!EH2:EH19,\"Effective\")","v":6},{"$f":"COUNTIF(FE!EH2:EH19,\"Somewhat effective\")","v":4},{"$f":"COUNTIF(FE!EN2:EN19,\"Positive\")","v":9},{"$f":"COUNTIF(FE!EN2:EN19,\"Neutral\")","v":4},{"$f":"COUNTIF(FE!EN2:EN19,\"Negative\")","v":0},{"$f":"COUNTIF(FE!EN2:EN19,\"I don't know\")","v":2},{"$f":"COUNTIF(FE!EN2:EN19,\"Not applicable\")","v":3},{"$f":"COUNTIF(FE!ES2:ES19,\"Very effective\")","v":5},{"$f":"COUNTIF(FE!ES2:ES19,\"Effective\")","v":3},{"$f":"COUNTIF(FE!ES2:ES19,\"Somewhat effective\")","v":1},{"$f":"COUNTIF(FE!EY2:EY19,\"Positive\")","v":5},{"$f":"COUNTIF(FE!EY2:EY19,\"Neutral\")","v":6},{"$f":"COUNTIF(FE!EY2:EY19,\"Negative\")","v":0},{"$f":"COUNTIF(FE!EY2:EY19,\"I don't know\")","v":2},{"$f":"COUNTIF(FE!EY2:EY19,\"Not applicable\")","v":5},{"$f":"COUNTIF(FE!FD2:FD19,\"Very effective\")","v":0},{"$f":"COUNTIF(FE!FD2:FD19,\"Effective\")","v":3},{"$f":"COUNTIF(FE!FD2:FD19,\"Somewhat effective\")","v":2},{"$f":"COUNTIF(FE!FJ2:FJ19,\"Positive\")","v":11},{"$f":"COUNTIF(FE!FJ2:FJ19,\"Neutral\")","v":3},{"$f":"COUNTIF(FE!FJ2:FJ19,\"Negative\")","v":0},{"$f":"COUNTIF(FE!FJ2:FJ19,\"I don't know\")","v":3},{"$f":"COUNTIF(FE!FJ2:FJ19,\"Not applicable\")","v":1},{"$f":"COUNTIF(FE!FO2:FO19,\"Very effective\")","v":2},{"$f":"COUNTIF(FE!FO2:FO19,\"Effective\")","v":7},{"$f":"COUNTIF(FE!FO2:FO19,\"Somewhat effective\")","v":2}]
[]
[]
[null,"Positive effect",{"$nulls":4},"Negative effect",{"$nulls":5},"Positive effect",{"$nulls":5},"Negative effect"]
[null,"Undernutrition","Overnutrition","Environmental sustainability","Socio-economic inequalities","Women's empowerment","Undernutrition","Overnutrition","Environmental sustainability","Socio-economic inequalities","Women's empowerment",null,"Undernutrition","Overnutrition","Environmental sustainability","Socio-economic inequalities","Women's empowerment",null,"Undernutrition","Overnutrition","Environmental sustainability","Socio-economic inequalities","Women's empowerment"]
["Zoning laws",{"$f":"B4","v":13},{"$f":"B5","v":17},{"$f":"B6","v":9},{"$f":"B7","v":16},{"$f":"B8","v":12},{"$f":"D4","v":0},{"$f":"D5","v":0},{"$f":"D6","v":1},{"$f":"D7","v":0},{"$f":"D8","v":1},"Zoning laws",{"$f":"B13/'Initial info'!B3","v":{"v":0.7222222222222222,"d":"72%"}},{"$f":"C13/'Initial info'!B3","v":{"v":0.9444444444444444,"d":"94%"}},{"$f":"D13/'Initial info'!B3","v":{"v":0.5,"d":"50%"}},{"$f":"E13/'Initial info'!B3","v":{"v":0.8888888888888888,"d":"89%"}},{"$f":"F13/'Initial info'!B3","v":{"v":0.6666666666666666,"d":"67%"}},"Zoning laws",{"$f":"G13/'Initial info'!B3","v":{"v":0,"d":"0%"}},{"$f":"H13/'Initial info'!B3","v":{"v":0,"d":"0%"}},{"$f":"I13/'Initial info'!B3","v":{"v":0.05555555555555555,"d":"6%"}},{"$f":"J13/'Initial info'!B3","v":{"v":0,"d":"0%"}},{"$f":"K13/'Initial info'!B3","v":{"v":0.05555555555555555,"d":"6%"}}]
["Healthy, sustainable food in food tracks, street vendors",{"$f":"J4","v":11},{"$f":"J5","v":18},{"$f":"J6","v":15},{"$f":"J7","v":13},{"$f":"J8","v":9},{"$f":"L4","v":0},{"$f":"L5","v":0},{"$f":"L6","v":0},{"$f":"L7","v":0},{"$f":"L8","v":0},"Healthy, sustainable food in food tracks, street vendors",{"$f":"B14/'Initial info'!B3","v":{"v":0.6111111111111112,"d":"61%"}},{"$f":"C14/'Initial info'!B3","v":{"v":1,"d":"100%"}},{"$f":"D14/'Initial info'!B3","v":{"v":0.8333333333333334,"d":"83%"}},{"$f":"E14/'Initial info'!B3","v":{"v":0.7222222222222222,"d":"72%"}},{"$f":"F14/'Initial info'!B3","v":{"v":0.5,"d":"50%"}},"Healthy, sustainable food in food tracks, street vendors",{"$f":"G14/'Initial info'!B3","v":{"v":0,"d":"0%"}},{"$f":"H14/'Initial info'!B3","v":{"v":0,"d":"0%"}},{"$f":"I14/'Initial info'!B3","v":{"v":0,"d":"0%"}},{"$f":"J14/'Initial info'!B3","v":{"v":0,"d":"0%"}},{"$f":"K14/'Initial info'!B3","v":{"v":0,"d":"0%"}}]
["Healthy, sustainable food in stores",{"$f":"R4","v":14},{"$f":"R5","v":17},{"$f":"R6","v":17},{"$f":"R7","v":12},{"$f":"R8","v":5},{"$f":"T4","v":0},{"$f":"T5","v":0},{"$f":"T6","v":0},{"$f":"T7","v":0},{"$f":"T8","v":0},"Healthy, sustainable food in stores",{"$f":"B15/'Initial info'!B3","v":{"v":0.7777777777777778,"d":"78%"}},{"$f":"C15/'Initial info'!B3","v":{"v":0.9444444444444444,"d":"94%"}},{"$f":"D15/'Initial info'!B3","v":{"v":0.9444444444444444,"d":"94%"}},{"$f":"E15/'Initial info'!B3","v":{"v":0.6666666666666666,"d":"67%"}},{"$f":"F15/'Initial info'!B3","v":{"v":0.2777777777777778,"d":"28%"}},"Healthy, sustainable food in stores",{"$f":"G15/'Initial info'!B3","v":{"v":0,"d":"0%"}},{"$f":"H15/'Initial info'!B3","v":{"v":0,"d":"0%"}},{"$f":"I15/'Initial info'!B3","v":{"v":0,"d":"0%"}},{"$f":"J15/'Initial info'!B3","v":{"v":0,"d":"0%"}},{"$f":"K15/'Initial info'!B3","v":{"v":0,"d":"0%"}}]
["Environmental impact measures",{"$f":"Z4","v":9},{"$f":"Z5","v":11},{"$f":"Z6","v":14},{"$f":"Z7","v":13},{"$f":"Z8","v":11},{"$f":"AB4","v":0},{"$f":"AB5","v":0},{"$f":"AB6","v":0},{"$f":"AB7","v":0},{"$f":"AB8","v":0},"Environmental impact measures",{"$f":"B16/'Initial info'!B3","v":{"v":0.5,"d":"50%"}},{"$f":"C16/'Initial info'!B3","v":{"v":0.6111111111111112,"d":"61%"}},{"$f":"D16/'Initial info'!B3","v":{"v":0.7777777777777778,"d":"78%"}},{"$f":"E16/'Initial info'!B3","v":{"v":0.7222222222222222,"d":"72%"}},{"$f":"F16/'Initial info'!B3","v":{"v":0.6111111111111112,"d":"61%"}},"Environmental impact measures",{"$f":"G16/'Initial info'!B3","v":{"v":0,"d":"0%"}},{"$f":"H16/'Initial info'!B3","v":{"v":0,"d":"0%"}},{"$f":"I16/'Initial info'!B3","v":{"v":0,"d":"0%"}},{"$f":"J16/'Initial info'!B3","v":{"v":0,"d":"0%"}},{"$f":"K16/'Initial info'!B3","v":{"v":0,"d":"0%"}}]
[]
[]
[null,"Effectiveness levels",{"$nulls":15},"Effectiveness levels - %"]
[null,"Undernutrition",null,null,"Overnutrition",null,null,"Environmental sustainability",null,null,"Socio-economic inequalities",null,null,"Women's empowerment",{"$nulls":3},"Undernutrition",null,null,"Overnutrition",null,null,"Environmental sustainability",null,null,"Socio-economic inequalities",null,null,"Women's empowerment"]
[null,"Very effective","Effective","Somewhat effective","Very effective","Effective","Somewhat effective","Very effective","Effective","Somewhat effective","Very effective","Effective","Somewhat effective","Very effective","Effective","Somewhat effective",null,"Very effective","Effective","Somewhat effective","Very effective","Effective","Somewhat effective","Very effective","Effective","Somewhat effective","Very effective","Effective","Somewhat effective","Very effective","Effective","Somewhat effective"]
["Zoning laws",{"$f":"G4","v":4},{"$f":"H4","v":4},5,{"$f":"G5","v":8},{"$f":"H5","v":6},3,{"$f":"G6","v":1},{"$f":"H6","v":6},2,{"$f":"G7","v":5},{"$f":"H7","v":5},6,{"$f":"G8","v":2},{"$f":"H8","v":6},4,"Zoning laws",{"$f":"B22/B13","v":{"v":0.3076923076923077,"d":"31%"}},{"$f":"C22/B13","v":{"v":0.3076923076923077,"d":"31%"}},{"$f":"D22/B13","v":{"v":0.38461538461538464,"d":"38%"}},{"$f":"E22/C13","v":{"v":0.47058823529411764,"d":"47%"}},{"$f":"F22/C13","v":{"v":0.35294117647058826,"d":"35%"}},{"$f":"G22/C13","v":{"v":0.17647058823529413,"d":"18%"}},{"$f":"H22/D13","v":{"v":0.1111111111111111,"d":"11%"}},{"$f":"I22/D13","v":{"v":0.6666666666666666,"d":"67%"}},{"$f":"J22/D13","v":{"v":0.2222222222222222,"d":"22%"}},{"$f":"K22/E13","v":{"v":0.3125,"d":"31%"}},{"$f":"L22/E13","v":{"v":0.3125,"d":"31%"}},{"$f":"M22/E13","v":{"v":0.375,"d":"38%"}},{"$f":"N22/F13","v":{"v":0.16666666666666666,"d":"17%"}},{"$f":"O22/F13","v":{"v":0.5,"d":"50%"}},{"$f":"P22/F13","v":{"v":0.3333333333333333,"d":"33%"}}]
["Healthy, sustainable food in food tracks, street vendors",{"$f":"O4","v":2},{"$f":"P4","v":5},4,{"$f":"O5","v":5},{"$f":"P5","v":7},6,{"$f":"O6","v":2},{"$f":"P6","v":6},7,{"$f":"O7","v":5},{"$f":"P7","v":2},6,{"$f":"O8","v":5},{"$f":"P8","v":3},1,"Healthy, sustainable food in food tracks, street vendors",{"$f":"B23/B14","v":{"v":0.18181818181818182,"d":"18%"}},{"$f":"C23/B14","v":{"v":0.45454545454545453,"d":"45%"}},{"$f":"D23/B14","v":{"v":0.36363636363636365,"d":"36%"}},{"v":0.2777777777777778,"d":"28%"},{"$f":"F23/C14","v":{"v":0.3888888888888889,"d":"39%"}},{"$f":"G23/C14","v":{"v":0.3333333333333333,"d":"33%"}},{"v":0.13333333333333333,"d":"13%"},{"$f":"I23/D14","v":{"v":0.4,"d":"40%"}},{"$f":"J23/D14","v":{"v":0.4666666666666667,"d":"47%"}},{"v":0.38461538461538464,"d":"38%"},{"$f":"L23/E14","v":{"v":0.15384615384615385,"d":"15%"}},{"$f":"M23/E14","v":{"v":0.46153846153846156,"d":"46%"}},{"v":0.5555555555555556,"d":"56%"},{"$f":"O23/F14","v":{"v":0.3333333333333333,"d":"33%"}},{"$f":"P23/F14","v":{"v":0.1111111111111111,"d":"11%"}}]
["Healthy, sustainable food in stores",{"$f":"W4","v":4},{"$f":"X4","v":4},6,{"$f":"W5","v":4},{"$f":"X5","v":8},5,{"$f":"W6","v":0},{"$f":"X6","v":9},8,{"$f":"W7","v":0},{"$f":"X7","v":6},6,{"$f":"W8","v":0},{"$f":"X8","v":3},2,"Healthy, sustainable food in stores",{"$f":"B24/B15","v":{"v":0.2857142857142857,"d":"29%"}},{"$f":"C24/B15","v":{"v":0.2857142857142857,"d":"29%"}},{"v":0.42857142857142855,"d":"43%"},{"v":0.23529411764705882,"d":"24%"},{"v":0.47058823529411764,"d":"47%"},{"v":0.29411764705882354,"d":"29%"},{"v":0,"d":"0%"},{"v":0.5294117647058824,"d":"53%"},{"v":0.47058823529411764,"d":"47%"},{"v":0,"d":"0%"},{"v":0.5,"d":"50%"},{"v":0.5,"d":"50%"},{"v":0,"d":"0%"},{"v":0.6,"d":"60%"},{"v":0.4,"d":"40%"}]
["Environmental impact measures",{"$f":"AE4","v":1},{"$f":"AF4","v":3},5,{"$f":"AE5","v":1},{"$f":"AF5","v":4},6,{"$f":"AE6","v":5},{"$f":"AF6","v":5},4,{"$f":"AE7","v":5},{"$f":"AF7","v":4},4,{"$f":"AE8","v":2},{"$f":"AF8","v":7},2,"Environmental impact measures",{"$f":"B25/B16","v":{"v":0.1111111111111111,"d":"11%"}},{"$f":"C25/B16","v":{"v":0.3333333333333333,"d":"33%"}},{"v":0.5555555555555556,"d":"56%"},{"v":0.09090909090909091,"d":"9%"},{"v":0.36363636363636365,"d":"36%"},{"v":0.5454545454545454,"d":"55%"},{"v":0.35714285714285715,"d":"36%"},{"v":0.35714285714285715,"d":"36%"},{"v":0.2857142857142857,"d":"29%"},{"v":0.38461538461538464,"d":"38%"},{"v":0.3076923076923077,"d":"31%"},{"v":0.3076923076923077,"d":"31%"},{"v":0.18181818181818182,"d":"18%"},{"v":0.6363636363636364,"d":"64%"},{"v":0.18181818181818182,"d":"18%"}]

{"sheet":"Prices","index":13,"n_rows":25,"n_cols":33,"rows_kept":25,"merged":[[0,1,0,8],[0,9,0,16],[0,17,0,24],[0,25,0,32],[1,1,1,5],[1,6,1,8],[1,9,1,13],[1,14,1,16],[1,17,1,21],[1,22,1,24],[1,25,1,29],[1,30,1,32],[10,1,10,5],[10,6,10,10],[10,12,10,16],[10,18,10,22],[18,1,18,16],[18,17,18,31],[19,1,19,3],[19,4,19,6],[19,7,19,9],[19,10,19,12],[19,13,19,15],[19,17,19,19],[19,20,19,22],[19,23,19,25],[19,26,19,28],[19,29,19,31]]}
[null,"Fiscal measures – taxes and levies",{"$nulls":7},"Fiscal measures – subsidies",{"$nulls":7},"Affordability of healthy diets",{"$nulls":7},"Price volatility reduction"]
[null,"Effect",{"$nulls":4},"Effectiveness",null,null,"Effect",{"$nulls":4},"Effectiveness",null,null,"Effect",{"$nulls":4},"Effectiveness",null,null,"Effect",{"$nulls":4},"Effectiveness"]
[null,"Positive","Neutral","Negative","I don't know","Not applicable","Very effective","Effective","Somewhat effective","Positive","Neutral","Negative","I don't know","Not applicable","Very effective","Effective","Somewhat effective","Positive","Neutral","Negative","I don't know","Not applicable","Very effective","Effective","Somewhat effective","Positive","Neutral","Negative","I don't know","Not applicable","Very effective","Effective","Somewhat effective"]
["Undernutrition",{"$f":"COUNTIF(FE!FR2:FR19,\"Positive\")","v":14},{"$f":"COUNTIF(FE!FR2:FR19,\"Neutral\")","v":0},{"$f":"COUNTIF(FE!FR2:FR19,\"Negative\")","v":3},{"$f":"COUNTIF(FE!FR2:FR19,\"I don't know\")","v":0},{"$f":"COUNTIF(FE!FR2:FR19,\"Not applicable\")","v":1},{"$f":"COUNTIF(FE!FW2:FW19,\"Very effective\")","v":5},{"$f":"COUNTIF(FE!FW2:FW19,\"Effective\")","v":4},{"$f":"COUNTIF(FE!FW2:FW19,\"Somewhat effective\")","v":5},{"$f":"COUNTIF(FE!GC2:GC19,\"Positive\")","v":18},{"$f":"COUNTIF(FE!GC2:GC19,\"Neutral\")","v":0},{"$f":"COUNTIF(FE!GC2:GC19,\"Negative\")","v":0},{"$f":"COUNTIF(FE!GC2:GC19,\"I don't know\")","v":0},{"$f":"COUNTIF(FE!GC2:GC19,\"Not applicable\")","v":0},{"$f":"COUNTIF(FE!GH2:GH19,\"Very effective\")","v":10},{"$f":"COUNTIF(FE!GH2:GH19,\"Effective\")","v":7},{"$f":"COUNTIF(FE!GH2:GH19,\"Somewhat effective\")","v":1},{"$f":"COUNTIF(FE!GN2:GN19,\"Positive\")","v":18},{"$f":"COUNTIF(FE!GN2:GN19,\"Neutral\")","v":0},{"$f":"COUNTIF(FE!GN2:GN19,\"Negative\")","v":0},{"$f":"COUNTIF(FE!GN2:GN19,\"I don't know\")","v":0},{"$f":"COUNTIF(FE!GN2:GN19,\"Not applicable\")","v":0},{"$f":"COUNTIF(FE!GS2:GS19,\"Very effective\")","v":13},{"$f":"COUNTIF(FE!GS2:GS19,\"Effective\")","v":4},{"$f":"COUNTIF(FE!GS2:GS19,\"Somewhat effective\")","v":1},{"$f":"COUNTIF(FE!GY2:GY19,\"Positive\")","v":13},{"$f":"COUNTIF(FE!GY2:GY19,\"Neutral\")","v":3},{"$f":"COUNTIF(FE!GY2:GY19,\"Negative\")","v":0},{"$f":"COUNTIF(FE!GY2:GY19,\"I don't know\")","v":2},{"$f":"COUNTIF(FE!GY2:GY19,\"Not applicable\")","v":0},{"$f":"COUNTIF(FE!HD2:HD19,\"Very effective\")","v":3},{"$f":"COUNTIF(FE!HD2:HD19,\"Effective\")","v":6},{"$f":"COUNTIF(FE!HD2:HD19,\"Somewhat effective\")","v":4}]
["Overnutrition",{"$f":"COUNTIF(FE!FS2:FS19,\"Positive\")","v":18},{"$f":"COUNTIF(FE!FS2:FS19,\"Neutral\")","v":0},{"$f":"COUNTIF(FE!FS2:FS19,\"Negative\")","v":0},{"$f":"COUNTIF(FE!FS2:FS19,\"I don't know\")","v":0},{"$f":"COUNTIF(FE!FS2:FS19,\"Not applicable\")","v":0},{"$f":"COUNTIF(FE!FX2:FX19,\"Very effective\")","v":14},{"$f":"COUNTIF(FE!FX2:FX19,\"Effective\")","v":2},{"$f":"COUNTIF(FE!FX2:FX19,\"Somewhat effective\")","v":2},{"$f":"COUNTIF(FE!GD2:GD19,\"Positive\")","v":18},{"$f":"COUNTIF(FE!GD2:GD19,\"Neutral\")","v":0},{"$f":"COUNTIF(FE!GD2:GD19,\"Negative\")","v":0},{"$f":"COUNTIF(FE!GD2:GD19,\"I don't know\")","v":0},{"$f":"COUNTIF(FE!GD2:GD19,\"Not applicable\")","v":0},{"$f":"COUNTIF(FE!GI2:GI19,\"Very effective\")","v":7},{"$f":"COUNTIF(FE!GI2:GI19,\"Effective\")","v":9},{"$f":"COUNTIF(FE!GI2:GI19,\"Somewhat effective\")","v":2},{"$f":"COUNTIF(FE!GO2:GO19,\"Positive\")","v":17},{"$f":"COUNTIF(FE!GO2:GO19,\"Neutral\")","v":1},{"$f":"COUNTIF(FE!GO2:GO19,\"Negative\")","v":0},{"$f":"COUNTIF(FE!GO2:GO19,\"I don't know\")","v":0},{"$f":"COUNTIF(FE!GO2:GO19,\"Not applicable\")","v":0},{"$f":"COUNTIF(FE!GT2:GT19,\"Very effective\")","v":7},{"$f":"COUNTIF(FE!GT2:GT19,\"Effective\")","v":9},{"$f":"COUNTIF(FE!GT2:GT19,\"Somewhat effective\")","v":1},{"$f":"COUNTIF(FE!GZ2:GZ19,\"Positive\")","v":8},{"$f":"COUNTIF(FE!GZ2:GZ19,\"Neutral\")","v":6},{"$f":"COUNTIF(FE!GZ2:GZ19,\"Negative\")","v":0},{"$f":"COUNTIF(FE!GZ2:GZ19,\"I don't know\")","v":4},{"$f":"COUNTIF(FE!GZ2:GZ19,\"Not applicable\")","v":0},{"$f":"COUNTIF(FE!HE2:HE19,\"Very effective\")","v":3},{"$f":"COUNTIF(FE!HE2:HE19,\"Effective\")","v":3},{"$f":"COUNTIF(FE!HE2:HE19,\"Somewhat effective\")","v":2}]
["Environmental sustainability",{"$f":"COUNTIF(FE!FT2:FT19,\"Positive\")","v":16},{"$f":"COUNTIF(FE!FT2:FT19,\"Neutral\")","v":2},{"$f":"COUNTIF(FE!FT2:FT19,\"Negative\")","v":0},{"$f":"COUNTIF(FE!FT2:FT19,\"I don't know\")","v":0},{"$f":"COUNTIF(FE!FT2:FT19,\"Not applicable\")","v":0},{"$f":"COUNTIF(FE!FY2:FY19,\"Very effective\")","v":9},{"$f":"COUNTIF(FE!FY2:FY19,\"Effective\")","v":6},{"$f":"COUNTIF(FE!FY2:FY19,\"Somewhat effective\")","v":1},{"$f":"COUNTIF(FE!GE2:GE19,\"Positive\")","v":16},{"$f":"COUNTIF(FE!GE2:GE19,\"Neutral\")","v":2},{"$f":"COUNTIF(FE!GE2:GE19,\"Negative\")","v":0},{"$f":"COUNTIF(FE!GE2:GE19,\"I don't know\")","v":0},{"$f":"COUNTIF(FE!GE2:GE19,\"Not applicable\")","v":0},{"$f":"COUNTIF(FE!GJ2:GJ19,\"Very effective\")","v":5},{"$f":"COUNTIF(FE!GJ2:GJ19,\"Effective\")","v":8},{"$f":"COUNTIF(FE!GJ2:GJ19,\"Somewhat effective\")","v":3},{"$f":"COUNTIF(FE!GP2:GP19,\"Positive\")","v":12},{"$f":"COUNTIF(FE!GP2:GP19,\"Neutral\")","v":5},{"$f":"COUNTIF(FE!GP2:GP19,\"Negative\")","v":0},{"$f":"COUNTIF(FE!GP2:GP19,\"I don't know\")","v":1},{"$f":"COUNTIF(FE!GP2:GP19,\"Not applicable\")","v":0},{"$f":"COUNTIF(FE!GU2:GU19,\"Very effective\")","v":5},{"$f":"COUNTIF(FE!GU2:GU19,\"Effective\")","v":6},{"$f":"COUNTIF(FE!GU2:GU19,\"Somewhat effective\")","v":1},{"$f":"COUNTIF(FE!HA2:HA19,\"Positive\")","v":2},{"$f":"COUNTIF(FE!HA2:HA19,\"Neutral\")","v":9},{"$f":"COUNTIF(FE!HA2:HA19,\"Negative\")","v":0},{"$f":"COUNTIF(FE!HA2:HA19,\"I don't know\")","v":5},{"$f":"COUNTIF(FE!HA2:HA19,\"Not applicaHCe\")","v":0},{"$f":"COUNTIF(FE!HF2:HF19,\"Very effective\")","v":1},{"$f":"COUNTIF(FE!HF2:HF19,\"Effective\")","v":0},{"$f":"COUNTIF(FE!HF2:HF19,\"Somewhat effective\")","v":1}]
["Socio-economic inequalities",{"$f":"COUNTIF(FE!FU2:FU19,\"Positive\")","v":14},{"$f":"COUNTIF(FE!FU2:FU19,\"Neutral\")","v":0},{"$f":"COUNTIF(FE!FU2:FU19,\"Negative\")","v":3},{"$f":"COUNTIF(FE!FU2:FU19,\"I don't know\")","v":1},{"$f":"COUNTIF(FE!FU2:FU19,\"Not applicable\")","v":0},{"$f":"COUNTIF(FE!FZ2:FZ19,\"Very effective\")","v":8},{"$f":"COUNTIF(FE!FZ2:FZ19,\"Effective\")","v":4},{"$f":"COUNTIF(FE!FZ2:FZ19,\"Somewhat effective\")","v":2},{"$f":"COUNTIF(FE!GF2:GF19,\"Positive\")","v":18},{"$f":"COUNTIF(FE!GF2:GF19,\"Neutral\")","v":0},{"$f":"COUNTIF(FE!GF2:GF19,\"Negative\")","v":0},{"$f":"COUNTIF(FE!GF2:GF19,\"I don't know\")","v":0},{"$f":"COUNTIF(FE!GF2:GF19,\"Not applicable\")","v":0},{"$f":"COUNTIF(FE!GK2:GK19,\"Very effective\")","v":10},{"$f":"COUNTIF(FE!GK2:GK19,\"Effective\")","v":8},{"$f":"COUNTIF(FE!GK2:GK19,\"Somewhat effective\")","v":0},{"$f":"COUNTIF(FE!GQ2:GQ19,\"Positive\")","v":18},{"$f":"COUNTIF(FE!GQ2:GQ19,\"Neutral\")","v":0},{"$f":"COUNTIF(FE!GQ2:GQ19,\"Negative\")","v":0},{"$f":"COUNTIF(FE!GQ2:GQ19,\"I don't know\")","v":0},{"$f":"COUNTIF(FE!GQ2:GQ19,\"Not applicable\")","v":0},{"$f":"COUNTIF(FE!GV2:GV19,\"Very effective\")","v":13},{"$f":"COUNTIF(FE!GV2:GV19,\"Effective\")","v":4},{"$f":"COUNTIF(FE!GV2:GV19,\"Somewhat effective\")","v":1},{"$f":"COUNTIF(FE!HB2:HB19,\"Positive\")","v":15},{"$f":"COUNTIF(FE!HB2:HB19,\"Neutral\")","v":1},{"$f":"COUNTIF(FE!HB2:HB19,\"Negative\")","v":0},{"$f":"COUNTIF(FE!HB2:HB19,\"I don't know\")","v":2},{"$f":"COUNTIF(FE!HB2:HB19,\"Not applicable\")","v":0},{"$f":"COUNTIF(FE!HG2:HG19,\"Very effective\")","v":5},{"$f":"COUNTIF(FE!HG2:HG19,\"Effective\")","v":8},{"$f":"COUNTIF(FE!HG2:HG19,\"Somewhat effective\")","v":2}]
["Women's empowerment",{"$f":"COUNTIF(FE!FV2:FV19,\"Positive\")","v":6},{"$f":"COUNTIF(FE!FV2:FV19,\"Neutral\")","v":7},{"$f":"COUNTIF(FE!FV2:FV19,\"Negative\")","v":0},{"$f":"COUNTIF(FE!FV2:FV19,\"I don't know\")","v":2},{"$f":"COUNTIF(FE!FV2:FV19,\"Not applicable\")","v":3},{"$f":"COUNTIF(FE!GA2:GA19,\"Very effective\")","v":2},{"$f":"COUNTIF(FE!GA2:GA19,\"Effective\")","v":3},{"$f":"COUNTIF(FE!GA2:GA19,\"Somewhat effective\")","v":1},{"$f":"COUNTIF(FE!GG2:GG19,\"Positive\")","v":11},{"$f":"COUNTIF(FE!GG2:GG19,\"Neutral\")","v":6},{"$f":"COUNTIF(FE!GG2:GG19,\"Negative\")","v":0},{"$f":"COUNTIF(FE!GG2:GG19,\"I don't know\")","v":1},{"$f":"COUNTIF(FE!GG2:GG19,\"Not applicable\")","v":0},{"$f":"COUNTIF(FE!GL2:GL19,\"Very effective\")","v":3},{"$f":"COUNTIF(FE!GL2:GL19,\"Effective\")","v":6},{"$f":"COUNTIF(FE!GL2:GL19,\"Somewhat effective\")","v":2},{"$f":"COUNTIF(FE!GR2:GR19,\"Positive\")","v":14},{"$f":"COUNTIF(FE!GR2:GR19,\"Neutral\")","v":4},{"$f":"COUNTIF(FE!GR2:GR19,\"Negative\")","v":0},{"$f":"COUNTIF(FE!GR2:GR19,\"I don't know\")","v":0},{"$f":"COUNTIF(FE!GR2:GR19,\"Not applicable\")","v":0},{"$f":"COUNTIF(FE!GW2:GW19,\"Very effective\")","v":5},{"$f":"COUNTIF(FE!GW2:GW19,\"Effective\")","v":6},{"$f":"COUNTIF(FE!GW2:GW19,\"Somewhat effective\")","v":3},{"$f":"COUNTIF(FE!HC2:HC19,\"Positive\")","v":7},{"$f":"COUNTIF(FE!HC2:HC19,\"Neutral\")","v":6},{"$f":"COUNTIF(FE!HC2:HC19,\"Negative\")","v":0},{"$f":"COUNTIF(FE!HC2:HC19,\"I don't know\")","v":4},{"$f":"COUNTIF(FE!HC2:HC19,\"Not applicable\")","v":1},{"$f":"COUNTIF(FE!HH2:HH19,\"Very effective\")","v":1},{"$f":"COUNTIF(FE!HH2:HH19,\"Effective\")","v":4},{"$f":"COUNTIF(FE!HH2:HH19,\"Somewhat effective\")","v":2}]
[]
[]
[null,"Positive effect",{"$nulls":4},"Negative effect",{"$nulls":5},"Positive effect",{"$nulls":5},"Negative effect"]
[null,"Undernutrition","Overnutrition","Environmental sustainability","Socio-economic inequalities","Women's empowerment","Undernutrition","Overnutrition","Environmental sustainability","Socio-economic inequalities","Women's empowerment",null,"Undernutrition","Overnutrition","Environmental sustainability","Socio-economic inequalities","Women's empowerment",null,"Undernutrition","Overnutrition","Environmental sustainability","Socio-economic inequalities","Women's empowerment"]
["Fiscal measures – taxes and levies",{"$f":"B4","v":14},{"$f":"B5","v":18},{"$f":"B6","v":16},{"$f":"B7","v":14},{"$f":"B8","v":6},{"$f":"D4","v":3},{"$f":"D5","v":0},{"$f":"D6","v":0},{"$f":"D7","v":3},{"$f":"D8","v":0},"Fiscal measures – taxes and levies",{"$f":"B13/'Initial info'!B3","v":{"v":0.7777777777777778,"d":"78%"}},{"$f":"C13/'Initial info'!B3","v":{"v":1,"d":"100%"}},{"$f":"D13/'Initial info'!B3","v":{"v":0.8888888888888888,"d":"89%"}},{"$f":"E13/'Initial info'!B3","v":{"v":0.7777777777777778,"d":"78%"}},{"$f":"F13/'Initial info'!B3","v":{"v":0.3333333333333333,"d":"33%"}},"Fiscal measures – taxes and levies",{"$f":"G13/'Initial info'!B3","v":{"v":0.16666666666666666,"d":"17%"}},{"$f":"H13/'Initial info'!B3","v":{"v":0,"d":"0%"}},{"$f":"I13/'Initial info'!B3","v":{"v":0,"d":"0%"}},{"$f":"J13/'Initial info'!B3","v":{"v":0.16666666666666666,"d":"17%"}},{"$f":"K13/'Initial info'!B3","v":{"v":0,"d":"0%"}}]
["Fiscal measures – subsidies",{"$f":"J4","v":18},{"$f":"J5","v":18},{"$f":"J6","v":16},{"$f":"J7","v":18},{"$f":"J8","v":11},{"$f":"L4","v":0},{"$f":"L5","v":0},{"$f":"L6","v":0},{"$f":"L7","v":0},{"$f":"L8","v":0},"Fiscal measures – subsidies",{"$f":"B14/'Initial info'!B3","v":{"v":1,"d":"100%"}},{"$f":"C14/'Initial info'!B3","v":{"v":1,"d":"100%"}},{"$f":"D14/'Initial info'!B3","v":{"v":0.8888888888888888,"d":"89%"}},{"$f":"E14/'Initial info'!B3","v":{"v":1,"d":"100%"}},{"$f":"F14/'Initial info'!B3","v":{"v":0.6111111111111112,"d":"61%"}},"Fiscal measures – subsidies",{"$f":"G14/'Initial info'!B3","v":{"v":0,"d":"0%"}},{"$f":"H14/'Initial info'!B3","v":{"v":0,"d":"0%"}},{"$f":"I14/'Initial info'!B3","v":{"v":0,"d":"0%"}},{"$f":"J14/'Initial info'!B3","v":{"v":0,"d":"0%"}},{"$f":"K14/'Initial info'!B3","v":{"v":0,"d":"0%"}}]
["Affordability of healthy diets",{"$f":"R4","v":18},{"$f":"R5","v":17},{"$f":"R6","v":12},{"$f":"R7","v":18},{"$f":"R8","v":14},{"$f":"T4","v":0},{"$f":"T5","v":0},{"$f":"T6","v":0},{"$f":"T7","v":0},{"$f":"T8","v":0},"Affordability of healthy diets",{"$f":"B15/'Initial info'!B3","v":{"v":1,"d":"100%"}},{"$f":"C15/'Initial info'!B3","v":{"v":0.9444444444444444,"d":"94%"}},{"$f":"D15/'Initial info'!B3","v":{"v":0.6666666666666666,"d":"67%"}},{"$f":"E15/'Initial info'!B3","v":{"v":1,"d":"100%"}},{"$f":"F15/'Initial info'!B3","v":{"v":0.7777777777777778,"d":"78%"}},"Affordability of healthy diets",{"$f":"G15/'Initial info'!B3","v":{"v":0,"d":"0%"}},{"$f":"H15/'Initial info'!B3","v":{"v":0,"d":"0%"}},{"$f":"I15/'Initial info'!B3","v":{"v":0,"d":"0%"}},{"$f":"J15/'Initial info'!B3","v":{"v":0,"d":"0%"}},{"$f":"K15/'Initial info'!B3","v":{"v":0,"d":"0%"}}]
["Price volatility reduction",{"$f":"Z4","v":13},{"$f":"Z5","v":8},{"$f":"Z6","v":2},{"$f":"Z7","v":15},{"$f":"Z8","v":7},{"$f":"AB4","v":0},{"$f":"AB5","v":0},{"$f":"AB6","v":0},{"$f":"AB7","v":0},{"$f":"AB8","v":0},"Price volatility reduction",{"$f":"B16/'Initial info'!B3","v":{"v":0.7222222222222222,"d":"72%"}},{"$f":"C16/'Initial info'!B3","v":{"v":0.4444444444444444,"d":"44%"}},{"$f":"D16/'Initial info'!B3","v":{"v":0.1111111111111111,"d":"11%"}},{"$f":"E16/'Initial info'!B3","v":{"v":0.8333333333333334,"d":"83%"}},{"$f":"F16/'Initial info'!B3","v":{"v":0.3888888888888889,"d":"39%"}},"Price volatility reduction",{"$f":"G16/'Initial info'!B3","v":{"v":0,"d":"0%"}},{"$f":"H16/'Initial info'!B3","v":{"v":0,"d":"0%"}},{"$f":"I16/'Initial info'!B3","v":{"v":0,"d":"0%"}},{"$f":"J16/'Initial info'!B3","v":{"v":0,"d":"0%"}},{"$f":"K16/'Initial info'!B3","v":{"v":0,"d":"0%"}}]
[]
[]
[null,"Effectiveness levels",{"$nulls":15},"Effectiveness levels - %"]
[null,"Undernutrition",null,null,"Overnutrition",null,null,"Environmental sustainability",null,null,"Socio-economic inequalities",null,null,"Women's empowerment",{"$nulls":3},"Undernutrition",null,null,"Overnutrition",null,null,"Environmental sustainability",null,null,"Socio-economic inequalities",null,null,"Women's empowerment"]
[null,"Very effective","Effective","Somewhat effective","Very effective","Effective","Somewhat effective","Very effective","Effective","Somewhat effective","Very effective","Effective","Somewhat effective","Very effective","Effective","Somewhat effective",null,"Very effective","Effective","Somewhat effective","Very effective","Effective","Somewhat effective","Very effective","Effective","Somewhat effective","Very effective","Effective","Somewhat effective","Very effective","Effective","Somewhat effective"]
["Fiscal measures – taxes and levies",{"$f":"G4","v":5},{"$f":"H4","v":4},5,{"$f":"G5","v":14},{"$f":"H5","v":2},{"$f":"I5","v":2},{"$f":"G6","v":9},{"$f":"H6","v":6},1,{"$f":"G7","v":8},{"$f":"H7","v":4},2,{"$f":"G8","v":2},{"$f":"H8","v":3},1,"Fiscal measures – taxes and levies",{"$f":"B22/B13","v":{"v":0.35714285714285715,"d":"36%"}},{"$f":"C22/B13","v":{"v":0.2857142857142857,"d":"29%"}},{"$f":"D22/B13","v":{"v":0.35714285714285715,"d":"36%"}},{"$f":"E22/C13","v":{"v":0.7777777777777778,"d":"78%"}},{"$f":"F22/C13","v":{"v":0.1111111111111111,"d":"11%"}},{"$f":"G22/C13","v":{"v":0.1111111111111111,"d":"11%"}},{"$f":"H22/D13","v":{"v":0.5625,"d":"56%"}},{"$f":"I22/D13","v":{"v":0.375,"d":"38%"}},{"$f":"J22/D13","v":{"v":0.0625,"d":"6%"}},{"$f":"K22/E13","v":{"v":0.5714285714285714,"d":"57%"}},{"$f":"L22/E13","v":{"v":0.2857142857142857,"d":"29%"}},{"$f":"M22/E13","v":{"v":0.14285714285714285,"d":"14%"}},{"$f":"N22/F13","v":{"v":0.3333333333333333,"d":"33%"}},{"$f":"O22/F13","v":{"v":0.5,"d":"50%"}},{"$f":"P22/F13","v":{"v":0.16666666666666666,"d":"17%"}}]
["Fiscal measures – subsidies",{"$f":"O4","v":10},{"$f":"P4","v":7},1,{"$f":"O5","v":7},{"$f":"P5","v":9},2,{"$f":"O6","v":5},{"$f":"P6","v":8},3,{"$f":"O7","v":10},{"$f":"P7","v":8},0,{"$f":"O8","v":3},{"$f":"P8","v":6},2,"Fiscal measures – subsidies",{"$f":"B23/B14","v":{"v":0.5555555555555556,"d":"56%"}},{"$f":"C23/B14","v":{"v":0.3888888888888889,"d":"39%"}},{"$f":"D23/B14","v":{"v":0.05555555555555555,"d":"6%"}},{"v":0.3888888888888889,"d":"39%"},{"$f":"F23/C14","v":{"v":0.5,"d":"50%"}},{"$f":"G23/C14","v":{"v":0.1111111111111111,"d":"11%"}},{"v":0.3125,"d":"31%"},{"$f":"I23/D14","v":{"v":0.5,"d":"50%"}},{"$f":"J23/D14","v":{"v":0.1875,"d":"19%"}},{"v":0.5555555555555556,"d":"56%"},{"$f":"L23/E14","v":{"v":0.4444444444444444,"d":"44%"}},{"$f":"M23/E14","v":{"v":0,"d":"0%"}},{"v":0.2727272727272727,"d":"27%"},{"$f":"O23/F14","v":{"v":0.5454545454545454,"d":"55%"}},{"$f":"P23/F14","v":{"v":0.18181818181818182,"d":"18%"}}]
["Affordability of healthy diets",{"$f":"W4","v":13},{"$f":"X4","v":4},1,{"$f":"W5","v":7},{"$f":"X5","v":9},1,{"$f":"W6","v":5},{"$f":"X6","v":6},1,{"$f":"W7","v":13},{"$f":"X7","v":4},1,{"$f":"W8","v":5},{"$f":"X8","v":6},3,"Affordability of healthy diets",{"$f":"B24/B15","v":{"v":0.7222222222222222,"d":"72%"}},{"$f":"C24/B15","v":{"v":0.2222222222222222,"d":"22%"}},{"v":0.05555555555555555,"d":"6%"},{"v":0.4117647058823529,"d":"41%"},{"v":0.5294117647058824,"d":"53%"},{"v":0.058823529411764705,"d":"6%"},{"v":0.4166666666666667,"d":"42%"},{"v":0.5,"d":"50%"},{"v":0.08333333333333333,"d":"8%"},{"v":0.7222222222222222,"d":"72%"},{"v":0.2222222222222222,"d":"22%"},{"v":0.05555555555555555,"d":"6%"},{"v":0.35714285714285715,"d":"36%"},{"v":0.42857142857142855,"d":"43%"},{"v":0.21428571428571427,"d":"21%"}]
["Price volatility reduction",{"$f":"AE4","v":3},{"$f":"AF4","v":6},4,{"$f":"AE5","v":3},{"$f":"AF5","v":3},2,{"$f":"AE6","v":1},{"$f":"AF6","v":0},1,{"$f":"AE7","v":5},{"$f":"AF7","v":8},2,{"$f":"AE8","v":1},{"$f":"AF8","v":4},2,"Price volatility reduction",{"$f":"B25/B16","v":{"v":0.23076923076923078,"d":"23%"}},{"$f":"C25/B16","v":{"v":0.46153846153846156,"d":"46%"}},{"v":0.3076923076923077,"d":"31%"},{"v":0.375,"d":"38%"},{"v":0.375,"d":"38%"},{"v":0.25,"d":"25%"},{"v":0.5,"d":"50%"},{"v":0,"d":"0%"},{"v":0.5,"d":"50%"},{"v":0.3333333333333333,"d":"33%"},{"v":0.5333333333333333,"d":"53%"},{"v":0.13333333333333333,"d":"13%"},{"v":0.14285714285714285,"d":"14%"},{"v":0.5714285714285714,"d":"57%"},{"v":0.2857142857142857,"d":"29%"}]

{"sheet":"Environments","index":14,"n_rows":22,"n_cols":8,"rows_kept":22,"merged":[[0,1,0,6]]}
[null,"Positive effect"]
[null,"Undernutrition","Overnutrition","Environmental sustainability","Socio-economic inequalities","Women's empowerment",null,"Double or triple duty,"]
["Reformulation of out-of-home meals",{"v":0.3333333333333333,"d":"33%"},{"v":0.8888888888888888,"d":"89%"},{"v":0.2777777777777778,"d":"28%"},{"v":0.6111111111111112,"d":"61%"},{"v":0.05555555555555555,"d":"6%"},{"$f":"B3+C3+D3+E3+F3","v":{"v":2.1666666666666665,"d":"217%"}},0]
["Codex standards",{"v":0.5555555555555556,"d":"56%"},{"v":0.8888888888888888,"d":"89%"},{"v":0.1111111111111111,"d":"11%"},{"v":0.4444444444444444,"d":"44%"},{"v":0.16666666666666666,"d":"17%"},{"v":2.1666666666666665,"d":"217%"},2]
["Reformulation of processed foods",{"v":0.3888888888888889,"d":"39%"},{"v":0.8888888888888888,"d":"89%"},{"v":0.16666666666666666,"d":"17%"},{"v":0.6111111111111112,"d":"61%"},{"v":0.2222222222222222,"d":"22%"},{"v":2.2777777777777777,"d":"228%"},0]
["Price volatility reduction",{"v":0.7222222222222222,"d":"72%"},{"v":0.4444444444444444,"d":"44%"},{"v":0.1111111111111111,"d":"11%"},{"v":0.8333333333333334,"d":"83%"},{"v":0.3888888888888889,"d":"39%"},{"v":2.5,"d":"250%"},0]
["Quick-service outlets menu labeling",{"v":0.4444444444444444,"d":"44%"},{"v":0.9444444444444444,"d":"94%"},{"v":0.7777777777777778,"d":"78%"},{"v":0.5555555555555556,"d":"56%"},{"v":0.2222222222222222,"d":"22%"},{"v":2.9444444444444446,"d":"294%"},"2+Eq"]
["Environmental impact measures",{"v":0.5,"d":"50%"},{"v":0.6111111111111112,"d":"61%"},{"v":0.7777777777777778,"d":"78%"},{"v":0.7222222222222222,"d":"72%"},{"v":0.6111111111111112,"d":"61%"},{"v":3.2222222222222223,"d":"322%"},"3+Eq"]
["Evidence-based claim regulations",{"v":0.7222222222222222,"d":"72%"},{"v":0.9444444444444444,"d":"94%"},{"v":0.7777777777777778,"d":"78%"},{"v":0.6111111111111112,"d":"61%"},{"v":0.2222222222222222,"d":"22%"},{"v":3.2777777777777777,"d":"328%"},"3+Eq"]
["Front-of pack labeling",{"v":0.5555555555555556,"d":"56%"},{"v":0.9444444444444444,"d":"94%"},{"v":1,"d":"100%"},{"v":0.6666666666666666,"d":"67%"},{"v":0.2222222222222222,"d":"22%"},{"v":3.388888888888889,"d":"339%"},"3+Eq"]
["Marketing restrictions to children through all media",{"v":0.6111111111111112,"d":"61%"},{"v":1,"d":"100%"},{"v":0.3888888888888889,"d":"39%"},{"v":1,"d":"100%"},{"v":0.5,"d":"50%"},{"v":3.5,"d":"350%"},"2+Eq"]
["Private companies",{"v":0.5,"d":"50%"},{"v":1,"d":"100%"},{"v":0.7777777777777778,"d":"78%"},{"v":0.8333333333333334,"d":"83%"},{"v":0.4444444444444444,"d":"44%"},{"v":3.5555555555555554,"d":"356%"},"3+Eq"]
["Healthy, sustainable food in stores",{"v":0.7777777777777778,"d":"78%"},{"v":0.9444444444444444,"d":"94%"},{"v":0.9444444444444444,"d":"94%"},{"v":0.6666666666666666,"d":"67%"},{"v":0.2777777777777778,"d":"28%"},{"v":3.611111111111111,"d":"361%"},"3+Eq"]
["Healthy, sustainable food in food tracks, street vendors",{"v":0.6111111111111112,"d":"61%"},{"v":1,"d":"100%"},{"v":0.8333333333333334,"d":"83%"},{"v":0.7222222222222222,"d":"72%"},{"v":0.5,"d":"50%"},{"v":3.666666666666667,"d":"367%"},"3+Eq"]
["Zoning laws",{"v":0.7222222222222222,"d":"72%"},{"v":0.9444444444444444,"d":"94%"},{"v":0.5,"d":"50%"},{"v":0.8888888888888888,"d":"89%"},{"v":0.6666666666666666,"d":"67%"},{"v":3.722222222222222,"d":"372%"},"3+Eq"]
["Fiscal measures – taxes and levies",{"v":0.7777777777777778,"d":"78%"},{"v":1,"d":"100%"},{"v":0.8888888888888888,"d":"89%"},{"v":0.7777777777777778,"d":"78%"},{"v":0.3333333333333333,"d":"33%"},{"v":3.7777777777777777,"d":"378%"},"3+Eq"]
["Affordability of healthy diets",{"v":1,"d":"100%"},{"v":0.9444444444444444,"d":"94%"},{"v":0.6666666666666666,"d":"67%"},{"v":1,"d":"100%"},{"v":0.7777777777777778,"d":"78%"},{"v":4.388888888888889,"d":"439%"},"3+Eq"]
["Marketing restrictions on  breastmilk substitutes",{"v":1,"d":"100%"},{"v":1,"d":"100%"},{"v":0.6111111111111112,"d":"61%"},{"v":0.9444444444444444,"d":"94%"},{"v":0.8888888888888888,"d":"89%"},{"v":4.444444444444445,"d":"444%"},"3+Eq"]
["Fiscal measures – subsidies",{"v":1,"d":"100%"},{"v":1,"d":"100%"},{"v":0.8888888888888888,"d":"89%"},{"v":1,"d":"100%"},{"v":0.6111111111111112,"d":"61%"},{"v":4.5,"d":"450%"},"3+Eq"]
["School programmes",{"v":1,"d":"100%"},{"v":1,"d":"100%"},{"v":0.7777777777777778,"d":"78%"},{"v":1,"d":"100%"},{"v":0.7777777777777778,"d":"78%"},{"v":4.555555555555555,"d":"456%"},"3+Eq"]
["Provision of nutritious, sustainable food",{"v":1,"d":"100%"},{"v":1,"d":"100%"},{"v":0.8333333333333334,"d":"83%"},{"v":1,"d":"100%"},{"v":0.7777777777777778,"d":"78%"},{"v":4.611111111111112,"d":"461%"},"3+Eq"]
[null,{"$f":"B3+B4+B5+B6+B7+B8+B9+B10+B11+B12+B13+B14+B15+B16+B17+B18+B19+B20+B21","v":{"v":13.222222222222223,"d":"1322%"}},{"$f":"C3+C4+C5+C6+C7+C8+C9+C10+C11+C12+C13+C14+C15+C16+C17+C18+C19+C20+C21","v":{"v":17.38888888888889,"d":"1739%"}},{"$f":"D3+D4+D5+D6+D7+D8+D9+D10+D11+D12+D13+D14+D15+D16+D17+D18+D19+D20+D21","v":{"v":12.111111111111112,"d":"1211%"}},{"$f":"E3+E4+E5+E6+E7+E8+E9+E10+E11+E12+E13+E14+E15+E16+E17+E18+E19+E20+E21","v":{"v":14.888888888888891,"d":"1489%"}},{"$f":"F3+F4+F5+F6+F7+F8+F9+F10+F11+F12+F13+F14+F15+F16+F17+F18+F19+F20+F21","v":{"v":8.666666666666666,"d":"867%"}}]